Workbook

Sheet Cover

Sheet Capex
B1: Capex Inputs
C2: Capex inputs required for derivation of labour cost per component
C6: Summary labour rate values
C8: Component ratios
C9: Column | D9: % | E9: 0.9
C10: Bracket | D10: % | E10: 0.01
C11: Luminaire | D11: % | E11: 0.09
C15: Derivation of labour cost per component
H17: Total | I17: Overheads | J17: Labour | K17: Overheads | L17: Total | M17: Labour Cost | N17: Labour Cost All
D18: Growth Count | E18: Refurbishment Count | F18: Asset class type | H18: # | I18: Corporate | J18: Direct | K18: Direct | L18: Labour overheads | M18: $ per component | N18: $ per component
C19: 2x14W Energy Efficient Fluro - STD | D19: 0 | E19: 47 | F19: Luminaire
C20: 2x24W Energy Efficient Fluro - STD | D20: 0 | E20: 32 | F20: Luminaire
C21: 1x42W Compact Fluorescent - STD | D21: 2 | E21: 137 | F21: Luminaire
C22: 50W Mercury - STANDARD | D22: 3 | E22: 1 | F22: Luminaire
C23: 80W Mercury - STANDARD | D23: 0 | E23: 2 | F23: Luminaire
C24: 70W Sodium - STANDARD | D24: 0 | E24: 4 | F24: Luminaire
C25: 100W Sodium - STANDARD | D25: 0 | E25: 17 | F25: Luminaire
C26: 100W Metal Halide - STANDARD | D26: 0 | E26: 9 | F26: Luminaire
C27: 25W LED | D27: 0 | E27: 1 | F27: Luminaire
C28: Suburban 70W HPS c/w D2 PECB - STD | D28: 0 | E28: 0 | F28: Luminaire
C29: 150W Sodium - STANDARD | D29: 0 | E29: 74 | F29: Luminaire
C30: 150W Metal Halide - STANDARD | D30: 0 | E30: 14 | F30: Luminaire
C31: 250W Sodium - STANDARD | D31: 2 | E31: 158 | F31: Luminaire
C32: 250W Metal Halide - STANDARD | D32: 0 | E32: 2 | F32: Luminaire
C33: 400W Sodium - STANDARD | D33: 0 | E33: 5 | F33: Luminaire
C34: 80W Mercury - AEROSCREEN | D34: 0 | E34: 0 | F34: Luminaire
C35: Urban A/Screen 42W CFL c/w D2 PECB | D35: 0 | E35: 3 | F35: Luminaire
C36: 150W Sodium - AEROSCREEN | D36: 0 | E36: 11 | F36: Luminaire
C37: 150W Metal Halide - AEROSCREEN | D37: 0 | E37: 5 | F37: Luminaire
C38: 250W Sodium (w/o PECB) - AEROSCREEN | D38: 0 | E38: 6 | F38: Luminaire
C39: 250W Metal Halide - AEROSCREEN | D39: 0 | E39: 0 | F39: Luminaire
C40: 400W Sodium - AEROSCREEN | D40: 0 | E40: 0 | F40: Luminaire
C41: 400W Metal Halide - AEROSCREEN | D41: 1 | E41: 2 | F41: Luminaire
C42: Roadster A/Screen 100W HPS c/w PECB | D42: 0 | E42: 0 | F42: Luminaire
C43: 80W Mercury - POST TOP | D43: 0 | E43: 6 | F43: Luminaire
C44: B2001 42WCFL c/w D2 PECB green - PT | D44: 0 | E44: 1 | F44: Luminaire
C45: 250W Sodium - FLOODLIGHT | D45: 0 | E45: 3 | F45: Luminaire
C46: 250W Metal Halide - FLOODLIGHT | D46: 0 | E46: 7 | F46: Luminaire
C47: 400W Sodium - FLOODLIGHT | D47: 0 | E47: 3 | F47: Luminaire
C48: 400W Metal Halide - FLOODLIGHT | D48: 1 | E48: 5 | F48: Luminaire
C49: 150W Sodium - FLOODLIGHT | D49: 0 | E49: 0 | F49: Luminaire
C50: 150W Metal Halide - FLOODLIGHT | D50: 0 | E50: 0 | F50: Luminaire
C51: Bracket - Minor <=3m | D51: 6 | E51: 1104 | F51: Bracket
C52: Bracket - Major >3m | D52: 2 | E52: 236 | F52: Bracket
C53: Outreach - Minor <=2m | D53: 3 | E53: 1174 | F53: Bracket
C54: Outreach - Major >2m | D54: 3 | E54: 185 | F54: Bracket
C55: Pole (Wood) - Minor - DEDICATED SL <=11m | D55: 8 | E55: 4 | F55: Column
C56: Pole (Wood) - Major - DEDICATED SL >11m | D56: 1 | E56: 0 | F56: Column
C57: Column (Steel) - Minor <=9m | D57: 254 | E57: 646 | F57: Column
C58: Column (Steel) - Major >9m | D58: 50 | E58: 80 | F58: Column
C59: Pole (Wood) - Minor <=11m | D59: 0 | E59: 0 | F59: Column
C60: Pole (Wood) - Major >11m | D60: 0 | E60: 0 | F60: Column
C61: 18W LED P4 Gerard | D61: 5 | E61: 1994 | F61: Luminaire
C62: 25W LED P4 Gerard | D62: 0 | E62: 146 | F62: Luminaire
C68: ='Roll Forward'!C91 -> Spare
C69: ='Roll Forward'!C92 -> Spare
C70: ='Roll Forward'!C93 -> Spare
C71: ='Roll Forward'!C94 -> Spare
C72: ='Roll Forward'!C95 -> Spare
C73: ='Roll Forward'!C96 -> Spare
C74: ='Roll Forward'!C97 -> Spare
C75: ='Roll Forward'!C98 -> Spare
C76: ='Roll Forward'!C99 -> Spare
C77: ='Roll Forward'!C100 -> Spare
C78: ='Roll Forward'!C101 -> Spare
C79: ='Roll Forward'!C102 -> Spare
C80: ='Roll Forward'!C103 -> Spare
C81: ='Roll Forward'!C104 -> Spare
C82: ='Roll Forward'!C105 -> Spare
C83: ='Roll Forward'!C106 -> Spare
C84: ='Roll Forward'!C107 -> Spare
C85: ='Roll Forward'!C108 -> Spare
C86: ='Roll Forward'!C109 -> Spare
C87: ='Roll Forward'!C110 -> Spare
C88: ='Roll Forward'!C111 -> Spare
C89: ='Roll Forward'!C112 -> Spare
C90: ='Roll Forward'!C113 -> Spare
C91: ='Roll Forward'!C114 -> Spare
C92: ='Roll Forward'!C115 -> Spare
C93: ='Roll Forward'!C116 -> Spare
C94: ='Roll Forward'!C117 -> Spare
C95: ='Roll Forward'!C118 -> Spare
C96: ='Roll Forward'!C119 -> Spare
C97: ='Roll Forward'!C120 -> Spare
C98: ='Roll Forward'!C121 -> Spare
C99: ='Roll Forward'!C122 -> Spare
C100: ='Roll Forward'!C123 -> Spare
C101: ='Roll Forward'!C124 -> Spare
C102: ='Roll Forward'!C125 -> Spare
C103: ='Roll Forward'!C126 -> Spare
C104: ='Roll Forward'!C127 -> Spare
C105: ='Roll Forward'!C128 -> Spare
C106: ='Roll Forward'!C129 -> Spare
C107: ='Roll Forward'!C130 -> Spare
C108: ='Roll Forward'!C131 -> Spare
C109: ='Roll Forward'!C132 -> Spare
C110: ='Roll Forward'!C133 -> Spare
C111: ='Roll Forward'!C134 -> Spare
C112: ='Roll Forward'!C135 -> Spare
C113: ='Roll Forward'!C136 -> Spare
C114: ='Roll Forward'!C137 -> Spare
C115: ='Roll Forward'!C138 -> Spare
C116: ='Roll Forward'!C139 -> Spare
C117: ='Roll Forward'!C140 -> Spare
C118: ='Roll Forward'!C141 -> Spare
C119: ='Roll Forward'!C142 -> Spare
C120: ='Roll Forward'!C143 -> Spare
C121: ='Roll Forward'!C144 -> Spare
C122: ='Roll Forward'!C145 -> Spare
C123: ='Roll Forward'!C146 -> Spare
C124: ='Roll Forward'!C147 -> Spare
C125: ='Roll Forward'!C148 -> Spare
C126: ='Roll Forward'!C149 -> Spare
C127: ='Roll Forward'!C150 -> Spare
C128: ='Roll Forward'!C151 -> Spare
C129: ='Roll Forward'!C152 -> Spare
C130: ='Roll Forward'!C153 -> Spare
C131: ='Roll Forward'!C154 -> Spare
C132: ='Roll Forward'!C155 -> Spare
C133: ='Roll Forward'!C156 -> Spare
C134: ='Roll Forward'!C157 -> Spare
C135: ='Roll Forward'!C158 -> Spare
C136: ='Roll Forward'!C159 -> Spare
C137: ='Roll Forward'!C160 -> Spare
C138: ='Roll Forward'!C161 -> Spare
C139: ='Roll Forward'!C162 -> Spare
C140: ='Roll Forward'!C163 -> Spare
C141: ='Roll Forward'!C164 -> Spare
C142: ='Roll Forward'!C165 -> Spare
C143: ='Roll Forward'!C166 -> Spare
C144: ='Roll Forward'!C167 -> Spare
C145: ='Roll Forward'!C168 -> Spare
C146: ='Roll Forward'!C169 -> Spare
C147: ='Roll Forward'!C170 -> Spare
C148: ='Roll Forward'!C171 -> Spare
C149: ='Roll Forward'!C172 -> Spare
C150: ='Roll Forward'!C173 -> Spare
C151: ='Roll Forward'!C174 -> Spare
C152: ='Roll Forward'!C175 -> Spare
C153: ='Roll Forward'!C176 -> Spare
C154: ='Roll Forward'!C177 -> Spare
C155: ='Roll Forward'!C178 -> Spare
C156: ='Roll Forward'!C179 -> Spare
C157: ='Roll Forward'!C180 -> Spare
C158: ='Roll Forward'!C181 -> Spare
C159: ='Roll Forward'!C182 -> Spare
C160: ='Roll Forward'!C183 -> Spare

Sheet Opex
B1: Opex Inputs
C2: Opex inputs required for derivation of general maintenance and overhead cost per component
C6: Summary opex inputs
C9: Opex input values required
C10: Total expense element Opex for year 2016/17 | D10: $ | E10: 14713582.5
C13: Total Unit Cost
C14: Component Type | D14: Cost (incl. OH)
C15: Column
C16: Bracket
C17: Luminaire
C18: LED Luminaire
C21: Derivation of cost per component
D23: Asset type | E23: Total | F23: Opex per unit | G23: Lamps
C24: Asset class | D24: Category | E24: $ | F24: $ | G24: $
C25: 2x14W Energy Efficient Fluro - STD | D25: Luminaire | E25: 50.28953401
C26: 2x24W Energy Efficient Fluro - STD | D26: Luminaire | E26: 50.28953401
C27: 1x42W Compact Fluorescent - STD | D27: Luminaire | E27: 52.13953401
C28: 50W Mercury - STANDARD | D28: Luminaire | E28: 53.48953401
C29: 80W Mercury - STANDARD | D29: Luminaire | E29: 50.78953401
C30: 70W Sodium - STANDARD | D30: Luminaire | E30: 55.80953401
C31: 100W Sodium - STANDARD | D31: Luminaire | E31: 59.68953401
C32: 100W Metal Halide - STANDARD | D32: Luminaire | E32: 79.01953401
C33: 25W LED | D33: LED Luminaire | E33: 44.68275711
C34: Suburban 70W HPS c/w D2 PECB - STD | D34: Luminaire | E34: 55.80953401
C35: 150W Sodium - STANDARD | D35: Luminaire | E35: 55.63953401
C36: 150W Metal Halide - STANDARD | D36: Luminaire | E36: 68.88953401
C37: 250W Sodium - STANDARD | D37: Luminaire | E37: 64.86953401
C38: 250W Metal Halide - STANDARD | D38: Luminaire | E38: 66.26953401
C39: 400W Sodium - STANDARD | D39: Luminaire | E39: 57.78953401
C40: 80W Mercury - AEROSCREEN | D40: Luminaire | E40: 77.78953401
C41: Urban A/Screen 42W CFL c/w D2 PECB | D41: Luminaire | E41: 52.13953401
C42: 150W Sodium - AEROSCREEN | D42: Luminaire | E42: 55.63953401
C43: 150W Metal Halide - AEROSCREEN | D43: Luminaire | E43: 68.88953401
C44: 250W Sodium (w/o PECB) - AEROSCREEN | D44: Luminaire | E44: 64.86953401
C45: 250W Metal Halide - AEROSCREEN | D45: Luminaire | E45: 66.26953401
C46: 400W Sodium - AEROSCREEN | D46: Luminaire | E46: 57.78953401
C47: 400W Metal Halide - AEROSCREEN | D47: Luminaire | E47: 64.88953401
C48: Roadster A/Screen 100W HPS c/w PECB | D48: Luminaire | E48: 59.68953401
C49: 80W Mercury - POST TOP | D49: Luminaire | E49: 50.78953401
C50: B2001 42WCFL c/w D2 PECB green - PT | D50: Luminaire | E50: 52.13953401
C51: 250W Sodium - FLOODLIGHT | D51: Luminaire | E51: 64.86953401
C52: 250W Metal Halide - FLOODLIGHT | D52: Luminaire | E52: 66.26953401
C53: 400W Sodium - FLOODLIGHT | D53: Luminaire | E53: 57.78953401
C54: 400W Metal Halide - FLOODLIGHT | D54: Luminaire | E54: 64.88953401
C55: 150W Sodium - FLOODLIGHT | D55: Luminaire | E55: 55.63953401
C56: 150W Metal Halide - FLOODLIGHT | D56: Luminaire | E56: 68.88953401
C57: Bracket - Minor <=3m | D57: Bracket | E57: 14.8152592
C58: Bracket - Major >3m | D58: Bracket | E58: 14.8152592
C59: Outreach - Minor <=2m | D59: Bracket | E59: 14.8152592
C60: Outreach - Major >2m | D60: Bracket | E60: 14.8152592
C61: Pole (Wood) - Minor - DEDICATED SL <=11m | D61: Column | E61: 19.34893186
C62: Pole (Wood) - Major - DEDICATED SL >11m | D62: Column | E62: 19.34893186
C63: Column (Steel) - Minor <=9m | D63: Column | E63: 19.34893186
C64: Column (Steel) - Major >9m | D64: Column | E64: 19.34893186
C65: Pole (Wood) - Minor <=11m | D65: Column | E65: 19.34893186
C66: Pole (Wood) - Major >11m | D66: Column | E66: 19.34893186
C67: 18W LED P4 Gerard | D67: LED Luminaire | E67: 44.68275711
C68: 25W LED P4 Gerard | D68: LED Luminaire | E68: 44.68275711
C69: 33W LED | D69: LED Luminaire | E69: 44.68275711
C70: 42W LED | D70: LED Luminaire | E70: 44.68275711
C71: 82W LED Gerard V5 Cat Luminaire | D71: LED Luminaire | E71: 44.68275711
C72: 100W LED Gerard V4 Cat Luminaire | D72: LED Luminaire | E72: 44.68275711
C73: 198W LED Gerard V2/V3 Cat Luminaire | D73: LED Luminaire | E73: 44.68275711
C74: ='Roll Forward'!C91 -> Spare | E74: =SUM(F74:H74) ->  | F74: =INDEX(#REF!, MATCH(D74,#REF!, 0), 5) ->  | G74: =IFERROR(INDEX(#REF!, MATCH(D74,#REF!, 0), 6),0) -> 0
C75: ='Roll Forward'!C92 -> Spare | F75: =INDEX(#REF!, MATCH(D75,#REF!, 0), 5) ->  | G75: =IFERROR(INDEX(#REF!, MATCH(D75,#REF!, 0), 6),0) -> 0
C76: ='Roll Forward'!C93 -> Spare | F76: =INDEX(#REF!, MATCH(D76,#REF!, 0), 5) ->  | G76: =IFERROR(INDEX(#REF!, MATCH(D76,#REF!, 0), 6),0) -> 0
C77: ='Roll Forward'!C94 -> Spare | F77: =INDEX(#REF!, MATCH(D77,#REF!, 0), 5) ->  | G77: =IFERROR(INDEX(#REF!, MATCH(D77,#REF!, 0), 6),0) -> 0
C78: ='Roll Forward'!C95 -> Spare | F78: =INDEX(#REF!, MATCH(D78,#REF!, 0), 5) ->  | G78: =IFERROR(INDEX(#REF!, MATCH(D78,#REF!, 0), 6),0) -> 0
C79: ='Roll Forward'!C96 -> Spare | E79: =SUM(F79:H79) ->  | F79: =INDEX(#REF!, MATCH(D79,#REF!, 0), 5) ->  | G79: =IFERROR(INDEX(#REF!, MATCH(D79,#REF!, 0), 6),0) -> 0
C80: ='Roll Forward'!C97 -> Spare | F80: =INDEX(#REF!, MATCH(D80,#REF!, 0), 5) ->  | G80: =IFERROR(INDEX(#REF!, MATCH(D80,#REF!, 0), 6),0) -> 0
C81: ='Roll Forward'!C98 -> Spare | F81: =INDEX(#REF!, MATCH(D81,#REF!, 0), 5) ->  | G81: =IFERROR(INDEX(#REF!, MATCH(D81,#REF!, 0), 6),0) -> 0
C82: ='Roll Forward'!C99 -> Spare | F82: =INDEX(#REF!, MATCH(D82,#REF!, 0), 5) ->  | G82: =IFERROR(INDEX(#REF!, MATCH(D82,#REF!, 0), 6),0) -> 0
C83: ='Roll Forward'!C100 -> Spare | F83: =INDEX(#REF!, MATCH(D83,#REF!, 0), 5) ->  | G83: =IFERROR(INDEX(#REF!, MATCH(D83,#REF!, 0), 6),0) -> 0
C84: ='Roll Forward'!C101 -> Spare | F84: =INDEX(#REF!, MATCH(D84,#REF!, 0), 5) ->  | G84: =IFERROR(INDEX(#REF!, MATCH(D84,#REF!, 0), 6),0) -> 0
C85: ='Roll Forward'!C102 -> Spare | F85: =INDEX(#REF!, MATCH(D85,#REF!, 0), 5) ->  | G85: =IFERROR(INDEX(#REF!, MATCH(D85,#REF!, 0), 6),0) -> 0
C86: ='Roll Forward'!C103 -> Spare | F86: =INDEX(#REF!, MATCH(D86,#REF!, 0), 5) ->  | G86: =IFERROR(INDEX(#REF!, MATCH(D86,#REF!, 0), 6),0) -> 0
C87: ='Roll Forward'!C104 -> Spare | F87: =INDEX(#REF!, MATCH(D87,#REF!, 0), 5) ->  | G87: =IFERROR(INDEX(#REF!, MATCH(D87,#REF!, 0), 6),0) -> 0
C88: ='Roll Forward'!C105 -> Spare | F88: =INDEX(#REF!, MATCH(D88,#REF!, 0), 5) ->  | G88: =IFERROR(INDEX(#REF!, MATCH(D88,#REF!, 0), 6),0) -> 0
C89: ='Roll Forward'!C106 -> Spare | F89: =INDEX(#REF!, MATCH(D89,#REF!, 0), 5) ->  | G89: =IFERROR(INDEX(#REF!, MATCH(D89,#REF!, 0), 6),0) -> 0
C90: ='Roll Forward'!C107 -> Spare | F90: =INDEX(#REF!, MATCH(D90,#REF!, 0), 5) ->  | G90: =IFERROR(INDEX(#REF!, MATCH(D90,#REF!, 0), 6),0) -> 0
C91: ='Roll Forward'!C108 -> Spare | F91: =INDEX(#REF!, MATCH(D91,#REF!, 0), 5) ->  | G91: =IFERROR(INDEX(#REF!, MATCH(D91,#REF!, 0), 6),0) -> 0
C92: ='Roll Forward'!C109 -> Spare | F92: =INDEX(#REF!, MATCH(D92,#REF!, 0), 5) ->  | G92: =IFERROR(INDEX(#REF!, MATCH(D92,#REF!, 0), 6),0) -> 0
C93: ='Roll Forward'!C110 -> Spare | F93: =INDEX(#REF!, MATCH(D93,#REF!, 0), 5) ->  | G93: =IFERROR(INDEX(#REF!, MATCH(D93,#REF!, 0), 6),0) -> 0
C94: ='Roll Forward'!C111 -> Spare | F94: =INDEX(#REF!, MATCH(D94,#REF!, 0), 5) ->  | G94: =IFERROR(INDEX(#REF!, MATCH(D94,#REF!, 0), 6),0) -> 0
C95: ='Roll Forward'!C112 -> Spare | F95: =INDEX(#REF!, MATCH(D95,#REF!, 0), 5) ->  | G95: =IFERROR(INDEX(#REF!, MATCH(D95,#REF!, 0), 6),0) -> 0
C96: ='Roll Forward'!C113 -> Spare | F96: =INDEX(#REF!, MATCH(D96,#REF!, 0), 5) ->  | G96: =IFERROR(INDEX(#REF!, MATCH(D96,#REF!, 0), 6),0) -> 0
C97: ='Roll Forward'!C114 -> Spare | F97: =INDEX(#REF!, MATCH(D97,#REF!, 0), 5) ->  | G97: =IFERROR(INDEX(#REF!, MATCH(D97,#REF!, 0), 6),0) -> 0
C98: ='Roll Forward'!C115 -> Spare | F98: =INDEX(#REF!, MATCH(D98,#REF!, 0), 5) ->  | G98: =IFERROR(INDEX(#REF!, MATCH(D98,#REF!, 0), 6),0) -> 0
C99: ='Roll Forward'!C116 -> Spare | F99: =INDEX(#REF!, MATCH(D99,#REF!, 0), 5) ->  | G99: =IFERROR(INDEX(#REF!, MATCH(D99,#REF!, 0), 6),0) -> 0
C100: ='Roll Forward'!C117 -> Spare | F100: =INDEX(#REF!, MATCH(D100,#REF!, 0), 5) ->  | G100: =IFERROR(INDEX(#REF!, MATCH(D100,#REF!, 0), 6),0) -> 0
C101: ='Roll Forward'!C118 -> Spare | F101: =INDEX(#REF!, MATCH(D101,#REF!, 0), 5) ->  | G101: =IFERROR(INDEX(#REF!, MATCH(D101,#REF!, 0), 6),0) -> 0
C102: ='Roll Forward'!C119 -> Spare | F102: =INDEX(#REF!, MATCH(D102,#REF!, 0), 5) ->  | G102: =IFERROR(INDEX(#REF!, MATCH(D102,#REF!, 0), 6),0) -> 0
C103: ='Roll Forward'!C120 -> Spare | F103: =INDEX(#REF!, MATCH(D103,#REF!, 0), 5) ->  | G103: =IFERROR(INDEX(#REF!, MATCH(D103,#REF!, 0), 6),0) -> 0
C104: ='Roll Forward'!C121 -> Spare | F104: =INDEX(#REF!, MATCH(D104,#REF!, 0), 5) ->  | G104: =IFERROR(INDEX(#REF!, MATCH(D104,#REF!, 0), 6),0) -> 0
C105: ='Roll Forward'!C122 -> Spare | F105: =INDEX(#REF!, MATCH(D105,#REF!, 0), 5) ->  | G105: =IFERROR(INDEX(#REF!, MATCH(D105,#REF!, 0), 6),0) -> 0
C106: ='Roll Forward'!C123 -> Spare | F106: =INDEX(#REF!, MATCH(D106,#REF!, 0), 5) ->  | G106: =IFERROR(INDEX(#REF!, MATCH(D106,#REF!, 0), 6),0) -> 0
C107: ='Roll Forward'!C124 -> Spare | F107: =INDEX(#REF!, MATCH(D107,#REF!, 0), 5) ->  | G107: =IFERROR(INDEX(#REF!, MATCH(D107,#REF!, 0), 6),0) -> 0
C108: ='Roll Forward'!C125 -> Spare | F108: =INDEX(#REF!, MATCH(D108,#REF!, 0), 5) ->  | G108: =IFERROR(INDEX(#REF!, MATCH(D108,#REF!, 0), 6),0) -> 0
C109: ='Roll Forward'!C126 -> Spare | F109: =INDEX(#REF!, MATCH(D109,#REF!, 0), 5) ->  | G109: =IFERROR(INDEX(#REF!, MATCH(D109,#REF!, 0), 6),0) -> 0
C110: ='Roll Forward'!C127 -> Spare | F110: =INDEX(#REF!, MATCH(D110,#REF!, 0), 5) ->  | G110: =IFERROR(INDEX(#REF!, MATCH(D110,#REF!, 0), 6),0) -> 0
C111: ='Roll Forward'!C128 -> Spare | F111: =INDEX(#REF!, MATCH(D111,#REF!, 0), 5) ->  | G111: =IFERROR(INDEX(#REF!, MATCH(D111,#REF!, 0), 6),0) -> 0
C112: ='Roll Forward'!C129 -> Spare | F112: =INDEX(#REF!, MATCH(D112,#REF!, 0), 5) ->  | G112: =IFERROR(INDEX(#REF!, MATCH(D112,#REF!, 0), 6),0) -> 0
C113: ='Roll Forward'!C130 -> Spare | F113: =INDEX(#REF!, MATCH(D113,#REF!, 0), 5) ->  | G113: =IFERROR(INDEX(#REF!, MATCH(D113,#REF!, 0), 6),0) -> 0
C114: ='Roll Forward'!C131 -> Spare | F114: =INDEX(#REF!, MATCH(D114,#REF!, 0), 5) ->  | G114: =IFERROR(INDEX(#REF!, MATCH(D114,#REF!, 0), 6),0) -> 0
C115: ='Roll Forward'!C132 -> Spare | F115: =INDEX(#REF!, MATCH(D115,#REF!, 0), 5) ->  | G115: =IFERROR(INDEX(#REF!, MATCH(D115,#REF!, 0), 6),0) -> 0
C116: ='Roll Forward'!C133 -> Spare | F116: =INDEX(#REF!, MATCH(D116,#REF!, 0), 5) ->  | G116: =IFERROR(INDEX(#REF!, MATCH(D116,#REF!, 0), 6),0) -> 0
C117: ='Roll Forward'!C134 -> Spare | F117: =INDEX(#REF!, MATCH(D117,#REF!, 0), 5) ->  | G117: =IFERROR(INDEX(#REF!, MATCH(D117,#REF!, 0), 6),0) -> 0
C118: ='Roll Forward'!C135 -> Spare | F118: =INDEX(#REF!, MATCH(D118,#REF!, 0), 5) ->  | G118: =IFERROR(INDEX(#REF!, MATCH(D118,#REF!, 0), 6),0) -> 0
C119: ='Roll Forward'!C136 -> Spare | F119: =INDEX(#REF!, MATCH(D119,#REF!, 0), 5) ->  | G119: =IFERROR(INDEX(#REF!, MATCH(D119,#REF!, 0), 6),0) -> 0
C120: ='Roll Forward'!C137 -> Spare | F120: =INDEX(#REF!, MATCH(D120,#REF!, 0), 5) ->  | G120: =IFERROR(INDEX(#REF!, MATCH(D120,#REF!, 0), 6),0) -> 0
C121: ='Roll Forward'!C138 -> Spare | F121: =INDEX(#REF!, MATCH(D121,#REF!, 0), 5) ->  | G121: =IFERROR(INDEX(#REF!, MATCH(D121,#REF!, 0), 6),0) -> 0
C122: ='Roll Forward'!C139 -> Spare | F122: =INDEX(#REF!, MATCH(D122,#REF!, 0), 5) ->  | G122: =IFERROR(INDEX(#REF!, MATCH(D122,#REF!, 0), 6),0) -> 0
C123: ='Roll Forward'!C140 -> Spare | F123: =INDEX(#REF!, MATCH(D123,#REF!, 0), 5) ->  | G123: =IFERROR(INDEX(#REF!, MATCH(D123,#REF!, 0), 6),0) -> 0
C124: ='Roll Forward'!C141 -> Spare | F124: =INDEX(#REF!, MATCH(D124,#REF!, 0), 5) ->  | G124: =IFERROR(INDEX(#REF!, MATCH(D124,#REF!, 0), 6),0) -> 0
C125: ='Roll Forward'!C142 -> Spare | F125: =INDEX(#REF!, MATCH(D125,#REF!, 0), 5) ->  | G125: =IFERROR(INDEX(#REF!, MATCH(D125,#REF!, 0), 6),0) -> 0
C126: ='Roll Forward'!C143 -> Spare | F126: =INDEX(#REF!, MATCH(D126,#REF!, 0), 5) ->  | G126: =IFERROR(INDEX(#REF!, MATCH(D126,#REF!, 0), 6),0) -> 0
C127: ='Roll Forward'!C144 -> Spare | F127: =INDEX(#REF!, MATCH(D127,#REF!, 0), 5) ->  | G127: =IFERROR(INDEX(#REF!, MATCH(D127,#REF!, 0), 6),0) -> 0
C128: ='Roll Forward'!C145 -> Spare | F128: =INDEX(#REF!, MATCH(D128,#REF!, 0), 5) ->  | G128: =IFERROR(INDEX(#REF!, MATCH(D128,#REF!, 0), 6),0) -> 0
C129: ='Roll Forward'!C146 -> Spare | F129: =INDEX(#REF!, MATCH(D129,#REF!, 0), 5) ->  | G129: =IFERROR(INDEX(#REF!, MATCH(D129,#REF!, 0), 6),0) -> 0
C130: ='Roll Forward'!C147 -> Spare | F130: =INDEX(#REF!, MATCH(D130,#REF!, 0), 5) ->  | G130: =IFERROR(INDEX(#REF!, MATCH(D130,#REF!, 0), 6),0) -> 0
C131: ='Roll Forward'!C148 -> Spare | E131: =SUM(F131:H131) ->  | F131: =INDEX(#REF!, MATCH(D131,#REF!, 0), 5) ->  | G131: =IFERROR(INDEX(#REF!, MATCH(D131,#REF!, 0), 6),0) -> 0
C132: ='Roll Forward'!C149 -> Spare | F132: =INDEX(#REF!, MATCH(D132,#REF!, 0), 5) ->  | G132: =IFERROR(INDEX(#REF!, MATCH(D132,#REF!, 0), 6),0) -> 0
C133: ='Roll Forward'!C150 -> Spare | F133: =INDEX(#REF!, MATCH(D133,#REF!, 0), 5) ->  | G133: =IFERROR(INDEX(#REF!, MATCH(D133,#REF!, 0), 6),0) -> 0
C134: ='Roll Forward'!C151 -> Spare | F134: =INDEX(#REF!, MATCH(D134,#REF!, 0), 5) ->  | G134: =IFERROR(INDEX(#REF!, MATCH(D134,#REF!, 0), 6),0) -> 0
C135: ='Roll Forward'!C152 -> Spare | F135: =INDEX(#REF!, MATCH(D135,#REF!, 0), 5) ->  | G135: =IFERROR(INDEX(#REF!, MATCH(D135,#REF!, 0), 6),0) -> 0
C136: ='Roll Forward'!C153 -> Spare | F136: =INDEX(#REF!, MATCH(D136,#REF!, 0), 5) ->  | G136: =IFERROR(INDEX(#REF!, MATCH(D136,#REF!, 0), 6),0) -> 0
C137: ='Roll Forward'!C154 -> Spare | F137: =INDEX(#REF!, MATCH(D137,#REF!, 0), 5) ->  | G137: =IFERROR(INDEX(#REF!, MATCH(D137,#REF!, 0), 6),0) -> 0
C138: ='Roll Forward'!C155 -> Spare | F138: =INDEX(#REF!, MATCH(D138,#REF!, 0), 5) ->  | G138: =IFERROR(INDEX(#REF!, MATCH(D138,#REF!, 0), 6),0) -> 0
C139: ='Roll Forward'!C156 -> Spare | F139: =INDEX(#REF!, MATCH(D139,#REF!, 0), 5) ->  | G139: =IFERROR(INDEX(#REF!, MATCH(D139,#REF!, 0), 6),0) -> 0
C140: ='Roll Forward'!C157 -> Spare | F140: =INDEX(#REF!, MATCH(D140,#REF!, 0), 5) ->  | G140: =IFERROR(INDEX(#REF!, MATCH(D140,#REF!, 0), 6),0) -> 0
C141: ='Roll Forward'!C158 -> Spare | F141: =INDEX(#REF!, MATCH(D141,#REF!, 0), 5) ->  | G141: =IFERROR(INDEX(#REF!, MATCH(D141,#REF!, 0), 6),0) -> 0
C142: ='Roll Forward'!C159 -> Spare | F142: =INDEX(#REF!, MATCH(D142,#REF!, 0), 5) ->  | G142: =IFERROR(INDEX(#REF!, MATCH(D142,#REF!, 0), 6),0) -> 0
C143: ='Roll Forward'!C160 -> Spare | F143: =INDEX(#REF!, MATCH(D143,#REF!, 0), 5) ->  | G143: =IFERROR(INDEX(#REF!, MATCH(D143,#REF!, 0), 6),0) -> 0
C144: ='Roll Forward'!C161 -> Spare | F144: =INDEX(#REF!, MATCH(D144,#REF!, 0), 5) ->  | G144: =IFERROR(INDEX(#REF!, MATCH(D144,#REF!, 0), 6),0) -> 0
C145: ='Roll Forward'!C162 -> Spare | F145: =INDEX(#REF!, MATCH(D145,#REF!, 0), 5) ->  | G145: =IFERROR(INDEX(#REF!, MATCH(D145,#REF!, 0), 6),0) -> 0
C146: ='Roll Forward'!C163 -> Spare | F146: =INDEX(#REF!, MATCH(D146,#REF!, 0), 5) ->  | G146: =IFERROR(INDEX(#REF!, MATCH(D146,#REF!, 0), 6),0) -> 0
C147: ='Roll Forward'!C164 -> Spare | F147: =INDEX(#REF!, MATCH(D147,#REF!, 0), 5) ->  | G147: =IFERROR(INDEX(#REF!, MATCH(D147,#REF!, 0), 6),0) -> 0
C148: ='Roll Forward'!C165 -> Spare | F148: =INDEX(#REF!, MATCH(D148,#REF!, 0), 5) ->  | G148: =IFERROR(INDEX(#REF!, MATCH(D148,#REF!, 0), 6),0) -> 0
C149: ='Roll Forward'!C166 -> Spare | F149: =INDEX(#REF!, MATCH(D149,#REF!, 0), 5) ->  | G149: =IFERROR(INDEX(#REF!, MATCH(D149,#REF!, 0), 6),0) -> 0
C150: ='Roll Forward'!C167 -> Spare | F150: =INDEX(#REF!, MATCH(D150,#REF!, 0), 5) ->  | G150: =IFERROR(INDEX(#REF!, MATCH(D150,#REF!, 0), 6),0) -> 0
C151: ='Roll Forward'!C168 -> Spare | F151: =INDEX(#REF!, MATCH(D151,#REF!, 0), 5) ->  | G151: =IFERROR(INDEX(#REF!, MATCH(D151,#REF!, 0), 6),0) -> 0
C152: ='Roll Forward'!C169 -> Spare | F152: =INDEX(#REF!, MATCH(D152,#REF!, 0), 5) ->  | G152: =IFERROR(INDEX(#REF!, MATCH(D152,#REF!, 0), 6),0) -> 0
C153: ='Roll Forward'!C170 -> Spare | F153: =INDEX(#REF!, MATCH(D153,#REF!, 0), 5) ->  | G153: =IFERROR(INDEX(#REF!, MATCH(D153,#REF!, 0), 6),0) -> 0
C154: ='Roll Forward'!C171 -> Spare | F154: =INDEX(#REF!, MATCH(D154,#REF!, 0), 5) ->  | G154: =IFERROR(INDEX(#REF!, MATCH(D154,#REF!, 0), 6),0) -> 0
C155: ='Roll Forward'!C172 -> Spare | F155: =INDEX(#REF!, MATCH(D155,#REF!, 0), 5) ->  | G155: =IFERROR(INDEX(#REF!, MATCH(D155,#REF!, 0), 6),0) -> 0
C156: ='Roll Forward'!C173 -> Spare | F156: =INDEX(#REF!, MATCH(D156,#REF!, 0), 5) ->  | G156: =IFERROR(INDEX(#REF!, MATCH(D156,#REF!, 0), 6),0) -> 0
C157: ='Roll Forward'!C174 -> Spare | F157: =INDEX(#REF!, MATCH(D157,#REF!, 0), 5) ->  | G157: =IFERROR(INDEX(#REF!, MATCH(D157,#REF!, 0), 6),0) -> 0
C158: ='Roll Forward'!C175 -> Spare | F158: =INDEX(#REF!, MATCH(D158,#REF!, 0), 5) ->  | G158: =IFERROR(INDEX(#REF!, MATCH(D158,#REF!, 0), 6),0) -> 0
C159: ='Roll Forward'!C176 -> Spare | F159: =INDEX(#REF!, MATCH(D159,#REF!, 0), 5) ->  | G159: =IFERROR(INDEX(#REF!, MATCH(D159,#REF!, 0), 6),0) -> 0
C160: ='Roll Forward'!C177 -> Spare | F160: =INDEX(#REF!, MATCH(D160,#REF!, 0), 5) ->  | G160: =IFERROR(INDEX(#REF!, MATCH(D160,#REF!, 0), 6),0) -> 0
C161: ='Roll Forward'!C178 -> Spare | F161: =INDEX(#REF!, MATCH(D161,#REF!, 0), 5) ->  | G161: =IFERROR(INDEX(#REF!, MATCH(D161,#REF!, 0), 6),0) -> 0
C162: ='Roll Forward'!C179 -> Spare | F162: =INDEX(#REF!, MATCH(D162,#REF!, 0), 5) ->  | G162: =IFERROR(INDEX(#REF!, MATCH(D162,#REF!, 0), 6),0) -> 0
C163: ='Roll Forward'!C180 -> Spare | F163: =INDEX(#REF!, MATCH(D163,#REF!, 0), 5) ->  | G163: =IFERROR(INDEX(#REF!, MATCH(D163,#REF!, 0), 6),0) -> 0
C164: ='Roll Forward'!C181 -> Spare | F164: =INDEX(#REF!, MATCH(D164,#REF!, 0), 5) ->  | G164: =IFERROR(INDEX(#REF!, MATCH(D164,#REF!, 0), 6),0) -> 0
C165: ='Roll Forward'!C182 -> Spare | F165: =INDEX(#REF!, MATCH(D165,#REF!, 0), 5) ->  | G165: =IFERROR(INDEX(#REF!, MATCH(D165,#REF!, 0), 6),0) -> 0

Sheet Annuity
B1: Annuity Revenue Inputs
C2: Inputs required for calculating the annuity revenue requirement
C6: ="Capex " & "- nominal " & RegYear-1 -> Capex - nominal 2019
C8: Index for de-escalation | F8: Name | G8: Reference
C9: Asset value | D9: Selection | F9: CPI | G9: =MATCH(F9,List_Escalation,0) -> 1
C10: Labour | D10: Selection | F10: LPI | G10: =MATCH(F10,List_Escalation,0) -> 2
C12: Adjustment for volume growth
C13: Capital | D13: % | E13: 0
C14: Labour | D14: % | E14: 0
C15: Opex | D15: % | E15: 0
C17: Real Escalation Index
C18: Capital | D18: Selection | E18: Real capex
C19: Labour | D19: Selection | E19: Real labour (capex)
C20: Opex | D20: Selection | E20: Real opex
E22: Useful life (years) | H22: Nominal ($ / Component) | L22: De-escalation factors - index | O22: ="Real ($ / Component) " & "- nominal " & RegYear-1 -> Real ($ / Component) - nominal 2019
C23: Asset Register | E23: Asset | F23: =I23 -> Labour | H23: asset value | I23: Labour | J23: year | L23: Asset value | M23: Labour | O23: Asset value | P23: Labour
B24: =IF(C24="Spare",TRUE,0) -> 0 | C24: 2x14W Energy Efficient Fluro - STD | E24: 20 | F24: 20 | G24: $ / Component | L24: =IF($J24=0,1,INDEX(REG_Timing!$K$23:$O$27,$G$9,MATCH($J24,List_RegYear,0))) -> 1 | M24: =IF($J24=0,1,INDEX(REG_Timing!$K$23:$O$27,$G$10,MATCH($J24,List_RegYear,0))) -> 1
B25: =IF(C25="Spare",TRUE,0) -> 0 | C25: 2x24W Energy Efficient Fluro - STD | E25: 20 | F25: 20 | G25: $ / Component | L25: =IF($J25=0,1,INDEX(REG_Timing!$K$23:$O$27,$G$9,MATCH($J25,List_RegYear,0))) -> 1 | M25: =IF($J25=0,1,INDEX(REG_Timing!$K$23:$O$27,$G$10,MATCH($J25,List_RegYear,0))) -> 1
B26: 0 | C26: 1x42W Compact Fluorescent - STD | E26: 20 | F26: 20 | G26: $ / Component | L26: =IF($J26=0,1,INDEX(REG_Timing!$K$23:$O$27,$G$9,MATCH($J26,List_RegYear,0))) -> 1 | M26: =IF($J26=0,1,INDEX(REG_Timing!$K$23:$O$27,$G$10,MATCH($J26,List_RegYear,0))) -> 1
B27: 0 | C27: 50W Mercury - STANDARD | E27: 20 | F27: 20 | G27: $ / Component | L27: =IF($J27=0,1,INDEX(REG_Timing!$K$23:$O$27,$G$9,MATCH($J27,List_RegYear,0))) -> 1 | M27: =IF($J27=0,1,INDEX(REG_Timing!$K$23:$O$27,$G$10,MATCH($J27,List_RegYear,0))) -> 1
B28: 0 | C28: 80W Mercury - STANDARD | E28: 20 | F28: 20 | G28: $ / Component | L28: =IF($J28=0,1,INDEX(REG_Timing!$K$23:$O$27,$G$9,MATCH($J28,List_RegYear,0))) -> 1 | M28: =IF($J28=0,1,INDEX(REG_Timing!$K$23:$O$27,$G$10,MATCH($J28,List_RegYear,0))) -> 1
B29: 0 | C29: 70W Sodium - STANDARD | E29: 20 | F29: 20 | G29: $ / Component | L29: =IF($J29=0,1,INDEX(REG_Timing!$K$23:$O$27,$G$9,MATCH($J29,List_RegYear,0))) -> 1 | M29: =IF($J29=0,1,INDEX(REG_Timing!$K$23:$O$27,$G$10,MATCH($J29,List_RegYear,0))) -> 1
B30: 0 | C30: 100W Sodium - STANDARD | E30: 20 | F30: 20 | G30: $ / Component | L30: =IF($J30=0,1,INDEX(REG_Timing!$K$23:$O$27,$G$9,MATCH($J30,List_RegYear,0))) -> 1 | M30: =IF($J30=0,1,INDEX(REG_Timing!$K$23:$O$27,$G$10,MATCH($J30,List_RegYear,0))) -> 1
B31: 0 | C31: 100W Metal Halide - STANDARD | E31: 20 | F31: 20 | G31: $ / Component | L31: =IF($J31=0,1,INDEX(REG_Timing!$K$23:$O$27,$G$9,MATCH($J31,List_RegYear,0))) -> 1 | M31: =IF($J31=0,1,INDEX(REG_Timing!$K$23:$O$27,$G$10,MATCH($J31,List_RegYear,0))) -> 1
B32: 0 | C32: 25W LED | E32: 12 | F32: 12 | G32: $ / Component | L32: =IF($J32=0,1,INDEX(REG_Timing!$K$23:$O$27,$G$9,MATCH($J32,List_RegYear,0))) -> 1 | M32: =IF($J32=0,1,INDEX(REG_Timing!$K$23:$O$27,$G$10,MATCH($J32,List_RegYear,0))) -> 1
B33: 0 | C33: Suburban 70W HPS c/w D2 PECB - STD | E33: 20 | F33: 20 | G33: $ / Component | L33: =IF($J33=0,1,INDEX(REG_Timing!$K$23:$O$27,$G$9,MATCH($J33,List_RegYear,0))) -> 1 | M33: =IF($J33=0,1,INDEX(REG_Timing!$K$23:$O$27,$G$10,MATCH($J33,List_RegYear,0))) -> 1
B34: 0 | C34: 150W Sodium - STANDARD | E34: 20 | F34: 20 | G34: $ / Component | L34: =IF($J34=0,1,INDEX(REG_Timing!$K$23:$O$27,$G$9,MATCH($J34,List_RegYear,0))) -> 1 | M34: =IF($J34=0,1,INDEX(REG_Timing!$K$23:$O$27,$G$10,MATCH($J34,List_RegYear,0))) -> 1
B35: 0 | C35: 150W Metal Halide - STANDARD | E35: 20 | F35: 20 | G35: $ / Component | L35: =IF($J35=0,1,INDEX(REG_Timing!$K$23:$O$27,$G$9,MATCH($J35,List_RegYear,0))) -> 1 | M35: =IF($J35=0,1,INDEX(REG_Timing!$K$23:$O$27,$G$10,MATCH($J35,List_RegYear,0))) -> 1
B36: 0 | C36: 250W Sodium - STANDARD | E36: 20 | F36: 20 | G36: $ / Component | L36: =IF($J36=0,1,INDEX(REG_Timing!$K$23:$O$27,$G$9,MATCH($J36,List_RegYear,0))) -> 1 | M36: =IF($J36=0,1,INDEX(REG_Timing!$K$23:$O$27,$G$10,MATCH($J36,List_RegYear,0))) -> 1
B37: 0 | C37: 250W Metal Halide - STANDARD | E37: 20 | F37: 20 | G37: $ / Component | L37: =IF($J37=0,1,INDEX(REG_Timing!$K$23:$O$27,$G$9,MATCH($J37,List_RegYear,0))) -> 1 | M37: =IF($J37=0,1,INDEX(REG_Timing!$K$23:$O$27,$G$10,MATCH($J37,List_RegYear,0))) -> 1
B38: 0 | C38: 400W Sodium - STANDARD | E38: 20 | F38: 20 | G38: $ / Component | L38: =IF($J38=0,1,INDEX(REG_Timing!$K$23:$O$27,$G$9,MATCH($J38,List_RegYear,0))) -> 1 | M38: =IF($J38=0,1,INDEX(REG_Timing!$K$23:$O$27,$G$10,MATCH($J38,List_RegYear,0))) -> 1
B39: 0 | C39: 80W Mercury - AEROSCREEN | E39: 20 | F39: 20 | G39: $ / Component | L39: =IF($J39=0,1,INDEX(REG_Timing!$K$23:$O$27,$G$9,MATCH($J39,List_RegYear,0))) -> 1 | M39: =IF($J39=0,1,INDEX(REG_Timing!$K$23:$O$27,$G$10,MATCH($J39,List_RegYear,0))) -> 1
B40: 0 | C40: Urban A/Screen 42W CFL c/w D2 PECB | E40: 20 | F40: 20 | G40: $ / Component | L40: =IF($J40=0,1,INDEX(REG_Timing!$K$23:$O$27,$G$9,MATCH($J40,List_RegYear,0))) -> 1 | M40: =IF($J40=0,1,INDEX(REG_Timing!$K$23:$O$27,$G$10,MATCH($J40,List_RegYear,0))) -> 1
B41: 0 | C41: 150W Sodium - AEROSCREEN | E41: 20 | F41: 20 | G41: $ / Component | L41: =IF($J41=0,1,INDEX(REG_Timing!$K$23:$O$27,$G$9,MATCH($J41,List_RegYear,0))) -> 1 | M41: =IF($J41=0,1,INDEX(REG_Timing!$K$23:$O$27,$G$10,MATCH($J41,List_RegYear,0))) -> 1
B42: 0 | C42: 150W Metal Halide - AEROSCREEN | E42: 20 | F42: 20 | G42: $ / Component | L42: =IF($J42=0,1,INDEX(REG_Timing!$K$23:$O$27,$G$9,MATCH($J42,List_RegYear,0))) -> 1 | M42: =IF($J42=0,1,INDEX(REG_Timing!$K$23:$O$27,$G$10,MATCH($J42,List_RegYear,0))) -> 1
B43: 0 | C43: 250W Sodium (w/o PECB) - AEROSCREEN | E43: 20 | F43: 20 | G43: $ / Component | L43: =IF($J43=0,1,INDEX(REG_Timing!$K$23:$O$27,$G$9,MATCH($J43,List_RegYear,0))) -> 1 | M43: =IF($J43=0,1,INDEX(REG_Timing!$K$23:$O$27,$G$10,MATCH($J43,List_RegYear,0))) -> 1
B44: 0 | C44: 250W Metal Halide - AEROSCREEN | E44: 20 | F44: 20 | G44: $ / Component | L44: =IF($J44=0,1,INDEX(REG_Timing!$K$23:$O$27,$G$9,MATCH($J44,List_RegYear,0))) -> 1 | M44: =IF($J44=0,1,INDEX(REG_Timing!$K$23:$O$27,$G$10,MATCH($J44,List_RegYear,0))) -> 1
B45: 0 | C45: 400W Sodium - AEROSCREEN | E45: 20 | F45: 20 | G45: $ / Component | L45: =IF($J45=0,1,INDEX(REG_Timing!$K$23:$O$27,$G$9,MATCH($J45,List_RegYear,0))) -> 1 | M45: =IF($J45=0,1,INDEX(REG_Timing!$K$23:$O$27,$G$10,MATCH($J45,List_RegYear,0))) -> 1
B46: 0 | C46: 400W Metal Halide - AEROSCREEN | E46: 20 | F46: 20 | G46: $ / Component | L46: =IF($J46=0,1,INDEX(REG_Timing!$K$23:$O$27,$G$9,MATCH($J46,List_RegYear,0))) -> 1 | M46: =IF($J46=0,1,INDEX(REG_Timing!$K$23:$O$27,$G$10,MATCH($J46,List_RegYear,0))) -> 1
B47: 0 | C47: Roadster A/Screen 100W HPS c/w PECB | E47: 20 | F47: 20 | G47: $ / Component | L47: =IF($J47=0,1,INDEX(REG_Timing!$K$23:$O$27,$G$9,MATCH($J47,List_RegYear,0))) -> 1 | M47: =IF($J47=0,1,INDEX(REG_Timing!$K$23:$O$27,$G$10,MATCH($J47,List_RegYear,0))) -> 1
B48: 0 | C48: 80W Mercury - POST TOP | E48: 20 | F48: 20 | G48: $ / Component | L48: =IF($J48=0,1,INDEX(REG_Timing!$K$23:$O$27,$G$9,MATCH($J48,List_RegYear,0))) -> 1 | M48: =IF($J48=0,1,INDEX(REG_Timing!$K$23:$O$27,$G$10,MATCH($J48,List_RegYear,0))) -> 1
B49: 0 | C49: B2001 42WCFL c/w D2 PECB green - PT | E49: 20 | F49: 20 | G49: $ / Component | L49: =IF($J49=0,1,INDEX(REG_Timing!$K$23:$O$27,$G$9,MATCH($J49,List_RegYear,0))) -> 1 | M49: =IF($J49=0,1,INDEX(REG_Timing!$K$23:$O$27,$G$10,MATCH($J49,List_RegYear,0))) -> 1
B50: 0 | C50: 250W Sodium - FLOODLIGHT | E50: 20 | F50: 20 | G50: $ / Component | L50: =IF($J50=0,1,INDEX(REG_Timing!$K$23:$O$27,$G$9,MATCH($J50,List_RegYear,0))) -> 1 | M50: =IF($J50=0,1,INDEX(REG_Timing!$K$23:$O$27,$G$10,MATCH($J50,List_RegYear,0))) -> 1
B51: 0 | C51: 250W Metal Halide - FLOODLIGHT | E51: 20 | F51: 20 | G51: $ / Component | L51: =IF($J51=0,1,INDEX(REG_Timing!$K$23:$O$27,$G$9,MATCH($J51,List_RegYear,0))) -> 1 | M51: =IF($J51=0,1,INDEX(REG_Timing!$K$23:$O$27,$G$10,MATCH($J51,List_RegYear,0))) -> 1
B52: 0 | C52: 400W Sodium - FLOODLIGHT | E52: 20 | F52: 20 | G52: $ / Component | L52: =IF($J52=0,1,INDEX(REG_Timing!$K$23:$O$27,$G$9,MATCH($J52,List_RegYear,0))) -> 1 | M52: =IF($J52=0,1,INDEX(REG_Timing!$K$23:$O$27,$G$10,MATCH($J52,List_RegYear,0))) -> 1
B53: 0 | C53: 400W Metal Halide - FLOODLIGHT | E53: 20 | F53: 20 | G53: $ / Component | L53: =IF($J53=0,1,INDEX(REG_Timing!$K$23:$O$27,$G$9,MATCH($J53,List_RegYear,0))) -> 1 | M53: =IF($J53=0,1,INDEX(REG_Timing!$K$23:$O$27,$G$10,MATCH($J53,List_RegYear,0))) -> 1
B54: 0 | C54: 150W Sodium - FLOODLIGHT | E54: 20 | F54: 20 | G54: $ / Component | L54: =IF($J54=0,1,INDEX(REG_Timing!$K$23:$O$27,$G$9,MATCH($J54,List_RegYear,0))) -> 1 | M54: =IF($J54=0,1,INDEX(REG_Timing!$K$23:$O$27,$G$10,MATCH($J54,List_RegYear,0))) -> 1
B55: 0 | C55: 150W Metal Halide - FLOODLIGHT | E55: 20 | F55: 20 | G55: $ / Component | L55: =IF($J55=0,1,INDEX(REG_Timing!$K$23:$O$27,$G$9,MATCH($J55,List_RegYear,0))) -> 1 | M55: =IF($J55=0,1,INDEX(REG_Timing!$K$23:$O$27,$G$10,MATCH($J55,List_RegYear,0))) -> 1
B56: 0 | C56: Bracket - Minor <=3m | E56: 35 | F56: 35 | G56: $ / Component | L56: =IF($J56=0,1,INDEX(REG_Timing!$K$23:$O$27,$G$9,MATCH($J56,List_RegYear,0))) -> 1 | M56: =IF($J56=0,1,INDEX(REG_Timing!$K$23:$O$27,$G$10,MATCH($J56,List_RegYear,0))) -> 1
B57: 0 | C57: Bracket - Major >3m | E57: 35 | F57: 35 | G57: $ / Component | L57: =IF($J57=0,1,INDEX(REG_Timing!$K$23:$O$27,$G$9,MATCH($J57,List_RegYear,0))) -> 1 | M57: =IF($J57=0,1,INDEX(REG_Timing!$K$23:$O$27,$G$10,MATCH($J57,List_RegYear,0))) -> 1
B58: 0 | C58: Outreach - Minor <=2m | E58: 35 | F58: 35 | G58: $ / Component | L58: =IF($J58=0,1,INDEX(REG_Timing!$K$23:$O$27,$G$9,MATCH($J58,List_RegYear,0))) -> 1 | M58: =IF($J58=0,1,INDEX(REG_Timing!$K$23:$O$27,$G$10,MATCH($J58,List_RegYear,0))) -> 1
B59: 0 | C59: Outreach - Major >2m | E59: 35 | F59: 35 | G59: $ / Component | L59: =IF($J59=0,1,INDEX(REG_Timing!$K$23:$O$27,$G$9,MATCH($J59,List_RegYear,0))) -> 1 | M59: =IF($J59=0,1,INDEX(REG_Timing!$K$23:$O$27,$G$10,MATCH($J59,List_RegYear,0))) -> 1
B60: 0 | C60: Pole (Wood) - Minor - DEDICATED SL <=11m | E60: 35 | F60: 35 | G60: $ / Component | L60: =IF($J60=0,1,INDEX(REG_Timing!$K$23:$O$27,$G$9,MATCH($J60,List_RegYear,0))) -> 1 | M60: =IF($J60=0,1,INDEX(REG_Timing!$K$23:$O$27,$G$10,MATCH($J60,List_RegYear,0))) -> 1
B61: 0 | C61: Pole (Wood) - Major - DEDICATED SL >11m | E61: 35 | F61: 35 | G61: $ / Component | L61: =IF($J61=0,1,INDEX(REG_Timing!$K$23:$O$27,$G$9,MATCH($J61,List_RegYear,0))) -> 1 | M61: =IF($J61=0,1,INDEX(REG_Timing!$K$23:$O$27,$G$10,MATCH($J61,List_RegYear,0))) -> 1
B62: 0 | C62: Column (Steel) - Minor <=9m | E62: 35 | F62: 35 | G62: $ / Component | L62: =IF($J62=0,1,INDEX(REG_Timing!$K$23:$O$27,$G$9,MATCH($J62,List_RegYear,0))) -> 1 | M62: =IF($J62=0,1,INDEX(REG_Timing!$K$23:$O$27,$G$10,MATCH($J62,List_RegYear,0))) -> 1
B63: 0 | C63: Column (Steel) - Major >9m | E63: 35 | F63: 35 | G63: $ / Component | L63: =IF($J63=0,1,INDEX(REG_Timing!$K$23:$O$27,$G$9,MATCH($J63,List_RegYear,0))) -> 1 | M63: =IF($J63=0,1,INDEX(REG_Timing!$K$23:$O$27,$G$10,MATCH($J63,List_RegYear,0))) -> 1
B64: 0 | C64: Pole (Wood) - Minor <=11m | E64: 35 | F64: 35 | G64: $ / Component | L64: =IF($J64=0,1,INDEX(REG_Timing!$K$23:$O$27,$G$9,MATCH($J64,List_RegYear,0))) -> 1 | M64: =IF($J64=0,1,INDEX(REG_Timing!$K$23:$O$27,$G$10,MATCH($J64,List_RegYear,0))) -> 1
B65: 0 | C65: Pole (Wood) - Major >11m | E65: 35 | F65: 35 | G65: $ / Component | L65: =IF($J65=0,1,INDEX(REG_Timing!$K$23:$O$27,$G$9,MATCH($J65,List_RegYear,0))) -> 1 | M65: =IF($J65=0,1,INDEX(REG_Timing!$K$23:$O$27,$G$10,MATCH($J65,List_RegYear,0))) -> 1
B66: 0 | C66: 18W LED P4 Gerard | E66: 12 | F66: 12 | G66: $ / Component | L66: =IF($J66=0,1,INDEX(REG_Timing!$K$23:$O$27,$G$9,MATCH($J66,List_RegYear,0))) -> 1 | M66: =IF($J66=0,1,INDEX(REG_Timing!$K$23:$O$27,$G$10,MATCH($J66,List_RegYear,0))) -> 1
B67: 0 | C67: 25W LED P4 Gerard | E67: 12 | F67: 12 | G67: $ / Component | L67: =IF($J67=0,1,INDEX(REG_Timing!$K$23:$O$27,$G$9,MATCH($J67,List_RegYear,0))) -> 1 | M67: =IF($J67=0,1,INDEX(REG_Timing!$K$23:$O$27,$G$10,MATCH($J67,List_RegYear,0))) -> 1
B68: 0 | C68: 33W LED | E68: 12 | F68: 12 | G68: $ / Component | L68: =IF($J68=0,1,INDEX(REG_Timing!$K$23:$O$27,$G$9,MATCH($J68,List_RegYear,0))) -> 1 | M68: =IF($J68=0,1,INDEX(REG_Timing!$K$23:$O$27,$G$10,MATCH($J68,List_RegYear,0))) -> 1
B69: 0 | C69: 42W LED | E69: 12 | F69: 12 | G69: $ / Component | L69: =IF($J69=0,1,INDEX(REG_Timing!$K$23:$O$27,$G$9,MATCH($J69,List_RegYear,0))) -> 1 | M69: =IF($J69=0,1,INDEX(REG_Timing!$K$23:$O$27,$G$10,MATCH($J69,List_RegYear,0))) -> 1
B70: 0 | C70: 82W LED Gerard V5 Cat Luminaire | E70: 12 | F70: 12 | G70: $ / Component | L70: =IF($J70=0,1,INDEX(REG_Timing!$K$23:$O$27,$G$9,MATCH($J70,List_RegYear,0))) -> 1 | M70: =IF($J70=0,1,INDEX(REG_Timing!$K$23:$O$27,$G$10,MATCH($J70,List_RegYear,0))) -> 1
B71: 0 | C71: 100W LED Gerard V4 Cat Luminaire | E71: 12 | F71: 12 | G71: $ / Component | L71: =IF($J71=0,1,INDEX(REG_Timing!$K$23:$O$27,$G$9,MATCH($J71,List_RegYear,0))) -> 1 | M71: =IF($J71=0,1,INDEX(REG_Timing!$K$23:$O$27,$G$10,MATCH($J71,List_RegYear,0))) -> 1
B72: 0 | C72: 198W LED Gerard V2/V3 Cat Luminaire | E72: 12 | F72: 12 | G72: $ / Component | L72: =IF($J72=0,1,INDEX(REG_Timing!$K$23:$O$27,$G$9,MATCH($J72,List_RegYear,0))) -> 1 | M72: =IF($J72=0,1,INDEX(REG_Timing!$K$23:$O$27,$G$10,MATCH($J72,List_RegYear,0))) -> 1
B73: =IF(C73="Spare",TRUE,0) -> 0 | C73: 17W LED Cat P Luminaire | E73: 12 | F73: 12 | G73: $ / Component | L73: =IF($J73=0,1,INDEX(REG_Timing!$K$23:$O$27,$G$9,MATCH($J73,List_RegYear,0))) -> 1 | M73: =IF($J73=0,1,INDEX(REG_Timing!$K$23:$O$27,$G$10,MATCH($J73,List_RegYear,0))) -> 1
B74: TRUE | C74: Spare | G74: $ / Component | L74: =IF($J74=0,1,INDEX(REG_Timing!$K$23:$O$27,$G$9,MATCH($J74,List_RegYear,0))) -> 1 | M74: =IF($J74=0,1,INDEX(REG_Timing!$K$23:$O$27,$G$10,MATCH($J74,List_RegYear,0))) -> 1
B75: TRUE | C75: Spare | G75: $ / Component | L75: =IF($J75=0,1,INDEX(REG_Timing!$K$23:$O$27,$G$9,MATCH($J75,List_RegYear,0))) -> 1 | M75: =IF($J75=0,1,INDEX(REG_Timing!$K$23:$O$27,$G$10,MATCH($J75,List_RegYear,0))) -> 1
B76: TRUE | C76: Spare | G76: $ / Component | L76: =IF($J76=0,1,INDEX(REG_Timing!$K$23:$O$27,$G$9,MATCH($J76,List_RegYear,0))) -> 1 | M76: =IF($J76=0,1,INDEX(REG_Timing!$K$23:$O$27,$G$10,MATCH($J76,List_RegYear,0))) -> 1 | O76: =H76/L76 -> 0 | P76: =I76/M76 -> 0
B77: TRUE | C77: Spare | G77: $ / Component | L77: =IF($J77=0,1,INDEX(REG_Timing!$K$23:$O$27,$G$9,MATCH($J77,List_RegYear,0))) -> 1 | M77: =IF($J77=0,1,INDEX(REG_Timing!$K$23:$O$27,$G$10,MATCH($J77,List_RegYear,0))) -> 1 | O77: 0 | P77: 0
B78: TRUE | C78: Spare | G78: $ / Component | L78: =IF($J78=0,1,INDEX(REG_Timing!$K$23:$O$27,$G$9,MATCH($J78,List_RegYear,0))) -> 1 | M78: =IF($J78=0,1,INDEX(REG_Timing!$K$23:$O$27,$G$10,MATCH($J78,List_RegYear,0))) -> 1 | O78: 0 | P78: 0
B79: =IF(C79="Spare",TRUE,0) -> TRUE | C79: Spare | G79: $ / Component | L79: =IF($J79=0,1,INDEX(REG_Timing!$K$23:$O$27,$G$9,MATCH($J79,List_RegYear,0))) -> 1 | M79: =IF($J79=0,1,INDEX(REG_Timing!$K$23:$O$27,$G$10,MATCH($J79,List_RegYear,0))) -> 1 | O79: =H79/L79 -> 0 | P79: =I79/M79 -> 0
B80: TRUE | C80: Spare | G80: $ / Component | L80: =IF($J80=0,1,INDEX(REG_Timing!$K$23:$O$27,$G$9,MATCH($J80,List_RegYear,0))) -> 1 | M80: =IF($J80=0,1,INDEX(REG_Timing!$K$23:$O$27,$G$10,MATCH($J80,List_RegYear,0))) -> 1 | O80: 0 | P80: 0
B81: TRUE | C81: Spare | G81: $ / Component | L81: =IF($J81=0,1,INDEX(REG_Timing!$K$23:$O$27,$G$9,MATCH($J81,List_RegYear,0))) -> 1 | M81: =IF($J81=0,1,INDEX(REG_Timing!$K$23:$O$27,$G$10,MATCH($J81,List_RegYear,0))) -> 1 | O81: 0 | P81: 0
B82: TRUE | C82: Spare | G82: $ / Component | L82: =IF($J82=0,1,INDEX(REG_Timing!$K$23:$O$27,$G$9,MATCH($J82,List_RegYear,0))) -> 1 | M82: =IF($J82=0,1,INDEX(REG_Timing!$K$23:$O$27,$G$10,MATCH($J82,List_RegYear,0))) -> 1 | O82: 0 | P82: 0
B83: TRUE | C83: Spare | G83: $ / Component | L83: =IF($J83=0,1,INDEX(REG_Timing!$K$23:$O$27,$G$9,MATCH($J83,List_RegYear,0))) -> 1 | M83: =IF($J83=0,1,INDEX(REG_Timing!$K$23:$O$27,$G$10,MATCH($J83,List_RegYear,0))) -> 1 | O83: 0 | P83: 0
B84: TRUE | C84: Spare | G84: $ / Component | L84: =IF($J84=0,1,INDEX(REG_Timing!$K$23:$O$27,$G$9,MATCH($J84,List_RegYear,0))) -> 1 | M84: =IF($J84=0,1,INDEX(REG_Timing!$K$23:$O$27,$G$10,MATCH($J84,List_RegYear,0))) -> 1 | O84: 0 | P84: 0
B85: TRUE | C85: Spare | G85: $ / Component | L85: =IF($J85=0,1,INDEX(REG_Timing!$K$23:$O$27,$G$9,MATCH($J85,List_RegYear,0))) -> 1 | M85: =IF($J85=0,1,INDEX(REG_Timing!$K$23:$O$27,$G$10,MATCH($J85,List_RegYear,0))) -> 1 | O85: 0 | P85: 0
B86: TRUE | C86: Spare | G86: $ / Component | L86: =IF($J86=0,1,INDEX(REG_Timing!$K$23:$O$27,$G$9,MATCH($J86,List_RegYear,0))) -> 1 | M86: =IF($J86=0,1,INDEX(REG_Timing!$K$23:$O$27,$G$10,MATCH($J86,List_RegYear,0))) -> 1 | O86: 0 | P86: 0
B87: TRUE | C87: Spare | G87: $ / Component | L87: =IF($J87=0,1,INDEX(REG_Timing!$K$23:$O$27,$G$9,MATCH($J87,List_RegYear,0))) -> 1 | M87: =IF($J87=0,1,INDEX(REG_Timing!$K$23:$O$27,$G$10,MATCH($J87,List_RegYear,0))) -> 1 | O87: 0 | P87: 0
B88: TRUE | C88: Spare | G88: $ / Component | L88: =IF($J88=0,1,INDEX(REG_Timing!$K$23:$O$27,$G$9,MATCH($J88,List_RegYear,0))) -> 1 | M88: =IF($J88=0,1,INDEX(REG_Timing!$K$23:$O$27,$G$10,MATCH($J88,List_RegYear,0))) -> 1 | O88: 0 | P88: 0
B89: TRUE | C89: Spare | G89: $ / Component | L89: =IF($J89=0,1,INDEX(REG_Timing!$K$23:$O$27,$G$9,MATCH($J89,List_RegYear,0))) -> 1 | M89: =IF($J89=0,1,INDEX(REG_Timing!$K$23:$O$27,$G$10,MATCH($J89,List_RegYear,0))) -> 1 | O89: 0 | P89: 0
B90: TRUE | C90: Spare | G90: $ / Component | L90: =IF($J90=0,1,INDEX(REG_Timing!$K$23:$O$27,$G$9,MATCH($J90,List_RegYear,0))) -> 1 | M90: =IF($J90=0,1,INDEX(REG_Timing!$K$23:$O$27,$G$10,MATCH($J90,List_RegYear,0))) -> 1 | O90: 0 | P90: 0
B91: TRUE | C91: Spare | G91: $ / Component | L91: =IF($J91=0,1,INDEX(REG_Timing!$K$23:$O$27,$G$9,MATCH($J91,List_RegYear,0))) -> 1 | M91: =IF($J91=0,1,INDEX(REG_Timing!$K$23:$O$27,$G$10,MATCH($J91,List_RegYear,0))) -> 1 | O91: 0 | P91: 0
B92: TRUE | C92: Spare | G92: $ / Component | L92: =IF($J92=0,1,INDEX(REG_Timing!$K$23:$O$27,$G$9,MATCH($J92,List_RegYear,0))) -> 1 | M92: =IF($J92=0,1,INDEX(REG_Timing!$K$23:$O$27,$G$10,MATCH($J92,List_RegYear,0))) -> 1 | O92: 0 | P92: 0
B93: TRUE | C93: Spare | G93: $ / Component | L93: =IF($J93=0,1,INDEX(REG_Timing!$K$23:$O$27,$G$9,MATCH($J93,List_RegYear,0))) -> 1 | M93: =IF($J93=0,1,INDEX(REG_Timing!$K$23:$O$27,$G$10,MATCH($J93,List_RegYear,0))) -> 1 | O93: 0 | P93: 0
B94: TRUE | C94: Spare | G94: $ / Component | L94: =IF($J94=0,1,INDEX(REG_Timing!$K$23:$O$27,$G$9,MATCH($J94,List_RegYear,0))) -> 1 | M94: =IF($J94=0,1,INDEX(REG_Timing!$K$23:$O$27,$G$10,MATCH($J94,List_RegYear,0))) -> 1 | O94: 0 | P94: 0
B95: TRUE | C95: Spare | G95: $ / Component | L95: =IF($J95=0,1,INDEX(REG_Timing!$K$23:$O$27,$G$9,MATCH($J95,List_RegYear,0))) -> 1 | M95: =IF($J95=0,1,INDEX(REG_Timing!$K$23:$O$27,$G$10,MATCH($J95,List_RegYear,0))) -> 1 | O95: 0 | P95: 0
B96: TRUE | C96: Spare | G96: $ / Component | L96: =IF($J96=0,1,INDEX(REG_Timing!$K$23:$O$27,$G$9,MATCH($J96,List_RegYear,0))) -> 1 | M96: =IF($J96=0,1,INDEX(REG_Timing!$K$23:$O$27,$G$10,MATCH($J96,List_RegYear,0))) -> 1 | O96: 0 | P96: 0
B97: TRUE | C97: Spare | G97: $ / Component | L97: =IF($J97=0,1,INDEX(REG_Timing!$K$23:$O$27,$G$9,MATCH($J97,List_RegYear,0))) -> 1 | M97: =IF($J97=0,1,INDEX(REG_Timing!$K$23:$O$27,$G$10,MATCH($J97,List_RegYear,0))) -> 1 | O97: 0 | P97: 0
B98: TRUE | C98: Spare | G98: $ / Component | L98: =IF($J98=0,1,INDEX(REG_Timing!$K$23:$O$27,$G$9,MATCH($J98,List_RegYear,0))) -> 1 | M98: =IF($J98=0,1,INDEX(REG_Timing!$K$23:$O$27,$G$10,MATCH($J98,List_RegYear,0))) -> 1 | O98: 0 | P98: 0
B99: TRUE | C99: Spare | G99: $ / Component | L99: =IF($J99=0,1,INDEX(REG_Timing!$K$23:$O$27,$G$9,MATCH($J99,List_RegYear,0))) -> 1 | M99: =IF($J99=0,1,INDEX(REG_Timing!$K$23:$O$27,$G$10,MATCH($J99,List_RegYear,0))) -> 1 | O99: 0 | P99: 0
B100: TRUE | C100: Spare | G100: $ / Component | L100: =IF($J100=0,1,INDEX(REG_Timing!$K$23:$O$27,$G$9,MATCH($J100,List_RegYear,0))) -> 1 | M100: =IF($J100=0,1,INDEX(REG_Timing!$K$23:$O$27,$G$10,MATCH($J100,List_RegYear,0))) -> 1 | O100: 0 | P100: 0
B101: TRUE | C101: Spare | G101: $ / Component | L101: =IF($J101=0,1,INDEX(REG_Timing!$K$23:$O$27,$G$9,MATCH($J101,List_RegYear,0))) -> 1 | M101: =IF($J101=0,1,INDEX(REG_Timing!$K$23:$O$27,$G$10,MATCH($J101,List_RegYear,0))) -> 1 | O101: 0 | P101: 0
B102: TRUE | C102: Spare | G102: $ / Component | L102: =IF($J102=0,1,INDEX(REG_Timing!$K$23:$O$27,$G$9,MATCH($J102,List_RegYear,0))) -> 1 | M102: =IF($J102=0,1,INDEX(REG_Timing!$K$23:$O$27,$G$10,MATCH($J102,List_RegYear,0))) -> 1 | O102: 0 | P102: 0
B103: TRUE | C103: Spare | G103: $ / Component | L103: =IF($J103=0,1,INDEX(REG_Timing!$K$23:$O$27,$G$9,MATCH($J103,List_RegYear,0))) -> 1 | M103: =IF($J103=0,1,INDEX(REG_Timing!$K$23:$O$27,$G$10,MATCH($J103,List_RegYear,0))) -> 1 | O103: 0 | P103: 0
B104: TRUE | C104: Spare | G104: $ / Component | L104: =IF($J104=0,1,INDEX(REG_Timing!$K$23:$O$27,$G$9,MATCH($J104,List_RegYear,0))) -> 1 | M104: =IF($J104=0,1,INDEX(REG_Timing!$K$23:$O$27,$G$10,MATCH($J104,List_RegYear,0))) -> 1 | O104: 0 | P104: 0
B105: TRUE | C105: Spare | G105: $ / Component | L105: =IF($J105=0,1,INDEX(REG_Timing!$K$23:$O$27,$G$9,MATCH($J105,List_RegYear,0))) -> 1 | M105: =IF($J105=0,1,INDEX(REG_Timing!$K$23:$O$27,$G$10,MATCH($J105,List_RegYear,0))) -> 1 | O105: 0 | P105: 0
B106: TRUE | C106: Spare | G106: $ / Component | L106: =IF($J106=0,1,INDEX(REG_Timing!$K$23:$O$27,$G$9,MATCH($J106,List_RegYear,0))) -> 1 | M106: =IF($J106=0,1,INDEX(REG_Timing!$K$23:$O$27,$G$10,MATCH($J106,List_RegYear,0))) -> 1 | O106: 0 | P106: 0
B107: TRUE | C107: Spare | G107: $ / Component | L107: =IF($J107=0,1,INDEX(REG_Timing!$K$23:$O$27,$G$9,MATCH($J107,List_RegYear,0))) -> 1 | M107: =IF($J107=0,1,INDEX(REG_Timing!$K$23:$O$27,$G$10,MATCH($J107,List_RegYear,0))) -> 1 | O107: 0 | P107: 0
B108: TRUE | C108: Spare | G108: $ / Component | L108: =IF($J108=0,1,INDEX(REG_Timing!$K$23:$O$27,$G$9,MATCH($J108,List_RegYear,0))) -> 1 | M108: =IF($J108=0,1,INDEX(REG_Timing!$K$23:$O$27,$G$10,MATCH($J108,List_RegYear,0))) -> 1 | O108: 0 | P108: 0
B109: TRUE | C109: Spare | G109: $ / Component | L109: =IF($J109=0,1,INDEX(REG_Timing!$K$23:$O$27,$G$9,MATCH($J109,List_RegYear,0))) -> 1 | M109: =IF($J109=0,1,INDEX(REG_Timing!$K$23:$O$27,$G$10,MATCH($J109,List_RegYear,0))) -> 1 | O109: 0 | P109: 0
B110: TRUE | C110: Spare | G110: $ / Component | L110: =IF($J110=0,1,INDEX(REG_Timing!$K$23:$O$27,$G$9,MATCH($J110,List_RegYear,0))) -> 1 | M110: =IF($J110=0,1,INDEX(REG_Timing!$K$23:$O$27,$G$10,MATCH($J110,List_RegYear,0))) -> 1 | O110: 0 | P110: 0
B111: TRUE | C111: Spare | G111: $ / Component | L111: =IF($J111=0,1,INDEX(REG_Timing!$K$23:$O$27,$G$9,MATCH($J111,List_RegYear,0))) -> 1 | M111: =IF($J111=0,1,INDEX(REG_Timing!$K$23:$O$27,$G$10,MATCH($J111,List_RegYear,0))) -> 1 | O111: 0 | P111: 0
B112: TRUE | C112: Spare | G112: $ / Component | L112: =IF($J112=0,1,INDEX(REG_Timing!$K$23:$O$27,$G$9,MATCH($J112,List_RegYear,0))) -> 1 | M112: =IF($J112=0,1,INDEX(REG_Timing!$K$23:$O$27,$G$10,MATCH($J112,List_RegYear,0))) -> 1 | O112: 0 | P112: 0
B113: TRUE | C113: Spare | G113: $ / Component | L113: =IF($J113=0,1,INDEX(REG_Timing!$K$23:$O$27,$G$9,MATCH($J113,List_RegYear,0))) -> 1 | M113: =IF($J113=0,1,INDEX(REG_Timing!$K$23:$O$27,$G$10,MATCH($J113,List_RegYear,0))) -> 1 | O113: 0 | P113: 0
B114: TRUE | C114: Spare | G114: $ / Component | L114: =IF($J114=0,1,INDEX(REG_Timing!$K$23:$O$27,$G$9,MATCH($J114,List_RegYear,0))) -> 1 | M114: =IF($J114=0,1,INDEX(REG_Timing!$K$23:$O$27,$G$10,MATCH($J114,List_RegYear,0))) -> 1 | O114: 0 | P114: 0
B115: TRUE | C115: Spare | G115: $ / Component | L115: =IF($J115=0,1,INDEX(REG_Timing!$K$23:$O$27,$G$9,MATCH($J115,List_RegYear,0))) -> 1 | M115: =IF($J115=0,1,INDEX(REG_Timing!$K$23:$O$27,$G$10,MATCH($J115,List_RegYear,0))) -> 1 | O115: 0 | P115: 0
B116: TRUE | C116: Spare | G116: $ / Component | L116: =IF($J116=0,1,INDEX(REG_Timing!$K$23:$O$27,$G$9,MATCH($J116,List_RegYear,0))) -> 1 | M116: =IF($J116=0,1,INDEX(REG_Timing!$K$23:$O$27,$G$10,MATCH($J116,List_RegYear,0))) -> 1 | O116: 0 | P116: 0
B117: TRUE | C117: Spare | G117: $ / Component | L117: =IF($J117=0,1,INDEX(REG_Timing!$K$23:$O$27,$G$9,MATCH($J117,List_RegYear,0))) -> 1 | M117: =IF($J117=0,1,INDEX(REG_Timing!$K$23:$O$27,$G$10,MATCH($J117,List_RegYear,0))) -> 1 | O117: 0 | P117: 0
B118: TRUE | C118: Spare | G118: $ / Component | L118: =IF($J118=0,1,INDEX(REG_Timing!$K$23:$O$27,$G$9,MATCH($J118,List_RegYear,0))) -> 1 | M118: =IF($J118=0,1,INDEX(REG_Timing!$K$23:$O$27,$G$10,MATCH($J118,List_RegYear,0))) -> 1 | O118: 0 | P118: 0
B119: TRUE | C119: Spare | G119: $ / Component | L119: =IF($J119=0,1,INDEX(REG_Timing!$K$23:$O$27,$G$9,MATCH($J119,List_RegYear,0))) -> 1 | M119: =IF($J119=0,1,INDEX(REG_Timing!$K$23:$O$27,$G$10,MATCH($J119,List_RegYear,0))) -> 1 | O119: 0 | P119: 0
B120: TRUE | C120: Spare | G120: $ / Component | L120: =IF($J120=0,1,INDEX(REG_Timing!$K$23:$O$27,$G$9,MATCH($J120,List_RegYear,0))) -> 1 | M120: =IF($J120=0,1,INDEX(REG_Timing!$K$23:$O$27,$G$10,MATCH($J120,List_RegYear,0))) -> 1 | O120: 0 | P120: 0
B121: TRUE | C121: Spare | G121: $ / Component | L121: =IF($J121=0,1,INDEX(REG_Timing!$K$23:$O$27,$G$9,MATCH($J121,List_RegYear,0))) -> 1 | M121: =IF($J121=0,1,INDEX(REG_Timing!$K$23:$O$27,$G$10,MATCH($J121,List_RegYear,0))) -> 1 | O121: 0 | P121: 0
B122: TRUE | C122: Spare | G122: $ / Component | L122: =IF($J122=0,1,INDEX(REG_Timing!$K$23:$O$27,$G$9,MATCH($J122,List_RegYear,0))) -> 1 | M122: =IF($J122=0,1,INDEX(REG_Timing!$K$23:$O$27,$G$10,MATCH($J122,List_RegYear,0))) -> 1 | O122: 0 | P122: 0
B123: TRUE | C123: Spare | G123: $ / Component | L123: =IF($J123=0,1,INDEX(REG_Timing!$K$23:$O$27,$G$9,MATCH($J123,List_RegYear,0))) -> 1 | M123: =IF($J123=0,1,INDEX(REG_Timing!$K$23:$O$27,$G$10,MATCH($J123,List_RegYear,0))) -> 1 | O123: 0 | P123: 0
B124: TRUE | C124: Spare | G124: $ / Component | L124: =IF($J124=0,1,INDEX(REG_Timing!$K$23:$O$27,$G$9,MATCH($J124,List_RegYear,0))) -> 1 | M124: =IF($J124=0,1,INDEX(REG_Timing!$K$23:$O$27,$G$10,MATCH($J124,List_RegYear,0))) -> 1 | O124: 0 | P124: 0
B125: TRUE | C125: Spare | G125: $ / Component | L125: =IF($J125=0,1,INDEX(REG_Timing!$K$23:$O$27,$G$9,MATCH($J125,List_RegYear,0))) -> 1 | M125: =IF($J125=0,1,INDEX(REG_Timing!$K$23:$O$27,$G$10,MATCH($J125,List_RegYear,0))) -> 1 | O125: 0 | P125: 0
B126: TRUE | C126: Spare | G126: $ / Component | L126: =IF($J126=0,1,INDEX(REG_Timing!$K$23:$O$27,$G$9,MATCH($J126,List_RegYear,0))) -> 1 | M126: =IF($J126=0,1,INDEX(REG_Timing!$K$23:$O$27,$G$10,MATCH($J126,List_RegYear,0))) -> 1 | O126: 0 | P126: 0
B127: TRUE | C127: Spare | G127: $ / Component | L127: =IF($J127=0,1,INDEX(REG_Timing!$K$23:$O$27,$G$9,MATCH($J127,List_RegYear,0))) -> 1 | M127: =IF($J127=0,1,INDEX(REG_Timing!$K$23:$O$27,$G$10,MATCH($J127,List_RegYear,0))) -> 1 | O127: 0 | P127: 0
B128: TRUE | C128: Spare | G128: $ / Component | L128: =IF($J128=0,1,INDEX(REG_Timing!$K$23:$O$27,$G$9,MATCH($J128,List_RegYear,0))) -> 1 | M128: =IF($J128=0,1,INDEX(REG_Timing!$K$23:$O$27,$G$10,MATCH($J128,List_RegYear,0))) -> 1 | O128: 0 | P128: 0
B129: TRUE | C129: Spare | G129: $ / Component | L129: =IF($J129=0,1,INDEX(REG_Timing!$K$23:$O$27,$G$9,MATCH($J129,List_RegYear,0))) -> 1 | M129: =IF($J129=0,1,INDEX(REG_Timing!$K$23:$O$27,$G$10,MATCH($J129,List_RegYear,0))) -> 1 | O129: 0 | P129: 0
B130: TRUE | C130: Spare | G130: $ / Component | L130: =IF($J130=0,1,INDEX(REG_Timing!$K$23:$O$27,$G$9,MATCH($J130,List_RegYear,0))) -> 1 | M130: =IF($J130=0,1,INDEX(REG_Timing!$K$23:$O$27,$G$10,MATCH($J130,List_RegYear,0))) -> 1 | O130: 0 | P130: 0
B131: TRUE | C131: Spare | G131: $ / Component | L131: =IF($J131=0,1,INDEX(REG_Timing!$K$23:$O$27,$G$9,MATCH($J131,List_RegYear,0))) -> 1 | M131: =IF($J131=0,1,INDEX(REG_Timing!$K$23:$O$27,$G$10,MATCH($J131,List_RegYear,0))) -> 1 | O131: 0 | P131: 0
B132: TRUE | C132: Spare | G132: $ / Component | L132: =IF($J132=0,1,INDEX(REG_Timing!$K$23:$O$27,$G$9,MATCH($J132,List_RegYear,0))) -> 1 | M132: =IF($J132=0,1,INDEX(REG_Timing!$K$23:$O$27,$G$10,MATCH($J132,List_RegYear,0))) -> 1 | O132: =H132/L132 -> 0 | P132: 0
B133: TRUE | C133: Spare | G133: $ / Component | L133: =IF($J133=0,1,INDEX(REG_Timing!$K$23:$O$27,$G$9,MATCH($J133,List_RegYear,0))) -> 1 | M133: =IF($J133=0,1,INDEX(REG_Timing!$K$23:$O$27,$G$10,MATCH($J133,List_RegYear,0))) -> 1 | O133: 0 | P133: 0
B134: TRUE | C134: Spare | G134: $ / Component | L134: =IF($J134=0,1,INDEX(REG_Timing!$K$23:$O$27,$G$9,MATCH($J134,List_RegYear,0))) -> 1 | M134: =IF($J134=0,1,INDEX(REG_Timing!$K$23:$O$27,$G$10,MATCH($J134,List_RegYear,0))) -> 1 | O134: 0 | P134: 0
B135: TRUE | C135: Spare | G135: $ / Component | L135: =IF($J135=0,1,INDEX(REG_Timing!$K$23:$O$27,$G$9,MATCH($J135,List_RegYear,0))) -> 1 | M135: =IF($J135=0,1,INDEX(REG_Timing!$K$23:$O$27,$G$10,MATCH($J135,List_RegYear,0))) -> 1 | O135: 0 | P135: 0
B136: TRUE | C136: Spare | G136: $ / Component | L136: =IF($J136=0,1,INDEX(REG_Timing!$K$23:$O$27,$G$9,MATCH($J136,List_RegYear,0))) -> 1 | M136: =IF($J136=0,1,INDEX(REG_Timing!$K$23:$O$27,$G$10,MATCH($J136,List_RegYear,0))) -> 1 | O136: 0 | P136: 0
B137: TRUE | C137: Spare | G137: $ / Component | L137: =IF($J137=0,1,INDEX(REG_Timing!$K$23:$O$27,$G$9,MATCH($J137,List_RegYear,0))) -> 1 | M137: =IF($J137=0,1,INDEX(REG_Timing!$K$23:$O$27,$G$10,MATCH($J137,List_RegYear,0))) -> 1 | O137: 0 | P137: 0
B138: TRUE | C138: Spare | G138: $ / Component | L138: =IF($J138=0,1,INDEX(REG_Timing!$K$23:$O$27,$G$9,MATCH($J138,List_RegYear,0))) -> 1 | M138: =IF($J138=0,1,INDEX(REG_Timing!$K$23:$O$27,$G$10,MATCH($J138,List_RegYear,0))) -> 1 | O138: =H138/L138 -> 0 | P138: =I138/M138 -> 0
B139: =IF(C139="Spare",TRUE,0) -> TRUE | C139: Spare | G139: $ / Component | L139: =IF($J139=0,1,INDEX(REG_Timing!$K$23:$O$27,$G$9,MATCH($J139,List_RegYear,0))) -> 1 | M139: =IF($J139=0,1,INDEX(REG_Timing!$K$23:$O$27,$G$10,MATCH($J139,List_RegYear,0))) -> 1 | O139: 0 | P139: 0
B140: TRUE | C140: Spare | G140: $ / Component | L140: =IF($J140=0,1,INDEX(REG_Timing!$K$23:$O$27,$G$9,MATCH($J140,List_RegYear,0))) -> 1 | M140: =IF($J140=0,1,INDEX(REG_Timing!$K$23:$O$27,$G$10,MATCH($J140,List_RegYear,0))) -> 1 | O140: 0 | P140: 0
B141: TRUE | C141: Spare | G141: $ / Component | L141: =IF($J141=0,1,INDEX(REG_Timing!$K$23:$O$27,$G$9,MATCH($J141,List_RegYear,0))) -> 1 | M141: =IF($J141=0,1,INDEX(REG_Timing!$K$23:$O$27,$G$10,MATCH($J141,List_RegYear,0))) -> 1 | O141: 0 | P141: 0
B142: TRUE | C142: Spare | G142: $ / Component | L142: =IF($J142=0,1,INDEX(REG_Timing!$K$23:$O$27,$G$9,MATCH($J142,List_RegYear,0))) -> 1 | M142: =IF($J142=0,1,INDEX(REG_Timing!$K$23:$O$27,$G$10,MATCH($J142,List_RegYear,0))) -> 1 | O142: 0 | P142: 0
B143: TRUE | C143: Spare | G143: $ / Component | L143: =IF($J143=0,1,INDEX(REG_Timing!$K$23:$O$27,$G$9,MATCH($J143,List_RegYear,0))) -> 1 | M143: =IF($J143=0,1,INDEX(REG_Timing!$K$23:$O$27,$G$10,MATCH($J143,List_RegYear,0))) -> 1 | O143: 0 | P143: 0
B144: TRUE | C144: Spare | G144: $ / Component | L144: =IF($J144=0,1,INDEX(REG_Timing!$K$23:$O$27,$G$9,MATCH($J144,List_RegYear,0))) -> 1 | M144: =IF($J144=0,1,INDEX(REG_Timing!$K$23:$O$27,$G$10,MATCH($J144,List_RegYear,0))) -> 1 | O144: 0 | P144: 0
B145: TRUE | C145: Spare | G145: $ / Component | L145: =IF($J145=0,1,INDEX(REG_Timing!$K$23:$O$27,$G$9,MATCH($J145,List_RegYear,0))) -> 1 | M145: =IF($J145=0,1,INDEX(REG_Timing!$K$23:$O$27,$G$10,MATCH($J145,List_RegYear,0))) -> 1 | O145: 0 | P145: 0
B146: TRUE | C146: Spare | G146: $ / Component | L146: =IF($J146=0,1,INDEX(REG_Timing!$K$23:$O$27,$G$9,MATCH($J146,List_RegYear,0))) -> 1 | M146: =IF($J146=0,1,INDEX(REG_Timing!$K$23:$O$27,$G$10,MATCH($J146,List_RegYear,0))) -> 1 | O146: 0 | P146: 0
B147: TRUE | C147: Spare | G147: $ / Component | L147: =IF($J147=0,1,INDEX(REG_Timing!$K$23:$O$27,$G$9,MATCH($J147,List_RegYear,0))) -> 1 | M147: =IF($J147=0,1,INDEX(REG_Timing!$K$23:$O$27,$G$10,MATCH($J147,List_RegYear,0))) -> 1 | O147: 0 | P147: 0
B148: TRUE | C148: Spare | G148: $ / Component | L148: =IF($J148=0,1,INDEX(REG_Timing!$K$23:$O$27,$G$9,MATCH($J148,List_RegYear,0))) -> 1 | M148: =IF($J148=0,1,INDEX(REG_Timing!$K$23:$O$27,$G$10,MATCH($J148,List_RegYear,0))) -> 1 | O148: 0 | P148: 0
B149: TRUE | C149: Spare | G149: $ / Component | L149: =IF($J149=0,1,INDEX(REG_Timing!$K$23:$O$27,$G$9,MATCH($J149,List_RegYear,0))) -> 1 | M149: =IF($J149=0,1,INDEX(REG_Timing!$K$23:$O$27,$G$10,MATCH($J149,List_RegYear,0))) -> 1 | O149: 0 | P149: 0
B150: TRUE | C150: Spare | G150: $ / Component | L150: =IF($J150=0,1,INDEX(REG_Timing!$K$23:$O$27,$G$9,MATCH($J150,List_RegYear,0))) -> 1 | M150: =IF($J150=0,1,INDEX(REG_Timing!$K$23:$O$27,$G$10,MATCH($J150,List_RegYear,0))) -> 1 | O150: 0 | P150: 0
B151: TRUE | C151: Spare | G151: $ / Component | L151: =IF($J151=0,1,INDEX(REG_Timing!$K$23:$O$27,$G$9,MATCH($J151,List_RegYear,0))) -> 1 | M151: =IF($J151=0,1,INDEX(REG_Timing!$K$23:$O$27,$G$10,MATCH($J151,List_RegYear,0))) -> 1 | O151: 0 | P151: 0
B152: TRUE | C152: Spare | G152: $ / Component | L152: =IF($J152=0,1,INDEX(REG_Timing!$K$23:$O$27,$G$9,MATCH($J152,List_RegYear,0))) -> 1 | M152: =IF($J152=0,1,INDEX(REG_Timing!$K$23:$O$27,$G$10,MATCH($J152,List_RegYear,0))) -> 1 | O152: 0 | P152: 0
B153: TRUE | C153: Spare | G153: $ / Component | L153: =IF($J153=0,1,INDEX(REG_Timing!$K$23:$O$27,$G$9,MATCH($J153,List_RegYear,0))) -> 1 | M153: =IF($J153=0,1,INDEX(REG_Timing!$K$23:$O$27,$G$10,MATCH($J153,List_RegYear,0))) -> 1 | O153: 0 | P153: 0
B154: TRUE | C154: Spare | G154: $ / Component | L154: =IF($J154=0,1,INDEX(REG_Timing!$K$23:$O$27,$G$9,MATCH($J154,List_RegYear,0))) -> 1 | M154: =IF($J154=0,1,INDEX(REG_Timing!$K$23:$O$27,$G$10,MATCH($J154,List_RegYear,0))) -> 1 | O154: 0 | P154: 0
B155: TRUE | C155: Spare | G155: $ / Component | L155: =IF($J155=0,1,INDEX(REG_Timing!$K$23:$O$27,$G$9,MATCH($J155,List_RegYear,0))) -> 1 | M155: =IF($J155=0,1,INDEX(REG_Timing!$K$23:$O$27,$G$10,MATCH($J155,List_RegYear,0))) -> 1 | O155: 0 | P155: 0
B156: TRUE | C156: Spare | G156: $ / Component | L156: =IF($J156=0,1,INDEX(REG_Timing!$K$23:$O$27,$G$9,MATCH($J156,List_RegYear,0))) -> 1 | M156: =IF($J156=0,1,INDEX(REG_Timing!$K$23:$O$27,$G$10,MATCH($J156,List_RegYear,0))) -> 1 | O156: 0 | P156: 0
B157: TRUE | C157: Spare | G157: $ / Component | L157: =IF($J157=0,1,INDEX(REG_Timing!$K$23:$O$27,$G$9,MATCH($J157,List_RegYear,0))) -> 1 | M157: =IF($J157=0,1,INDEX(REG_Timing!$K$23:$O$27,$G$10,MATCH($J157,List_RegYear,0))) -> 1 | O157: 0 | P157: 0
B158: TRUE | C158: Spare | G158: $ / Component | L158: =IF($J158=0,1,INDEX(REG_Timing!$K$23:$O$27,$G$9,MATCH($J158,List_RegYear,0))) -> 1 | M158: =IF($J158=0,1,INDEX(REG_Timing!$K$23:$O$27,$G$10,MATCH($J158,List_RegYear,0))) -> 1 | O158: 0 | P158: 0
B159: TRUE | C159: Spare | G159: $ / Component | L159: =IF($J159=0,1,INDEX(REG_Timing!$K$23:$O$27,$G$9,MATCH($J159,List_RegYear,0))) -> 1 | M159: =IF($J159=0,1,INDEX(REG_Timing!$K$23:$O$27,$G$10,MATCH($J159,List_RegYear,0))) -> 1 | O159: 0 | P159: 0
B160: TRUE | C160: Spare | G160: $ / Component | L160: =IF($J160=0,1,INDEX(REG_Timing!$K$23:$O$27,$G$9,MATCH($J160,List_RegYear,0))) -> 1 | M160: =IF($J160=0,1,INDEX(REG_Timing!$K$23:$O$27,$G$10,MATCH($J160,List_RegYear,0))) -> 1 | O160: 0 | P160: 0
B161: TRUE | C161: Spare | G161: $ / Component | L161: =IF($J161=0,1,INDEX(REG_Timing!$K$23:$O$27,$G$9,MATCH($J161,List_RegYear,0))) -> 1 | M161: =IF($J161=0,1,INDEX(REG_Timing!$K$23:$O$27,$G$10,MATCH($J161,List_RegYear,0))) -> 1 | O161: 0 | P161: 0
B162: TRUE | C162: Spare | G162: $ / Component | L162: =IF($J162=0,1,INDEX(REG_Timing!$K$23:$O$27,$G$9,MATCH($J162,List_RegYear,0))) -> 1 | M162: =IF($J162=0,1,INDEX(REG_Timing!$K$23:$O$27,$G$10,MATCH($J162,List_RegYear,0))) -> 1 | O162: 0 | P162: 0
B163: TRUE | C163: Spare | G163: $ / Component | L163: =IF($J163=0,1,INDEX(REG_Timing!$K$23:$O$27,$G$9,MATCH($J163,List_RegYear,0))) -> 1 | M163: =IF($J163=0,1,INDEX(REG_Timing!$K$23:$O$27,$G$10,MATCH($J163,List_RegYear,0))) -> 1 | O163: 0 | P163: 0
B164: TRUE | C164: Spare | G164: $ / Component | L164: =IF($J164=0,1,INDEX(REG_Timing!$K$23:$O$27,$G$9,MATCH($J164,List_RegYear,0))) -> 1 | M164: =IF($J164=0,1,INDEX(REG_Timing!$K$23:$O$27,$G$10,MATCH($J164,List_RegYear,0))) -> 1 | O164: 0 | P164: 0
B165: TRUE | C165: Spare | G165: $ / Component | L165: =IF($J165=0,1,INDEX(REG_Timing!$K$23:$O$27,$G$9,MATCH($J165,List_RegYear,0))) -> 1 | M165: =IF($J165=0,1,INDEX(REG_Timing!$K$23:$O$27,$G$10,MATCH($J165,List_RegYear,0))) -> 1 | O165: 0 | P165: 0
B166: TRUE | C166: Spare | G166: $ / Component | L166: =IF($J166=0,1,INDEX(REG_Timing!$K$23:$O$27,$G$9,MATCH($J166,List_RegYear,0))) -> 1 | M166: =IF($J166=0,1,INDEX(REG_Timing!$K$23:$O$27,$G$10,MATCH($J166,List_RegYear,0))) -> 1 | O166: 0 | P166: 0
B167: TRUE | C167: Spare | G167: $ / Component | L167: =IF($J167=0,1,INDEX(REG_Timing!$K$23:$O$27,$G$9,MATCH($J167,List_RegYear,0))) -> 1 | M167: =IF($J167=0,1,INDEX(REG_Timing!$K$23:$O$27,$G$10,MATCH($J167,List_RegYear,0))) -> 1 | O167: 0 | P167: 0
B168: TRUE | C168: Spare | G168: $ / Component | L168: =IF($J168=0,1,INDEX(REG_Timing!$K$23:$O$27,$G$9,MATCH($J168,List_RegYear,0))) -> 1 | M168: =IF($J168=0,1,INDEX(REG_Timing!$K$23:$O$27,$G$10,MATCH($J168,List_RegYear,0))) -> 1 | O168: 0 | P168: 0
B169: TRUE | C169: Spare | G169: $ / Component | L169: =IF($J169=0,1,INDEX(REG_Timing!$K$23:$O$27,$G$9,MATCH($J169,List_RegYear,0))) -> 1 | M169: =IF($J169=0,1,INDEX(REG_Timing!$K$23:$O$27,$G$10,MATCH($J169,List_RegYear,0))) -> 1 | O169: 0 | P169: 0
B170: TRUE | C170: Spare | G170: $ / Component | L170: =IF($J170=0,1,INDEX(REG_Timing!$K$23:$O$27,$G$9,MATCH($J170,List_RegYear,0))) -> 1 | M170: =IF($J170=0,1,INDEX(REG_Timing!$K$23:$O$27,$G$10,MATCH($J170,List_RegYear,0))) -> 1 | O170: 0 | P170: 0
B171: TRUE | C171: Spare | G171: $ / Component | L171: =IF($J171=0,1,INDEX(REG_Timing!$K$23:$O$27,$G$9,MATCH($J171,List_RegYear,0))) -> 1 | M171: =IF($J171=0,1,INDEX(REG_Timing!$K$23:$O$27,$G$10,MATCH($J171,List_RegYear,0))) -> 1 | O171: 0 | P171: 0
B172: TRUE | C172: Spare | G172: $ / Component | L172: =IF($J172=0,1,INDEX(REG_Timing!$K$23:$O$27,$G$9,MATCH($J172,List_RegYear,0))) -> 1 | M172: =IF($J172=0,1,INDEX(REG_Timing!$K$23:$O$27,$G$10,MATCH($J172,List_RegYear,0))) -> 1 | O172: 0 | P172: 0
B173: TRUE | C173: Spare | G173: $ / Component | L173: =IF($J173=0,1,INDEX(REG_Timing!$K$23:$O$27,$G$9,MATCH($J173,List_RegYear,0))) -> 1 | M173: =IF($J173=0,1,INDEX(REG_Timing!$K$23:$O$27,$G$10,MATCH($J173,List_RegYear,0))) -> 1 | O173: 0 | P173: 0
XFD174: =I65*R65 -> 0
C175: ="Opex " & "- real " & RegYear-1 -> Opex - real 2019 | V175: =SUM(V24:V65) -> 0
C177: Operating Expenses
C179: Asset Register | F179: Total | G179: Overheads | H179: Globe (Lamp) | I179: Spare | J179: Spare | K179: Spare | L179: Spare | M179: Spare | N179: Spare | O179: Spare | P179: Spare | Q179: Spare | R179: Spare | S179: Spare | T179: Spare
B180: =IF(C180="Spare",TRUE,0) -> 0 | C180: =C24 -> 2x14W Energy Efficient Fluro - STD | D180: $ p.a. / Component | F180: 50.28953401
B181: =IF(C181="Spare",TRUE,0) -> 0 | C181: =C25 -> 2x24W Energy Efficient Fluro - STD | D181: $ p.a. / Component | F181: 50.28953401
B182: 0 | C182: 1x42W Compact Fluorescent - STD | D182: $ p.a. / Component | F182: 52.13953401
B183: 0 | C183: 50W Mercury - STANDARD | D183: $ p.a. / Component | F183: 53.48953401
B184: 0 | C184: 80W Mercury - STANDARD | D184: $ p.a. / Component | F184: 50.78953401
B185: 0 | C185: 70W Sodium - STANDARD | D185: $ p.a. / Component | F185: 55.80953401
B186: 0 | C186: 100W Sodium - STANDARD | D186: $ p.a. / Component | F186: 59.68953401
B187: 0 | C187: 100W Metal Halide - STANDARD | D187: $ p.a. / Component | F187: 79.01953401
B188: 0 | C188: 25W LED | D188: $ p.a. / Component | F188: 44.68275711
B189: 0 | C189: Suburban 70W HPS c/w D2 PECB - STD | D189: $ p.a. / Component | F189: 55.80953401
B190: 0 | C190: 150W Sodium - STANDARD | D190: $ p.a. / Component | F190: 55.63953401
B191: 0 | C191: 150W Metal Halide - STANDARD | D191: $ p.a. / Component | F191: 68.88953401
B192: 0 | C192: 250W Sodium - STANDARD | D192: $ p.a. / Component | F192: 64.86953401
B193: 0 | C193: 250W Metal Halide - STANDARD | D193: $ p.a. / Component | F193: 66.26953401
B194: 0 | C194: 400W Sodium - STANDARD | D194: $ p.a. / Component | F194: 57.78953401
B195: 0 | C195: 80W Mercury - AEROSCREEN | D195: $ p.a. / Component | F195: 77.78953401
B196: 0 | C196: Urban A/Screen 42W CFL c/w D2 PECB | D196: $ p.a. / Component | F196: 52.13953401
B197: 0 | C197: 150W Sodium - AEROSCREEN | D197: $ p.a. / Component | F197: 55.63953401
B198: 0 | C198: 150W Metal Halide - AEROSCREEN | D198: $ p.a. / Component | F198: 68.88953401
B199: 0 | C199: 250W Sodium (w/o PECB) - AEROSCREEN | D199: $ p.a. / Component | F199: 64.86953401
B200: 0 | C200: 250W Metal Halide - AEROSCREEN | D200: $ p.a. / Component | F200: 66.26953401
B201: 0 | C201: 400W Sodium - AEROSCREEN | D201: $ p.a. / Component | F201: 57.78953401
B202: 0 | C202: 400W Metal Halide - AEROSCREEN | D202: $ p.a. / Component | F202: 64.88953401
B203: 0 | C203: Roadster A/Screen 100W HPS c/w PECB | D203: $ p.a. / Component | F203: 59.68953401
B204: 0 | C204: 80W Mercury - POST TOP | D204: $ p.a. / Component | F204: 50.78953401
B205: 0 | C205: B2001 42WCFL c/w D2 PECB green - PT | D205: $ p.a. / Component | F205: 52.13953401
B206: 0 | C206: 250W Sodium - FLOODLIGHT | D206: $ p.a. / Component | F206: 64.86953401
B207: 0 | C207: 250W Metal Halide - FLOODLIGHT | D207: $ p.a. / Component | F207: 66.26953401
B208: 0 | C208: 400W Sodium - FLOODLIGHT | D208: $ p.a. / Component | F208: 57.78953401
B209: 0 | C209: 400W Metal Halide - FLOODLIGHT | D209: $ p.a. / Component | F209: 64.88953401
... 120 more rows

Sheet RAB
B1: RAB Revenue Inputs
C2: Inputs required for calculating the RAB revenue requirement.
C6: ="Opening Regulated Asset Base " & "- nominal " & RegYear-1 -> Opening Regulated Asset Base - nominal 2019
C8: RAB escalation index | D8: selection | E8: CPI
K9: Closing Inventory
E10: Opening RAB | F10: Remaining Life | G10: Standard Life | H10: Opening TAB | I10: Remaining Life | K10: =REG_Timing!J4 -> 2019 | L10: =REG_Timing!K4 -> 2020 | M10: =REG_Timing!L4 -> 2021 | N10: =REG_Timing!M4 -> 2022 | O10: =REG_Timing!N4 -> 2023 | P10: =REG_Timing!O4 -> 2024
E11: $ | F11: Yrs | G11: Yrs | H11: $ | I11: Yrs | K11: #
C12: Asset Class Name
B13: =IF(C13="Spare",TRUE,0) -> 0 | C13: ='Roll Forward'!C34 -> 1 x 20 W Fluorescent | E13: =RF!E1723 -> 997.8862984 | F13: 10 | G13: ='Roll Forward'!G34 -> 20 | H13: =RF!E2500 -> 946.2032666 | I13: =IF(H13=0,0,IF(IF('Roll Forward'!J34<RegDur,0,'Roll Forward'!J34-RegDur)=0,'Roll Forward'!K34-RegDur,IF('Roll Forward'!J34<RegDur,0,'Roll Forward'!J34-RegDur))) -> 5 | K13: 238 | L13: =IF(K13+K172-K330 < 0, 0, K13+K172-K330) -> 237 | M13: 236 | N13: =IF(M13+M172-M330<0,0,M13+M172-M330) -> 235 | O13: 234 | P13: 233
B14: 0 | C14: ='Roll Forward'!C35 -> 2 x 20 W Fluorescent | E14: =RF!E1724 -> 0 | F14: 0 | G14: ='Roll Forward'!G35 -> 20 | H14: =RF!E2501 -> 0 | I14: =IF(H14=0,0,IF(IF('Roll Forward'!J35<RegDur,0,'Roll Forward'!J35-RegDur)=0,'Roll Forward'!K35-RegDur,IF('Roll Forward'!J35<RegDur,0,'Roll Forward'!J35-RegDur))) -> 0 | K14: 90 | L14: =IF(K14+K173-K331 < 0, 0, K14+K173-K331) -> 88 | M14: 86 | N14: =IF(M14+M173-M331<0,0,M14+M173-M331) -> 84 | O14: 82 | P14: 80
B15: 0 | C15: ='Roll Forward'!C36 -> 4 x 20 W Fluorescent | E15: =RF!E1725 -> 33246.32356 | F15: 10 | G15: ='Roll Forward'!G36 -> 20 | H15: =RF!E2502 -> 39605.23787 | I15: =IF(H15=0,0,IF(IF('Roll Forward'!J36<RegDur,0,'Roll Forward'!J36-RegDur)=0,'Roll Forward'!K36-RegDur,IF('Roll Forward'!J36<RegDur,0,'Roll Forward'!J36-RegDur))) -> 5 | K15: 1 | L15: =IF(K15+K174-K332 < 0, 0, K15+K174-K332) -> 0 | M15: 0 | N15: =IF(M15+M174-M332<0,0,M15+M174-M332) -> 0 | O15: 0 | P15: 0
B16: 0 | C16: ='Roll Forward'!C37 -> 2 x 14 W Fluorescent | E16: =RF!E1726 -> 161284.9583 | F16: 8 | G16: ='Roll Forward'!G37 -> 20 | H16: =RF!E2503 -> 144465.8812 | I16: =IF(H16=0,0,IF(IF('Roll Forward'!J37<RegDur,0,'Roll Forward'!J37-RegDur)=0,'Roll Forward'!K37-RegDur,IF('Roll Forward'!J37<RegDur,0,'Roll Forward'!J37-RegDur))) -> 3 | K16: 3241 | L16: =IF(K16+K175-K333 < 0, 0, K16+K175-K333) -> 3063 | M16: 2885 | N16: =IF(M16+M175-M333<0,0,M16+M175-M333) -> 2707 | O16: 2529 | P16: 2351
B17: 0 | C17: ='Roll Forward'!C38 -> 2 x 24 W Fluorescent | E17: =RF!E1727 -> 50296.27014 | F17: 10 | G17: ='Roll Forward'!G38 -> 20 | H17: =RF!E2504 -> 30761.78709 | I17: =IF(H17=0,0,IF(IF('Roll Forward'!J38<RegDur,0,'Roll Forward'!J38-RegDur)=0,'Roll Forward'!K38-RegDur,IF('Roll Forward'!J38<RegDur,0,'Roll Forward'!J38-RegDur))) -> 5 | K17: 1608 | L17: =IF(K17+K176-K334 < 0, 0, K17+K176-K334) -> 1487 | M17: 1366 | N17: =IF(M17+M176-M334<0,0,M17+M176-M334) -> 1245 | O17: 1124 | P17: 1003
B18: 0 | C18: ='Roll Forward'!C39 -> 1 x 40 W Fluorescent | E18: =RF!E1728 -> 18865.81007 | F18: 10 | G18: ='Roll Forward'!G39 -> 20 | H18: =RF!E2505 -> 11376.62284 | I18: =IF(H18=0,0,IF(IF('Roll Forward'!J39<RegDur,0,'Roll Forward'!J39-RegDur)=0,'Roll Forward'!K39-RegDur,IF('Roll Forward'!J39<RegDur,0,'Roll Forward'!J39-RegDur))) -> 5 | K18: 2579 | L18: =IF(K18+K177-K335 < 0, 0, K18+K177-K335) -> 1785 | M18: 991 | N18: =IF(M18+M177-M335<0,0,M18+M177-M335) -> 197 | O18: 0 | P18: 0
B19: 0 | C19: ='Roll Forward'!C40 -> 2 x 40 W Fluorescent | E19: =RF!E1729 -> 0 | F19: 0 | G19: ='Roll Forward'!G40 -> 20 | H19: =RF!E2506 -> 0 | I19: =IF(H19=0,0,IF(IF('Roll Forward'!J40<RegDur,0,'Roll Forward'!J40-RegDur)=0,'Roll Forward'!K40-RegDur,IF('Roll Forward'!J40<RegDur,0,'Roll Forward'!J40-RegDur))) -> 0 | K19: 41 | L19: =IF(K19+K178-K336 < 0, 0, K19+K178-K336) -> 41 | M19: 41 | N19: =IF(M19+M178-M336<0,0,M19+M178-M336) -> 41 | O19: 41 | P19: 41
B20: 0 | C20: ='Roll Forward'!C41 -> 1 x 42 W Fluorescent | E20: =RF!E1730 -> 0 | F20: 0 | G20: ='Roll Forward'!G41 -> 20 | H20: =RF!E2507 -> 0 | I20: =IF(H20=0,0,IF(IF('Roll Forward'!J41<RegDur,0,'Roll Forward'!J41-RegDur)=0,'Roll Forward'!K41-RegDur,IF('Roll Forward'!J41<RegDur,0,'Roll Forward'!J41-RegDur))) -> 0 | K20: 1591 | L20: =IF(K20+K179-K337 < 0, 0, K20+K179-K337) -> 1478 | M20: 1365 | N20: =IF(M20+M179-M337<0,0,M20+M179-M337) -> 1252 | O20: 1139 | P20: 1026
B21: 0 | C21: ='Roll Forward'!C42 -> 50W Mercury | E21: =RF!E1731 -> 5804.77475 | F21: 10 | G21: ='Roll Forward'!G42 -> 20 | H21: =RF!E2508 -> 2198.957071 | I21: =IF(H21=0,0,IF(IF('Roll Forward'!J42<RegDur,0,'Roll Forward'!J42-RegDur)=0,'Roll Forward'!K42-RegDur,IF('Roll Forward'!J42<RegDur,0,'Roll Forward'!J42-RegDur))) -> 5 | K21: 3196 | L21: =IF(K21+K180-K338 < 0, 0, K21+K180-K338) -> 2241 | M21: 1286 | N21: =IF(M21+M180-M338<0,0,M21+M180-M338) -> 331 | O21: 0 | P21: 0
B22: 0 | C22: ='Roll Forward'!C43 -> 80W Mercury | E22: =RF!E1732 -> 75962.11196 | F22: 10 | G22: ='Roll Forward'!G43 -> 20 | H22: =RF!E2509 -> 19066.18115 | I22: =IF(H22=0,0,IF(IF('Roll Forward'!J43<RegDur,0,'Roll Forward'!J43-RegDur)=0,'Roll Forward'!K43-RegDur,IF('Roll Forward'!J43<RegDur,0,'Roll Forward'!J43-RegDur))) -> 10 | K22: 50943 | L22: =IF(K22+K181-K339 < 0, 0, K22+K181-K339) -> 43812 | M22: =IF(L22+L181-L339 < 0, 0, L22+L181-L339) -> 36681 | N22: =IF(M22+M181-M339<0,0,M22+M181-M339) -> 29550 | O22: =IF(N22+N181-N339<0,0,N22+N181-N339) -> 22419 | P22: =IF(O22+O181-O339<0,0,O22+O181-O339) -> 15288
B23: =IF(C23="Spare",TRUE,0) -> 0 | C23: ='Roll Forward'!C44 -> 125W Mercury | E23: =RF!E1733 -> 3894.713319 | F23: 5 | G23: ='Roll Forward'!G44 -> 20 | H23: =RF!E2510 -> 752.7303227 | I23: =IF(H23=0,0,IF(IF('Roll Forward'!J44<RegDur,0,'Roll Forward'!J44-RegDur)=0,'Roll Forward'!K44-RegDur,IF('Roll Forward'!J44<RegDur,0,'Roll Forward'!J44-RegDur))) -> 5 | K23: 2043 | L23: =IF(K23+K182-K340 < 0, 0, K23+K182-K340) -> 1874 | M23: 1705 | N23: =IF(M23+M182-M340<0,0,M23+M182-M340) -> 1536 | O23: 1367 | P23: 1198
B24: 0 | C24: ='Roll Forward'!C45 -> 250W Mercury | E24: =RF!E1734 -> 5596.698361 | F24: 5 | G24: ='Roll Forward'!G45 -> 20 | H24: =RF!E2511 -> 0 | I24: =IF(H24=0,0,IF(IF('Roll Forward'!J45<RegDur,0,'Roll Forward'!J45-RegDur)=0,'Roll Forward'!K45-RegDur,IF('Roll Forward'!J45<RegDur,0,'Roll Forward'!J45-RegDur))) -> 0 | K24: 1999 | L24: =IF(K24+K183-K341 < 0, 0, K24+K183-K341) -> 1947 | M24: 1895 | N24: =IF(M24+M183-M341<0,0,M24+M183-M341) -> 1843 | O24: 1791 | P24: 1739
B25: 0 | C25: ='Roll Forward'!C46 -> 2 x 250W Mercury | E25: =RF!E1735 -> 561.9182461 | F25: 10 | G25: ='Roll Forward'!G46 -> 20 | H25: =RF!E2512 -> 334.7978773 | I25: =IF(H25=0,0,IF(IF('Roll Forward'!J46<RegDur,0,'Roll Forward'!J46-RegDur)=0,'Roll Forward'!K46-RegDur,IF('Roll Forward'!J46<RegDur,0,'Roll Forward'!J46-RegDur))) -> 5 | K25: 2 | L25: =IF(K25+K184-K342 < 0, 0, K25+K184-K342) -> 2 | M25: 2 | N25: =IF(M25+M184-M342<0,0,M25+M184-M342) -> 2 | O25: 2 | P25: 2
B26: 0 | C26: ='Roll Forward'!C47 -> 400 W Mercury | E26: =RF!E1736 -> 2722.404012 | F26: 5 | G26: ='Roll Forward'!G47 -> 20 | H26: =RF!E2513 -> 0 | I26: =IF(H26=0,0,IF(IF('Roll Forward'!J47<RegDur,0,'Roll Forward'!J47-RegDur)=0,'Roll Forward'!K47-RegDur,IF('Roll Forward'!J47<RegDur,0,'Roll Forward'!J47-RegDur))) -> 0 | K26: 712 | L26: =IF(K26+K185-K343 < 0, 0, K26+K185-K343) -> 667 | M26: 622 | N26: =IF(M26+M185-M343<0,0,M26+M185-M343) -> 577 | O26: 532 | P26: 487
B27: 0 | C27: ='Roll Forward'!C48 -> 700 W Mercury | E27: =RF!E1737 -> 0 | F27: 0 | G27: ='Roll Forward'!G48 -> 20 | H27: =RF!E2514 -> 0 | I27: =IF(H27=0,0,IF(IF('Roll Forward'!J48<RegDur,0,'Roll Forward'!J48-RegDur)=0,'Roll Forward'!K48-RegDur,IF('Roll Forward'!J48<RegDur,0,'Roll Forward'!J48-RegDur))) -> 0 | K27: 0 | L27: =IF(K27+K186-K344 < 0, 0, K27+K186-K344) -> 0 | M27: 0 | N27: =IF(M27+M186-M344<0,0,M27+M186-M344) -> 0 | O27: 0 | P27: 0
B28: 0 | C28: ='Roll Forward'!C49 -> 50W Sodium | E28: =RF!E1738 -> 198.5170703 | F28: 10 | G28: ='Roll Forward'!G49 -> 20 | H28: =RF!E2515 -> 118.2789387 | I28: =IF(H28=0,0,IF(IF('Roll Forward'!J49<RegDur,0,'Roll Forward'!J49-RegDur)=0,'Roll Forward'!K49-RegDur,IF('Roll Forward'!J49<RegDur,0,'Roll Forward'!J49-RegDur))) -> 5 | K28: 4 | L28: =IF(K28+K187-K345 < 0, 0, K28+K187-K345) -> 4 | M28: 4 | N28: =IF(M28+M187-M345<0,0,M28+M187-M345) -> 4 | O28: 4 | P28: 4
B29: 0 | C29: ='Roll Forward'!C50 -> 70W Sodium | E29: =RF!E1739 -> 7365.110408 | F29: 10 | G29: ='Roll Forward'!G50 -> 20 | H29: =RF!E2516 -> 4447.876794 | I29: =IF(H29=0,0,IF(IF('Roll Forward'!J50<RegDur,0,'Roll Forward'!J50-RegDur)=0,'Roll Forward'!K50-RegDur,IF('Roll Forward'!J50<RegDur,0,'Roll Forward'!J50-RegDur))) -> 5 | K29: 895 | L29: =IF(K29+K188-K346 < 0, 0, K29+K188-K346) -> 846 | M29: =IF(L29+L188-L346 < 0, 0, L29+L188-L346) -> 797 | N29: =IF(M29+M188-M346<0,0,M29+M188-M346) -> 748 | O29: 699 | P29: 650
B30: 0 | C30: ='Roll Forward'!C51 -> 90W Sodium | E30: =RF!E1740 -> 0 | F30: 0 | G30: ='Roll Forward'!G51 -> 20 | H30: =RF!E2517 -> 0 | I30: =IF(H30=0,0,IF(IF('Roll Forward'!J51<RegDur,0,'Roll Forward'!J51-RegDur)=0,'Roll Forward'!K51-RegDur,IF('Roll Forward'!J51<RegDur,0,'Roll Forward'!J51-RegDur))) -> 0 | K30: 25 | L30: =IF(K30+K189-K347 < 0, 0, K30+K189-K347) -> 25 | M30: 25 | N30: =IF(M30+M189-M347<0,0,M30+M189-M347) -> 25 | O30: 25 | P30: 25
B31: 0 | C31: ='Roll Forward'!C52 -> 100W Sodium | E31: =RF!E1741 -> 16077.15502 | F31: 10 | G31: ='Roll Forward'!G52 -> 20 | H31: =RF!E2518 -> 17901.18296 | I31: =IF(H31=0,0,IF(IF('Roll Forward'!J52<RegDur,0,'Roll Forward'!J52-RegDur)=0,'Roll Forward'!K52-RegDur,IF('Roll Forward'!J52<RegDur,0,'Roll Forward'!J52-RegDur))) -> 5 | K31: 1475 | L31: =IF(K31+K190-K348 < 0, 0, K31+K190-K348) -> 1438 | M31: 1401 | N31: =IF(M31+M190-M348<0,0,M31+M190-M348) -> 1364 | O31: 1327 | P31: 1290
B32: 0 | C32: ='Roll Forward'!C53 -> 120W Sodium | E32: =RF!E1742 -> 217.6846082 | F32: 10 | G32: ='Roll Forward'!G53 -> 20 | H32: =RF!E2519 -> 137.7741257 | I32: =IF(H32=0,0,IF(IF('Roll Forward'!J53<RegDur,0,'Roll Forward'!J53-RegDur)=0,'Roll Forward'!K53-RegDur,IF('Roll Forward'!J53<RegDur,0,'Roll Forward'!J53-RegDur))) -> 5 | K32: 35 | L32: =IF(K32+K191-K349 < 0, 0, K32+K191-K349) -> 33 | M32: 31 | N32: =IF(M32+M191-M349<0,0,M32+M191-M349) -> 29 | O32: 27 | P32: 25
B33: 0 | C33: ='Roll Forward'!C54 -> 150W Sodium | E33: =RF!E1743 -> 177041.7449 | F33: 6 | G33: ='Roll Forward'!G54 -> 20 | H33: =RF!E2520 -> 0 | I33: =IF(H33=0,0,IF(IF('Roll Forward'!J54<RegDur,0,'Roll Forward'!J54-RegDur)=0,'Roll Forward'!K54-RegDur,IF('Roll Forward'!J54<RegDur,0,'Roll Forward'!J54-RegDur))) -> 0 | K33: 11143 | L33: =IF(K33+K192-K350 < 0, 0, K33+K192-K350) -> 11009 | M33: 10875 | N33: =IF(M33+M192-M350<0,0,M33+M192-M350) -> 10741 | O33: 10607 | P33: 10473
B34: 0 | C34: ='Roll Forward'!C55 -> 250W Sodium | E34: =RF!E1744 -> 65840.15333 | F34: 6 | G34: ='Roll Forward'!G55 -> 20 | H34: =RF!E2521 -> 0 | I34: =IF(H34=0,0,IF(IF('Roll Forward'!J55<RegDur,0,'Roll Forward'!J55-RegDur)=0,'Roll Forward'!K55-RegDur,IF('Roll Forward'!J55<RegDur,0,'Roll Forward'!J55-RegDur))) -> 0 | K34: 17782 | L34: =IF(K34+K193-K351 < 0, 0, K34+K193-K351) -> 17527 | M34: 17272 | N34: =IF(M34+M193-M351<0,0,M34+M193-M351) -> 17017 | O34: 16762 | P34: 16507
B35: 0 | C35: ='Roll Forward'!C56 -> 2 x 250W Sodium | E35: =RF!E1745 -> 939.8752958 | F35: 10 | G35: ='Roll Forward'!G56 -> 20 | H35: =RF!E2522 -> 559.9893867 | I35: =IF(H35=0,0,IF(IF('Roll Forward'!J56<RegDur,0,'Roll Forward'!J56-RegDur)=0,'Roll Forward'!K56-RegDur,IF('Roll Forward'!J56<RegDur,0,'Roll Forward'!J56-RegDur))) -> 5 | K35: 90 | L35: =IF(K35+K194-K352 < 0, 0, K35+K194-K352) -> 89 | M35: 88 | N35: =IF(M35+M194-M352<0,0,M35+M194-M352) -> 87 | O35: 86 | P35: 85
B36: 0 | C36: ='Roll Forward'!C57 -> 310W Sodium | E36: =RF!E1746 -> 0 | F36: 0 | G36: ='Roll Forward'!G57 -> 20 | H36: =RF!E2523 -> 0 | I36: =IF(H36=0,0,IF(IF('Roll Forward'!J57<RegDur,0,'Roll Forward'!J57-RegDur)=0,'Roll Forward'!K57-RegDur,IF('Roll Forward'!J57<RegDur,0,'Roll Forward'!J57-RegDur))) -> 0 | K36: 322 | L36: =IF(K36+K195-K353 < 0, 0, K36+K195-K353) -> 313 | M36: 304 | N36: =IF(M36+M195-M353<0,0,M36+M195-M353) -> 295 | O36: 286 | P36: 277
B37: 0 | C37: ='Roll Forward'!C58 -> 400 W Sodium | E37: =RF!E1747 -> 0 | F37: 1 | G37: ='Roll Forward'!G58 -> 20 | H37: =RF!E2524 -> 23987.33154 | I37: =IF(H37=0,0,IF(IF('Roll Forward'!J58<RegDur,0,'Roll Forward'!J58-RegDur)=0,'Roll Forward'!K58-RegDur,IF('Roll Forward'!J58<RegDur,0,'Roll Forward'!J58-RegDur))) -> 10 | K37: 1792 | L37: =IF(K37+K196-K354 < 0, 0, K37+K196-K354) -> 1763 | M37: 1734 | N37: =IF(M37+M196-M354<0,0,M37+M196-M354) -> 1705 | O37: 1676 | P37: 1647
B38: 0 | C38: ='Roll Forward'!C59 -> 2 x 400 W Sodium | E38: =RF!E1748 -> 1603.297848 | F38: 10 | G38: ='Roll Forward'!G59 -> 20 | H38: =RF!E2525 -> 1745.200957 | I38: =IF(H38=0,0,IF(IF('Roll Forward'!J59<RegDur,0,'Roll Forward'!J59-RegDur)=0,'Roll Forward'!K59-RegDur,IF('Roll Forward'!J59<RegDur,0,'Roll Forward'!J59-RegDur))) -> 5 | K38: 52 | L38: =IF(K38+K197-K355 < 0, 0, K38+K197-K355) -> 52 | M38: 52 | N38: =IF(M38+M197-M355<0,0,M38+M197-M355) -> 52 | O38: 52 | P38: 52
B39: 0 | C39: ='Roll Forward'!C60 -> 4 x 600W Sodium | E39: =RF!E1749 -> 0 | F39: 0 | G39: ='Roll Forward'!G60 -> 20 | H39: =RF!E2526 -> 0 | I39: =IF(H39=0,0,IF(IF('Roll Forward'!J60<RegDur,0,'Roll Forward'!J60-RegDur)=0,'Roll Forward'!K60-RegDur,IF('Roll Forward'!J60<RegDur,0,'Roll Forward'!J60-RegDur))) -> 0 | K39: 3 | L39: =IF(K39+K198-K356 < 0, 0, K39+K198-K356) -> 3 | M39: 3 | N39: =IF(M39+M198-M356<0,0,M39+M198-M356) -> 3 | O39: 3 | P39: 3
B40: 0 | C40: ='Roll Forward'!C61 -> 60 W Incandescent | E40: =RF!E1750 -> 0 | F40: 0 | G40: ='Roll Forward'!G61 -> 20 | H40: =RF!E2527 -> 0 | I40: =IF(H40=0,0,IF(IF('Roll Forward'!J61<RegDur,0,'Roll Forward'!J61-RegDur)=0,'Roll Forward'!K61-RegDur,IF('Roll Forward'!J61<RegDur,0,'Roll Forward'!J61-RegDur))) -> 0 | K40: 18 | L40: =IF(K40+K199-K357 < 0, 0, K40+K199-K357) -> 13 | M40: 8 | N40: =IF(M40+M199-M357<0,0,M40+M199-M357) -> 3 | O40: 0 | P40: 0
B41: 0 | C41: ='Roll Forward'!C62 -> 100 W Incandescent | E41: =RF!E1751 -> 0 | F41: 0 | G41: ='Roll Forward'!G62 -> 20 | H41: =RF!E2528 -> 0 | I41: =IF(H41=0,0,IF(IF('Roll Forward'!J62<RegDur,0,'Roll Forward'!J62-RegDur)=0,'Roll Forward'!K62-RegDur,IF('Roll Forward'!J62<RegDur,0,'Roll Forward'!J62-RegDur))) -> 0 | K41: 5 | L41: =IF(K41+K200-K358 < 0, 0, K41+K200-K358) -> 0 | M41: 0 | N41: =IF(M41+M200-M358<0,0,M41+M200-M358) -> 0 | O41: 0 | P41: 0
B42: 0 | C42: ='Roll Forward'!C63 -> 500 W Incandescent | E42: =RF!E1752 -> 0.01898805043 | F42: 10 | G42: ='Roll Forward'!G63 -> 20 | H42: =RF!E2529 -> 0 | I42: =IF(H42=0,0,IF(IF('Roll Forward'!J63<RegDur,0,'Roll Forward'!J63-RegDur)=0,'Roll Forward'!K63-RegDur,IF('Roll Forward'!J63<RegDur,0,'Roll Forward'!J63-RegDur))) -> 0 | K42: 0 | L42: =IF(K42+K201-K359 < 0, 0, K42+K201-K359) -> 0 | M42: 0 | N42: =IF(M42+M201-M359<0,0,M42+M201-M359) -> 0 | O42: 0 | P42: 0
B43: 0 | C43: ='Roll Forward'!C64 -> 1000 W Incandescent | E43: =RF!E1753 -> 0 | F43: 0 | G43: ='Roll Forward'!G64 -> 20 | H43: =RF!E2530 -> 0 | I43: =IF(H43=0,0,IF(IF('Roll Forward'!J64<RegDur,0,'Roll Forward'!J64-RegDur)=0,'Roll Forward'!K64-RegDur,IF('Roll Forward'!J64<RegDur,0,'Roll Forward'!J64-RegDur))) -> 0 | K43: 0 | L43: =IF(K43+K202-K360 < 0, 0, K43+K202-K360) -> 0 | M43: 0 | N43: =IF(M43+M202-M360<0,0,M43+M202-M360) -> 0 | O43: 0 | P43: 0
B44: 0 | C44: ='Roll Forward'!C65 -> 1500 W Incandescent | E44: =RF!E1754 -> 0 | F44: 0 | G44: ='Roll Forward'!G65 -> 20 | H44: =RF!E2531 -> 0 | I44: =IF(H44=0,0,IF(IF('Roll Forward'!J65<RegDur,0,'Roll Forward'!J65-RegDur)=0,'Roll Forward'!K65-RegDur,IF('Roll Forward'!J65<RegDur,0,'Roll Forward'!J65-RegDur))) -> 0 | K44: 1 | L44: =IF(K44+K203-K361 < 0, 0, K44+K203-K361) -> 1 | M44: 1 | N44: =IF(M44+M203-M361<0,0,M44+M203-M361) -> 1 | O44: 1 | P44: 1
B45: 0 | C45: ='Roll Forward'!C66 -> 100 W Metal Halide | E45: =RF!E1755 -> 7653.215523 | F45: 10 | G45: ='Roll Forward'!G66 -> 20 | H45: =RF!E2532 -> 182.1769279 | I45: =IF(H45=0,0,IF(IF('Roll Forward'!J66<RegDur,0,'Roll Forward'!J66-RegDur)=0,'Roll Forward'!K66-RegDur,IF('Roll Forward'!J66<RegDur,0,'Roll Forward'!J66-RegDur))) -> 10 | K45: 168 | L45: =IF(K45+K204-K362 < 0, 0, K45+K204-K362) -> 162 | M45: 156 | N45: =IF(M45+M204-M362<0,0,M45+M204-M362) -> 150 | O45: 144 | P45: 138
B46: 0 | C46: ='Roll Forward'!C67 -> 150 W Metal Halide | E46: =RF!E1756 -> 110103.918 | F46: 10 | G46: ='Roll Forward'!G67 -> 20 | H46: =RF!E2533 -> 176254.735 | I46: =IF(H46=0,0,IF(IF('Roll Forward'!J67<RegDur,0,'Roll Forward'!J67-RegDur)=0,'Roll Forward'!K67-RegDur,IF('Roll Forward'!J67<RegDur,0,'Roll Forward'!J67-RegDur))) -> 10 | K46: 321 | L46: =IF(K46+K205-K363 < 0, 0, K46+K205-K363) -> 302 | M46: 283 | N46: =IF(M46+M205-M363<0,0,M46+M205-M363) -> 264 | O46: 245 | P46: 226
B47: 0 | C47: ='Roll Forward'!C68 -> 250 W Metal Halide | E47: =RF!E1757 -> 15875.9922 | F47: 10 | G47: ='Roll Forward'!G68 -> 20 | H47: =RF!E2534 -> 34347.16664 | I47: =IF(H47=0,0,IF(IF('Roll Forward'!J68<RegDur,0,'Roll Forward'!J68-RegDur)=0,'Roll Forward'!K68-RegDur,IF('Roll Forward'!J68<RegDur,0,'Roll Forward'!J68-RegDur))) -> 10 | K47: 259 | L47: =IF(K47+K206-K364 < 0, 0, K47+K206-K364) -> 250 | M47: 241 | N47: =IF(M47+M206-M364<0,0,M47+M206-M364) -> 232 | O47: 223 | P47: 214
B48: 0 | C48: ='Roll Forward'!C69 -> 2 x 250 W Metal Halide | E48: =RF!E1758 -> 10834.72715 | F48: 10 | G48: ='Roll Forward'!G69 -> 20 | H48: =RF!E2535 -> 11804.32295 | I48: =IF(H48=0,0,IF(IF('Roll Forward'!J69<RegDur,0,'Roll Forward'!J69-RegDur)=0,'Roll Forward'!K69-RegDur,IF('Roll Forward'!J69<RegDur,0,'Roll Forward'!J69-RegDur))) -> 5 | K48: 37 | L48: =IF(K48+K207-K365 < 0, 0, K48+K207-K365) -> 36 | M48: 35 | N48: =IF(M48+M207-M365<0,0,M48+M207-M365) -> 34 | O48: 33 | P48: 32
B49: 0 | C49: ='Roll Forward'!C70 -> 400 W Metal Halide | E49: =RF!E1759 -> 4135.368311 | F49: 10 | G49: ='Roll Forward'!G70 -> 20 | H49: =RF!E2536 -> 26417.67569 | I49: =IF(H49=0,0,IF(IF('Roll Forward'!J70<RegDur,0,'Roll Forward'!J70-RegDur)=0,'Roll Forward'!K70-RegDur,IF('Roll Forward'!J70<RegDur,0,'Roll Forward'!J70-RegDur))) -> 10 | K49: 317 | L49: =IF(K49+K208-K366 < 0, 0, K49+K208-K366) -> 308 | M49: 299 | N49: =IF(M49+M208-M366<0,0,M49+M208-M366) -> 290 | O49: 281 | P49: 272
B50: 0 | C50: ='Roll Forward'!C71 -> 2 x 400 W Metal Halide | E50: =RF!E1760 -> 4033.177972 | F50: 10 | G50: ='Roll Forward'!G71 -> 20 | H50: =RF!E2537 -> 4411.435381 | I50: =IF(H50=0,0,IF(IF('Roll Forward'!J71<RegDur,0,'Roll Forward'!J71-RegDur)=0,'Roll Forward'!K71-RegDur,IF('Roll Forward'!J71<RegDur,0,'Roll Forward'!J71-RegDur))) -> 5 | K50: 7 | L50: =IF(K50+K209-K367 < 0, 0, K50+K209-K367) -> 7 | M50: 7 | N50: =IF(M50+M209-M367<0,0,M50+M209-M367) -> 7 | O50: 7 | P50: 7
B51: 0 | C51: ='Roll Forward'!C72 -> 1000 W Metal Halide | E51: =RF!E1761 -> 0 | F51: 10 | G51: ='Roll Forward'!G72 -> 20 | H51: =RF!E2538 -> 17.80757904 | I51: =IF(H51=0,0,IF(IF('Roll Forward'!J72<RegDur,0,'Roll Forward'!J72-RegDur)=0,'Roll Forward'!K72-RegDur,IF('Roll Forward'!J72<RegDur,0,'Roll Forward'!J72-RegDur))) -> 10 | K51: 14 | L51: =IF(K51+K210-K368 < 0, 0, K51+K210-K368) -> 13 | M51: 12 | N51: =IF(M51+M210-M368<0,0,M51+M210-M368) -> 11 | O51: 10 | P51: 9
B52: 0 | C52: ='Roll Forward'!C73 -> 600 W Sodium | E52: =RF!E1762 -> 2289.128766 | F52: 7 | G52: ='Roll Forward'!G73 -> 20 | H52: =RF!E2539 -> 611.6771524 | I52: =IF(H52=0,0,IF(IF('Roll Forward'!J73<RegDur,0,'Roll Forward'!J73-RegDur)=0,'Roll Forward'!K73-RegDur,IF('Roll Forward'!J73<RegDur,0,'Roll Forward'!J73-RegDur))) -> 2 | K52: 16 | L52: =IF(K52+K211-K369 < 0, 0, K52+K211-K369) -> 15 | M52: 14 | N52: =IF(M52+M211-M369<0,0,M52+M211-M369) -> 13 | O52: 12 | P52: 11
B53: 0 | C53: ='Roll Forward'!C74 -> Pole mounting bracket minor (<=3m) | E53: =RF!E1763 -> 29072.07739 | F53: 10 | G53: ='Roll Forward'!G74 -> 35 | H53: =RF!E2540 -> 85352.2605 | I53: =IF(H53=0,0,IF(IF('Roll Forward'!J74<RegDur,0,'Roll Forward'!J74-RegDur)=0,'Roll Forward'!K74-RegDur,IF('Roll Forward'!J74<RegDur,0,'Roll Forward'!J74-RegDur))) -> 10 | K53: 40224 | L53: =IF(K53+K212-K370 < 0, 0, K53+K212-K370) -> 39951 | M53: 39678 | N53: =IF(M53+M212-M370<0,0,M53+M212-M370) -> 39405 | O53: 39132 | P53: 38859
B54: 0 | C54: ='Roll Forward'!C75 -> Pole mounting bracket major (>3m) | E54: =RF!E1764 -> 37296.10725 | F54: 10 | G54: ='Roll Forward'!G75 -> 35 | H54: =RF!E2541 -> 0 | I54: =IF(H54=0,0,IF(IF('Roll Forward'!J75<RegDur,0,'Roll Forward'!J75-RegDur)=0,'Roll Forward'!K75-RegDur,IF('Roll Forward'!J75<RegDur,0,'Roll Forward'!J75-RegDur))) -> 0 | K54: 25398 | L54: =IF(K54+K213-K371 < 0, 0, K54+K213-K371) -> 25284 | M54: 25170 | N54: =IF(M54+M213-M371<0,0,M54+M213-M371) -> 25056 | O54: 24942 | P54: 24828
B55: 0 | C55: ='Roll Forward'!C76 -> Outreach Minor (<=2m) | E55: =RF!E1765 -> 2824.429335 | F55: 10 | G55: ='Roll Forward'!G76 -> 35 | H55: =RF!E2542 -> 397858.1211 | I55: =IF(H55=0,0,IF(IF('Roll Forward'!J76<RegDur,0,'Roll Forward'!J76-RegDur)=0,'Roll Forward'!K76-RegDur,IF('Roll Forward'!J76<RegDur,0,'Roll Forward'!J76-RegDur))) -> 10 | K55: 9040 | L55: =IF(K55+K214-K372 < 0, 0, K55+K214-K372) -> 8861 | M55: 8682 | N55: =IF(M55+M214-M372<0,0,M55+M214-M372) -> 8503 | O55: 8324 | P55: 8145
B56: 0 | C56: ='Roll Forward'!C77 -> Outreach Major (>2m) | E56: =RF!E1766 -> 533.6051552 | F56: 10 | G56: ='Roll Forward'!G77 -> 35 | H56: =RF!E2543 -> 476106.7672 | I56: =IF(H56=0,0,IF(IF('Roll Forward'!J77<RegDur,0,'Roll Forward'!J77-RegDur)=0,'Roll Forward'!K77-RegDur,IF('Roll Forward'!J77<RegDur,0,'Roll Forward'!J77-RegDur))) -> 10 | K56: 11899 | L56: =IF(K56+K215-K373 < 0, 0, K56+K215-K373) -> 11849 | M56: 11799 | N56: =IF(M56+M215-M373<0,0,M56+M215-M373) -> 11749 | O56: 11699 | P56: 11649
B57: 0 | C57: ='Roll Forward'!C78 -> Minor Column (<=9) | E57: =RF!E1767 -> 2304291.568 | F57: 15 | G57: ='Roll Forward'!G78 -> 35 | H57: =RF!E2544 -> 161384.7862 | I57: =IF(H57=0,0,IF(IF('Roll Forward'!J78<RegDur,0,'Roll Forward'!J78-RegDur)=0,'Roll Forward'!K78-RegDur,IF('Roll Forward'!J78<RegDur,0,'Roll Forward'!J78-RegDur))) -> 10 | K57: 34936 | L57: =IF(K57+K216-K374 < 0, 0, K57+K216-K374) -> 34759 | M57: 34582 | N57: =IF(M57+M216-M374<0,0,M57+M216-M374) -> 34405 | O57: 34228 | P57: 34051
B58: 0 | C58: ='Roll Forward'!C79 -> Major Column (>=9) | E58: =RF!E1768 -> 10884633.13 | F58: 15 | G58: ='Roll Forward'!G79 -> 35 | H58: =RF!E2545 -> 254199.591 | I58: =IF(H58=0,0,IF(IF('Roll Forward'!J79<RegDur,0,'Roll Forward'!J79-RegDur)=0,'Roll Forward'!K79-RegDur,IF('Roll Forward'!J79<RegDur,0,'Roll Forward'!J79-RegDur))) -> 10 | K58: 11701 | L58: =IF(K58+K217-K375 < 0, 0, K58+K217-K375) -> 11649 | M58: 11597 | N58: =IF(M58+M217-M375<0,0,M58+M217-M375) -> 11545 | O58: 11493 | P58: 11441
B59: TRUE | C59: ='Roll Forward'!C80 -> Spare | E59: =RF!E1769 -> 0 | F59: =IF('Roll Forward'!F80<RegDur,0,'Roll Forward'!F80-RegDur) -> 0 | G59: ='Roll Forward'!G80 -> 0 | H59: =RF!E2546 -> 0 | I59: =IF('Roll Forward'!J80<RegDur,0,'Roll Forward'!J80-RegDur) -> 0 | K59: 0 | L59: =K59-K690 -> 0 | M59: =L59-L690 -> 0 | N59: =M59-M690 -> 0 | O59: =N59-N690 -> 0 | P59: =O59-O690 -> 0
B60: TRUE | C60: ='Roll Forward'!C81 -> Spare | E60: =RF!E1770 -> 0 | F60: =IF('Roll Forward'!F81<RegDur,0,'Roll Forward'!F81-RegDur) -> 0 | G60: ='Roll Forward'!G81 -> 0 | H60: =RF!E2547 -> 0 | I60: =IF('Roll Forward'!J81<RegDur,0,'Roll Forward'!J81-RegDur) -> 0 | K60: 0 | L60: 0 | M60: 0 | N60: 0 | O60: 0 | P60: 0
B61: TRUE | C61: ='Roll Forward'!C82 -> Spare | E61: =RF!E1771 -> 0 | F61: =IF('Roll Forward'!F82<RegDur,0,'Roll Forward'!F82-RegDur) -> 0 | G61: ='Roll Forward'!G82 -> 0 | H61: =RF!E2548 -> 0 | I61: =IF('Roll Forward'!J82<RegDur,0,'Roll Forward'!J82-RegDur) -> 0 | K61: 0 | L61: 0 | M61: 0 | N61: 0 | O61: 0 | P61: 0
B62: TRUE | C62: ='Roll Forward'!C83 -> Spare | E62: =RF!E1772 -> 0 | F62: =IF('Roll Forward'!F83<RegDur,0,'Roll Forward'!F83-RegDur) -> 0 | G62: ='Roll Forward'!G83 -> 0 | H62: =RF!E2549 -> 0 | I62: =IF('Roll Forward'!J83<RegDur,0,'Roll Forward'!J83-RegDur) -> 0 | K62: 0 | L62: 0 | M62: 0 | N62: 0 | O62: 0 | P62: 0
B63: TRUE | C63: ='Roll Forward'!C84 -> Spare | E63: =RF!E1773 -> 0 | F63: =IF('Roll Forward'!F84<RegDur,0,'Roll Forward'!F84-RegDur) -> 0 | G63: ='Roll Forward'!G84 -> 0 | H63: =RF!E2550 -> 0 | I63: =IF('Roll Forward'!J84<RegDur,0,'Roll Forward'!J84-RegDur) -> 0 | K63: 0 | L63: 0 | M63: 0 | N63: 0 | O63: 0 | P63: 0
B64: TRUE | C64: ='Roll Forward'!C85 -> Spare | E64: =RF!E1774 -> 0 | F64: =IF('Roll Forward'!F85<RegDur,0,'Roll Forward'!F85-RegDur) -> 0 | G64: ='Roll Forward'!G85 -> 0 | H64: =RF!E2551 -> 0 | I64: =IF('Roll Forward'!J85<RegDur,0,'Roll Forward'!J85-RegDur) -> 0 | K64: 0 | L64: 0 | M64: 0 | N64: 0 | O64: 0 | P64: 0
B65: TRUE | C65: ='Roll Forward'!C86 -> Spare | E65: =RF!E1775 -> 0 | F65: =IF('Roll Forward'!F86<RegDur,0,'Roll Forward'!F86-RegDur) -> 0 | G65: ='Roll Forward'!G86 -> 0 | H65: =RF!E2552 -> 0 | I65: =IF('Roll Forward'!J86<RegDur,0,'Roll Forward'!J86-RegDur) -> 0 | K65: 0 | L65: 0 | M65: 0 | N65: 0 | O65: 0 | P65: 0
B66: TRUE | C66: ='Roll Forward'!C87 -> Spare | E66: =RF!E1776 -> 0 | F66: =IF('Roll Forward'!F87<RegDur,0,'Roll Forward'!F87-RegDur) -> 0 | G66: ='Roll Forward'!G87 -> 0 | H66: =RF!E2553 -> 0 | I66: =IF('Roll Forward'!J87<RegDur,0,'Roll Forward'!J87-RegDur) -> 0 | K66: 0 | L66: 0 | M66: 0 | N66: 0 | O66: 0 | P66: 0
B67: TRUE | C67: ='Roll Forward'!C88 -> Spare | E67: =RF!E1777 -> 0 | F67: =IF('Roll Forward'!F88<RegDur,0,'Roll Forward'!F88-RegDur) -> 0 | G67: ='Roll Forward'!G88 -> 0 | H67: =RF!E2554 -> 0 | I67: =IF('Roll Forward'!J88<RegDur,0,'Roll Forward'!J88-RegDur) -> 0 | K67: 0 | L67: 0 | M67: 0 | N67: 0 | O67: 0 | P67: 0
B68: TRUE | C68: ='Roll Forward'!C89 -> Spare | E68: =RF!E1778 -> 0 | F68: =IF('Roll Forward'!F89<RegDur,0,'Roll Forward'!F89-RegDur) -> 0 | G68: ='Roll Forward'!G89 -> 0 | H68: =RF!E2555 -> 0 | I68: =IF('Roll Forward'!J89<RegDur,0,'Roll Forward'!J89-RegDur) -> 0 | K68: 0 | L68: 0 | M68: 0 | N68: 0 | O68: 0 | P68: 0
B69: TRUE | C69: ='Roll Forward'!C90 -> Spare | E69: =RF!E1779 -> 0 | F69: =IF('Roll Forward'!F90<RegDur,0,'Roll Forward'!F90-RegDur) -> 0 | G69: ='Roll Forward'!G90 -> 0 | H69: =RF!E2556 -> 0 | I69: =IF('Roll Forward'!J90<RegDur,0,'Roll Forward'!J90-RegDur) -> 0 | K69: 0 | L69: 0 | M69: 0 | N69: 0 | O69: 0 | P69: 0
B70: TRUE | C70: ='Roll Forward'!C91 -> Spare | E70: =RF!E1780 -> 0 | F70: =IF('Roll Forward'!F91<RegDur,0,'Roll Forward'!F91-RegDur) -> 0 | G70: ='Roll Forward'!G91 -> 0 | H70: =RF!E2557 -> 0 | I70: =IF('Roll Forward'!J91<RegDur,0,'Roll Forward'!J91-RegDur) -> 0 | K70: 0 | L70: 0 | M70: 0 | N70: 0 | O70: 0 | P70: 0
B71: TRUE | C71: ='Roll Forward'!C92 -> Spare | E71: =RF!E1781 -> 0 | F71: =IF('Roll Forward'!F92<RegDur,0,'Roll Forward'!F92-RegDur) -> 0 | G71: ='Roll Forward'!G92 -> 0 | H71: =RF!E2558 -> 0 | I71: =IF('Roll Forward'!J92<RegDur,0,'Roll Forward'!J92-RegDur) -> 0 | K71: 0 | L71: 0 | M71: 0 | N71: 0 | O71: 0 | P71: 0
B72: TRUE | C72: ='Roll Forward'!C93 -> Spare | E72: =RF!E1782 -> 0 | F72: =IF('Roll Forward'!F93<RegDur,0,'Roll Forward'!F93-RegDur) -> 0 | G72: ='Roll Forward'!G93 -> 0 | H72: =RF!E2559 -> 0 | I72: =IF('Roll Forward'!J93<RegDur,0,'Roll Forward'!J93-RegDur) -> 0 | K72: 0 | L72: 0 | M72: 0 | N72: 0 | O72: 0 | P72: 0
B73: TRUE | C73: ='Roll Forward'!C94 -> Spare | E73: =RF!E1783 -> 0 | F73: =IF('Roll Forward'!F94<RegDur,0,'Roll Forward'!F94-RegDur) -> 0 | G73: ='Roll Forward'!G94 -> 0 | H73: =RF!E2560 -> 0 | I73: =IF('Roll Forward'!J94<RegDur,0,'Roll Forward'!J94-RegDur) -> 0 | K73: 0 | L73: 0 | M73: 0 | N73: 0 | O73: 0 | P73: 0
B74: TRUE | C74: ='Roll Forward'!C95 -> Spare | E74: =RF!E1784 -> 0 | F74: =IF('Roll Forward'!F95<RegDur,0,'Roll Forward'!F95-RegDur) -> 0 | G74: ='Roll Forward'!G95 -> 0 | H74: =RF!E2561 -> 0 | I74: =IF('Roll Forward'!J95<RegDur,0,'Roll Forward'!J95-RegDur) -> 0 | K74: 0 | L74: 0 | M74: 0 | N74: 0 | O74: 0 | P74: 0
B75: TRUE | C75: ='Roll Forward'!C96 -> Spare | E75: =RF!E1785 -> 0 | F75: =IF('Roll Forward'!F96<RegDur,0,'Roll Forward'!F96-RegDur) -> 0 | G75: ='Roll Forward'!G96 -> 0 | H75: =RF!E2562 -> 0 | I75: =IF('Roll Forward'!J96<RegDur,0,'Roll Forward'!J96-RegDur) -> 0 | K75: 0 | L75: 0 | M75: 0 | N75: 0 | O75: 0 | P75: 0
B76: TRUE | C76: ='Roll Forward'!C97 -> Spare | E76: =RF!E1786 -> 0 | F76: =IF('Roll Forward'!F97<RegDur,0,'Roll Forward'!F97-RegDur) -> 0 | G76: ='Roll Forward'!G97 -> 0 | H76: =RF!E2563 -> 0 | I76: =IF('Roll Forward'!J97<RegDur,0,'Roll Forward'!J97-RegDur) -> 0 | K76: 0 | L76: 0 | M76: 0 | N76: 0 | O76: 0 | P76: 0
B77: TRUE | C77: ='Roll Forward'!C98 -> Spare | E77: =RF!E1787 -> 0 | F77: =IF('Roll Forward'!F98<RegDur,0,'Roll Forward'!F98-RegDur) -> 0 | G77: ='Roll Forward'!G98 -> 0 | H77: =RF!E2564 -> 0 | I77: =IF('Roll Forward'!J98<RegDur,0,'Roll Forward'!J98-RegDur) -> 0 | K77: 0 | L77: 0 | M77: 0 | N77: 0 | O77: 0 | P77: 0
B78: TRUE | C78: ='Roll Forward'!C99 -> Spare | E78: =RF!E1788 -> 0 | F78: =IF('Roll Forward'!F99<RegDur,0,'Roll Forward'!F99-RegDur) -> 0 | G78: ='Roll Forward'!G99 -> 0 | H78: =RF!E2565 -> 0 | I78: =IF('Roll Forward'!J99<RegDur,0,'Roll Forward'!J99-RegDur) -> 0 | K78: 0 | L78: 0 | M78: 0 | N78: 0 | O78: 0 | P78: 0
B79: TRUE | C79: ='Roll Forward'!C100 -> Spare | E79: =RF!E1789 -> 0 | F79: =IF('Roll Forward'!F100<RegDur,0,'Roll Forward'!F100-RegDur) -> 0 | G79: ='Roll Forward'!G100 -> 0 | H79: =RF!E2566 -> 0 | I79: =IF('Roll Forward'!J100<RegDur,0,'Roll Forward'!J100-RegDur) -> 0 | K79: 0 | L79: 0 | M79: 0 | N79: 0 | O79: 0 | P79: 0
B80: TRUE | C80: ='Roll Forward'!C101 -> Spare | E80: =RF!E1790 -> 0 | F80: =IF('Roll Forward'!F101<RegDur,0,'Roll Forward'!F101-RegDur) -> 0 | G80: ='Roll Forward'!G101 -> 0 | H80: =RF!E2567 -> 0 | I80: =IF('Roll Forward'!J101<RegDur,0,'Roll Forward'!J101-RegDur) -> 0 | K80: 0 | L80: 0 | M80: 0 | N80: 0 | O80: 0 | P80: 0
B81: TRUE | C81: ='Roll Forward'!C102 -> Spare | E81: =RF!E1791 -> 0 | F81: =IF('Roll Forward'!F102<RegDur,0,'Roll Forward'!F102-RegDur) -> 0 | G81: ='Roll Forward'!G102 -> 0 | H81: =RF!E2568 -> 0 | I81: =IF('Roll Forward'!J102<RegDur,0,'Roll Forward'!J102-RegDur) -> 0 | K81: 0 | L81: 0 | M81: 0 | N81: 0 | O81: 0 | P81: 0
B82: TRUE | C82: ='Roll Forward'!C103 -> Spare | E82: =RF!E1792 -> 0 | F82: =IF('Roll Forward'!F103<RegDur,0,'Roll Forward'!F103-RegDur) -> 0 | G82: ='Roll Forward'!G103 -> 0 | H82: =RF!E2569 -> 0 | I82: =IF('Roll Forward'!J103<RegDur,0,'Roll Forward'!J103-RegDur) -> 0 | K82: 0 | L82: 0 | M82: 0 | N82: 0 | O82: 0 | P82: 0
B83: TRUE | C83: ='Roll Forward'!C104 -> Spare | E83: =RF!E1793 -> 0 | F83: =IF('Roll Forward'!F104<RegDur,0,'Roll Forward'!F104-RegDur) -> 0 | G83: ='Roll Forward'!G104 -> 0 | H83: =RF!E2570 -> 0 | I83: =IF('Roll Forward'!J104<RegDur,0,'Roll Forward'!J104-RegDur) -> 0 | K83: 0 | L83: 0 | M83: 0 | N83: 0 | O83: 0 | P83: 0
B84: TRUE | C84: ='Roll Forward'!C105 -> Spare | E84: =RF!E1794 -> 0 | F84: =IF('Roll Forward'!F105<RegDur,0,'Roll Forward'!F105-RegDur) -> 0 | G84: ='Roll Forward'!G105 -> 0 | H84: =RF!E2571 -> 0 | I84: =IF('Roll Forward'!J105<RegDur,0,'Roll Forward'!J105-RegDur) -> 0 | K84: 0 | L84: 0 | M84: 0 | N84: 0 | O84: 0 | P84: 0
B85: TRUE | C85: ='Roll Forward'!C106 -> Spare | E85: =RF!E1795 -> 0 | F85: =IF('Roll Forward'!F106<RegDur,0,'Roll Forward'!F106-RegDur) -> 0 | G85: ='Roll Forward'!G106 -> 0 | H85: =RF!E2572 -> 0 | I85: =IF('Roll Forward'!J106<RegDur,0,'Roll Forward'!J106-RegDur) -> 0 | K85: 0 | L85: 0 | M85: 0 | N85: 0 | O85: 0 | P85: 0
B86: TRUE | C86: ='Roll Forward'!C107 -> Spare | E86: =RF!E1796 -> 0 | F86: =IF('Roll Forward'!F107<RegDur,0,'Roll Forward'!F107-RegDur) -> 0 | G86: ='Roll Forward'!G107 -> 0 | H86: =RF!E2573 -> 0 | I86: =IF('Roll Forward'!J107<RegDur,0,'Roll Forward'!J107-RegDur) -> 0 | K86: 0 | L86: 0 | M86: 0 | N86: 0 | O86: 0 | P86: 0
B87: =IF(C87="Spare",TRUE,0) -> TRUE | C87: ='Roll Forward'!C108 -> Spare | E87: =RF!E1797 -> 0 | F87: =IF('Roll Forward'!F108<RegDur,0,'Roll Forward'!F108-RegDur) -> 0 | G87: ='Roll Forward'!G108 -> 0 | H87: =RF!E2574 -> 0 | I87: =IF('Roll Forward'!J108<RegDur,0,'Roll Forward'!J108-RegDur) -> 0 | K87: 0 | L87: =K87-K718 -> 0 | M87: =L87-L718 -> 0 | N87: =M87-M718 -> 0 | O87: =N87-N718 -> 0 | P87: =O87-O718 -> 0
B88: TRUE | C88: ='Roll Forward'!C109 -> Spare | E88: =RF!E1798 -> 0 | F88: =IF('Roll Forward'!F109<RegDur,0,'Roll Forward'!F109-RegDur) -> 0 | G88: ='Roll Forward'!G109 -> 0 | H88: =RF!E2575 -> 0 | I88: =IF('Roll Forward'!J109<RegDur,0,'Roll Forward'!J109-RegDur) -> 0 | K88: 0 | L88: 0 | M88: 0 | N88: 0 | O88: 0 | P88: 0
B89: TRUE | C89: ='Roll Forward'!C110 -> Spare | E89: =RF!E1799 -> 0 | F89: =IF('Roll Forward'!F110<RegDur,0,'Roll Forward'!F110-RegDur) -> 0 | G89: ='Roll Forward'!G110 -> 0 | H89: =RF!E2576 -> 0 | I89: =IF('Roll Forward'!J110<RegDur,0,'Roll Forward'!J110-RegDur) -> 0 | K89: 0 | L89: 0 | M89: 0 | N89: 0 | O89: 0 | P89: 0
B90: TRUE | C90: ='Roll Forward'!C111 -> Spare | E90: =RF!E1800 -> 0 | F90: =IF('Roll Forward'!F111<RegDur,0,'Roll Forward'!F111-RegDur) -> 0 | G90: ='Roll Forward'!G111 -> 0 | H90: =RF!E2577 -> 0 | I90: =IF('Roll Forward'!J111<RegDur,0,'Roll Forward'!J111-RegDur) -> 0 | K90: 0 | L90: 0 | M90: 0 | N90: 0 | O90: 0 | P90: 0
B91: TRUE | C91: ='Roll Forward'!C112 -> Spare | E91: =RF!E1801 -> 0 | F91: =IF('Roll Forward'!F112<RegDur,0,'Roll Forward'!F112-RegDur) -> 0 | G91: ='Roll Forward'!G112 -> 0 | H91: =RF!E2578 -> 0 | I91: =IF('Roll Forward'!J112<RegDur,0,'Roll Forward'!J112-RegDur) -> 0 | K91: 0 | L91: 0 | M91: 0 | N91: 0 | O91: 0 | P91: 0
B92: TRUE | C92: ='Roll Forward'!C113 -> Spare | E92: =RF!E1802 -> 0 | F92: =IF('Roll Forward'!F113<RegDur,0,'Roll Forward'!F113-RegDur) -> 0 | G92: ='Roll Forward'!G113 -> 0 | H92: =RF!E2579 -> 0 | I92: =IF('Roll Forward'!J113<RegDur,0,'Roll Forward'!J113-RegDur) -> 0 | K92: 0 | L92: 0 | M92: 0 | N92: 0 | O92: 0 | P92: 0
B93: TRUE | C93: ='Roll Forward'!C114 -> Spare | E93: =RF!E1803 -> 0 | F93: =IF('Roll Forward'!F114<RegDur,0,'Roll Forward'!F114-RegDur) -> 0 | G93: ='Roll Forward'!G114 -> 0 | H93: =RF!E2580 -> 0 | I93: =IF('Roll Forward'!J114<RegDur,0,'Roll Forward'!J114-RegDur) -> 0 | K93: 0 | L93: 0 | M93: 0 | N93: 0 | O93: 0 | P93: 0
B94: TRUE | C94: ='Roll Forward'!C115 -> Spare | E94: =RF!E1804 -> 0 | F94: =IF('Roll Forward'!F115<RegDur,0,'Roll Forward'!F115-RegDur) -> 0 | G94: ='Roll Forward'!G115 -> 0 | H94: =RF!E2581 -> 0 | I94: =IF('Roll Forward'!J115<RegDur,0,'Roll Forward'!J115-RegDur) -> 0 | K94: 0 | L94: 0 | M94: 0 | N94: 0 | O94: 0 | P94: 0
B95: TRUE | C95: ='Roll Forward'!C116 -> Spare | E95: =RF!E1805 -> 0 | F95: =IF('Roll Forward'!F116<RegDur,0,'Roll Forward'!F116-RegDur) -> 0 | G95: ='Roll Forward'!G116 -> 0 | H95: =RF!E2582 -> 0 | I95: =IF('Roll Forward'!J116<RegDur,0,'Roll Forward'!J116-RegDur) -> 0 | K95: 0 | L95: 0 | M95: 0 | N95: 0 | O95: 0 | P95: 0
B96: TRUE | C96: ='Roll Forward'!C117 -> Spare | E96: =RF!E1806 -> 0 | F96: =IF('Roll Forward'!F117<RegDur,0,'Roll Forward'!F117-RegDur) -> 0 | G96: ='Roll Forward'!G117 -> 0 | H96: =RF!E2583 -> 0 | I96: =IF('Roll Forward'!J117<RegDur,0,'Roll Forward'!J117-RegDur) -> 0 | K96: 0 | L96: 0 | M96: 0 | N96: 0 | O96: 0 | P96: 0
B97: TRUE | C97: ='Roll Forward'!C118 -> Spare | E97: =RF!E1807 -> 0 | F97: =IF('Roll Forward'!F118<RegDur,0,'Roll Forward'!F118-RegDur) -> 0 | G97: ='Roll Forward'!G118 -> 0 | H97: =RF!E2584 -> 0 | I97: =IF('Roll Forward'!J118<RegDur,0,'Roll Forward'!J118-RegDur) -> 0 | K97: 0 | L97: 0 | M97: 0 | N97: 0 | O97: 0 | P97: 0
B98: TRUE | C98: ='Roll Forward'!C119 -> Spare | E98: =RF!E1808 -> 0 | F98: =IF('Roll Forward'!F119<RegDur,0,'Roll Forward'!F119-RegDur) -> 0 | G98: ='Roll Forward'!G119 -> 0 | H98: =RF!E2585 -> 0 | I98: =IF('Roll Forward'!J119<RegDur,0,'Roll Forward'!J119-RegDur) -> 0 | K98: 0 | L98: 0 | M98: 0 | N98: 0 | O98: 0 | P98: 0
B99: TRUE | C99: ='Roll Forward'!C120 -> Spare | E99: =RF!E1809 -> 0 | F99: =IF('Roll Forward'!F120<RegDur,0,'Roll Forward'!F120-RegDur) -> 0 | G99: ='Roll Forward'!G120 -> 0 | H99: =RF!E2586 -> 0 | I99: =IF('Roll Forward'!J120<RegDur,0,'Roll Forward'!J120-RegDur) -> 0 | K99: 0 | L99: 0 | M99: 0 | N99: 0 | O99: 0 | P99: 0
B100: TRUE | C100: ='Roll Forward'!C121 -> Spare | E100: =RF!E1810 -> 0 | F100: =IF('Roll Forward'!F121<RegDur,0,'Roll Forward'!F121-RegDur) -> 0 | G100: ='Roll Forward'!G121 -> 0 | H100: =RF!E2587 -> 0 | I100: =IF('Roll Forward'!J121<RegDur,0,'Roll Forward'!J121-RegDur) -> 0 | K100: 0 | L100: 0 | M100: 0 | N100: 0 | O100: 0 | P100: 0
B101: TRUE | C101: ='Roll Forward'!C122 -> Spare | E101: =RF!E1811 -> 0 | F101: =IF('Roll Forward'!F122<RegDur,0,'Roll Forward'!F122-RegDur) -> 0 | G101: ='Roll Forward'!G122 -> 0 | H101: =RF!E2588 -> 0 | I101: =IF('Roll Forward'!J122<RegDur,0,'Roll Forward'!J122-RegDur) -> 0 | K101: 0 | L101: 0 | M101: 0 | N101: 0 | O101: 0 | P101: 0
B102: TRUE | C102: ='Roll Forward'!C123 -> Spare | E102: =RF!E1812 -> 0 | F102: =IF('Roll Forward'!F123<RegDur,0,'Roll Forward'!F123-RegDur) -> 0 | G102: ='Roll Forward'!G123 -> 0 | H102: =RF!E2589 -> 0 | I102: =IF('Roll Forward'!J123<RegDur,0,'Roll Forward'!J123-RegDur) -> 0 | K102: 0 | L102: 0 | M102: 0 | N102: 0 | O102: 0 | P102: 0
B103: TRUE | C103: ='Roll Forward'!C124 -> Spare | E103: =RF!E1813 -> 0 | F103: =IF('Roll Forward'!F124<RegDur,0,'Roll Forward'!F124-RegDur) -> 0 | G103: ='Roll Forward'!G124 -> 0 | H103: =RF!E2590 -> 0 | I103: =IF('Roll Forward'!J124<RegDur,0,'Roll Forward'!J124-RegDur) -> 0 | K103: 0 | L103: 0 | M103: 0 | N103: 0 | O103: 0 | P103: 0
B104: TRUE | C104: ='Roll Forward'!C125 -> Spare | E104: =RF!E1814 -> 0 | F104: =IF('Roll Forward'!F125<RegDur,0,'Roll Forward'!F125-RegDur) -> 0 | G104: ='Roll Forward'!G125 -> 0 | H104: =RF!E2591 -> 0 | I104: =IF('Roll Forward'!J125<RegDur,0,'Roll Forward'!J125-RegDur) -> 0 | K104: 0 | L104: 0 | M104: 0 | N104: 0 | O104: 0 | P104: 0
B105: TRUE | C105: ='Roll Forward'!C126 -> Spare | E105: =RF!E1815 -> 0 | F105: =IF('Roll Forward'!F126<RegDur,0,'Roll Forward'!F126-RegDur) -> 0 | G105: ='Roll Forward'!G126 -> 0 | H105: =RF!E2592 -> 0 | I105: =IF('Roll Forward'!J126<RegDur,0,'Roll Forward'!J126-RegDur) -> 0 | K105: 0 | L105: 0 | M105: 0 | N105: 0 | O105: 0 | P105: 0
B106: TRUE | C106: ='Roll Forward'!C127 -> Spare | E106: =RF!E1816 -> 0 | F106: =IF('Roll Forward'!F127<RegDur,0,'Roll Forward'!F127-RegDur) -> 0 | G106: ='Roll Forward'!G127 -> 0 | H106: =RF!E2593 -> 0 | I106: =IF('Roll Forward'!J127<RegDur,0,'Roll Forward'!J127-RegDur) -> 0 | K106: 0 | L106: 0 | M106: 0 | N106: 0 | O106: 0 | P106: 0
B107: TRUE | C107: ='Roll Forward'!C128 -> Spare | E107: =RF!E1817 -> 0 | F107: =IF('Roll Forward'!F128<RegDur,0,'Roll Forward'!F128-RegDur) -> 0 | G107: ='Roll Forward'!G128 -> 0 | H107: =RF!E2594 -> 0 | I107: =IF('Roll Forward'!J128<RegDur,0,'Roll Forward'!J128-RegDur) -> 0 | K107: 0 | L107: 0 | M107: 0 | N107: 0 | O107: 0 | P107: 0
B108: TRUE | C108: ='Roll Forward'!C129 -> Spare | E108: =RF!E1818 -> 0 | F108: =IF('Roll Forward'!F129<RegDur,0,'Roll Forward'!F129-RegDur) -> 0 | G108: ='Roll Forward'!G129 -> 0 | H108: =RF!E2595 -> 0 | I108: =IF('Roll Forward'!J129<RegDur,0,'Roll Forward'!J129-RegDur) -> 0 | K108: 0 | L108: 0 | M108: 0 | N108: 0 | O108: 0 | P108: 0
B109: TRUE | C109: ='Roll Forward'!C130 -> Spare | E109: =RF!E1819 -> 0 | F109: =IF('Roll Forward'!F130<RegDur,0,'Roll Forward'!F130-RegDur) -> 0 | G109: ='Roll Forward'!G130 -> 0 | H109: =RF!E2596 -> 0 | I109: =IF('Roll Forward'!J130<RegDur,0,'Roll Forward'!J130-RegDur) -> 0 | K109: 0 | L109: 0 | M109: 0 | N109: 0 | O109: 0 | P109: 0
B110: TRUE | C110: ='Roll Forward'!C131 -> Spare | E110: =RF!E1820 -> 0 | F110: =IF('Roll Forward'!F131<RegDur,0,'Roll Forward'!F131-RegDur) -> 0 | G110: ='Roll Forward'!G131 -> 0 | H110: =RF!E2597 -> 0 | I110: =IF('Roll Forward'!J131<RegDur,0,'Roll Forward'!J131-RegDur) -> 0 | K110: 0 | L110: 0 | M110: 0 | N110: 0 | O110: 0 | P110: 0
B111: TRUE | C111: ='Roll Forward'!C132 -> Spare | E111: =RF!E1821 -> 0 | F111: =IF('Roll Forward'!F132<RegDur,0,'Roll Forward'!F132-RegDur) -> 0 | G111: ='Roll Forward'!G132 -> 0 | H111: =RF!E2598 -> 0 | I111: =IF('Roll Forward'!J132<RegDur,0,'Roll Forward'!J132-RegDur) -> 0 | K111: 0 | L111: 0 | M111: 0 | N111: 0 | O111: 0 | P111: 0
B112: TRUE | C112: ='Roll Forward'!C133 -> Spare | E112: =RF!E1822 -> 0 | F112: =IF('Roll Forward'!F133<RegDur,0,'Roll Forward'!F133-RegDur) -> 0 | G112: ='Roll Forward'!G133 -> 0 | H112: =RF!E2599 -> 0 | I112: =IF('Roll Forward'!J133<RegDur,0,'Roll Forward'!J133-RegDur) -> 0 | K112: 0 | L112: 0 | M112: 0 | N112: 0 | O112: 0 | P112: 0
B113: TRUE | C113: ='Roll Forward'!C134 -> Spare | E113: =RF!E1823 -> 0 | F113: =IF('Roll Forward'!F134<RegDur,0,'Roll Forward'!F134-RegDur) -> 0 | G113: ='Roll Forward'!G134 -> 0 | H113: =RF!E2600 -> 0 | I113: =IF('Roll Forward'!J134<RegDur,0,'Roll Forward'!J134-RegDur) -> 0 | K113: 0 | L113: 0 | M113: 0 | N113: 0 | O113: 0 | P113: 0
B114: TRUE | C114: ='Roll Forward'!C135 -> Spare | E114: =RF!E1824 -> 0 | F114: =IF('Roll Forward'!F135<RegDur,0,'Roll Forward'!F135-RegDur) -> 0 | G114: ='Roll Forward'!G135 -> 0 | H114: =RF!E2601 -> 0 | I114: =IF('Roll Forward'!J135<RegDur,0,'Roll Forward'!J135-RegDur) -> 0 | K114: 0 | L114: 0 | M114: 0 | N114: 0 | O114: 0 | P114: 0
B115: TRUE | C115: ='Roll Forward'!C136 -> Spare | E115: =RF!E1825 -> 0 | F115: =IF('Roll Forward'!F136<RegDur,0,'Roll Forward'!F136-RegDur) -> 0 | G115: ='Roll Forward'!G136 -> 0 | H115: =RF!E2602 -> 0 | I115: =IF('Roll Forward'!J136<RegDur,0,'Roll Forward'!J136-RegDur) -> 0 | K115: 0 | L115: 0 | M115: 0 | N115: 0 | O115: 0 | P115: 0
B116: TRUE | C116: ='Roll Forward'!C137 -> Spare | E116: =RF!E1826 -> 0 | F116: =IF('Roll Forward'!F137<RegDur,0,'Roll Forward'!F137-RegDur) -> 0 | G116: ='Roll Forward'!G137 -> 0 | H116: =RF!E2603 -> 0 | I116: =IF('Roll Forward'!J137<RegDur,0,'Roll Forward'!J137-RegDur) -> 0 | K116: 0 | L116: 0 | M116: 0 | N116: 0 | O116: 0 | P116: 0
B117: TRUE | C117: ='Roll Forward'!C138 -> Spare | E117: =RF!E1827 -> 0 | F117: =IF('Roll Forward'!F138<RegDur,0,'Roll Forward'!F138-RegDur) -> 0 | G117: ='Roll Forward'!G138 -> 0 | H117: =RF!E2604 -> 0 | I117: =IF('Roll Forward'!J138<RegDur,0,'Roll Forward'!J138-RegDur) -> 0 | K117: 0 | L117: 0 | M117: 0 | N117: 0 | O117: 0 | P117: 0
B118: TRUE | C118: ='Roll Forward'!C139 -> Spare | E118: =RF!E1828 -> 0 | F118: =IF('Roll Forward'!F139<RegDur,0,'Roll Forward'!F139-RegDur) -> 0 | G118: ='Roll Forward'!G139 -> 0 | H118: =RF!E2605 -> 0 | I118: =IF('Roll Forward'!J139<RegDur,0,'Roll Forward'!J139-RegDur) -> 0 | K118: 0 | L118: 0 | M118: 0 | N118: 0 | O118: 0 | P118: 0
B119: TRUE | C119: ='Roll Forward'!C140 -> Spare | E119: =RF!E1829 -> 0 | F119: =IF('Roll Forward'!F140<RegDur,0,'Roll Forward'!F140-RegDur) -> 0 | G119: ='Roll Forward'!G140 -> 0 | H119: =RF!E2606 -> 0 | I119: =IF('Roll Forward'!J140<RegDur,0,'Roll Forward'!J140-RegDur) -> 0 | K119: 0 | L119: 0 | M119: 0 | N119: 0 | O119: 0 | P119: 0
B120: TRUE | C120: ='Roll Forward'!C141 -> Spare | E120: =RF!E1830 -> 0 | F120: =IF('Roll Forward'!F141<RegDur,0,'Roll Forward'!F141-RegDur) -> 0 | G120: ='Roll Forward'!G141 -> 0 | H120: =RF!E2607 -> 0 | I120: =IF('Roll Forward'!J141<RegDur,0,'Roll Forward'!J141-RegDur) -> 0 | K120: 0 | L120: 0 | M120: 0 | N120: 0 | O120: 0 | P120: 0
B121: TRUE | C121: ='Roll Forward'!C142 -> Spare | E121: =RF!E1831 -> 0 | F121: =IF('Roll Forward'!F142<RegDur,0,'Roll Forward'!F142-RegDur) -> 0 | G121: ='Roll Forward'!G142 -> 0 | H121: =RF!E2608 -> 0 | I121: =IF('Roll Forward'!J142<RegDur,0,'Roll Forward'!J142-RegDur) -> 0 | K121: 0 | L121: 0 | M121: 0 | N121: 0 | O121: 0 | P121: 0
B122: TRUE | C122: ='Roll Forward'!C143 -> Spare | E122: =RF!E1832 -> 0 | F122: =IF('Roll Forward'!F143<RegDur,0,'Roll Forward'!F143-RegDur) -> 0 | G122: ='Roll Forward'!G143 -> 0 | H122: =RF!E2609 -> 0 | I122: =IF('Roll Forward'!J143<RegDur,0,'Roll Forward'!J143-RegDur) -> 0 | K122: 0 | L122: 0 | M122: 0 | N122: 0 | O122: 0 | P122: 0
B123: TRUE | C123: ='Roll Forward'!C144 -> Spare | E123: =RF!E1833 -> 0 | F123: =IF('Roll Forward'!F144<RegDur,0,'Roll Forward'!F144-RegDur) -> 0 | G123: ='Roll Forward'!G144 -> 0 | H123: =RF!E2610 -> 0 | I123: =IF('Roll Forward'!J144<RegDur,0,'Roll Forward'!J144-RegDur) -> 0 | K123: 0 | L123: 0 | M123: 0 | N123: 0 | O123: 0 | P123: 0
B124: TRUE | C124: ='Roll Forward'!C145 -> Spare | E124: =RF!E1834 -> 0 | F124: =IF('Roll Forward'!F145<RegDur,0,'Roll Forward'!F145-RegDur) -> 0 | G124: ='Roll Forward'!G145 -> 0 | H124: =RF!E2611 -> 0 | I124: =IF('Roll Forward'!J145<RegDur,0,'Roll Forward'!J145-RegDur) -> 0 | K124: 0 | L124: 0 | M124: 0 | N124: 0 | O124: 0 | P124: 0
B125: TRUE | C125: ='Roll Forward'!C146 -> Spare | E125: =RF!E1835 -> 0 | F125: =IF('Roll Forward'!F146<RegDur,0,'Roll Forward'!F146-RegDur) -> 0 | G125: ='Roll Forward'!G146 -> 0 | H125: =RF!E2612 -> 0 | I125: =IF('Roll Forward'!J146<RegDur,0,'Roll Forward'!J146-RegDur) -> 0 | K125: 0 | L125: 0 | M125: 0 | N125: 0 | O125: 0 | P125: 0
B126: TRUE | C126: ='Roll Forward'!C147 -> Spare | E126: =RF!E1836 -> 0 | F126: =IF('Roll Forward'!F147<RegDur,0,'Roll Forward'!F147-RegDur) -> 0 | G126: ='Roll Forward'!G147 -> 0 | H126: =RF!E2613 -> 0 | I126: =IF('Roll Forward'!J147<RegDur,0,'Roll Forward'!J147-RegDur) -> 0 | K126: 0 | L126: 0 | M126: 0 | N126: 0 | O126: 0 | P126: 0
B127: TRUE | C127: ='Roll Forward'!C148 -> Spare | E127: =RF!E1837 -> 0 | F127: =IF('Roll Forward'!F148<RegDur,0,'Roll Forward'!F148-RegDur) -> 0 | G127: ='Roll Forward'!G148 -> 0 | H127: =RF!E2614 -> 0 | I127: =IF('Roll Forward'!J148<RegDur,0,'Roll Forward'!J148-RegDur) -> 0 | K127: 0 | L127: 0 | M127: 0 | N127: 0 | O127: 0 | P127: 0
B128: TRUE | C128: ='Roll Forward'!C149 -> Spare | E128: =RF!E1838 -> 0 | F128: =IF('Roll Forward'!F149<RegDur,0,'Roll Forward'!F149-RegDur) -> 0 | G128: ='Roll Forward'!G149 -> 0 | H128: =RF!E2615 -> 0 | I128: =IF('Roll Forward'!J149<RegDur,0,'Roll Forward'!J149-RegDur) -> 0 | K128: 0 | L128: 0 | M128: 0 | N128: 0 | O128: 0 | P128: 0
B129: TRUE | C129: ='Roll Forward'!C150 -> Spare | E129: =RF!E1839 -> 0 | F129: =IF('Roll Forward'!F150<RegDur,0,'Roll Forward'!F150-RegDur) -> 0 | G129: ='Roll Forward'!G150 -> 0 | H129: =RF!E2616 -> 0 | I129: =IF('Roll Forward'!J150<RegDur,0,'Roll Forward'!J150-RegDur) -> 0 | K129: 0 | L129: 0 | M129: 0 | N129: 0 | O129: 0 | P129: 0
B130: TRUE | C130: ='Roll Forward'!C151 -> Spare | E130: =RF!E1840 -> 0 | F130: =IF('Roll Forward'!F151<RegDur,0,'Roll Forward'!F151-RegDur) -> 0 | G130: ='Roll Forward'!G151 -> 0 | H130: =RF!E2617 -> 0 | I130: =IF('Roll Forward'!J151<RegDur,0,'Roll Forward'!J151-RegDur) -> 0 | K130: 0 | L130: 0 | M130: 0 | N130: 0 | O130: 0 | P130: 0
B131: TRUE | C131: ='Roll Forward'!C152 -> Spare | E131: =RF!E1841 -> 0 | F131: =IF('Roll Forward'!F152<RegDur,0,'Roll Forward'!F152-RegDur) -> 0 | G131: ='Roll Forward'!G152 -> 0 | H131: =RF!E2618 -> 0 | I131: =IF('Roll Forward'!J152<RegDur,0,'Roll Forward'!J152-RegDur) -> 0 | K131: 0 | L131: 0 | M131: 0 | N131: 0 | O131: 0 | P131: 0
B132: TRUE | C132: ='Roll Forward'!C153 -> Spare | E132: =RF!E1842 -> 0 | F132: =IF('Roll Forward'!F153<RegDur,0,'Roll Forward'!F153-RegDur) -> 0 | G132: ='Roll Forward'!G153 -> 0 | H132: =RF!E2619 -> 0 | I132: =IF('Roll Forward'!J153<RegDur,0,'Roll Forward'!J153-RegDur) -> 0 | K132: 0 | L132: 0 | M132: 0 | N132: 0 | O132: 0 | P132: 0
B133: TRUE | C133: ='Roll Forward'!C154 -> Spare | E133: =RF!E1843 -> 0 | F133: =IF('Roll Forward'!F154<RegDur,0,'Roll Forward'!F154-RegDur) -> 0 | G133: ='Roll Forward'!G154 -> 0 | H133: =RF!E2620 -> 0 | I133: =IF('Roll Forward'!J154<RegDur,0,'Roll Forward'!J154-RegDur) -> 0 | K133: 0 | L133: 0 | M133: 0 | N133: 0 | O133: 0 | P133: 0
B134: TRUE | C134: ='Roll Forward'!C155 -> Spare | E134: =RF!E1844 -> 0 | F134: =IF('Roll Forward'!F155<RegDur,0,'Roll Forward'!F155-RegDur) -> 0 | G134: ='Roll Forward'!G155 -> 0 | H134: =RF!E2621 -> 0 | I134: =IF('Roll Forward'!J155<RegDur,0,'Roll Forward'!J155-RegDur) -> 0 | K134: 0 | L134: 0 | M134: 0 | N134: 0 | O134: 0 | P134: 0
B135: TRUE | C135: ='Roll Forward'!C156 -> Spare | E135: =RF!E1845 -> 0 | F135: =IF('Roll Forward'!F156<RegDur,0,'Roll Forward'!F156-RegDur) -> 0 | G135: ='Roll Forward'!G156 -> 0 | H135: =RF!E2622 -> 0 | I135: =IF('Roll Forward'!J156<RegDur,0,'Roll Forward'!J156-RegDur) -> 0 | K135: 0 | L135: 0 | M135: 0 | N135: 0 | O135: 0 | P135: 0
B136: TRUE | C136: ='Roll Forward'!C157 -> Spare | E136: =RF!E1846 -> 0 | F136: =IF('Roll Forward'!F157<RegDur,0,'Roll Forward'!F157-RegDur) -> 0 | G136: ='Roll Forward'!G157 -> 0 | H136: =RF!E2623 -> 0 | I136: =IF('Roll Forward'!J157<RegDur,0,'Roll Forward'!J157-RegDur) -> 0 | K136: 0 | L136: 0 | M136: 0 | N136: 0 | O136: 0 | P136: 0
B137: TRUE | C137: ='Roll Forward'!C158 -> Spare | E137: =RF!E1847 -> 0 | F137: =IF('Roll Forward'!F158<RegDur,0,'Roll Forward'!F158-RegDur) -> 0 | G137: ='Roll Forward'!G158 -> 0 | H137: =RF!E2624 -> 0 | I137: =IF('Roll Forward'!J158<RegDur,0,'Roll Forward'!J158-RegDur) -> 0 | K137: 0 | L137: 0 | M137: 0 | N137: 0 | O137: 0 | P137: 0
B138: TRUE | C138: ='Roll Forward'!C159 -> Spare | E138: =RF!E1848 -> 0 | F138: =IF('Roll Forward'!F159<RegDur,0,'Roll Forward'!F159-RegDur) -> 0 | G138: ='Roll Forward'!G159 -> 0 | H138: =RF!E2625 -> 0 | I138: =IF('Roll Forward'!J159<RegDur,0,'Roll Forward'!J159-RegDur) -> 0 | K138: 0 | L138: 0 | M138: 0 | N138: 0 | O138: 0 | P138: 0
B139: TRUE | C139: ='Roll Forward'!C160 -> Spare | E139: =RF!E1849 -> 0 | F139: =IF('Roll Forward'!F160<RegDur,0,'Roll Forward'!F160-RegDur) -> 0 | G139: ='Roll Forward'!G160 -> 0 | H139: =RF!E2626 -> 0 | I139: =IF('Roll Forward'!J160<RegDur,0,'Roll Forward'!J160-RegDur) -> 0 | K139: 0 | L139: 0 | M139: 0 | N139: 0 | O139: 0 | P139: 0
B140: TRUE | C140: ='Roll Forward'!C161 -> Spare | E140: =RF!E1850 -> 0 | F140: =IF('Roll Forward'!F161<RegDur,0,'Roll Forward'!F161-RegDur) -> 0 | G140: ='Roll Forward'!G161 -> 0 | H140: =RF!E2627 -> 0 | I140: =IF('Roll Forward'!J161<RegDur,0,'Roll Forward'!J161-RegDur) -> 0 | K140: 0 | L140: 0 | M140: 0 | N140: 0 | O140: 0 | P140: 0
B141: TRUE | C141: ='Roll Forward'!C162 -> Spare | E141: =RF!E1851 -> 0 | F141: =IF('Roll Forward'!F162<RegDur,0,'Roll Forward'!F162-RegDur) -> 0 | G141: ='Roll Forward'!G162 -> 0 | H141: =RF!E2628 -> 0 | I141: =IF('Roll Forward'!J162<RegDur,0,'Roll Forward'!J162-RegDur) -> 0 | K141: 0 | L141: 0 | M141: 0 | N141: 0 | O141: 0 | P141: 0
B142: TRUE | C142: ='Roll Forward'!C163 -> Spare | E142: =RF!E1852 -> 0 | F142: =IF('Roll Forward'!F163<RegDur,0,'Roll Forward'!F163-RegDur) -> 0 | G142: ='Roll Forward'!G163 -> 0 | H142: =RF!E2629 -> 0 | I142: =IF('Roll Forward'!J163<RegDur,0,'Roll Forward'!J163-RegDur) -> 0 | K142: 0 | L142: 0 | M142: 0 | N142: 0 | O142: 0 | P142: 0
B143: TRUE | C143: ='Roll Forward'!C164 -> Spare | E143: =RF!E1853 -> 0 | F143: =IF('Roll Forward'!F164<RegDur,0,'Roll Forward'!F164-RegDur) -> 0 | G143: ='Roll Forward'!G164 -> 0 | H143: =RF!E2630 -> 0 | I143: =IF('Roll Forward'!J164<RegDur,0,'Roll Forward'!J164-RegDur) -> 0 | K143: 0 | L143: 0 | M143: 0 | N143: 0 | O143: 0 | P143: 0
B144: TRUE | C144: ='Roll Forward'!C165 -> Spare | E144: =RF!E1854 -> 0 | F144: =IF('Roll Forward'!F165<RegDur,0,'Roll Forward'!F165-RegDur) -> 0 | G144: ='Roll Forward'!G165 -> 0 | H144: =RF!E2631 -> 0 | I144: =IF('Roll Forward'!J165<RegDur,0,'Roll Forward'!J165-RegDur) -> 0 | K144: 0 | L144: 0 | M144: 0 | N144: 0 | O144: 0 | P144: 0
B145: TRUE | C145: ='Roll Forward'!C166 -> Spare | E145: =RF!E1855 -> 0 | F145: =IF('Roll Forward'!F166<RegDur,0,'Roll Forward'!F166-RegDur) -> 0 | G145: ='Roll Forward'!G166 -> 0 | H145: =RF!E2632 -> 0 | I145: =IF('Roll Forward'!J166<RegDur,0,'Roll Forward'!J166-RegDur) -> 0 | K145: 0 | L145: 0 | M145: 0 | N145: 0 | O145: 0 | P145: 0
B146: TRUE | C146: ='Roll Forward'!C167 -> Spare | E146: =RF!E1856 -> 0 | F146: =IF('Roll Forward'!F167<RegDur,0,'Roll Forward'!F167-RegDur) -> 0 | G146: ='Roll Forward'!G167 -> 0 | H146: =RF!E2633 -> 0 | I146: =IF('Roll Forward'!J167<RegDur,0,'Roll Forward'!J167-RegDur) -> 0 | K146: 0 | L146: 0 | M146: 0 | N146: 0 | O146: 0 | P146: 0
B147: TRUE | C147: ='Roll Forward'!C168 -> Spare | E147: =RF!E1857 -> 0 | F147: =IF('Roll Forward'!F168<RegDur,0,'Roll Forward'!F168-RegDur) -> 0 | G147: ='Roll Forward'!G168 -> 0 | H147: =RF!E2634 -> 0 | I147: =IF('Roll Forward'!J168<RegDur,0,'Roll Forward'!J168-RegDur) -> 0 | K147: 0 | L147: 0 | M147: 0 | N147: 0 | O147: 0 | P147: 0
B148: TRUE | C148: ='Roll Forward'!C169 -> Spare | E148: =RF!E1858 -> 0 | F148: =IF('Roll Forward'!F169<RegDur,0,'Roll Forward'!F169-RegDur) -> 0 | G148: ='Roll Forward'!G169 -> 0 | H148: =RF!E2635 -> 0 | I148: =IF('Roll Forward'!J169<RegDur,0,'Roll Forward'!J169-RegDur) -> 0 | K148: 0 | L148: 0 | M148: 0 | N148: 0 | O148: 0 | P148: 0
B149: TRUE | C149: ='Roll Forward'!C170 -> Spare | E149: =RF!E1859 -> 0 | F149: =IF('Roll Forward'!F170<RegDur,0,'Roll Forward'!F170-RegDur) -> 0 | G149: ='Roll Forward'!G170 -> 0 | H149: =RF!E2636 -> 0 | I149: =IF('Roll Forward'!J170<RegDur,0,'Roll Forward'!J170-RegDur) -> 0 | K149: 0 | L149: 0 | M149: 0 | N149: 0 | O149: 0 | P149: 0
B150: TRUE | C150: ='Roll Forward'!C171 -> Spare | E150: =RF!E1860 -> 0 | F150: =IF('Roll Forward'!F171<RegDur,0,'Roll Forward'!F171-RegDur) -> 0 | G150: ='Roll Forward'!G171 -> 0 | H150: =RF!E2637 -> 0 | I150: =IF('Roll Forward'!J171<RegDur,0,'Roll Forward'!J171-RegDur) -> 0 | K150: 0 | L150: 0 | M150: 0 | N150: 0 | O150: 0 | P150: 0
B151: =IF(C151="Spare",TRUE,0) -> TRUE | C151: ='Roll Forward'!C172 -> Spare | E151: =RF!E1861 -> 0 | F151: =IF('Roll Forward'!F172<RegDur,0,'Roll Forward'!F172-RegDur) -> 0 | G151: ='Roll Forward'!G172 -> 0 | H151: =RF!E2638 -> 0 | I151: =IF('Roll Forward'!J172<RegDur,0,'Roll Forward'!J172-RegDur) -> 0 | K151: 0 | L151: =K151-K782 -> 0 | M151: =L151-L782 -> 0 | N151: =M151-M782 -> 0 | O151: =N151-N782 -> 0 | P151: =O151-O782 -> 0
B152: TRUE | C152: ='Roll Forward'!C173 -> Spare | E152: =RF!E1862 -> 0 | F152: =IF('Roll Forward'!F173<RegDur,0,'Roll Forward'!F173-RegDur) -> 0 | G152: ='Roll Forward'!G173 -> 0 | H152: =RF!E2639 -> 0 | I152: =IF('Roll Forward'!J173<RegDur,0,'Roll Forward'!J173-RegDur) -> 0 | K152: 0 | L152: 0 | M152: 0 | N152: 0 | O152: 0 | P152: 0
B153: TRUE | C153: ='Roll Forward'!C174 -> Spare | E153: =RF!E1863 -> 0 | F153: =IF('Roll Forward'!F174<RegDur,0,'Roll Forward'!F174-RegDur) -> 0 | G153: ='Roll Forward'!G174 -> 0 | H153: =RF!E2640 -> 0 | I153: =IF('Roll Forward'!J174<RegDur,0,'Roll Forward'!J174-RegDur) -> 0 | K153: 0 | L153: 0 | M153: 0 | N153: 0 | O153: 0 | P153: 0
B154: TRUE | C154: ='Roll Forward'!C175 -> Spare | E154: =RF!E1864 -> 0 | F154: =IF('Roll Forward'!F175<RegDur,0,'Roll Forward'!F175-RegDur) -> 0 | G154: ='Roll Forward'!G175 -> 0 | H154: =RF!E2641 -> 0 | I154: =IF('Roll Forward'!J175<RegDur,0,'Roll Forward'!J175-RegDur) -> 0 | K154: 0 | L154: 0 | M154: 0 | N154: 0 | O154: 0 | P154: 0
B155: TRUE | C155: ='Roll Forward'!C176 -> Spare | E155: =RF!E1865 -> 0 | F155: =IF('Roll Forward'!F176<RegDur,0,'Roll Forward'!F176-RegDur) -> 0 | G155: ='Roll Forward'!G176 -> 0 | H155: =RF!E2642 -> 0 | I155: =IF('Roll Forward'!J176<RegDur,0,'Roll Forward'!J176-RegDur) -> 0 | K155: 0 | L155: 0 | M155: 0 | N155: 0 | O155: 0 | P155: 0
B156: TRUE | C156: ='Roll Forward'!C177 -> Spare | E156: =RF!E1866 -> 0 | F156: =IF('Roll Forward'!F177<RegDur,0,'Roll Forward'!F177-RegDur) -> 0 | G156: ='Roll Forward'!G177 -> 0 | H156: =RF!E2643 -> 0 | I156: =IF('Roll Forward'!J177<RegDur,0,'Roll Forward'!J177-RegDur) -> 0 | K156: 0 | L156: 0 | M156: 0 | N156: 0 | O156: 0 | P156: 0
B157: TRUE | C157: ='Roll Forward'!C178 -> Spare | E157: =RF!E1867 -> 0 | F157: =IF('Roll Forward'!F178<RegDur,0,'Roll Forward'!F178-RegDur) -> 0 | G157: ='Roll Forward'!G178 -> 0 | H157: =RF!E2644 -> 0 | I157: =IF('Roll Forward'!J178<RegDur,0,'Roll Forward'!J178-RegDur) -> 0 | K157: 0 | L157: 0 | M157: 0 | N157: 0 | O157: 0 | P157: 0
B158: TRUE | C158: ='Roll Forward'!C179 -> Spare | E158: =RF!E1868 -> 0 | F158: =IF('Roll Forward'!F179<RegDur,0,'Roll Forward'!F179-RegDur) -> 0 | G158: ='Roll Forward'!G179 -> 0 | H158: =RF!E2645 -> 0 | I158: =IF('Roll Forward'!J179<RegDur,0,'Roll Forward'!J179-RegDur) -> 0 | K158: 0 | L158: 0 | M158: 0 | N158: 0 | O158: 0 | P158: 0
B159: TRUE | C159: ='Roll Forward'!C180 -> Spare | E159: =RF!E1869 -> 0 | F159: =IF('Roll Forward'!F180<RegDur,0,'Roll Forward'!F180-RegDur) -> 0 | G159: ='Roll Forward'!G180 -> 0 | H159: =RF!E2646 -> 0 | I159: =IF('Roll Forward'!J180<RegDur,0,'Roll Forward'!J180-RegDur) -> 0 | K159: 0 | L159: 0 | M159: 0 | N159: 0 | O159: 0 | P159: 0
B160: TRUE | C160: ='Roll Forward'!C181 -> Spare | E160: =RF!E1870 -> 0 | F160: =IF('Roll Forward'!F181<RegDur,0,'Roll Forward'!F181-RegDur) -> 0 | G160: ='Roll Forward'!G181 -> 0 | H160: =RF!E2647 -> 0 | I160: =IF('Roll Forward'!J181<RegDur,0,'Roll Forward'!J181-RegDur) -> 0 | K160: 0 | L160: 0 | M160: 0 | N160: 0 | O160: 0 | P160: 0
B161: TRUE | C161: ='Roll Forward'!C182 -> Spare | E161: =RF!E1871 -> 0 | F161: =IF('Roll Forward'!F182<RegDur,0,'Roll Forward'!F182-RegDur) -> 0 | G161: ='Roll Forward'!G182 -> 0 | H161: =RF!E2648 -> 0 | I161: =IF('Roll Forward'!J182<RegDur,0,'Roll Forward'!J182-RegDur) -> 0 | K161: 0 | L161: 0 | M161: 0 | N161: 0 | O161: 0 | P161: 0
B162: TRUE | C162: ='Roll Forward'!C183 -> Spare | E162: =RF!E1872 -> 0 | F162: =IF('Roll Forward'!F183<RegDur,0,'Roll Forward'!F183-RegDur) -> 0 | G162: ='Roll Forward'!G183 -> 0 | H162: =RF!E2649 -> 0 | I162: =IF('Roll Forward'!J183<RegDur,0,'Roll Forward'!J183-RegDur) -> 0 | K162: 0 | L162: 0 | M162: 0 | N162: 0 | O162: 0 | P162: 0
C163: Total | E163: =SUM(E13:E162) -> 14042093.88 | F163: =SUMPRODUCT(E13:E162,F13:F162)/E163 -> 14.59921363 | H163: =SUM(H13:H162) -> 1927354.557 | I163: =ABS(SUMPRODUCT(H13:H162,I13:I162)/H163) -> 9.143039578 | K163: =SUM(K13:K162) -> 236263 | L163: 225284 | M163: 214311 | N163: 203338 | O163: 193588 | P163: 184369
C165: Net Asset Movements - nominal
C167: Forecast Capital Expenditure - nominal
E169: =TRANSPOSE(List_RegYear) -> 2020 | F169: 2021 | G169: 2022 | H169: 2023 | I169: 2024 | K169: =E169 -> 2020 | L169: =F169 -> 2021 | M169: =G169 -> 2022 | N169: =H169 -> 2023 | O169: =I169 -> 2024
E170: $ | K170: units
C171: Asset Class Name
B172: =IF(C172="Spare",TRUE,0) -> 0 | C172: =C13 -> 1 x 20 W Fluorescent | E172: 0 | F172: 0 | G172: 0 | H172: 0 | I172: 0 | K172: 0 | L172: 0 | M172: 0 | N172: 0 | O172: 0
B173: =IF(C173="Spare",TRUE,0) -> 0 | C173: =C14 -> 2 x 20 W Fluorescent | E173: 0 | F173: 0 | G173: 0 | H173: 0 | I173: 0 | K173: 0 | L173: 0 | M173: 0 | N173: 0 | O173: 0
B174: 0 | C174: 4 x 20 W Fluorescent | E174: 0 | F174: 0 | G174: 0 | H174: 0 | I174: 0 | K174: 0 | L174: 0 | M174: 0 | N174: 0 | O174: 0
B175: 0 | C175: 2 x 14 W Fluorescent | E175: 0 | F175: 0 | G175: 0 | H175: 0 | I175: 0 | K175: 0 | L175: 0 | M175: 0 | N175: 0 | O175: 0
B176: 0 | C176: 2 x 24 W Fluorescent | E176: 0 | F176: 0 | G176: 0 | H176: 0 | I176: 0 | K176: 0 | L176: 0 | M176: 0 | N176: 0 | O176: 0
B177: 0 | C177: 1 x 40 W Fluorescent | E177: 0 | F177: 0 | G177: 0 | H177: 0 | I177: 0 | K177: 0 | L177: 0 | M177: 0 | N177: 0 | O177: 0
B178: 0 | C178: 2 x 40 W Fluorescent | E178: 0 | F178: 0 | G178: 0 | H178: 0 | I178: 0 | K178: 0 | L178: 0 | M178: 0 | N178: 0 | O178: 0
B179: 0 | C179: 1 x 42 W Fluorescent | E179: 0 | F179: 0 | G179: 0 | H179: 0 | I179: 0 | K179: 0 | L179: 0 | M179: 0 | N179: 0 | O179: 0
B180: 0 | C180: 50W Mercury | E180: 0 | F180: 0 | G180: 0 | H180: 0 | I180: 0 | K180: 0 | L180: 0 | M180: 0 | N180: 0 | O180: 0
B181: 0 | C181: 80W Mercury | E181: 0 | F181: 0 | G181: 0 | H181: 0 | I181: 0 | K181: 0 | L181: 0 | M181: 0 | N181: 0 | O181: 0
B182: 0 | C182: 125W Mercury | E182: 0 | F182: 0 | G182: 0 | H182: 0 | I182: 0 | K182: 0 | L182: 0 | M182: 0 | N182: 0 | O182: 0
B183: 0 | C183: 250W Mercury | E183: 0 | F183: 0 | G183: 0 | H183: 0 | I183: 0 | K183: 0 | L183: 0 | M183: 0 | N183: 0 | O183: 0
B184: 0 | C184: 2 x 250W Mercury | E184: 0 | F184: 0 | G184: 0 | H184: 0 | I184: 0 | K184: 0 | L184: 0 | M184: 0 | N184: 0 | O184: 0
B185: 0 | C185: 400 W Mercury | E185: 0 | F185: 0 | G185: 0 | H185: 0 | I185: 0 | K185: 0 | L185: 0 | M185: 0 | N185: 0 | O185: 0
B186: 0 | C186: 700 W Mercury | E186: 0 | F186: 0 | G186: 0 | H186: 0 | I186: 0 | K186: 0 | L186: 0 | M186: 0 | N186: 0 | O186: 0
B187: 0 | C187: 50W Sodium | E187: 0 | F187: 0 | G187: 0 | H187: 0 | I187: 0 | K187: 0 | L187: 0 | M187: 0 | N187: 0 | O187: 0
B188: 0 | C188: 70W Sodium | E188: 0 | F188: 0 | G188: 0 | H188: 0 | I188: 0 | K188: 0 | L188: 0 | M188: 0 | N188: 0 | O188: 0
B189: 0 | C189: 90W Sodium | E189: 0 | F189: 0 | G189: 0 | H189: 0 | I189: 0 | K189: 0 | L189: 0 | M189: 0 | N189: 0 | O189: 0
B190: 0 | C190: 100W Sodium | E190: 0 | F190: 0 | G190: 0 | H190: 0 | I190: 0 | K190: 0 | L190: 0 | M190: 0 | N190: 0 | O190: 0
B191: 0 | C191: 120W Sodium | E191: 0 | F191: 0 | G191: 0 | H191: 0 | I191: 0 | K191: 0 | L191: 0 | M191: 0 | N191: 0 | O191: 0
B192: 0 | C192: 150W Sodium | E192: 0 | F192: 0 | G192: 0 | H192: 0 | I192: 0 | K192: 0 | L192: 0 | M192: 0 | N192: 0 | O192: 0
B193: 0 | C193: 250W Sodium | E193: 0 | F193: 0 | G193: 0 | H193: 0 | I193: 0 | K193: 0 | L193: 0 | M193: 0 | N193: 0 | O193: 0
B194: 0 | C194: 2 x 250W Sodium | E194: 0 | F194: 0 | G194: 0 | H194: 0 | I194: 0 | K194: 0 | L194: 0 | M194: 0 | N194: 0 | O194: 0
B195: 0 | C195: 310W Sodium | E195: 0 | F195: 0 | G195: 0 | H195: 0 | I195: 0 | K195: 0 | L195: 0 | M195: 0 | N195: 0 | O195: 0
B196: 0 | C196: 400 W Sodium | E196: 0 | F196: 0 | G196: 0 | H196: 0 | I196: 0 | K196: 0 | L196: 0 | M196: 0 | N196: 0 | O196: 0
B197: 0 | C197: 2 x 400 W Sodium | E197: 0 | F197: 0 | G197: 0 | H197: 0 | I197: 0 | K197: 0 | L197: 0 | M197: 0 | N197: 0 | O197: 0
B198: 0 | C198: 4 x 600W Sodium | E198: 0 | F198: 0 | G198: 0 | H198: 0 | I198: 0 | K198: 0 | L198: 0 | M198: 0 | N198: 0 | O198: 0
B199: 0 | C199: 60 W Incandescent | E199: 0 | F199: 0 | G199: 0 | H199: 0 | I199: 0 | K199: 0 | L199: 0 | M199: 0 | N199: 0 | O199: 0
B200: 0 | C200: 100 W Incandescent | E200: 0 | F200: 0 | G200: 0 | H200: 0 | I200: 0 | K200: 0 | L200: 0 | M200: 0 | N200: 0 | O200: 0
B201: 0 | C201: 500 W Incandescent | E201: 0 | F201: 0 | G201: 0 | H201: 0 | I201: 0 | K201: 0 | L201: 0 | M201: 0 | N201: 0 | O201: 0
B202: 0 | C202: 1000 W Incandescent | E202: 0 | F202: 0 | G202: 0 | H202: 0 | I202: 0 | K202: 0 | L202: 0 | M202: 0 | N202: 0 | O202: 0
B203: 0 | C203: 1500 W Incandescent | E203: 0 | F203: 0 | G203: 0 | H203: 0 | I203: 0 | K203: 0 | L203: 0 | M203: 0 | N203: 0 | O203: 0
B204: 0 | C204: 100 W Metal Halide | E204: 0 | F204: 0 | G204: 0 | H204: 0 | I204: 0 | K204: 0 | L204: 0 | M204: 0 | N204: 0 | O204: 0
B205: 0 | C205: 150 W Metal Halide | E205: 0 | F205: 0 | G205: 0 | H205: 0 | I205: 0 | K205: 0 | L205: 0 | M205: 0 | N205: 0 | O205: 0
B206: 0 | C206: 250 W Metal Halide | E206: 0 | F206: 0 | G206: 0 | H206: 0 | I206: 0 | K206: 0 | L206: 0 | M206: 0 | N206: 0 | O206: 0
B207: 0 | C207: 2 x 250 W Metal Halide | E207: 0 | F207: 0 | G207: 0 | H207: 0 | I207: 0 | K207: 0 | L207: 0 | M207: 0 | N207: 0 | O207: 0
... 736 more rows

Sheet Tariff Smoothing - real
C4: Capital | R4: Opex
E6: NPV | L6: Smoothed Tariffs | T6: NPV | AA6: Smoothed Tariffs
E7: =REG_Timing!K4 -> 2020 | F7: =REG_Timing!L4 -> 2021 | G7: =REG_Timing!M4 -> 2022 | H7: =REG_Timing!N4 -> 2023 | I7: =REG_Timing!O4 -> 2024 | J7: Total | L7: =REG_Timing!K4 -> 2020 | M7: =REG_Timing!L4 -> 2021 | N7: =REG_Timing!M4 -> 2022 | O7: =REG_Timing!N4 -> 2023 | P7: =REG_Timing!O4 -> 2024 | T7: =E7 -> 2020 | U7: 2021 | V7: 2022 | W7: 2023 | X7: 2024 | Y7: Total | AA7: =L7 -> 2020 | AB7: =M7 -> 2021 | AC7: =N7 -> 2022 | AD7: =O7 -> 2023 | AE7: =P7 -> 2024
C8: =Global!C75 -> Real vanilla WACC | E8: =Global!F$75 -> 0.0352195122 | F8: =Global!G$75 -> 0.0352195122 | G8: =Global!H$75 -> 0.0352195122 | H8: =Global!I$75 -> 0.0352195122 | I8: =Global!J$75 -> 0.0352195122 | R8: =C8 -> Real vanilla WACC | T8: 0.0352195122 | U8: 0.0352195122 | V8: 0.0352195122 | W8: 0.0352195122 | X8: 0.0352195122
C9: Discount factor | D9: 1 | E9: =D9*(1-E8) -> 0.9647804878 | F9: =E9*(1-F8) -> 0.9308013896 | G9: =F9*(1-G8) -> 0.8980190188 | H9: =G9*(1-H8) -> 0.866391227 | I9: =H9*(1-I8) -> 0.8358773506 | R9: =C9 -> Discount factor | S9: 1 | T9: =S9*(1-T8) -> 0.9647804878 | U9: =T9*(1-U8) -> 0.9308013896 | V9: =U9*(1-V8) -> 0.8980190188 | W9: =V9*(1-W8) -> 0.866391227 | X9: =W9*(1-X8) -> 0.8358773506
B11: =IF(C11="Spare",TRUE,0) -> 0 | C11: =RAB!C13 -> 1 x 20 W Fluorescent | E11: =Output!E11/E$9 -> 0.6762409873 | F11: =Output!F11/F$9 -> 0.684970784 | G11: =Output!G11/G$9 -> 0.6934367677 | H11: =Output!H11/H$9 -> 0.7016080436 | I11: =Output!I11/I$9 -> 0.709451813 | J11: =SUM(E11:I11) -> 3.465708396 | L11: =$J11/RegDur -> 0.6931416791 | M11: 0.6931416791 | N11: 0.6931416791 | O11: 0.6931416791 | P11: 0.6931416791 | R11: =C11 -> 1 x 20 W Fluorescent | T11: =Output!L11*T$9 -> 48.51836116 | U11: =Output!M11*U$9 -> 46.80956814 | V11: =Output!N11*V$9 -> 45.16095799 | W11: =Output!O11*W$9 -> 43.57041108 | X11: =Output!P11*X$9 -> 42.03588245 | Y11: =SUM(T11:X11) -> 226.0951808 | AA11: =$Y11/RegDur -> 45.21903616 | AB11: 45.21903616 | AC11: 45.21903616 | AD11: 45.21903616 | AE11: 45.21903616
B12: 0 | C12: =RAB!C14 -> 2 x 20 W Fluorescent | E12: =Output!E12/E$9 -> 0 | F12: =Output!F12/F$9 -> 0 | G12: =Output!G12/G$9 -> 0 | H12: =Output!H12/H$9 -> 0 | I12: =Output!I12/I$9 -> 0 | J12: =SUM(E12:I12) -> 0 | L12: 0 | M12: 0 | N12: 0 | O12: 0 | P12: 0 | R12: 2 x 20 W Fluorescent | T12: =Output!L12*T$9 -> 51.79861481 | U12: =Output!M12*U$9 -> 49.97429287 | V12: =Output!N12*V$9 -> 48.21422265 | W12: =Output!O12*W$9 -> 46.51614125 | X12: =Output!P12*X$9 -> 44.87786544 | Y12: =SUM(T12:X12) -> 241.381137 | AA12: 48.2762274 | AB12: 48.2762274 | AC12: 48.2762274 | AD12: 48.2762274 | AE12: 48.2762274
B13: 0 | C13: =RAB!C15 -> 4 x 20 W Fluorescent | E13: =Output!E13/E$9 -> 0 | F13: =Output!F13/F$9 -> 0 | G13: =Output!G13/G$9 -> 0 | H13: =Output!H13/H$9 -> 0 | I13: =Output!I13/I$9 -> 0 | J13: 0 | L13: 0 | M13: 0 | N13: 0 | O13: 0 | P13: 0 | R13: 4 x 20 W Fluorescent | T13: =Output!L13*T$9 -> 0 | U13: =Output!M13*U$9 -> 0 | V13: =Output!N13*V$9 -> 0 | W13: =Output!O13*W$9 -> 0 | X13: =Output!P13*X$9 -> 0 | Y13: 0 | AA13: 0 | AB13: 0 | AC13: 0 | AD13: 0 | AE13: 0
B14: 0 | C14: =RAB!C16 -> 2 x 14 W Fluorescent | E14: =Output!E14/E$9 -> 10.82698215 | F14: =Output!F14/F$9 -> 10.74857144 | G14: =Output!G14/G$9 -> 10.6584962 | H14: =Output!H14/H$9 -> 8.559408708 | I14: =Output!I14/I$9 -> 8.459329569 | J14: 49.25278808 | L14: 9.850557615 | M14: 9.850557615 | N14: 9.850557615 | O14: 9.850557615 | P14: 9.850557615 | R14: 2 x 14 W Fluorescent | T14: =Output!L14*T$9 -> 48.51836116 | U14: =Output!M14*U$9 -> 46.80956814 | V14: =Output!N14*V$9 -> 45.16095799 | W14: =Output!O14*W$9 -> 43.57041108 | X14: =Output!P14*X$9 -> 42.03588245 | Y14: 226.0951808 | AA14: 45.21903616 | AB14: 45.21903616 | AC14: 45.21903616 | AD14: 45.21903616 | AE14: 45.21903616
B15: 0 | C15: =RAB!C17 -> 2 x 24 W Fluorescent | E15: =Output!E15/E$9 -> 4.914346912 | F15: =Output!F15/F$9 -> 4.965563204 | G15: =Output!G15/G$9 -> 5.013969812 | H15: =Output!H15/H$9 -> 5.059293347 | I15: =Output!I15/I$9 -> 5.101244204 | J15: 25.05441748 | L15: 5.010883495 | M15: 5.010883495 | N15: 5.010883495 | O15: 5.010883495 | P15: 5.010883495 | R15: 2 x 24 W Fluorescent | T15: =Output!L15*T$9 -> 48.51836116 | U15: =Output!M15*U$9 -> 46.80956814 | V15: =Output!N15*V$9 -> 45.16095799 | W15: =Output!O15*W$9 -> 43.57041108 | X15: =Output!P15*X$9 -> 42.03588245 | Y15: 226.0951808 | AA15: 45.21903616 | AB15: 45.21903616 | AC15: 45.21903616 | AD15: 45.21903616 | AE15: 45.21903616
B16: 0 | C16: =RAB!C18 -> 1 x 40 W Fluorescent | E16: =Output!E16/E$9 -> 1.531472451 | F16: =Output!F16/F$9 -> 1.547325462 | G16: =Output!G16/G$9 -> 1.562295023 | H16: =Output!H16/H$9 -> 1.576295504 | I16: =Output!I16/I$9 -> 1.589236205 | J16: 7.806624644 | L16: 1.561324929 | M16: 1.561324929 | N16: 1.561324929 | O16: 1.561324929 | P16: 1.561324929 | R16: 1 x 40 W Fluorescent | T16: =Output!L16*T$9 -> 50.30320506 | U16: =Output!M16*U$9 -> 48.53155071 | V16: =Output!N16*V$9 -> 46.82229317 | W16: =Output!O16*W$9 -> 45.17323485 | X16: =Output!P16*X$9 -> 43.58225555 | Y16: 234.4125393 | AA16: 46.88250787 | AB16: 46.88250787 | AC16: 46.88250787 | AD16: 46.88250787 | AE16: 46.88250787
B17: 0 | C17: =RAB!C19 -> 2 x 40 W Fluorescent | E17: =Output!E17/E$9 -> 0 | F17: =Output!F17/F$9 -> 0 | G17: =Output!G17/G$9 -> 0 | H17: =Output!H17/H$9 -> 0 | I17: =Output!I17/I$9 -> 0 | J17: 0 | L17: 0 | M17: 0 | N17: 0 | O17: 0 | P17: 0 | R17: 2 x 40 W Fluorescent | T17: =Output!L17*T$9 -> 55.36830262 | U17: =Output!M17*U$9 -> 53.41825801 | V17: =Output!N17*V$9 -> 51.53689302 | W17: =Output!O17*W$9 -> 49.72178879 | X17: =Output!P17*X$9 -> 47.97061164 | Y17: 258.0158541 | AA17: 51.60317082 | AB17: 51.60317082 | AC17: 51.60317082 | AD17: 51.60317082 | AE17: 51.60317082
B18: 0 | C18: =RAB!C20 -> 1 x 42 W Fluorescent | E18: =Output!E18/E$9 -> 0 | F18: =Output!F18/F$9 -> 0 | G18: =Output!G18/G$9 -> 0 | H18: =Output!H18/H$9 -> 0 | I18: =Output!I18/I$9 -> 0 | J18: 0 | L18: 0 | M18: 0 | N18: 0 | O18: 0 | P18: 0 | R18: 1 x 42 W Fluorescent | T18: =Output!L18*T$9 -> 50.30320506 | U18: =Output!M18*U$9 -> 48.53155071 | V18: =Output!N18*V$9 -> 46.82229317 | W18: =Output!O18*W$9 -> 45.17323485 | X18: =Output!P18*X$9 -> 43.58225555 | Y18: 234.4125393 | AA18: 46.88250787 | AB18: 46.88250787 | AC18: 46.88250787 | AD18: 46.88250787 | AE18: 46.88250787
B19: 0 | C19: =RAB!C21 -> 50W Mercury | E19: =Output!E19/E$9 -> 0.3489042456 | F19: =Output!F19/F$9 -> 0.3518247408 | G19: =Output!G19/G$9 -> 0.3544935021 | H19: =Output!H19/H$9 -> 0.3568882586 | I19: =Output!I19/I$9 -> 0.3589854485 | J19: 1.771096196 | L19: 0.3542192391 | M19: 0.3542192391 | N19: 0.3542192391 | O19: 0.3542192391 | P19: 0.3542192391 | R19: 50W Mercury | T19: =Output!L19*T$9 -> 51.60565872 | U19: =Output!M19*U$9 -> 49.78813259 | V19: =Output!N19*V$9 -> 48.03461885 | W19: =Output!O19*W$9 -> 46.342863 | X19: =Output!P19*X$9 -> 44.71068997 | Y19: 240.4819631 | AA19: 48.09639263 | AB19: 48.09639263 | AC19: 48.09639263 | AD19: 48.09639263 | AE19: 48.09639263
B20: 0 | C20: =RAB!C22 -> 80W Mercury | E20: =Output!E20/E$9 -> 0.2135565023 | F20: =Output!F20/F$9 -> 0.1735182008 | G20: =Output!G20/G$9 -> 0.1321042543 | H20: =Output!H20/H$9 -> 0.08928814787 | I20: =Output!I20/I$9 -> 0.06150972401 | J20: 0.6699768292 | L20: 0.1339953658 | M20: 0.1339953658 | N20: 0.1339953658 | O20: 0.1339953658 | P20: 0.1339953658 | R20: 80W Mercury | T20: =Output!L20*T$9 -> 49.0007514 | U20: =Output!M20*U$9 -> 47.27496884 | V20: =Output!N20*V$9 -> 45.6099675 | W20: =Output!O20*W$9 -> 44.00360669 | X20: =Output!P20*X$9 -> 42.45382113 | Y20: 228.3431155 | AA20: 45.66862311 | AB20: 45.66862311 | AC20: 45.66862311 | AD20: 45.66862311 | AE20: 45.66862311
B21: 0 | C21: =RAB!C23 -> 125W Mercury | E21: =Output!E21/E$9 -> 0.4305238509 | F21: =Output!F21/F$9 -> 0.4304880069 | G21: =Output!G21/G$9 -> 0.4298758168 | H21: =Output!H21/H$9 -> 0.4286452492 | I21: =Output!I21/I$9 -> 0.4267519719 | J21: 2.146284896 | L21: =$J21/RegDur -> 0.4292569791 | M21: 0.4292569791 | N21: 0.4292569791 | O21: 0.4292569791 | P21: 0.4292569791 | R21: 125W Mercury | T21: =Output!L21*T$9 -> 49.0007514 | U21: =Output!M21*U$9 -> 47.27496884 | V21: =Output!N21*V$9 -> 45.6099675 | W21: =Output!O21*W$9 -> 44.00360669 | X21: =Output!P21*X$9 -> 42.45382113 | Y21: 228.3431155 | AA21: =$Y21/RegDur -> 45.66862311 | AB21: 45.66862311 | AC21: 45.66862311 | AD21: 45.66862311 | AE21: 45.66862311
B22: 0 | C22: =RAB!C24 -> 250W Mercury | E22: =Output!E22/E$9 -> 0.570185641 | F22: =Output!F22/F$9 -> 0.5516448091 | G22: =Output!G22/G$9 -> 0.5318668635 | H22: =Output!H22/H$9 -> 0.5107960274 | I22: =Output!I22/I$9 -> 0.4971864366 | J22: 2.661679778 | L22: 0.5323359555 | M22: 0.5323359555 | N22: 0.5323359555 | O22: 0.5323359555 | P22: 0.5323359555 | R22: 250W Mercury | T22: =Output!L22*T$9 -> 49.0007514 | U22: =Output!M22*U$9 -> 47.27496884 | V22: =Output!N22*V$9 -> 45.6099675 | W22: =Output!O22*W$9 -> 44.00360669 | X22: =Output!P22*X$9 -> 42.45382113 | Y22: 228.3431155 | AA22: 45.66862311 | AB22: 45.66862311 | AC22: 45.66862311 | AD22: 45.66862311 | AE22: 45.66862311
B23: 0 | C23: =RAB!C25 -> 2 x 250W Mercury | E23: =Output!E23/E$9 -> 40.61905209 | F23: =Output!F23/F$9 -> 41.03710662 | G23: =Output!G23/G$9 -> 41.4315533 | H23: =Output!H23/H$9 -> 41.80011141 | I23: =Output!I23/I$9 -> 42.14036516 | J23: 207.0281886 | L23: 41.40563772 | M23: 41.40563772 | N23: 41.40563772 | O23: 41.40563772 | P23: 41.40563772 | R23: 2 x 250W Mercury | T23: =Output!L23*T$9 -> 52.7633953 | U23: =Output!M23*U$9 -> 50.90509426 | V23: =Output!N23*V$9 -> 49.11224167 | W23: =Output!O23*W$9 -> 47.38253247 | X23: =Output!P23*X$9 -> 45.71374279 | Y23: 245.8770065 | AA23: 49.1754013 | AB23: 49.1754013 | AC23: 49.1754013 | AD23: 49.1754013 | AE23: 49.1754013
B24: 0 | C24: =RAB!C26 -> 400 W Mercury | E24: =Output!E24/E$9 -> 0.8096122471 | F24: =Output!F24/F$9 -> 0.5876907459 | G24: =Output!G24/G$9 -> 0.4722755189 | H24: =Output!H24/H$9 -> 0.3710655036 | I24: =Output!I24/I$9 -> 0.2648312366 | J24: 2.505475252 | L24: 0.5010950504 | M24: 0.5010950504 | N24: 0.5010950504 | O24: 0.5010950504 | P24: 0.5010950504 | R24: 400 W Mercury | T24: =Output!L24*T$9 -> 49.0007514 | U24: =Output!M24*U$9 -> 47.27496884 | V24: =Output!N24*V$9 -> 45.6099675 | W24: =Output!O24*W$9 -> 44.00360669 | X24: =Output!P24*X$9 -> 42.45382113 | Y24: 228.3431155 | AA24: 45.66862311 | AB24: 45.66862311 | AC24: 45.66862311 | AD24: 45.66862311 | AE24: 45.66862311
B25: 0 | C25: =RAB!C27 -> 700 W Mercury | E25: =Output!E25/E$9 -> 0 | F25: =Output!F25/F$9 -> 0 | G25: =Output!G25/G$9 -> 0 | H25: =Output!H25/H$9 -> 0 | I25: =Output!I25/I$9 -> 0 | J25: 0 | L25: 0 | M25: 0 | N25: 0 | O25: 0 | P25: 0 | R25: 700 W Mercury | T25: =Output!L25*T$9 -> 0 | U25: =Output!M25*U$9 -> 0 | V25: =Output!N25*V$9 -> 0 | W25: =Output!O25*W$9 -> 0 | X25: =Output!P25*X$9 -> 0 | Y25: 0 | AA25: 0 | AB25: 0 | AC25: 0 | AD25: 0 | AE25: 0
B26: 0 | C26: =RAB!C28 -> 50W Sodium | E26: =Output!E26/E$9 -> 7.175043058 | F26: =Output!F26/F$9 -> 7.248889173 | G26: =Output!G26/G$9 -> 7.318565145 | H26: =Output!H26/H$9 -> 7.3836681 | I26: =Output!I26/I$9 -> 7.443771308 | J26: 36.56993678 | L26: 7.313987357 | M26: 7.313987357 | N26: 7.313987357 | O26: 7.313987357 | P26: 7.313987357 | R26: 50W Sodium | T26: =Output!L26*T$9 -> 53.84394945 | U26: =Output!M26*U$9 -> 51.94759181 | V26: =Output!N26*V$9 -> 50.11802297 | W26: =Output!O26*W$9 -> 48.35289065 | X26: =Output!P26*X$9 -> 46.64992543 | Y26: 250.9123803 | AA26: 50.18247606 | AB26: 50.18247606 | AC26: 50.18247606 | AD26: 50.18247606 | AE26: 50.18247606
B27: 0 | C27: =RAB!C29 -> 70W Sodium | E27: =Output!E27/E$9 -> 1.261831271 | F27: =Output!F27/F$9 -> 1.274902247 | G27: =Output!G27/G$9 -> 1.287245986 | H27: =Output!H27/H$9 -> 1.298791973 | I27: =Output!I27/I$9 -> 1.309465515 | J27: 6.432236993 | L27: 1.286447399 | M27: 1.286447399 | N27: 1.286447399 | O27: 1.286447399 | P27: 1.286447399 | R27: 70W Sodium | T27: =Output!L27*T$9 -> 53.84394945 | U27: =Output!M27*U$9 -> 51.94759181 | V27: =Output!N27*V$9 -> 50.11802297 | W27: =Output!O27*W$9 -> 48.35289065 | X27: =Output!P27*X$9 -> 46.64992543 | Y27: 250.9123803 | AA27: 50.18247606 | AB27: 50.18247606 | AC27: 50.18247606 | AD27: 50.18247606 | AE27: 50.18247606
B28: 0 | C28: =RAB!C30 -> 90W Sodium | E28: =Output!E28/E$9 -> 0 | F28: =Output!F28/F$9 -> 0 | G28: =Output!G28/G$9 -> 0 | H28: =Output!H28/H$9 -> 0 | I28: =Output!I28/I$9 -> 0 | J28: 0 | L28: 0 | M28: 0 | N28: 0 | O28: 0 | P28: 0 | R28: 90W Sodium | T28: =Output!L28*T$9 -> 57.58729774 | U28: =Output!M28*U$9 -> 55.55910121 | V28: =Output!N28*V$9 -> 53.60233676 | W28: =Output!O28*W$9 -> 51.71448861 | X28: =Output!P28*X$9 -> 49.89312955 | Y28: 268.3563539 | AA28: 53.67127077 | AB28: 53.67127077 | AC28: 53.67127077 | AD28: 53.67127077 | AE28: 53.67127077
B29: 0 | C29: =RAB!C31 -> 100W Sodium | E29: =Output!E29/E$9 -> 1.879709905 | F29: =Output!F29/F$9 -> 1.905959365 | G29: =Output!G29/G$9 -> 1.931620351 | H29: =Output!H29/H$9 -> 1.956614916 | I29: =Output!I29/I$9 -> 1.98086021 | J29: 9.654764747 | L29: 1.930952949 | M29: 1.930952949 | N29: 1.930952949 | O29: 1.930952949 | P29: 1.930952949 | R29: 100W Sodium | T29: =Output!L29*T$9 -> 57.58729774 | U29: =Output!M29*U$9 -> 55.55910121 | V29: =Output!N29*V$9 -> 53.60233676 | W29: =Output!O29*W$9 -> 51.71448861 | X29: =Output!P29*X$9 -> 49.89312955 | Y29: 268.3563539 | AA29: 53.67127077 | AB29: 53.67127077 | AC29: 53.67127077 | AD29: 53.67127077 | AE29: 53.67127077
B30: 0 | C30: =RAB!C32 -> 120W Sodium | E30: =Output!E30/E$9 -> 0.9648099312 | F30: =Output!F30/F$9 -> 0.9750317116 | G30: =Output!G30/G$9 -> 0.9847140535 | H30: =Output!H30/H$9 -> 0.9938039506 | I30: =Output!I30/I$9 -> 1.002245245 | J30: 4.920604892 | L30: 0.9841209784 | M30: 0.9841209784 | N30: 0.9841209784 | O30: 0.9841209784 | P30: 0.9841209784 | R30: 120W Sodium | T30: =Output!L30*T$9 -> 53.67993676 | U30: =Output!M30*U$9 -> 51.78935558 | V30: =Output!N30*V$9 -> 49.96535974 | W30: =Output!O30*W$9 -> 48.20560414 | X30: =Output!P30*X$9 -> 46.50782628 | Y30: 250.1480825 | AA30: 50.0296165 | AB30: 50.0296165 | AC30: 50.0296165 | AD30: 50.0296165 | AE30: 50.0296165
B31: 0 | C31: =RAB!C33 -> 150W Sodium | E31: =Output!E31/E$9 -> 2.756253036 | F31: =Output!F31/F$9 -> 2.708093325 | G31: =Output!G31/G$9 -> 2.655099152 | H31: =Output!H31/H$9 -> 2.597008161 | I31: =Output!I31/I$9 -> 2.533545582 | J31: 13.24999926 | L31: =$J31/RegDur -> 2.649999851 | M31: 2.649999851 | N31: 2.649999851 | O31: 2.649999851 | P31: 2.649999851 | R31: 150W Sodium | T31: =Output!L31*T$9 -> 53.67993676 | U31: =Output!M31*U$9 -> 51.78935558 | V31: =Output!N31*V$9 -> 49.96535974 | W31: =Output!O31*W$9 -> 48.20560414 | X31: =Output!P31*X$9 -> 46.50782628 | Y31: 250.1480825 | AA31: =$Y31/RegDur -> 50.0296165 | AB31: 50.0296165 | AC31: 50.0296165 | AD31: 50.0296165 | AE31: 50.0296165
B32: 0 | C32: =RAB!C34 -> 250W Sodium | E32: =Output!E32/E$9 -> 0.643834912 | F32: =Output!F32/F$9 -> 0.6011736938 | G32: =Output!G32/G$9 -> 0.5566568001 | H32: =Output!H32/H$9 -> 0.5102293617 | I32: =Output!I32/I$9 -> 0.4888849448 | J32: 2.800779712 | L32: 0.5601559425 | M32: 0.5601559425 | N32: 0.5601559425 | O32: 0.5601559425 | P32: 0.5601559425 | R32: 250W Sodium | T32: =Output!L32*T$9 -> 62.58486067 | U32: =Output!M32*U$9 -> 60.3806524 | V32: =Output!N32*V$9 -> 58.25407528 | W32: =Output!O32*W$9 -> 56.20239517 | X32: =Output!P32*X$9 -> 54.22297422 | Y32: 291.6449577 | AA32: 58.32899155 | AB32: 58.32899155 | AC32: 58.32899155 | AD32: 58.32899155 | AE32: 58.32899155
B33: 0 | C33: =RAB!C35 -> 2 x 250W Sodium | E33: =Output!E33/E$9 -> 1.526746291 | F33: =Output!F33/F$9 -> 1.542459685 | G33: =Output!G33/G$9 -> 1.557285733 | H33: =Output!H33/H$9 -> 1.571138708 | I33: =Output!I33/I$9 -> 1.583927809 | J33: 7.781558226 | L33: 1.556311645 | M33: 1.556311645 | N33: 1.556311645 | O33: 1.556311645 | P33: 1.556311645 | R33: 2 x 250W Sodium | T33: =Output!L33*T$9 -> 79.93161384 | U33: =Output!M33*U$9 -> 77.11646139 | V33: =Output!N33*V$9 -> 74.40045724 | W33: =Output!O33*W$9 -> 71.78010943 | X33: =Output!P33*X$9 -> 69.25204899 | Y33: 372.4806909 | AA33: 74.49613818 | AB33: 74.49613818 | AC33: 74.49613818 | AD33: 74.49613818 | AE33: 74.49613818
B34: 0 | C34: =RAB!C36 -> 310W Sodium | E34: =Output!E34/E$9 -> 0 | F34: =Output!F34/F$9 -> 0 | G34: =Output!G34/G$9 -> 0 | H34: =Output!H34/H$9 -> 0 | I34: =Output!I34/I$9 -> 0 | J34: 0 | L34: 0 | M34: 0 | N34: 0 | O34: 0 | P34: 0 | R34: 310W Sodium | T34: =Output!L34*T$9 -> 62.58486067 | U34: =Output!M34*U$9 -> 60.3806524 | V34: =Output!N34*V$9 -> 58.25407528 | W34: =Output!O34*W$9 -> 56.20239517 | X34: =Output!P34*X$9 -> 54.22297422 | Y34: 291.6449577 | AA34: 58.32899155 | AB34: 58.32899155 | AC34: 58.32899155 | AD34: 58.32899155 | AE34: 58.32899155
B35: 0 | C35: =RAB!C37 -> 400 W Sodium | E35: =Output!E35/E$9 -> 0.3095706412 | F35: =Output!F35/F$9 -> 0.2798548396 | G35: =Output!G35/G$9 -> 0.2485938602 | H35: =Output!H35/H$9 -> 0.2157261283 | I35: =Output!I35/I$9 -> 0.1811877632 | J35: 1.234933232 | L35: 0.2469866465 | M35: 0.2469866465 | N35: 0.2469866465 | O35: 0.2469866465 | P35: 0.2469866465 | R35: 400 W Sodium | T35: =Output!L35*T$9 -> 55.75421481 | U35: =Output!M35*U$9 -> 53.79057857 | V35: =Output!N35*V$9 -> 51.89610063 | W35: =Output!O35*W$9 -> 50.06834528 | X35: =Output!P35*X$9 -> 48.30496258 | Y35: 259.8142019 | AA35: 51.96284037 | AB35: 51.96284037 | AC35: 51.96284037 | AD35: 51.96284037 | AE35: 51.96284037
B36: 0 | C36: =RAB!C38 -> 2 x 400 W Sodium | E36: =Output!E36/E$9 -> 5.148834943 | F36: =Output!F36/F$9 -> 5.219947557 | G36: =Output!G36/G$9 -> 5.289390639 | H36: =Output!H36/H$9 -> 5.35694753 | I36: =Output!I36/I$9 -> 5.422387976 | J36: 26.43750864 | L36: 5.287501729 | M36: 5.287501729 | N36: 5.287501729 | O36: 5.287501729 | P36: 5.287501729 | R36: 2 x 400 W Sodium | T36: =Output!L36*T$9 -> 66.27032213 | U36: =Output!M36*U$9 -> 63.93631371 | V36: =Output!N36*V$9 -> 61.68450793 | W36: =Output!O36*W$9 -> 59.51200965 | X36: =Output!P36*X$9 -> 57.4160257 | Y36: 308.8191791 | AA36: 61.76383583 | AB36: 61.76383583 | AC36: 61.76383583 | AD36: 61.76383583 | AE36: 61.76383583
B37: 0 | C37: =RAB!C39 -> 4 x 600W Sodium | E37: =Output!E37/E$9 -> 0 | F37: =Output!F37/F$9 -> 0 | G37: =Output!G37/G$9 -> 0 | H37: =Output!H37/H$9 -> 0 | I37: =Output!I37/I$9 -> 0 | J37: 0 | L37: 0 | M37: 0 | N37: 0 | O37: 0 | P37: 0 | R37: 4 x 600W Sodium | T37: =Output!L37*T$9 -> 87.30253676 | U37: =Output!M37*U$9 -> 84.22778401 | V37: =Output!N37*V$9 -> 81.26132254 | W37: =Output!O37*W$9 -> 78.3993384 | X37: =Output!P37*X$9 -> 75.63815195 | Y37: 406.8291337 | AA37: 81.36582673 | AB37: 81.36582673 | AC37: 81.36582673 | AD37: 81.36582673 | AE37: 81.36582673
B38: 0 | C38: =RAB!C40 -> 60 W Incandescent | E38: =Output!E38/E$9 -> 0 | F38: =Output!F38/F$9 -> 0 | G38: =Output!G38/G$9 -> 0 | H38: =Output!H38/H$9 -> 0 | I38: =Output!I38/I$9 -> 0 | J38: 0 | L38: 0 | M38: 0 | N38: 0 | O38: 0 | P38: 0 | R38: 60 W Incandescent | T38: =Output!L38*T$9 -> 66.46327823 | U38: =Output!M38*U$9 -> 64.12247399 | V38: =Output!N38*V$9 -> 61.86411174 | W38: =Output!O38*W$9 -> 59.6852879 | X38: =Output!P38*X$9 -> 57.58320117 | Y38: 309.718353 | AA38: 61.9436706 | AB38: 61.9436706 | AC38: 61.9436706 | AD38: 61.9436706 | AE38: 61.9436706
B39: 0 | C39: =RAB!C41 -> 100 W Incandescent | E39: =Output!E39/E$9 -> 0 | F39: =Output!F39/F$9 -> 0 | G39: =Output!G39/G$9 -> 0 | H39: =Output!H39/H$9 -> 0 | I39: =Output!I39/I$9 -> 0 | J39: 0 | L39: 0 | M39: 0 | N39: 0 | O39: 0 | P39: 0 | R39: 100 W Incandescent | T39: =Output!L39*T$9 -> 0 | U39: =Output!M39*U$9 -> 0 | V39: =Output!N39*V$9 -> 0 | W39: =Output!O39*W$9 -> 0 | X39: =Output!P39*X$9 -> 0 | Y39: 0 | AA39: 0 | AB39: 0 | AC39: 0 | AD39: 0 | AE39: 0
B40: 0 | C40: =RAB!C42 -> 500 W Incandescent | E40: =Output!E40/E$9 -> 0 | F40: =Output!F40/F$9 -> 0 | G40: =Output!G40/G$9 -> 0 | H40: =Output!H40/H$9 -> 0 | I40: =Output!I40/I$9 -> 0 | J40: 0 | L40: 0 | M40: 0 | N40: 0 | O40: 0 | P40: 0 | R40: 500 W Incandescent | T40: =Output!L40*T$9 -> 0 | U40: =Output!M40*U$9 -> 0 | V40: =Output!N40*V$9 -> 0 | W40: =Output!O40*W$9 -> 0 | X40: =Output!P40*X$9 -> 0 | Y40: 0 | AA40: 0 | AB40: 0 | AC40: 0 | AD40: 0 | AE40: 0
B41: 0 | C41: =RAB!C43 -> 1000 W Incandescent | E41: =Output!E41/E$9 -> 0 | F41: =Output!F41/F$9 -> 0 | G41: =Output!G41/G$9 -> 0 | H41: =Output!H41/H$9 -> 0 | I41: =Output!I41/I$9 -> 0 | J41: 0 | L41: =$J41/RegDur -> 0 | M41: 0 | N41: 0 | O41: 0 | P41: 0 | R41: 1000 W Incandescent | T41: =Output!L41*T$9 -> 0 | U41: =Output!M41*U$9 -> 0 | V41: =Output!N41*V$9 -> 0 | W41: =Output!O41*W$9 -> 0 | X41: =Output!P41*X$9 -> 0 | Y41: 0 | AA41: =$Y41/RegDur -> 0 | AB41: 0 | AC41: 0 | AD41: 0 | AE41: 0
B42: 0 | C42: =RAB!C44 -> 1500 W Incandescent | E42: =Output!E42/E$9 -> 0 | F42: =Output!F42/F$9 -> 0 | G42: =Output!G42/G$9 -> 0 | H42: =Output!H42/H$9 -> 0 | I42: =Output!I42/I$9 -> 0 | J42: 0 | L42: 0 | M42: 0 | N42: 0 | O42: 0 | P42: 0 | R42: 1500 W Incandescent | T42: =Output!L42*T$9 -> 66.46327823 | U42: =Output!M42*U$9 -> 64.12247399 | V42: =Output!N42*V$9 -> 61.86411174 | W42: =Output!O42*W$9 -> 59.6852879 | X42: =Output!P42*X$9 -> 57.58320117 | Y42: 309.718353 | AA42: 61.9436706 | AB42: 61.9436706 | AC42: 61.9436706 | AD42: 61.9436706 | AE42: 61.9436706
B43: 0 | C43: =RAB!C45 -> 100 W Metal Halide | E43: =Output!E43/E$9 -> 5.574654653 | F43: =Output!F43/F$9 -> 5.539689553 | G43: =Output!G43/G$9 -> 5.497381703 | H43: =Output!H43/H$9 -> 5.447271222 | I43: =Output!I43/I$9 -> 5.388874772 | J43: 27.4478719 | L43: 5.489574381 | M43: 5.489574381 | N43: 5.489574381 | O43: 5.489574381 | P43: 5.489574381 | R43: =C43 -> 100 W Metal Halide | T43: =Output!L43*T$9 -> 76.23650457 | U43: =Output!M43*U$9 -> 73.55149207 | V43: =Output!N43*V$9 -> 70.9610444 | W43: =Output!O43*W$9 -> 68.46183103 | X43: =Output!P43*X$9 -> 66.05063873 | Y43: 355.2615108 | AA43: 71.05230216 | AB43: 71.05230216 | AC43: 71.05230216 | AD43: 71.05230216 | AE43: 71.05230216
B44: 0 | C44: =RAB!C46 -> 150 W Metal Halide | E44: =Output!E44/E$9 -> 56.10293224 | F44: =Output!F44/F$9 -> 56.76932099 | G44: =Output!G44/G$9 -> 57.4095986 | H44: =Output!H44/H$9 -> 58.02097064 | I44: =Output!I44/I$9 -> 58.60047343 | J44: 286.9032959 | L44: 57.38065918 | M44: 57.38065918 | N44: 57.38065918 | O44: 57.38065918 | P44: 57.38065918 | R44: 150 W Metal Halide | T44: =Output!L44*T$9 -> 66.46327823 | U44: =Output!M44*U$9 -> 64.12247399 | V44: =Output!N44*V$9 -> 61.86411174 | W44: =Output!O44*W$9 -> 59.6852879 | X44: =Output!P44*X$9 -> 57.58320117 | Y44: 309.718353 | AA44: 61.9436706 | AB44: 61.9436706 | AC44: 61.9436706 | AD44: 61.9436706 | AE44: 61.9436706
B45: 0 | C45: =RAB!C47 -> 250 W Metal Halide | E45: =Output!E45/E$9 -> 10.58513879 | F45: =Output!F45/F$9 -> 10.70211029 | G45: =Output!G45/G$9 -> 10.81479372 | H45: =Output!H45/H$9 -> 10.92273446 | I45: =Output!I45/I$9 -> 11.0254506 | J45: 54.05022786 | L45: 10.81004557 | M45: 10.81004557 | N45: 10.81004557 | O45: 10.81004557 | P45: 10.81004557 | R45: 250 W Metal Halide | T45: =Output!L45*T$9 -> 63.93555335 | U45: =Output!M45*U$9 -> 61.68377435 | V45: =Output!N45*V$9 -> 59.51130191 | W45: =Output!O45*W$9 -> 57.41534288 | X45: =Output!P45*X$9 -> 55.39320251 | Y45: 297.939175 | AA45: 59.587835 | AB45: 59.587835 | AC45: 59.587835 | AD45: 59.587835 | AE45: 59.587835
B46: 0 | C46: =RAB!C48 -> 2 x 250 W Metal Halide | E46: =Output!E46/E$9 -> 50.27242719 | F46: =Output!F46/F$9 -> 50.96706514 | G46: =Output!G46/G$9 -> 51.64542434 | H46: =Output!H46/H$9 -> 52.30539058 | I46: =Output!I46/I$9 -> 52.94471698 | J46: 258.1350242 | L46: 51.62700485 | M46: 51.62700485 | N46: 51.62700485 | O46: 51.62700485 | P46: 51.62700485 | R46: 2 x 250 W Metal Halide | T46: =Output!L46*T$9 -> 82.6329992 | U46: =Output!M46*U$9 -> 79.72270528 | V46: =Output!N46*V$9 -> 76.91491049 | W46: =Output!O46*W$9 -> 74.20600486 | X46: =Output!P46*X$9 -> 71.59250557 | Y46: 385.0691254 | AA46: 77.01382508 | AB46: 77.01382508 | AC46: 77.01382508 | AD46: 77.01382508 | AE46: 77.01382508
B47: 0 | C47: =RAB!C49 -> 400 W Metal Halide | E47: =Output!E47/E$9 -> 3.528607847 | F47: =Output!F47/F$9 -> 3.57733753 | G47: =Output!G47/G$9 -> 3.626219193 | H47: =Output!H47/H$9 -> 3.675213546 | I47: =Output!I47/I$9 -> 3.724278393 | J47: 18.13165651 | L47: 3.626331302 | M47: 3.626331302 | N47: 3.626331302 | O47: 3.626331302 | P47: 3.626331302 | R47: 400 W Metal Halide | T47: =Output!L47*T$9 -> 62.60415628 | U47: =Output!M47*U$9 -> 60.39926843 | V47: =Output!N47*V$9 -> 58.27203566 | W47: =Output!O47*W$9 -> 56.21972299 | X47: =Output!P47*X$9 -> 54.23969177 | Y47: 291.7348751 | AA47: 58.34697503 | AB47: 58.34697503 | AC47: 58.34697503 | AD47: 58.34697503 | AE47: 58.34697503
B48: 0 | C48: =RAB!C50 -> 2 x 400 W Metal Halide | E48: =Output!E48/E$9 -> 96.3544529 | F48: =Output!F48/F$9 -> 97.68838396 | G48: =Output!G48/G$9 -> 98.99130102 | H48: =Output!H48/H$9 -> 100.2591621 | I48: =Output!I48/I$9 -> 101.4876715 | J48: 494.7809714 | L48: 98.95619429 | M48: 98.95619429 | N48: 98.95619429 | O48: 98.95619429 | P48: 98.95619429 | R48: 2 x 400 W Metal Halide | T48: =Output!L48*T$9 -> 79.97020506 | U48: =Output!M48*U$9 -> 77.15369345 | V48: =Output!N48*V$9 -> 74.436378 | W48: =Output!O48*W$9 -> 71.81476508 | X48: =Output!P48*X$9 -> 69.28548408 | Y48: 372.6605257 | AA48: 74.53210513 | AB48: 74.53210513 | AC48: 74.53210513 | AD48: 74.53210513 | AE48: 74.53210513
B49: 0 | C49: =RAB!C51 -> 1000 W Metal Halide | E49: =Output!E49/E$9 -> 0.03116676092 | F49: =Output!F49/F$9 -> -0.217079075 | G49: =Output!G49/G$9 -> -0.4824481864 | H49: =Output!H49/H$9 -> -0.7891293154 | I49: =Output!I49/I$9 -> -1.088802781 | J49: -2.546292597 | L49: -0.5092585193 | M49: -0.5092585193 | N49: -0.5092585193 | O49: -0.5092585193 | P49: -0.5092585193 | R49: 1000 W Metal Halide | T49: =Output!L49*T$9 -> 62.60415628 | U49: =Output!M49*U$9 -> 60.39926843 | V49: =Output!N49*V$9 -> 58.27203566 | W49: =Output!O49*W$9 -> 56.21972299 | X49: =Output!P49*X$9 -> 54.23969177 | Y49: 291.7348751 | AA49: 58.34697503 | AB49: 58.34697503 | AC49: 58.34697503 | AD49: 58.34697503 | AE49: 58.34697503
B50: 0 | C50: =RAB!C52 -> 600 W Sodium | E50: =Output!E50/E$9 -> 27.85554859 | F50: =Output!F50/F$9 -> 28.04621884 | G50: =Output!G50/G$9 -> 23.22973375 | H50: =Output!H50/H$9 -> 23.19011527 | I50: =Output!I50/I$9 -> 23.11664759 | J50: 125.438264 | L50: 25.08765281 | M50: 25.08765281 | N50: 25.08765281 | O50: 25.08765281 | P50: 25.08765281 | R50: 600 W Sodium | T50: =Output!L50*T$9 -> 55.75421481 | U50: =Output!M50*U$9 -> 53.79057857 | V50: =Output!N50*V$9 -> 51.89610063 | W50: =Output!O50*W$9 -> 50.06834528 | X50: =Output!P50*X$9 -> 48.30496258 | Y50: 259.8142019 | AA50: 51.96284037 | AB50: 51.96284037 | AC50: 51.96284037 | AD50: 51.96284037 | AE50: 51.96284037
B51: 0 | C51: =RAB!C53 -> Pole mounting bracket minor (<=3m) | E51: =Output!E51/E$9 -> 0.1340841798 | F51: =Output!F51/F$9 -> 0.06636284879 | G51: =Output!G51/G$9 -> 0.02324123324 | H51: =Output!H51/H$9 -> -0.008812307481 | I51: =Output!I51/I$9 -> -0.03964659837 | J51: 0.1752293559 | L51: =$J51/RegDur -> 0.03504587119 | M51: 0.03504587119 | N51: 0.03504587119 | O51: 0.03504587119 | P51: 0.03504587119 | R51: Pole mounting bracket minor (<=3m) | T51: =Output!L51*T$9 -> 14.293473 | U51: =Output!M51*U$9 -> 13.79006385 | V51: =Output!N51*V$9 -> 13.30438453 | W51: =Output!O51*W$9 -> 12.83581059 | X51: =Output!P51*X$9 -> 12.38373961 | Y51: 66.60747157 | AA51: =$Y51/RegDur -> 13.32149431 | AB51: 13.32149431 | AC51: 13.32149431 | AD51: 13.32149431 | AE51: 13.32149431
B52: 0 | C52: =RAB!C54 -> Pole mounting bracket major (>3m) | E52: =Output!E52/E$9 -> 0.1732642105 | F52: =Output!F52/F$9 -> 0.1249292888 | G52: =Output!G52/G$9 -> 0.08928448704 | H52: =Output!H52/H$9 -> 0.07310907333 | I52: =Output!I52/I$9 -> 0.05612502548 | J52: 0.5167120851 | L52: 0.103342417 | M52: 0.103342417 | N52: 0.103342417 | O52: 0.103342417 | P52: 0.103342417 | R52: Pole mounting bracket major (>3m) | T52: =Output!L52*T$9 -> 14.293473 | U52: =Output!M52*U$9 -> 13.79006385 | V52: =Output!N52*V$9 -> 13.30438453 | W52: =Output!O52*W$9 -> 12.83581059 | X52: =Output!P52*X$9 -> 12.38373961 | Y52: 66.60747157 | AA52: 13.32149431 | AB52: 13.32149431 | AC52: 13.32149431 | AD52: 13.32149431 | AE52: 13.32149431
B53: 0 | C53: =RAB!C55 -> Outreach Minor (<=2m) | E53: =Output!E53/E$9 -> 1.059027928 | F53: =Output!F53/F$9 -> 0.9566073714 | G53: =Output!G53/G$9 -> 0.8610795737 | H53: =Output!H53/H$9 -> 0.7606002775 | I53: =Output!I53/I$9 -> 0.6549722919 | J53: 4.292287442 | L53: 0.8584574884 | M53: 0.8584574884 | N53: 0.8584574884 | O53: 0.8584574884 | P53: 0.8584574884 | R53: Outreach Minor (<=2m) | T53: =Output!L53*T$9 -> 14.293473 | U53: =Output!M53*U$9 -> 13.79006385 | V53: =Output!N53*V$9 -> 13.30438453 | W53: =Output!O53*W$9 -> 12.83581059 | X53: =Output!P53*X$9 -> 12.38373961 | Y53: 66.60747157 | AA53: 13.32149431 | AB53: 13.32149431 | AC53: 13.32149431 | AD53: 13.32149431 | AE53: 13.32149431
B54: 0 | C54: =RAB!C56 -> Outreach Major (>2m) | E54: =Output!E54/E$9 -> 0.9195140554 | F54: =Output!F54/F$9 -> 0.885810443 | G54: =Output!G54/G$9 -> 0.8518471913 | H54: =Output!H54/H$9 -> 0.815899914 | I54: =Output!I54/I$9 -> 0.7778878308 | J54: 4.250959435 | L54: 0.8501918869 | M54: 0.8501918869 | N54: 0.8501918869 | O54: 0.8501918869 | P54: 0.8501918869 | R54: Outreach Major (>2m) | T54: =Output!L54*T$9 -> 14.293473 | U54: =Output!M54*U$9 -> 13.79006385 | V54: =Output!N54*V$9 -> 13.30438453 | W54: =Output!O54*W$9 -> 12.83581059 | X54: =Output!P54*X$9 -> 12.38373961 | Y54: 66.60747157 | AA54: 13.32149431 | AB54: 13.32149431 | AC54: 13.32149431 | AD54: 13.32149431 | AE54: 13.32149431
B55: 0 | C55: =RAB!C57 -> Minor Column (<=9) | E55: =Output!E55/E$9 -> 6.104813577 | F55: =Output!F55/F$9 -> 6.050292 | G55: =Output!G55/G$9 -> 5.987887677 | H55: =Output!H55/H$9 -> 5.917145262 | I55: =Output!I55/I$9 -> 5.8375872 | J55: 29.89772572 | L55: 5.979545143 | M55: 5.979545143 | N55: 5.979545143 | O55: 5.979545143 | P55: 5.979545143 | R55: Minor Column (<=9) | T55: =Output!L55*T$9 -> 18.66747192 | U55: =Output!M55*U$9 -> 18.01001266 | V55: =Output!N55*V$9 -> 17.3757088 | W55: =Output!O55*W$9 -> 16.76374481 | X55: =Output!P55*X$9 -> 16.1733339 | Y55: 86.9902721 | AA55: 17.39805442 | AB55: 17.39805442 | AC55: 17.39805442 | AD55: 17.39805442 | AE55: 17.39805442
B56: 0 | C56: =RAB!C58 -> Major Column (>=9) | E56: =Output!E56/E$9 -> 85.0528944 | F56: =Output!F56/F$9 -> 85.71093045 | G56: =Output!G56/G$9 -> 86.30698453 | H56: =Output!H56/H$9 -> 86.83569164 | I56: =Output!I56/I$9 -> 87.2913781 | J56: 431.1978791 | L56: 86.23957582 | M56: 86.23957582 | N56: 86.23957582 | O56: 86.23957582 | P56: 86.23957582 | R56: Major Column (>=9) | T56: =Output!L56*T$9 -> 18.66747192 | U56: =Output!M56*U$9 -> 18.01001266 | V56: =Output!N56*V$9 -> 17.3757088 | W56: =Output!O56*W$9 -> 16.76374481 | X56: =Output!P56*X$9 -> 16.1733339 | Y56: 86.9902721 | AA56: 17.39805442 | AB56: 17.39805442 | AC56: 17.39805442 | AD56: 17.39805442 | AE56: 17.39805442
B57: TRUE | C57: =RAB!C59 -> Spare | E57: =Output!E57/E$9 -> 0 | F57: =Output!F57/F$9 -> 0 | G57: =Output!G57/G$9 -> 0 | H57: =Output!H57/H$9 -> 0 | I57: =Output!I57/I$9 -> 0 | J57: 0 | L57: =#REF!/(RegDur-1) ->  | M57: =#REF!/(RegDur-1) ->  | N57: =#REF!/(RegDur-1) ->  | O57: =#REF!/(RegDur-1) ->  | P57: =#REF!/(RegDur-1) ->  | R57: Spare | T57: =Output!L57*T$9 -> 0 | U57: =Output!M57*U$9 -> 0 | V57: =Output!N57*V$9 -> 0 | W57: =Output!O57*W$9 -> 0 | X57: =Output!P57*X$9 -> 0 | Y57: 0 | AA57: =#REF! ->  | AB57: =#REF!/(RegDur-1) ->  | AC57: =#REF!/(RegDur-1) ->  | AD57: =#REF!/(RegDur-1) ->  | AE57: =#REF!/(RegDur-1) -> 
B58: TRUE | C58: =RAB!C60 -> Spare | E58: =Output!E58/E$9 -> 0 | F58: =Output!F58/F$9 -> 0 | G58: =Output!G58/G$9 -> 0 | H58: =Output!H58/H$9 -> 0 | I58: =Output!I58/I$9 -> 0 | J58: 0 | L58: =#REF!/(RegDur-1) ->  | M58: =#REF!/(RegDur-1) ->  | N58: =#REF!/(RegDur-1) ->  | O58: =#REF!/(RegDur-1) ->  | P58: =#REF!/(RegDur-1) ->  | R58: Spare | T58: =Output!L58*T$9 -> 0 | U58: =Output!M58*U$9 -> 0 | V58: =Output!N58*V$9 -> 0 | W58: =Output!O58*W$9 -> 0 | X58: =Output!P58*X$9 -> 0 | Y58: 0 | AA58: =#REF! ->  | AB58: =#REF!/(RegDur-1) ->  | AC58: =#REF!/(RegDur-1) ->  | AD58: =#REF!/(RegDur-1) ->  | AE58: =#REF!/(RegDur-1) -> 
B59: TRUE | C59: =RAB!C61 -> Spare | E59: =Output!E59/E$9 -> 0 | F59: =Output!F59/F$9 -> 0 | G59: =Output!G59/G$9 -> 0 | H59: =Output!H59/H$9 -> 0 | I59: =Output!I59/I$9 -> 0 | J59: 0 | L59: =#REF!/(RegDur-1) ->  | M59: =#REF!/(RegDur-1) ->  | N59: =#REF!/(RegDur-1) ->  | O59: =#REF!/(RegDur-1) ->  | P59: =#REF!/(RegDur-1) ->  | R59: Spare | T59: =Output!L59*T$9 -> 0 | U59: =Output!M59*U$9 -> 0 | V59: =Output!N59*V$9 -> 0 | W59: =Output!O59*W$9 -> 0 | X59: =Output!P59*X$9 -> 0 | Y59: 0 | AA59: =#REF! ->  | AB59: =#REF!/(RegDur-1) ->  | AC59: =#REF!/(RegDur-1) ->  | AD59: =#REF!/(RegDur-1) ->  | AE59: =#REF!/(RegDur-1) -> 
B60: TRUE | C60: =RAB!C62 -> Spare | E60: =Output!E60/E$9 -> 0 | F60: =Output!F60/F$9 -> 0 | G60: =Output!G60/G$9 -> 0 | H60: =Output!H60/H$9 -> 0 | I60: =Output!I60/I$9 -> 0 | J60: 0 | L60: =#REF!/(RegDur-1) ->  | M60: =#REF!/(RegDur-1) ->  | N60: =#REF!/(RegDur-1) ->  | O60: =#REF!/(RegDur-1) ->  | P60: =#REF!/(RegDur-1) ->  | R60: Spare | T60: =Output!L60*T$9 -> 0 | U60: =Output!M60*U$9 -> 0 | V60: =Output!N60*V$9 -> 0 | W60: =Output!O60*W$9 -> 0 | X60: =Output!P60*X$9 -> 0 | Y60: 0 | AA60: =#REF! ->  | AB60: =#REF!/(RegDur-1) ->  | AC60: =#REF!/(RegDur-1) ->  | AD60: =#REF!/(RegDur-1) ->  | AE60: =#REF!/(RegDur-1) -> 
B61: TRUE | C61: =RAB!C63 -> Spare | E61: =Output!E61/E$9 -> 0 | F61: =Output!F61/F$9 -> 0 | G61: =Output!G61/G$9 -> 0 | H61: =Output!H61/H$9 -> 0 | I61: =Output!I61/I$9 -> 0 | J61: 0 | L61: =#REF!/(RegDur-1) ->  | M61: =#REF!/(RegDur-1) ->  | N61: =#REF!/(RegDur-1) ->  | O61: =#REF!/(RegDur-1) ->  | P61: =#REF!/(RegDur-1) ->  | R61: Spare | T61: =Output!L61*T$9 -> 0 | U61: =Output!M61*U$9 -> 0 | V61: =Output!N61*V$9 -> 0 | W61: =Output!O61*W$9 -> 0 | X61: =Output!P61*X$9 -> 0 | Y61: 0 | AA61: =#REF! ->  | AB61: =#REF!/(RegDur-1) ->  | AC61: =#REF!/(RegDur-1) ->  | AD61: =#REF!/(RegDur-1) ->  | AE61: =#REF!/(RegDur-1) -> 
B62: TRUE | C62: =RAB!C64 -> Spare | E62: =Output!E62/E$9 -> 0 | F62: =Output!F62/F$9 -> 0 | G62: =Output!G62/G$9 -> 0 | H62: =Output!H62/H$9 -> 0 | I62: =Output!I62/I$9 -> 0 | J62: 0 | L62: =#REF!/(RegDur-1) ->  | M62: =#REF!/(RegDur-1) ->  | N62: =#REF!/(RegDur-1) ->  | O62: =#REF!/(RegDur-1) ->  | P62: =#REF!/(RegDur-1) ->  | R62: Spare | T62: =Output!L62*T$9 -> 0 | U62: =Output!M62*U$9 -> 0 | V62: =Output!N62*V$9 -> 0 | W62: =Output!O62*W$9 -> 0 | X62: =Output!P62*X$9 -> 0 | Y62: 0 | AA62: =#REF! ->  | AB62: =#REF!/(RegDur-1) ->  | AC62: =#REF!/(RegDur-1) ->  | AD62: =#REF!/(RegDur-1) ->  | AE62: =#REF!/(RegDur-1) -> 
B63: TRUE | C63: =RAB!C65 -> Spare | E63: =Output!E63/E$9 -> 0 | F63: =Output!F63/F$9 -> 0 | G63: =Output!G63/G$9 -> 0 | H63: =Output!H63/H$9 -> 0 | I63: =Output!I63/I$9 -> 0 | J63: 0 | L63: =#REF!/(RegDur-1) ->  | M63: =#REF!/(RegDur-1) ->  | N63: =#REF!/(RegDur-1) ->  | O63: =#REF!/(RegDur-1) ->  | P63: =#REF!/(RegDur-1) ->  | R63: Spare | T63: =Output!L63*T$9 -> 0 | U63: =Output!M63*U$9 -> 0 | V63: =Output!N63*V$9 -> 0 | W63: =Output!O63*W$9 -> 0 | X63: =Output!P63*X$9 -> 0 | Y63: 0 | AA63: =#REF! ->  | AB63: =#REF!/(RegDur-1) ->  | AC63: =#REF!/(RegDur-1) ->  | AD63: =#REF!/(RegDur-1) ->  | AE63: =#REF!/(RegDur-1) -> 
B64: TRUE | C64: =RAB!C66 -> Spare | E64: =Output!E64/E$9 -> 0 | F64: =Output!F64/F$9 -> 0 | G64: =Output!G64/G$9 -> 0 | H64: =Output!H64/H$9 -> 0 | I64: =Output!I64/I$9 -> 0 | J64: 0 | L64: =#REF!/(RegDur-1) ->  | M64: =#REF!/(RegDur-1) ->  | N64: =#REF!/(RegDur-1) ->  | O64: =#REF!/(RegDur-1) ->  | P64: =#REF!/(RegDur-1) ->  | R64: Spare | T64: =Output!L64*T$9 -> 0 | U64: =Output!M64*U$9 -> 0 | V64: =Output!N64*V$9 -> 0 | W64: =Output!O64*W$9 -> 0 | X64: =Output!P64*X$9 -> 0 | Y64: 0 | AA64: =#REF! ->  | AB64: =#REF!/(RegDur-1) ->  | AC64: =#REF!/(RegDur-1) ->  | AD64: =#REF!/(RegDur-1) ->  | AE64: =#REF!/(RegDur-1) -> 
B65: TRUE | C65: =RAB!C67 -> Spare | E65: =Output!E65/E$9 -> 0 | F65: =Output!F65/F$9 -> 0 | G65: =Output!G65/G$9 -> 0 | H65: =Output!H65/H$9 -> 0 | I65: =Output!I65/I$9 -> 0 | J65: 0 | L65: =#REF!/(RegDur-1) ->  | M65: =#REF!/(RegDur-1) ->  | N65: =#REF!/(RegDur-1) ->  | O65: =#REF!/(RegDur-1) ->  | P65: =#REF!/(RegDur-1) ->  | R65: Spare | T65: =Output!L65*T$9 -> 0 | U65: =Output!M65*U$9 -> 0 | V65: =Output!N65*V$9 -> 0 | W65: =Output!O65*W$9 -> 0 | X65: =Output!P65*X$9 -> 0 | Y65: 0 | AA65: =#REF! ->  | AB65: =#REF!/(RegDur-1) ->  | AC65: =#REF!/(RegDur-1) ->  | AD65: =#REF!/(RegDur-1) ->  | AE65: =#REF!/(RegDur-1) -> 
B66: TRUE | C66: =RAB!C68 -> Spare | E66: =Output!E66/E$9 -> 0 | F66: =Output!F66/F$9 -> 0 | G66: =Output!G66/G$9 -> 0 | H66: =Output!H66/H$9 -> 0 | I66: =Output!I66/I$9 -> 0 | J66: 0 | L66: =#REF!/(RegDur-1) ->  | M66: =#REF!/(RegDur-1) ->  | N66: =#REF!/(RegDur-1) ->  | O66: =#REF!/(RegDur-1) ->  | P66: =#REF!/(RegDur-1) ->  | R66: Spare | T66: =Output!L66*T$9 -> 0 | U66: =Output!M66*U$9 -> 0 | V66: =Output!N66*V$9 -> 0 | W66: =Output!O66*W$9 -> 0 | X66: =Output!P66*X$9 -> 0 | Y66: 0 | AA66: =#REF! ->  | AB66: =#REF!/(RegDur-1) ->  | AC66: =#REF!/(RegDur-1) ->  | AD66: =#REF!/(RegDur-1) ->  | AE66: =#REF!/(RegDur-1) -> 
B67: TRUE | C67: =RAB!C69 -> Spare | E67: =Output!E67/E$9 -> 0 | F67: =Output!F67/F$9 -> 0 | G67: =Output!G67/G$9 -> 0 | H67: =Output!H67/H$9 -> 0 | I67: =Output!I67/I$9 -> 0 | J67: 0 | L67: =#REF!/(RegDur-1) ->  | M67: =#REF!/(RegDur-1) ->  | N67: =#REF!/(RegDur-1) ->  | O67: =#REF!/(RegDur-1) ->  | P67: =#REF!/(RegDur-1) ->  | R67: Spare | T67: =Output!L67*T$9 -> 0 | U67: =Output!M67*U$9 -> 0 | V67: =Output!N67*V$9 -> 0 | W67: =Output!O67*W$9 -> 0 | X67: =Output!P67*X$9 -> 0 | Y67: 0 | AA67: =#REF! ->  | AB67: =#REF!/(RegDur-1) ->  | AC67: =#REF!/(RegDur-1) ->  | AD67: =#REF!/(RegDur-1) ->  | AE67: =#REF!/(RegDur-1) -> 
B68: TRUE | C68: =RAB!C70 -> Spare | E68: =Output!E68/E$9 -> 0 | F68: =Output!F68/F$9 -> 0 | G68: =Output!G68/G$9 -> 0 | H68: =Output!H68/H$9 -> 0 | I68: =Output!I68/I$9 -> 0 | J68: 0 | L68: =#REF!/(RegDur-1) ->  | M68: =#REF!/(RegDur-1) ->  | N68: =#REF!/(RegDur-1) ->  | O68: =#REF!/(RegDur-1) ->  | P68: =#REF!/(RegDur-1) ->  | R68: Spare | T68: =Output!L68*T$9 -> 0 | U68: =Output!M68*U$9 -> 0 | V68: =Output!N68*V$9 -> 0 | W68: =Output!O68*W$9 -> 0 | X68: =Output!P68*X$9 -> 0 | Y68: 0 | AA68: =#REF! ->  | AB68: =#REF!/(RegDur-1) ->  | AC68: =#REF!/(RegDur-1) ->  | AD68: =#REF!/(RegDur-1) ->  | AE68: =#REF!/(RegDur-1) -> 
B69: TRUE | C69: =RAB!C71 -> Spare | E69: =Output!E69/E$9 -> 0 | F69: =Output!F69/F$9 -> 0 | G69: =Output!G69/G$9 -> 0 | H69: =Output!H69/H$9 -> 0 | I69: =Output!I69/I$9 -> 0 | J69: 0 | L69: =#REF!/(RegDur-1) ->  | M69: =#REF!/(RegDur-1) ->  | N69: =#REF!/(RegDur-1) ->  | O69: =#REF!/(RegDur-1) ->  | P69: =#REF!/(RegDur-1) ->  | R69: Spare | T69: =Output!L69*T$9 -> 0 | U69: =Output!M69*U$9 -> 0 | V69: =Output!N69*V$9 -> 0 | W69: =Output!O69*W$9 -> 0 | X69: =Output!P69*X$9 -> 0 | Y69: 0 | AA69: =#REF! ->  | AB69: =#REF!/(RegDur-1) ->  | AC69: =#REF!/(RegDur-1) ->  | AD69: =#REF!/(RegDur-1) ->  | AE69: =#REF!/(RegDur-1) -> 
B70: TRUE | C70: =RAB!C72 -> Spare | E70: =Output!E70/E$9 -> 0 | F70: =Output!F70/F$9 -> 0 | G70: =Output!G70/G$9 -> 0 | H70: =Output!H70/H$9 -> 0 | I70: =Output!I70/I$9 -> 0 | J70: 0 | L70: =#REF!/(RegDur-1) ->  | M70: =#REF!/(RegDur-1) ->  | N70: =#REF!/(RegDur-1) ->  | O70: =#REF!/(RegDur-1) ->  | P70: =#REF!/(RegDur-1) ->  | R70: Spare | T70: =Output!L70*T$9 -> 0 | U70: =Output!M70*U$9 -> 0 | V70: =Output!N70*V$9 -> 0 | W70: =Output!O70*W$9 -> 0 | X70: =Output!P70*X$9 -> 0 | Y70: 0 | AA70: =#REF! ->  | AB70: =#REF!/(RegDur-1) ->  | AC70: =#REF!/(RegDur-1) ->  | AD70: =#REF!/(RegDur-1) ->  | AE70: =#REF!/(RegDur-1) -> 
B71: TRUE | C71: =RAB!C73 -> Spare | E71: =Output!E71/E$9 -> 0 | F71: =Output!F71/F$9 -> 0 | G71: =Output!G71/G$9 -> 0 | H71: =Output!H71/H$9 -> 0 | I71: =Output!I71/I$9 -> 0 | J71: 0 | L71: =#REF!/(RegDur-1) ->  | M71: =#REF!/(RegDur-1) ->  | N71: =#REF!/(RegDur-1) ->  | O71: =#REF!/(RegDur-1) ->  | P71: =#REF!/(RegDur-1) ->  | R71: Spare | T71: =Output!L71*T$9 -> 0 | U71: =Output!M71*U$9 -> 0 | V71: =Output!N71*V$9 -> 0 | W71: =Output!O71*W$9 -> 0 | X71: =Output!P71*X$9 -> 0 | Y71: 0 | AA71: =#REF! ->  | AB71: =#REF!/(RegDur-1) ->  | AC71: =#REF!/(RegDur-1) ->  | AD71: =#REF!/(RegDur-1) ->  | AE71: =#REF!/(RegDur-1) -> 
B72: TRUE | C72: =RAB!C74 -> Spare | E72: =Output!E72/E$9 -> 0 | F72: =Output!F72/F$9 -> 0 | G72: =Output!G72/G$9 -> 0 | H72: =Output!H72/H$9 -> 0 | I72: =Output!I72/I$9 -> 0 | J72: 0 | L72: =#REF!/(RegDur-1) ->  | M72: =#REF!/(RegDur-1) ->  | N72: =#REF!/(RegDur-1) ->  | O72: =#REF!/(RegDur-1) ->  | P72: =#REF!/(RegDur-1) ->  | R72: Spare | T72: =Output!L72*T$9 -> 0 | U72: =Output!M72*U$9 -> 0 | V72: =Output!N72*V$9 -> 0 | W72: =Output!O72*W$9 -> 0 | X72: =Output!P72*X$9 -> 0 | Y72: 0 | AA72: =#REF! ->  | AB72: =#REF!/(RegDur-1) ->  | AC72: =#REF!/(RegDur-1) ->  | AD72: =#REF!/(RegDur-1) ->  | AE72: =#REF!/(RegDur-1) -> 
B73: TRUE | C73: =RAB!C75 -> Spare | E73: =Output!E73/E$9 -> 0 | F73: =Output!F73/F$9 -> 0 | G73: =Output!G73/G$9 -> 0 | H73: =Output!H73/H$9 -> 0 | I73: =Output!I73/I$9 -> 0 | J73: 0 | L73: =#REF!/(RegDur-1) ->  | M73: =#REF!/(RegDur-1) ->  | N73: =#REF!/(RegDur-1) ->  | O73: =#REF!/(RegDur-1) ->  | P73: =#REF!/(RegDur-1) ->  | R73: Spare | T73: =Output!L73*T$9 -> 0 | U73: =Output!M73*U$9 -> 0 | V73: =Output!N73*V$9 -> 0 | W73: =Output!O73*W$9 -> 0 | X73: =Output!P73*X$9 -> 0 | Y73: 0 | AA73: =#REF! ->  | AB73: =#REF!/(RegDur-1) ->  | AC73: =#REF!/(RegDur-1) ->  | AD73: =#REF!/(RegDur-1) ->  | AE73: =#REF!/(RegDur-1) -> 
B74: TRUE | C74: =RAB!C76 -> Spare | E74: =Output!E74/E$9 -> 0 | F74: =Output!F74/F$9 -> 0 | G74: =Output!G74/G$9 -> 0 | H74: =Output!H74/H$9 -> 0 | I74: =Output!I74/I$9 -> 0 | J74: 0 | L74: =#REF!/(RegDur-1) ->  | M74: =#REF!/(RegDur-1) ->  | N74: =#REF!/(RegDur-1) ->  | O74: =#REF!/(RegDur-1) ->  | P74: =#REF!/(RegDur-1) ->  | R74: Spare | T74: =Output!L74*T$9 -> 0 | U74: =Output!M74*U$9 -> 0 | V74: =Output!N74*V$9 -> 0 | W74: =Output!O74*W$9 -> 0 | X74: =Output!P74*X$9 -> 0 | Y74: 0 | AA74: =#REF! ->  | AB74: =#REF!/(RegDur-1) ->  | AC74: =#REF!/(RegDur-1) ->  | AD74: =#REF!/(RegDur-1) ->  | AE74: =#REF!/(RegDur-1) -> 
B75: =IF(C75="Spare",TRUE,0) -> TRUE | C75: =RAB!C77 -> Spare | E75: =Output!E75/E$9 -> 0 | F75: =Output!F75/F$9 -> 0 | G75: =Output!G75/G$9 -> 0 | H75: =Output!H75/H$9 -> 0 | I75: =Output!I75/I$9 -> 0 | J75: 0 | L75: =#REF!/(RegDur-1) ->  | M75: =#REF!/(RegDur-1) ->  | N75: =#REF!/(RegDur-1) ->  | O75: =#REF!/(RegDur-1) ->  | P75: =#REF!/(RegDur-1) ->  | R75: =C75 -> Spare | T75: =Output!L75*T$9 -> 0 | U75: =Output!M75*U$9 -> 0 | V75: =Output!N75*V$9 -> 0 | W75: =Output!O75*W$9 -> 0 | X75: =Output!P75*X$9 -> 0 | Y75: 0 | AA75: =#REF! ->  | AB75: =#REF!/(RegDur-1) ->  | AC75: =#REF!/(RegDur-1) ->  | AD75: =#REF!/(RegDur-1) ->  | AE75: =#REF!/(RegDur-1) -> 
B76: TRUE | C76: =RAB!C78 -> Spare | E76: =Output!E76/E$9 -> 0 | F76: =Output!F76/F$9 -> 0 | G76: =Output!G76/G$9 -> 0 | H76: =Output!H76/H$9 -> 0 | I76: =Output!I76/I$9 -> 0 | J76: =SUM(E76:I76) -> 0 | L76: =#REF!/(RegDur-1) ->  | M76: =#REF!/(RegDur-1) ->  | N76: =#REF!/(RegDur-1) ->  | O76: =#REF!/(RegDur-1) ->  | P76: =#REF!/(RegDur-1) ->  | R76: Spare | T76: =Output!L76*T$9 -> 0 | U76: =Output!M76*U$9 -> 0 | V76: =Output!N76*V$9 -> 0 | W76: =Output!O76*W$9 -> 0 | X76: =Output!P76*X$9 -> 0 | Y76: =SUM(T76:X76) -> 0 | AA76: =#REF! ->  | AB76: =#REF!/(RegDur-1) ->  | AC76: =#REF!/(RegDur-1) ->  | AD76: =#REF!/(RegDur-1) ->  | AE76: =#REF!/(RegDur-1) -> 
B77: TRUE | C77: =RAB!C79 -> Spare | E77: =Output!E77/E$9 -> 0 | F77: =Output!F77/F$9 -> 0 | G77: =Output!G77/G$9 -> 0 | H77: =Output!H77/H$9 -> 0 | I77: =Output!I77/I$9 -> 0 | J77: 0 | L77: =#REF!/(RegDur-1) ->  | M77: =#REF!/(RegDur-1) ->  | N77: =#REF!/(RegDur-1) ->  | O77: =#REF!/(RegDur-1) ->  | P77: =#REF!/(RegDur-1) ->  | R77: Spare | T77: =Output!L77*T$9 -> 0 | U77: =Output!M77*U$9 -> 0 | V77: =Output!N77*V$9 -> 0 | W77: =Output!O77*W$9 -> 0 | X77: =Output!P77*X$9 -> 0 | Y77: 0 | AA77: =#REF! ->  | AB77: =#REF!/(RegDur-1) ->  | AC77: =#REF!/(RegDur-1) ->  | AD77: =#REF!/(RegDur-1) ->  | AE77: =#REF!/(RegDur-1) -> 
B78: TRUE | C78: =RAB!C80 -> Spare | E78: =Output!E78/E$9 -> 0 | F78: =Output!F78/F$9 -> 0 | G78: =Output!G78/G$9 -> 0 | H78: =Output!H78/H$9 -> 0 | I78: =Output!I78/I$9 -> 0 | J78: 0 | L78: =#REF!/(RegDur-1) ->  | M78: =#REF!/(RegDur-1) ->  | N78: =#REF!/(RegDur-1) ->  | O78: =#REF!/(RegDur-1) ->  | P78: =#REF!/(RegDur-1) ->  | R78: Spare | T78: =Output!L78*T$9 -> 0 | U78: =Output!M78*U$9 -> 0 | V78: =Output!N78*V$9 -> 0 | W78: =Output!O78*W$9 -> 0 | X78: =Output!P78*X$9 -> 0 | Y78: 0 | AA78: =#REF! ->  | AB78: =#REF!/(RegDur-1) ->  | AC78: =#REF!/(RegDur-1) ->  | AD78: =#REF!/(RegDur-1) ->  | AE78: =#REF!/(RegDur-1) -> 
B79: TRUE | C79: =RAB!C81 -> Spare | E79: =Output!E79/E$9 -> 0 | F79: =Output!F79/F$9 -> 0 | G79: =Output!G79/G$9 -> 0 | H79: =Output!H79/H$9 -> 0 | I79: =Output!I79/I$9 -> 0 | J79: 0 | L79: =#REF!/(RegDur-1) ->  | M79: =#REF!/(RegDur-1) ->  | N79: =#REF!/(RegDur-1) ->  | O79: =#REF!/(RegDur-1) ->  | P79: =#REF!/(RegDur-1) ->  | R79: Spare | T79: =Output!L79*T$9 -> 0 | U79: =Output!M79*U$9 -> 0 | V79: =Output!N79*V$9 -> 0 | W79: =Output!O79*W$9 -> 0 | X79: =Output!P79*X$9 -> 0 | Y79: 0 | AA79: =#REF! ->  | AB79: =#REF!/(RegDur-1) ->  | AC79: =#REF!/(RegDur-1) ->  | AD79: =#REF!/(RegDur-1) ->  | AE79: =#REF!/(RegDur-1) -> 
B80: TRUE | C80: =RAB!C82 -> Spare | E80: =Output!E80/E$9 -> 0 | F80: =Output!F80/F$9 -> 0 | G80: =Output!G80/G$9 -> 0 | H80: =Output!H80/H$9 -> 0 | I80: =Output!I80/I$9 -> 0 | J80: 0 | L80: =#REF!/(RegDur-1) ->  | M80: =#REF!/(RegDur-1) ->  | N80: =#REF!/(RegDur-1) ->  | O80: =#REF!/(RegDur-1) ->  | P80: =#REF!/(RegDur-1) ->  | R80: Spare | T80: =Output!L80*T$9 -> 0 | U80: =Output!M80*U$9 -> 0 | V80: =Output!N80*V$9 -> 0 | W80: =Output!O80*W$9 -> 0 | X80: =Output!P80*X$9 -> 0 | Y80: 0 | AA80: =#REF! ->  | AB80: =#REF!/(RegDur-1) ->  | AC80: =#REF!/(RegDur-1) ->  | AD80: =#REF!/(RegDur-1) ->  | AE80: =#REF!/(RegDur-1) -> 
B81: TRUE | C81: =RAB!C83 -> Spare | E81: =Output!E81/E$9 -> 0 | F81: =Output!F81/F$9 -> 0 | G81: =Output!G81/G$9 -> 0 | H81: =Output!H81/H$9 -> 0 | I81: =Output!I81/I$9 -> 0 | J81: 0 | L81: =#REF!/(RegDur-1) ->  | M81: =#REF!/(RegDur-1) ->  | N81: =#REF!/(RegDur-1) ->  | O81: =#REF!/(RegDur-1) ->  | P81: =#REF!/(RegDur-1) ->  | R81: Spare | T81: =Output!L81*T$9 -> 0 | U81: =Output!M81*U$9 -> 0 | V81: =Output!N81*V$9 -> 0 | W81: =Output!O81*W$9 -> 0 | X81: =Output!P81*X$9 -> 0 | Y81: 0 | AA81: =#REF! ->  | AB81: =#REF!/(RegDur-1) ->  | AC81: =#REF!/(RegDur-1) ->  | AD81: =#REF!/(RegDur-1) ->  | AE81: =#REF!/(RegDur-1) -> 
B82: TRUE | C82: =RAB!C84 -> Spare | E82: =Output!E82/E$9 -> 0 | F82: =Output!F82/F$9 -> 0 | G82: =Output!G82/G$9 -> 0 | H82: =Output!H82/H$9 -> 0 | I82: =Output!I82/I$9 -> 0 | J82: 0 | L82: =#REF!/(RegDur-1) ->  | M82: =#REF!/(RegDur-1) ->  | N82: =#REF!/(RegDur-1) ->  | O82: =#REF!/(RegDur-1) ->  | P82: =#REF!/(RegDur-1) ->  | R82: Spare | T82: =Output!L82*T$9 -> 0 | U82: =Output!M82*U$9 -> 0 | V82: =Output!N82*V$9 -> 0 | W82: =Output!O82*W$9 -> 0 | X82: =Output!P82*X$9 -> 0 | Y82: 0 | AA82: =#REF! ->  | AB82: =#REF!/(RegDur-1) ->  | AC82: =#REF!/(RegDur-1) ->  | AD82: =#REF!/(RegDur-1) ->  | AE82: =#REF!/(RegDur-1) -> 
B83: TRUE | C83: =RAB!C85 -> Spare | E83: =Output!E83/E$9 -> 0 | F83: =Output!F83/F$9 -> 0 | G83: =Output!G83/G$9 -> 0 | H83: =Output!H83/H$9 -> 0 | I83: =Output!I83/I$9 -> 0 | J83: 0 | L83: =#REF!/(RegDur-1) ->  | M83: =#REF!/(RegDur-1) ->  | N83: =#REF!/(RegDur-1) ->  | O83: =#REF!/(RegDur-1) ->  | P83: =#REF!/(RegDur-1) ->  | R83: Spare | T83: =Output!L83*T$9 -> 0 | U83: =Output!M83*U$9 -> 0 | V83: =Output!N83*V$9 -> 0 | W83: =Output!O83*W$9 -> 0 | X83: =Output!P83*X$9 -> 0 | Y83: 0 | AA83: =#REF! ->  | AB83: =#REF!/(RegDur-1) ->  | AC83: =#REF!/(RegDur-1) ->  | AD83: =#REF!/(RegDur-1) ->  | AE83: =#REF!/(RegDur-1) -> 
B84: TRUE | C84: =RAB!C86 -> Spare | E84: =Output!E84/E$9 -> 0 | F84: =Output!F84/F$9 -> 0 | G84: =Output!G84/G$9 -> 0 | H84: =Output!H84/H$9 -> 0 | I84: =Output!I84/I$9 -> 0 | J84: 0 | L84: =#REF!/(RegDur-1) ->  | M84: =#REF!/(RegDur-1) ->  | N84: =#REF!/(RegDur-1) ->  | O84: =#REF!/(RegDur-1) ->  | P84: =#REF!/(RegDur-1) ->  | R84: Spare | T84: =Output!L84*T$9 -> 0 | U84: =Output!M84*U$9 -> 0 | V84: =Output!N84*V$9 -> 0 | W84: =Output!O84*W$9 -> 0 | X84: =Output!P84*X$9 -> 0 | Y84: 0 | AA84: =#REF! ->  | AB84: =#REF!/(RegDur-1) ->  | AC84: =#REF!/(RegDur-1) ->  | AD84: =#REF!/(RegDur-1) ->  | AE84: =#REF!/(RegDur-1) -> 
B85: TRUE | C85: =RAB!C87 -> Spare | E85: =Output!E85/E$9 -> 0 | F85: =Output!F85/F$9 -> 0 | G85: =Output!G85/G$9 -> 0 | H85: =Output!H85/H$9 -> 0 | I85: =Output!I85/I$9 -> 0 | J85: 0 | L85: =#REF!/(RegDur-1) ->  | M85: =#REF!/(RegDur-1) ->  | N85: =#REF!/(RegDur-1) ->  | O85: =#REF!/(RegDur-1) ->  | P85: =#REF!/(RegDur-1) ->  | R85: Spare | T85: =Output!L85*T$9 -> 0 | U85: =Output!M85*U$9 -> 0 | V85: =Output!N85*V$9 -> 0 | W85: =Output!O85*W$9 -> 0 | X85: =Output!P85*X$9 -> 0 | Y85: 0 | AA85: =#REF! ->  | AB85: =#REF!/(RegDur-1) ->  | AC85: =#REF!/(RegDur-1) ->  | AD85: =#REF!/(RegDur-1) ->  | AE85: =#REF!/(RegDur-1) -> 
B86: TRUE | C86: =RAB!C88 -> Spare | E86: =Output!E86/E$9 -> 0 | F86: =Output!F86/F$9 -> 0 | G86: =Output!G86/G$9 -> 0 | H86: =Output!H86/H$9 -> 0 | I86: =Output!I86/I$9 -> 0 | J86: 0 | L86: =#REF!/(RegDur-1) ->  | M86: =#REF!/(RegDur-1) ->  | N86: =#REF!/(RegDur-1) ->  | O86: =#REF!/(RegDur-1) ->  | P86: =#REF!/(RegDur-1) ->  | R86: Spare | T86: =Output!L86*T$9 -> 0 | U86: =Output!M86*U$9 -> 0 | V86: =Output!N86*V$9 -> 0 | W86: =Output!O86*W$9 -> 0 | X86: =Output!P86*X$9 -> 0 | Y86: 0 | AA86: =#REF! ->  | AB86: =#REF!/(RegDur-1) ->  | AC86: =#REF!/(RegDur-1) ->  | AD86: =#REF!/(RegDur-1) ->  | AE86: =#REF!/(RegDur-1) -> 
B87: TRUE | C87: =RAB!C89 -> Spare | E87: =Output!E87/E$9 -> 0 | F87: =Output!F87/F$9 -> 0 | G87: =Output!G87/G$9 -> 0 | H87: =Output!H87/H$9 -> 0 | I87: =Output!I87/I$9 -> 0 | J87: 0 | L87: =#REF!/(RegDur-1) ->  | M87: =#REF!/(RegDur-1) ->  | N87: =#REF!/(RegDur-1) ->  | O87: =#REF!/(RegDur-1) ->  | P87: =#REF!/(RegDur-1) ->  | R87: Spare | T87: =Output!L87*T$9 -> 0 | U87: =Output!M87*U$9 -> 0 | V87: =Output!N87*V$9 -> 0 | W87: =Output!O87*W$9 -> 0 | X87: =Output!P87*X$9 -> 0 | Y87: 0 | AA87: =#REF! ->  | AB87: =#REF!/(RegDur-1) ->  | AC87: =#REF!/(RegDur-1) ->  | AD87: =#REF!/(RegDur-1) ->  | AE87: =#REF!/(RegDur-1) -> 
B88: TRUE | C88: =RAB!C90 -> Spare | E88: =Output!E88/E$9 -> 0 | F88: =Output!F88/F$9 -> 0 | G88: =Output!G88/G$9 -> 0 | H88: =Output!H88/H$9 -> 0 | I88: =Output!I88/I$9 -> 0 | J88: 0 | L88: =#REF!/(RegDur-1) ->  | M88: =#REF!/(RegDur-1) ->  | N88: =#REF!/(RegDur-1) ->  | O88: =#REF!/(RegDur-1) ->  | P88: =#REF!/(RegDur-1) ->  | R88: Spare | T88: =Output!L88*T$9 -> 0 | U88: =Output!M88*U$9 -> 0 | V88: =Output!N88*V$9 -> 0 | W88: =Output!O88*W$9 -> 0 | X88: =Output!P88*X$9 -> 0 | Y88: 0 | AA88: =#REF! ->  | AB88: =#REF!/(RegDur-1) ->  | AC88: =#REF!/(RegDur-1) ->  | AD88: =#REF!/(RegDur-1) ->  | AE88: =#REF!/(RegDur-1) -> 
B89: TRUE | C89: =RAB!C91 -> Spare | E89: =Output!E89/E$9 -> 0 | F89: =Output!F89/F$9 -> 0 | G89: =Output!G89/G$9 -> 0 | H89: =Output!H89/H$9 -> 0 | I89: =Output!I89/I$9 -> 0 | J89: 0 | L89: =#REF!/(RegDur-1) ->  | M89: =#REF!/(RegDur-1) ->  | N89: =#REF!/(RegDur-1) ->  | O89: =#REF!/(RegDur-1) ->  | P89: =#REF!/(RegDur-1) ->  | R89: Spare | T89: =Output!L89*T$9 -> 0 | U89: =Output!M89*U$9 -> 0 | V89: =Output!N89*V$9 -> 0 | W89: =Output!O89*W$9 -> 0 | X89: =Output!P89*X$9 -> 0 | Y89: 0 | AA89: =#REF! ->  | AB89: =#REF!/(RegDur-1) ->  | AC89: =#REF!/(RegDur-1) ->  | AD89: =#REF!/(RegDur-1) ->  | AE89: =#REF!/(RegDur-1) -> 
B90: TRUE | C90: =RAB!C92 -> Spare | E90: =Output!E90/E$9 -> 0 | F90: =Output!F90/F$9 -> 0 | G90: =Output!G90/G$9 -> 0 | H90: =Output!H90/H$9 -> 0 | I90: =Output!I90/I$9 -> 0 | J90: 0 | L90: =#REF!/(RegDur-1) ->  | M90: =#REF!/(RegDur-1) ->  | N90: =#REF!/(RegDur-1) ->  | O90: =#REF!/(RegDur-1) ->  | P90: =#REF!/(RegDur-1) ->  | R90: Spare | T90: =Output!L90*T$9 -> 0 | U90: =Output!M90*U$9 -> 0 | V90: =Output!N90*V$9 -> 0 | W90: =Output!O90*W$9 -> 0 | X90: =Output!P90*X$9 -> 0 | Y90: 0 | AA90: =#REF! ->  | AB90: =#REF!/(RegDur-1) ->  | AC90: =#REF!/(RegDur-1) ->  | AD90: =#REF!/(RegDur-1) ->  | AE90: =#REF!/(RegDur-1) -> 
B91: TRUE | C91: =RAB!C93 -> Spare | E91: =Output!E91/E$9 -> 0 | F91: =Output!F91/F$9 -> 0 | G91: =Output!G91/G$9 -> 0 | H91: =Output!H91/H$9 -> 0 | I91: =Output!I91/I$9 -> 0 | J91: 0 | L91: =#REF!/(RegDur-1) ->  | M91: =#REF!/(RegDur-1) ->  | N91: =#REF!/(RegDur-1) ->  | O91: =#REF!/(RegDur-1) ->  | P91: =#REF!/(RegDur-1) ->  | R91: Spare | T91: =Output!L91*T$9 -> 0 | U91: =Output!M91*U$9 -> 0 | V91: =Output!N91*V$9 -> 0 | W91: =Output!O91*W$9 -> 0 | X91: =Output!P91*X$9 -> 0 | Y91: 0 | AA91: =#REF! ->  | AB91: =#REF!/(RegDur-1) ->  | AC91: =#REF!/(RegDur-1) ->  | AD91: =#REF!/(RegDur-1) ->  | AE91: =#REF!/(RegDur-1) -> 
B92: TRUE | C92: =RAB!C94 -> Spare | E92: =Output!E92/E$9 -> 0 | F92: =Output!F92/F$9 -> 0 | G92: =Output!G92/G$9 -> 0 | H92: =Output!H92/H$9 -> 0 | I92: =Output!I92/I$9 -> 0 | J92: 0 | L92: =#REF!/(RegDur-1) ->  | M92: =#REF!/(RegDur-1) ->  | N92: =#REF!/(RegDur-1) ->  | O92: =#REF!/(RegDur-1) ->  | P92: =#REF!/(RegDur-1) ->  | R92: Spare | T92: =Output!L92*T$9 -> 0 | U92: =Output!M92*U$9 -> 0 | V92: =Output!N92*V$9 -> 0 | W92: =Output!O92*W$9 -> 0 | X92: =Output!P92*X$9 -> 0 | Y92: 0 | AA92: =#REF! ->  | AB92: =#REF!/(RegDur-1) ->  | AC92: =#REF!/(RegDur-1) ->  | AD92: =#REF!/(RegDur-1) ->  | AE92: =#REF!/(RegDur-1) -> 
B93: TRUE | C93: =RAB!C95 -> Spare | E93: =Output!E93/E$9 -> 0 | F93: =Output!F93/F$9 -> 0 | G93: =Output!G93/G$9 -> 0 | H93: =Output!H93/H$9 -> 0 | I93: =Output!I93/I$9 -> 0 | J93: 0 | L93: =#REF!/(RegDur-1) ->  | M93: =#REF!/(RegDur-1) ->  | N93: =#REF!/(RegDur-1) ->  | O93: =#REF!/(RegDur-1) ->  | P93: =#REF!/(RegDur-1) ->  | R93: Spare | T93: =Output!L93*T$9 -> 0 | U93: =Output!M93*U$9 -> 0 | V93: =Output!N93*V$9 -> 0 | W93: =Output!O93*W$9 -> 0 | X93: =Output!P93*X$9 -> 0 | Y93: 0 | AA93: =#REF! ->  | AB93: =#REF!/(RegDur-1) ->  | AC93: =#REF!/(RegDur-1) ->  | AD93: =#REF!/(RegDur-1) ->  | AE93: =#REF!/(RegDur-1) -> 
B94: TRUE | C94: =RAB!C96 -> Spare | E94: =Output!E94/E$9 -> 0 | F94: =Output!F94/F$9 -> 0 | G94: =Output!G94/G$9 -> 0 | H94: =Output!H94/H$9 -> 0 | I94: =Output!I94/I$9 -> 0 | J94: 0 | L94: =#REF!/(RegDur-1) ->  | M94: =#REF!/(RegDur-1) ->  | N94: =#REF!/(RegDur-1) ->  | O94: =#REF!/(RegDur-1) ->  | P94: =#REF!/(RegDur-1) ->  | R94: Spare | T94: =Output!L94*T$9 -> 0 | U94: =Output!M94*U$9 -> 0 | V94: =Output!N94*V$9 -> 0 | W94: =Output!O94*W$9 -> 0 | X94: =Output!P94*X$9 -> 0 | Y94: 0 | AA94: =#REF! ->  | AB94: =#REF!/(RegDur-1) ->  | AC94: =#REF!/(RegDur-1) ->  | AD94: =#REF!/(RegDur-1) ->  | AE94: =#REF!/(RegDur-1) -> 
B95: TRUE | C95: =RAB!C97 -> Spare | E95: =Output!E95/E$9 -> 0 | F95: =Output!F95/F$9 -> 0 | G95: =Output!G95/G$9 -> 0 | H95: =Output!H95/H$9 -> 0 | I95: =Output!I95/I$9 -> 0 | J95: 0 | L95: =#REF!/(RegDur-1) ->  | M95: =#REF!/(RegDur-1) ->  | N95: =#REF!/(RegDur-1) ->  | O95: =#REF!/(RegDur-1) ->  | P95: =#REF!/(RegDur-1) ->  | R95: Spare | T95: =Output!L95*T$9 -> 0 | U95: =Output!M95*U$9 -> 0 | V95: =Output!N95*V$9 -> 0 | W95: =Output!O95*W$9 -> 0 | X95: =Output!P95*X$9 -> 0 | Y95: 0 | AA95: =#REF! ->  | AB95: =#REF!/(RegDur-1) ->  | AC95: =#REF!/(RegDur-1) ->  | AD95: =#REF!/(RegDur-1) ->  | AE95: =#REF!/(RegDur-1) -> 
B96: TRUE | C96: =RAB!C98 -> Spare | E96: =Output!E96/E$9 -> 0 | F96: =Output!F96/F$9 -> 0 | G96: =Output!G96/G$9 -> 0 | H96: =Output!H96/H$9 -> 0 | I96: =Output!I96/I$9 -> 0 | J96: 0 | L96: =#REF!/(RegDur-1) ->  | M96: =#REF!/(RegDur-1) ->  | N96: =#REF!/(RegDur-1) ->  | O96: =#REF!/(RegDur-1) ->  | P96: =#REF!/(RegDur-1) ->  | R96: Spare | T96: =Output!L96*T$9 -> 0 | U96: =Output!M96*U$9 -> 0 | V96: =Output!N96*V$9 -> 0 | W96: =Output!O96*W$9 -> 0 | X96: =Output!P96*X$9 -> 0 | Y96: 0 | AA96: =#REF! ->  | AB96: =#REF!/(RegDur-1) ->  | AC96: =#REF!/(RegDur-1) ->  | AD96: =#REF!/(RegDur-1) ->  | AE96: =#REF!/(RegDur-1) -> 
B97: TRUE | C97: =RAB!C99 -> Spare | E97: =Output!E97/E$9 -> 0 | F97: =Output!F97/F$9 -> 0 | G97: =Output!G97/G$9 -> 0 | H97: =Output!H97/H$9 -> 0 | I97: =Output!I97/I$9 -> 0 | J97: 0 | L97: =#REF!/(RegDur-1) ->  | M97: =#REF!/(RegDur-1) ->  | N97: =#REF!/(RegDur-1) ->  | O97: =#REF!/(RegDur-1) ->  | P97: =#REF!/(RegDur-1) ->  | R97: Spare | T97: =Output!L97*T$9 -> 0 | U97: =Output!M97*U$9 -> 0 | V97: =Output!N97*V$9 -> 0 | W97: =Output!O97*W$9 -> 0 | X97: =Output!P97*X$9 -> 0 | Y97: 0 | AA97: =#REF! ->  | AB97: =#REF!/(RegDur-1) ->  | AC97: =#REF!/(RegDur-1) ->  | AD97: =#REF!/(RegDur-1) ->  | AE97: =#REF!/(RegDur-1) -> 
B98: TRUE | C98: =RAB!C100 -> Spare | E98: =Output!E98/E$9 -> 0 | F98: =Output!F98/F$9 -> 0 | G98: =Output!G98/G$9 -> 0 | H98: =Output!H98/H$9 -> 0 | I98: =Output!I98/I$9 -> 0 | J98: 0 | L98: =#REF!/(RegDur-1) ->  | M98: =#REF!/(RegDur-1) ->  | N98: =#REF!/(RegDur-1) ->  | O98: =#REF!/(RegDur-1) ->  | P98: =#REF!/(RegDur-1) ->  | R98: Spare | T98: =Output!L98*T$9 -> 0 | U98: =Output!M98*U$9 -> 0 | V98: =Output!N98*V$9 -> 0 | W98: =Output!O98*W$9 -> 0 | X98: =Output!P98*X$9 -> 0 | Y98: 0 | AA98: =#REF! ->  | AB98: =#REF!/(RegDur-1) ->  | AC98: =#REF!/(RegDur-1) ->  | AD98: =#REF!/(RegDur-1) ->  | AE98: =#REF!/(RegDur-1) -> 
B99: TRUE | C99: =RAB!C101 -> Spare | E99: =Output!E99/E$9 -> 0 | F99: =Output!F99/F$9 -> 0 | G99: =Output!G99/G$9 -> 0 | H99: =Output!H99/H$9 -> 0 | I99: =Output!I99/I$9 -> 0 | J99: 0 | L99: =#REF!/(RegDur-1) ->  | M99: =#REF!/(RegDur-1) ->  | N99: =#REF!/(RegDur-1) ->  | O99: =#REF!/(RegDur-1) ->  | P99: =#REF!/(RegDur-1) ->  | R99: Spare | T99: =Output!L99*T$9 -> 0 | U99: =Output!M99*U$9 -> 0 | V99: =Output!N99*V$9 -> 0 | W99: =Output!O99*W$9 -> 0 | X99: =Output!P99*X$9 -> 0 | Y99: 0 | AA99: =#REF! ->  | AB99: =#REF!/(RegDur-1) ->  | AC99: =#REF!/(RegDur-1) ->  | AD99: =#REF!/(RegDur-1) ->  | AE99: =#REF!/(RegDur-1) -> 
B100: TRUE | C100: =RAB!C102 -> Spare | E100: =Output!E100/E$9 -> 0 | F100: =Output!F100/F$9 -> 0 | G100: =Output!G100/G$9 -> 0 | H100: =Output!H100/H$9 -> 0 | I100: =Output!I100/I$9 -> 0 | J100: 0 | L100: =#REF!/(RegDur-1) ->  | M100: =#REF!/(RegDur-1) ->  | N100: =#REF!/(RegDur-1) ->  | O100: =#REF!/(RegDur-1) ->  | P100: =#REF!/(RegDur-1) ->  | R100: Spare | T100: =Output!L100*T$9 -> 0 | U100: =Output!M100*U$9 -> 0 | V100: =Output!N100*V$9 -> 0 | W100: =Output!O100*W$9 -> 0 | X100: =Output!P100*X$9 -> 0 | Y100: 0 | AA100: =#REF! ->  | AB100: =#REF!/(RegDur-1) ->  | AC100: =#REF!/(RegDur-1) ->  | AD100: =#REF!/(RegDur-1) ->  | AE100: =#REF!/(RegDur-1) -> 
B101: TRUE | C101: =RAB!C103 -> Spare | E101: =Output!E101/E$9 -> 0 | F101: =Output!F101/F$9 -> 0 | G101: =Output!G101/G$9 -> 0 | H101: =Output!H101/H$9 -> 0 | I101: =Output!I101/I$9 -> 0 | J101: 0 | L101: =#REF!/(RegDur-1) ->  | M101: =#REF!/(RegDur-1) ->  | N101: =#REF!/(RegDur-1) ->  | O101: =#REF!/(RegDur-1) ->  | P101: =#REF!/(RegDur-1) ->  | R101: Spare | T101: =Output!L101*T$9 -> 0 | U101: =Output!M101*U$9 -> 0 | V101: =Output!N101*V$9 -> 0 | W101: =Output!O101*W$9 -> 0 | X101: =Output!P101*X$9 -> 0 | Y101: 0 | AA101: =#REF! ->  | AB101: =#REF!/(RegDur-1) ->  | AC101: =#REF!/(RegDur-1) ->  | AD101: =#REF!/(RegDur-1) ->  | AE101: =#REF!/(RegDur-1) -> 
B102: TRUE | C102: =RAB!C104 -> Spare | E102: =Output!E102/E$9 -> 0 | F102: =Output!F102/F$9 -> 0 | G102: =Output!G102/G$9 -> 0 | H102: =Output!H102/H$9 -> 0 | I102: =Output!I102/I$9 -> 0 | J102: 0 | L102: =#REF!/(RegDur-1) ->  | M102: =#REF!/(RegDur-1) ->  | N102: =#REF!/(RegDur-1) ->  | O102: =#REF!/(RegDur-1) ->  | P102: =#REF!/(RegDur-1) ->  | R102: Spare | T102: =Output!L102*T$9 -> 0 | U102: =Output!M102*U$9 -> 0 | V102: =Output!N102*V$9 -> 0 | W102: =Output!O102*W$9 -> 0 | X102: =Output!P102*X$9 -> 0 | Y102: 0 | AA102: =#REF! ->  | AB102: =#REF!/(RegDur-1) ->  | AC102: =#REF!/(RegDur-1) ->  | AD102: =#REF!/(RegDur-1) ->  | AE102: =#REF!/(RegDur-1) -> 
B103: TRUE | C103: =RAB!C105 -> Spare | E103: =Output!E103/E$9 -> 0 | F103: =Output!F103/F$9 -> 0 | G103: =Output!G103/G$9 -> 0 | H103: =Output!H103/H$9 -> 0 | I103: =Output!I103/I$9 -> 0 | J103: 0 | L103: =#REF!/(RegDur-1) ->  | M103: =#REF!/(RegDur-1) ->  | N103: =#REF!/(RegDur-1) ->  | O103: =#REF!/(RegDur-1) ->  | P103: =#REF!/(RegDur-1) ->  | R103: Spare | T103: =Output!L103*T$9 -> 0 | U103: =Output!M103*U$9 -> 0 | V103: =Output!N103*V$9 -> 0 | W103: =Output!O103*W$9 -> 0 | X103: =Output!P103*X$9 -> 0 | Y103: 0 | AA103: =#REF! ->  | AB103: =#REF!/(RegDur-1) ->  | AC103: =#REF!/(RegDur-1) ->  | AD103: =#REF!/(RegDur-1) ->  | AE103: =#REF!/(RegDur-1) -> 
B104: TRUE | C104: =RAB!C106 -> Spare | E104: =Output!E104/E$9 -> 0 | F104: =Output!F104/F$9 -> 0 | G104: =Output!G104/G$9 -> 0 | H104: =Output!H104/H$9 -> 0 | I104: =Output!I104/I$9 -> 0 | J104: 0 | L104: =#REF!/(RegDur-1) ->  | M104: =#REF!/(RegDur-1) ->  | N104: =#REF!/(RegDur-1) ->  | O104: =#REF!/(RegDur-1) ->  | P104: =#REF!/(RegDur-1) ->  | R104: Spare | T104: =Output!L104*T$9 -> 0 | U104: =Output!M104*U$9 -> 0 | V104: =Output!N104*V$9 -> 0 | W104: =Output!O104*W$9 -> 0 | X104: =Output!P104*X$9 -> 0 | Y104: 0 | AA104: =#REF! ->  | AB104: =#REF!/(RegDur-1) ->  | AC104: =#REF!/(RegDur-1) ->  | AD104: =#REF!/(RegDur-1) ->  | AE104: =#REF!/(RegDur-1) -> 
B105: TRUE | C105: =RAB!C107 -> Spare | E105: =Output!E105/E$9 -> 0 | F105: =Output!F105/F$9 -> 0 | G105: =Output!G105/G$9 -> 0 | H105: =Output!H105/H$9 -> 0 | I105: =Output!I105/I$9 -> 0 | J105: 0 | L105: =#REF!/(RegDur-1) ->  | M105: =#REF!/(RegDur-1) ->  | N105: =#REF!/(RegDur-1) ->  | O105: =#REF!/(RegDur-1) ->  | P105: =#REF!/(RegDur-1) ->  | R105: Spare | T105: =Output!L105*T$9 -> 0 | U105: =Output!M105*U$9 -> 0 | V105: =Output!N105*V$9 -> 0 | W105: =Output!O105*W$9 -> 0 | X105: =Output!P105*X$9 -> 0 | Y105: 0 | AA105: =#REF! ->  | AB105: =#REF!/(RegDur-1) ->  | AC105: =#REF!/(RegDur-1) ->  | AD105: =#REF!/(RegDur-1) ->  | AE105: =#REF!/(RegDur-1) -> 
B106: TRUE | C106: =RAB!C108 -> Spare | E106: =Output!E106/E$9 -> 0 | F106: =Output!F106/F$9 -> 0 | G106: =Output!G106/G$9 -> 0 | H106: =Output!H106/H$9 -> 0 | I106: =Output!I106/I$9 -> 0 | J106: 0 | L106: =#REF!/(RegDur-1) ->  | M106: =#REF!/(RegDur-1) ->  | N106: =#REF!/(RegDur-1) ->  | O106: =#REF!/(RegDur-1) ->  | P106: =#REF!/(RegDur-1) ->  | R106: Spare | T106: =Output!L106*T$9 -> 0 | U106: =Output!M106*U$9 -> 0 | V106: =Output!N106*V$9 -> 0 | W106: =Output!O106*W$9 -> 0 | X106: =Output!P106*X$9 -> 0 | Y106: 0 | AA106: =#REF! ->  | AB106: =#REF!/(RegDur-1) ->  | AC106: =#REF!/(RegDur-1) ->  | AD106: =#REF!/(RegDur-1) ->  | AE106: =#REF!/(RegDur-1) -> 
B107: TRUE | C107: =RAB!C109 -> Spare | E107: =Output!E107/E$9 -> 0 | F107: =Output!F107/F$9 -> 0 | G107: =Output!G107/G$9 -> 0 | H107: =Output!H107/H$9 -> 0 | I107: =Output!I107/I$9 -> 0 | J107: 0 | L107: =#REF!/(RegDur-1) ->  | M107: =#REF!/(RegDur-1) ->  | N107: =#REF!/(RegDur-1) ->  | O107: =#REF!/(RegDur-1) ->  | P107: =#REF!/(RegDur-1) ->  | R107: =C107 -> Spare | T107: =Output!L107*T$9 -> 0 | U107: =Output!M107*U$9 -> 0 | V107: =Output!N107*V$9 -> 0 | W107: =Output!O107*W$9 -> 0 | X107: =Output!P107*X$9 -> 0 | Y107: 0 | AA107: =#REF! ->  | AB107: =#REF!/(RegDur-1) ->  | AC107: =#REF!/(RegDur-1) ->  | AD107: =#REF!/(RegDur-1) ->  | AE107: =#REF!/(RegDur-1) -> 
B108: TRUE | C108: =RAB!C110 -> Spare | E108: =Output!E108/E$9 -> 0 | F108: =Output!F108/F$9 -> 0 | G108: =Output!G108/G$9 -> 0 | H108: =Output!H108/H$9 -> 0 | I108: =Output!I108/I$9 -> 0 | J108: 0 | L108: =#REF!/(RegDur-1) ->  | M108: =#REF!/(RegDur-1) ->  | N108: =#REF!/(RegDur-1) ->  | O108: =#REF!/(RegDur-1) ->  | P108: =#REF!/(RegDur-1) ->  | R108: Spare | T108: =Output!L108*T$9 -> 0 | U108: =Output!M108*U$9 -> 0 | V108: =Output!N108*V$9 -> 0 | W108: =Output!O108*W$9 -> 0 | X108: =Output!P108*X$9 -> 0 | Y108: 0 | AA108: =#REF! ->  | AB108: =#REF!/(RegDur-1) ->  | AC108: =#REF!/(RegDur-1) ->  | AD108: =#REF!/(RegDur-1) ->  | AE108: =#REF!/(RegDur-1) -> 
B109: TRUE | C109: =RAB!C111 -> Spare | E109: =Output!E109/E$9 -> 0 | F109: =Output!F109/F$9 -> 0 | G109: =Output!G109/G$9 -> 0 | H109: =Output!H109/H$9 -> 0 | I109: =Output!I109/I$9 -> 0 | J109: 0 | L109: =#REF!/(RegDur-1) ->  | M109: =#REF!/(RegDur-1) ->  | N109: =#REF!/(RegDur-1) ->  | O109: =#REF!/(RegDur-1) ->  | P109: =#REF!/(RegDur-1) ->  | R109: Spare | T109: =Output!L109*T$9 -> 0 | U109: =Output!M109*U$9 -> 0 | V109: =Output!N109*V$9 -> 0 | W109: =Output!O109*W$9 -> 0 | X109: =Output!P109*X$9 -> 0 | Y109: 0 | AA109: =#REF! ->  | AB109: =#REF!/(RegDur-1) ->  | AC109: =#REF!/(RegDur-1) ->  | AD109: =#REF!/(RegDur-1) ->  | AE109: =#REF!/(RegDur-1) -> 
B110: TRUE | C110: =RAB!C112 -> Spare | E110: =Output!E110/E$9 -> 0 | F110: =Output!F110/F$9 -> 0 | G110: =Output!G110/G$9 -> 0 | H110: =Output!H110/H$9 -> 0 | I110: =Output!I110/I$9 -> 0 | J110: 0 | L110: =#REF!/(RegDur-1) ->  | M110: =#REF!/(RegDur-1) ->  | N110: =#REF!/(RegDur-1) ->  | O110: =#REF!/(RegDur-1) ->  | P110: =#REF!/(RegDur-1) ->  | R110: Spare | T110: =Output!L110*T$9 -> 0 | U110: =Output!M110*U$9 -> 0 | V110: =Output!N110*V$9 -> 0 | W110: =Output!O110*W$9 -> 0 | X110: =Output!P110*X$9 -> 0 | Y110: 0 | AA110: =#REF! ->  | AB110: =#REF!/(RegDur-1) ->  | AC110: =#REF!/(RegDur-1) ->  | AD110: =#REF!/(RegDur-1) ->  | AE110: =#REF!/(RegDur-1) -> 
B111: TRUE | C111: =RAB!C113 -> Spare | E111: =Output!E111/E$9 -> 0 | F111: =Output!F111/F$9 -> 0 | G111: =Output!G111/G$9 -> 0 | H111: =Output!H111/H$9 -> 0 | I111: =Output!I111/I$9 -> 0 | J111: 0 | L111: =#REF!/(RegDur-1) ->  | M111: =#REF!/(RegDur-1) ->  | N111: =#REF!/(RegDur-1) ->  | O111: =#REF!/(RegDur-1) ->  | P111: =#REF!/(RegDur-1) ->  | R111: Spare | T111: =Output!L111*T$9 -> 0 | U111: =Output!M111*U$9 -> 0 | V111: =Output!N111*V$9 -> 0 | W111: =Output!O111*W$9 -> 0 | X111: =Output!P111*X$9 -> 0 | Y111: 0 | AA111: =#REF! ->  | AB111: =#REF!/(RegDur-1) ->  | AC111: =#REF!/(RegDur-1) ->  | AD111: =#REF!/(RegDur-1) ->  | AE111: =#REF!/(RegDur-1) -> 
B112: TRUE | C112: =RAB!C114 -> Spare | E112: =Output!E112/E$9 -> 0 | F112: =Output!F112/F$9 -> 0 | G112: =Output!G112/G$9 -> 0 | H112: =Output!H112/H$9 -> 0 | I112: =Output!I112/I$9 -> 0 | J112: 0 | L112: =#REF!/(RegDur-1) ->  | M112: =#REF!/(RegDur-1) ->  | N112: =#REF!/(RegDur-1) ->  | O112: =#REF!/(RegDur-1) ->  | P112: =#REF!/(RegDur-1) ->  | R112: Spare | T112: =Output!L112*T$9 -> 0 | U112: =Output!M112*U$9 -> 0 | V112: =Output!N112*V$9 -> 0 | W112: =Output!O112*W$9 -> 0 | X112: =Output!P112*X$9 -> 0 | Y112: 0 | AA112: =#REF! ->  | AB112: =#REF!/(RegDur-1) ->  | AC112: =#REF!/(RegDur-1) ->  | AD112: =#REF!/(RegDur-1) ->  | AE112: =#REF!/(RegDur-1) -> 
B113: TRUE | C113: =RAB!C115 -> Spare | E113: =Output!E113/E$9 -> 0 | F113: =Output!F113/F$9 -> 0 | G113: =Output!G113/G$9 -> 0 | H113: =Output!H113/H$9 -> 0 | I113: =Output!I113/I$9 -> 0 | J113: 0 | L113: =#REF!/(RegDur-1) ->  | M113: =#REF!/(RegDur-1) ->  | N113: =#REF!/(RegDur-1) ->  | O113: =#REF!/(RegDur-1) ->  | P113: =#REF!/(RegDur-1) ->  | R113: Spare | T113: =Output!L113*T$9 -> 0 | U113: =Output!M113*U$9 -> 0 | V113: =Output!N113*V$9 -> 0 | W113: =Output!O113*W$9 -> 0 | X113: =Output!P113*X$9 -> 0 | Y113: 0 | AA113: =#REF! ->  | AB113: =#REF!/(RegDur-1) ->  | AC113: =#REF!/(RegDur-1) ->  | AD113: =#REF!/(RegDur-1) ->  | AE113: =#REF!/(RegDur-1) -> 
B114: TRUE | C114: =RAB!C116 -> Spare | E114: =Output!E114/E$9 -> 0 | F114: =Output!F114/F$9 -> 0 | G114: =Output!G114/G$9 -> 0 | H114: =Output!H114/H$9 -> 0 | I114: =Output!I114/I$9 -> 0 | J114: 0 | L114: =#REF!/(RegDur-1) ->  | M114: =#REF!/(RegDur-1) ->  | N114: =#REF!/(RegDur-1) ->  | O114: =#REF!/(RegDur-1) ->  | P114: =#REF!/(RegDur-1) ->  | R114: Spare | T114: =Output!L114*T$9 -> 0 | U114: =Output!M114*U$9 -> 0 | V114: =Output!N114*V$9 -> 0 | W114: =Output!O114*W$9 -> 0 | X114: =Output!P114*X$9 -> 0 | Y114: 0 | AA114: =#REF! ->  | AB114: =#REF!/(RegDur-1) ->  | AC114: =#REF!/(RegDur-1) ->  | AD114: =#REF!/(RegDur-1) ->  | AE114: =#REF!/(RegDur-1) -> 
B115: TRUE | C115: =RAB!C117 -> Spare | E115: =Output!E115/E$9 -> 0 | F115: =Output!F115/F$9 -> 0 | G115: =Output!G115/G$9 -> 0 | H115: =Output!H115/H$9 -> 0 | I115: =Output!I115/I$9 -> 0 | J115: 0 | L115: =#REF!/(RegDur-1) ->  | M115: =#REF!/(RegDur-1) ->  | N115: =#REF!/(RegDur-1) ->  | O115: =#REF!/(RegDur-1) ->  | P115: =#REF!/(RegDur-1) ->  | R115: Spare | T115: =Output!L115*T$9 -> 0 | U115: =Output!M115*U$9 -> 0 | V115: =Output!N115*V$9 -> 0 | W115: =Output!O115*W$9 -> 0 | X115: =Output!P115*X$9 -> 0 | Y115: 0 | AA115: =#REF! ->  | AB115: =#REF!/(RegDur-1) ->  | AC115: =#REF!/(RegDur-1) ->  | AD115: =#REF!/(RegDur-1) ->  | AE115: =#REF!/(RegDur-1) -> 
B116: TRUE | C116: =RAB!C118 -> Spare | E116: =Output!E116/E$9 -> 0 | F116: =Output!F116/F$9 -> 0 | G116: =Output!G116/G$9 -> 0 | H116: =Output!H116/H$9 -> 0 | I116: =Output!I116/I$9 -> 0 | J116: 0 | L116: =#REF!/(RegDur-1) ->  | M116: =#REF!/(RegDur-1) ->  | N116: =#REF!/(RegDur-1) ->  | O116: =#REF!/(RegDur-1) ->  | P116: =#REF!/(RegDur-1) ->  | R116: Spare | T116: =Output!L116*T$9 -> 0 | U116: =Output!M116*U$9 -> 0 | V116: =Output!N116*V$9 -> 0 | W116: =Output!O116*W$9 -> 0 | X116: =Output!P116*X$9 -> 0 | Y116: 0 | AA116: =#REF! ->  | AB116: =#REF!/(RegDur-1) ->  | AC116: =#REF!/(RegDur-1) ->  | AD116: =#REF!/(RegDur-1) ->  | AE116: =#REF!/(RegDur-1) -> 
B117: TRUE | C117: =RAB!C119 -> Spare | E117: =Output!E117/E$9 -> 0 | F117: =Output!F117/F$9 -> 0 | G117: =Output!G117/G$9 -> 0 | H117: =Output!H117/H$9 -> 0 | I117: =Output!I117/I$9 -> 0 | J117: 0 | L117: =#REF!/(RegDur-1) ->  | M117: =#REF!/(RegDur-1) ->  | N117: =#REF!/(RegDur-1) ->  | O117: =#REF!/(RegDur-1) ->  | P117: =#REF!/(RegDur-1) ->  | R117: Spare | T117: =Output!L117*T$9 -> 0 | U117: =Output!M117*U$9 -> 0 | V117: =Output!N117*V$9 -> 0 | W117: =Output!O117*W$9 -> 0 | X117: =Output!P117*X$9 -> 0 | Y117: 0 | AA117: =#REF! ->  | AB117: =#REF!/(RegDur-1) ->  | AC117: =#REF!/(RegDur-1) ->  | AD117: =#REF!/(RegDur-1) ->  | AE117: =#REF!/(RegDur-1) -> 
B118: TRUE | C118: =RAB!C120 -> Spare | E118: =Output!E118/E$9 -> 0 | F118: =Output!F118/F$9 -> 0 | G118: =Output!G118/G$9 -> 0 | H118: =Output!H118/H$9 -> 0 | I118: =Output!I118/I$9 -> 0 | J118: 0 | L118: =#REF!/(RegDur-1) ->  | M118: =#REF!/(RegDur-1) ->  | N118: =#REF!/(RegDur-1) ->  | O118: =#REF!/(RegDur-1) ->  | P118: =#REF!/(RegDur-1) ->  | R118: Spare | T118: =Output!L118*T$9 -> 0 | U118: =Output!M118*U$9 -> 0 | V118: =Output!N118*V$9 -> 0 | W118: =Output!O118*W$9 -> 0 | X118: =Output!P118*X$9 -> 0 | Y118: 0 | AA118: =#REF! ->  | AB118: =#REF!/(RegDur-1) ->  | AC118: =#REF!/(RegDur-1) ->  | AD118: =#REF!/(RegDur-1) ->  | AE118: =#REF!/(RegDur-1) -> 
B119: TRUE | C119: =RAB!C121 -> Spare | E119: =Output!E119/E$9 -> 0 | F119: =Output!F119/F$9 -> 0 | G119: =Output!G119/G$9 -> 0 | H119: =Output!H119/H$9 -> 0 | I119: =Output!I119/I$9 -> 0 | J119: 0 | L119: =#REF!/(RegDur-1) ->  | M119: =#REF!/(RegDur-1) ->  | N119: =#REF!/(RegDur-1) ->  | O119: =#REF!/(RegDur-1) ->  | P119: =#REF!/(RegDur-1) ->  | R119: Spare | T119: =Output!L119*T$9 -> 0 | U119: =Output!M119*U$9 -> 0 | V119: =Output!N119*V$9 -> 0 | W119: =Output!O119*W$9 -> 0 | X119: =Output!P119*X$9 -> 0 | Y119: 0 | AA119: =#REF! ->  | AB119: =#REF!/(RegDur-1) ->  | AC119: =#REF!/(RegDur-1) ->  | AD119: =#REF!/(RegDur-1) ->  | AE119: =#REF!/(RegDur-1) -> 
B120: TRUE | C120: =RAB!C122 -> Spare | E120: =Output!E120/E$9 -> 0 | F120: =Output!F120/F$9 -> 0 | G120: =Output!G120/G$9 -> 0 | H120: =Output!H120/H$9 -> 0 | I120: =Output!I120/I$9 -> 0 | J120: 0 | L120: =#REF!/(RegDur-1) ->  | M120: =#REF!/(RegDur-1) ->  | N120: =#REF!/(RegDur-1) ->  | O120: =#REF!/(RegDur-1) ->  | P120: =#REF!/(RegDur-1) ->  | R120: Spare | T120: =Output!L120*T$9 -> 0 | U120: =Output!M120*U$9 -> 0 | V120: =Output!N120*V$9 -> 0 | W120: =Output!O120*W$9 -> 0 | X120: =Output!P120*X$9 -> 0 | Y120: 0 | AA120: =#REF! ->  | AB120: =#REF!/(RegDur-1) ->  | AC120: =#REF!/(RegDur-1) ->  | AD120: =#REF!/(RegDur-1) ->  | AE120: =#REF!/(RegDur-1) -> 
B121: TRUE | C121: =RAB!C123 -> Spare | E121: =Output!E121/E$9 -> 0 | F121: =Output!F121/F$9 -> 0 | G121: =Output!G121/G$9 -> 0 | H121: =Output!H121/H$9 -> 0 | I121: =Output!I121/I$9 -> 0 | J121: 0 | L121: =#REF!/(RegDur-1) ->  | M121: =#REF!/(RegDur-1) ->  | N121: =#REF!/(RegDur-1) ->  | O121: =#REF!/(RegDur-1) ->  | P121: =#REF!/(RegDur-1) ->  | R121: Spare | T121: =Output!L121*T$9 -> 0 | U121: =Output!M121*U$9 -> 0 | V121: =Output!N121*V$9 -> 0 | W121: =Output!O121*W$9 -> 0 | X121: =Output!P121*X$9 -> 0 | Y121: 0 | AA121: =#REF! ->  | AB121: =#REF!/(RegDur-1) ->  | AC121: =#REF!/(RegDur-1) ->  | AD121: =#REF!/(RegDur-1) ->  | AE121: =#REF!/(RegDur-1) -> 
B122: TRUE | C122: =RAB!C124 -> Spare | E122: =Output!E122/E$9 -> 0 | F122: =Output!F122/F$9 -> 0 | G122: =Output!G122/G$9 -> 0 | H122: =Output!H122/H$9 -> 0 | I122: =Output!I122/I$9 -> 0 | J122: 0 | L122: =#REF!/(RegDur-1) ->  | M122: =#REF!/(RegDur-1) ->  | N122: =#REF!/(RegDur-1) ->  | O122: =#REF!/(RegDur-1) ->  | P122: =#REF!/(RegDur-1) ->  | R122: Spare | T122: =Output!L122*T$9 -> 0 | U122: =Output!M122*U$9 -> 0 | V122: =Output!N122*V$9 -> 0 | W122: =Output!O122*W$9 -> 0 | X122: =Output!P122*X$9 -> 0 | Y122: 0 | AA122: =#REF! ->  | AB122: =#REF!/(RegDur-1) ->  | AC122: =#REF!/(RegDur-1) ->  | AD122: =#REF!/(RegDur-1) ->  | AE122: =#REF!/(RegDur-1) -> 
B123: TRUE | C123: =RAB!C125 -> Spare | E123: =Output!E123/E$9 -> 0 | F123: =Output!F123/F$9 -> 0 | G123: =Output!G123/G$9 -> 0 | H123: =Output!H123/H$9 -> 0 | I123: =Output!I123/I$9 -> 0 | J123: 0 | L123: =#REF!/(RegDur-1) ->  | M123: =#REF!/(RegDur-1) ->  | N123: =#REF!/(RegDur-1) ->  | O123: =#REF!/(RegDur-1) ->  | P123: =#REF!/(RegDur-1) ->  | R123: Spare | T123: =Output!L123*T$9 -> 0 | U123: =Output!M123*U$9 -> 0 | V123: =Output!N123*V$9 -> 0 | W123: =Output!O123*W$9 -> 0 | X123: =Output!P123*X$9 -> 0 | Y123: 0 | AA123: =#REF! ->  | AB123: =#REF!/(RegDur-1) ->  | AC123: =#REF!/(RegDur-1) ->  | AD123: =#REF!/(RegDur-1) ->  | AE123: =#REF!/(RegDur-1) -> 
B124: TRUE | C124: =RAB!C126 -> Spare | E124: =Output!E124/E$9 -> 0 | F124: =Output!F124/F$9 -> 0 | G124: =Output!G124/G$9 -> 0 | H124: =Output!H124/H$9 -> 0 | I124: =Output!I124/I$9 -> 0 | J124: 0 | L124: =#REF!/(RegDur-1) ->  | M124: =#REF!/(RegDur-1) ->  | N124: =#REF!/(RegDur-1) ->  | O124: =#REF!/(RegDur-1) ->  | P124: =#REF!/(RegDur-1) ->  | R124: Spare | T124: =Output!L124*T$9 -> 0 | U124: =Output!M124*U$9 -> 0 | V124: =Output!N124*V$9 -> 0 | W124: =Output!O124*W$9 -> 0 | X124: =Output!P124*X$9 -> 0 | Y124: 0 | AA124: =#REF! ->  | AB124: =#REF!/(RegDur-1) ->  | AC124: =#REF!/(RegDur-1) ->  | AD124: =#REF!/(RegDur-1) ->  | AE124: =#REF!/(RegDur-1) -> 
B125: TRUE | C125: =RAB!C127 -> Spare | E125: =Output!E125/E$9 -> 0 | F125: =Output!F125/F$9 -> 0 | G125: =Output!G125/G$9 -> 0 | H125: =Output!H125/H$9 -> 0 | I125: =Output!I125/I$9 -> 0 | J125: 0 | L125: =#REF!/(RegDur-1) ->  | M125: =#REF!/(RegDur-1) ->  | N125: =#REF!/(RegDur-1) ->  | O125: =#REF!/(RegDur-1) ->  | P125: =#REF!/(RegDur-1) ->  | R125: Spare | T125: =Output!L125*T$9 -> 0 | U125: =Output!M125*U$9 -> 0 | V125: =Output!N125*V$9 -> 0 | W125: =Output!O125*W$9 -> 0 | X125: =Output!P125*X$9 -> 0 | Y125: 0 | AA125: =#REF! ->  | AB125: =#REF!/(RegDur-1) ->  | AC125: =#REF!/(RegDur-1) ->  | AD125: =#REF!/(RegDur-1) ->  | AE125: =#REF!/(RegDur-1) -> 
B126: TRUE | C126: =RAB!C128 -> Spare | E126: =Output!E126/E$9 -> 0 | F126: =Output!F126/F$9 -> 0 | G126: =Output!G126/G$9 -> 0 | H126: =Output!H126/H$9 -> 0 | I126: =Output!I126/I$9 -> 0 | J126: 0 | L126: =#REF!/(RegDur-1) ->  | M126: =#REF!/(RegDur-1) ->  | N126: =#REF!/(RegDur-1) ->  | O126: =#REF!/(RegDur-1) ->  | P126: =#REF!/(RegDur-1) ->  | R126: Spare | T126: =Output!L126*T$9 -> 0 | U126: =Output!M126*U$9 -> 0 | V126: =Output!N126*V$9 -> 0 | W126: =Output!O126*W$9 -> 0 | X126: =Output!P126*X$9 -> 0 | Y126: 0 | AA126: =#REF! ->  | AB126: =#REF!/(RegDur-1) ->  | AC126: =#REF!/(RegDur-1) ->  | AD126: =#REF!/(RegDur-1) ->  | AE126: =#REF!/(RegDur-1) -> 
B127: TRUE | C127: =RAB!C129 -> Spare | E127: =Output!E127/E$9 -> 0 | F127: =Output!F127/F$9 -> 0 | G127: =Output!G127/G$9 -> 0 | H127: =Output!H127/H$9 -> 0 | I127: =Output!I127/I$9 -> 0 | J127: 0 | L127: =#REF!/(RegDur-1) ->  | M127: =#REF!/(RegDur-1) ->  | N127: =#REF!/(RegDur-1) ->  | O127: =#REF!/(RegDur-1) ->  | P127: =#REF!/(RegDur-1) ->  | R127: Spare | T127: =Output!L127*T$9 -> 0 | U127: =Output!M127*U$9 -> 0 | V127: =Output!N127*V$9 -> 0 | W127: =Output!O127*W$9 -> 0 | X127: =Output!P127*X$9 -> 0 | Y127: 0 | AA127: =#REF! ->  | AB127: =#REF!/(RegDur-1) ->  | AC127: =#REF!/(RegDur-1) ->  | AD127: =#REF!/(RegDur-1) ->  | AE127: =#REF!/(RegDur-1) -> 
B128: TRUE | C128: =RAB!C130 -> Spare | E128: =Output!E128/E$9 -> 0 | F128: =Output!F128/F$9 -> 0 | G128: =Output!G128/G$9 -> 0 | H128: =Output!H128/H$9 -> 0 | I128: =Output!I128/I$9 -> 0 | J128: 0 | L128: =#REF!/(RegDur-1) ->  | M128: =#REF!/(RegDur-1) ->  | N128: =#REF!/(RegDur-1) ->  | O128: =#REF!/(RegDur-1) ->  | P128: =#REF!/(RegDur-1) ->  | R128: Spare | T128: =Output!L128*T$9 -> 0 | U128: =Output!M128*U$9 -> 0 | V128: =Output!N128*V$9 -> 0 | W128: =Output!O128*W$9 -> 0 | X128: =Output!P128*X$9 -> 0 | Y128: 0 | AA128: =#REF! ->  | AB128: =#REF!/(RegDur-1) ->  | AC128: =#REF!/(RegDur-1) ->  | AD128: =#REF!/(RegDur-1) ->  | AE128: =#REF!/(RegDur-1) -> 
B129: TRUE | C129: =RAB!C131 -> Spare | E129: =Output!E129/E$9 -> 0 | F129: =Output!F129/F$9 -> 0 | G129: =Output!G129/G$9 -> 0 | H129: =Output!H129/H$9 -> 0 | I129: =Output!I129/I$9 -> 0 | J129: 0 | L129: =#REF!/(RegDur-1) ->  | M129: =#REF!/(RegDur-1) ->  | N129: =#REF!/(RegDur-1) ->  | O129: =#REF!/(RegDur-1) ->  | P129: =#REF!/(RegDur-1) ->  | R129: Spare | T129: =Output!L129*T$9 -> 0 | U129: =Output!M129*U$9 -> 0 | V129: =Output!N129*V$9 -> 0 | W129: =Output!O129*W$9 -> 0 | X129: =Output!P129*X$9 -> 0 | Y129: 0 | AA129: =#REF! ->  | AB129: =#REF!/(RegDur-1) ->  | AC129: =#REF!/(RegDur-1) ->  | AD129: =#REF!/(RegDur-1) ->  | AE129: =#REF!/(RegDur-1) -> 
B130: TRUE | C130: =RAB!C132 -> Spare | E130: =Output!E130/E$9 -> 0 | F130: =Output!F130/F$9 -> 0 | G130: =Output!G130/G$9 -> 0 | H130: =Output!H130/H$9 -> 0 | I130: =Output!I130/I$9 -> 0 | J130: 0 | L130: =#REF!/(RegDur-1) ->  | M130: =#REF!/(RegDur-1) ->  | N130: =#REF!/(RegDur-1) ->  | O130: =#REF!/(RegDur-1) ->  | P130: =#REF!/(RegDur-1) ->  | R130: Spare | T130: =Output!L130*T$9 -> 0 | U130: =Output!M130*U$9 -> 0 | V130: =Output!N130*V$9 -> 0 | W130: =Output!O130*W$9 -> 0 | X130: =Output!P130*X$9 -> 0 | Y130: 0 | AA130: =#REF! ->  | AB130: =#REF!/(RegDur-1) ->  | AC130: =#REF!/(RegDur-1) ->  | AD130: =#REF!/(RegDur-1) ->  | AE130: =#REF!/(RegDur-1) -> 
B131: TRUE | C131: =RAB!C133 -> Spare | E131: =Output!E131/E$9 -> 0 | F131: =Output!F131/F$9 -> 0 | G131: =Output!G131/G$9 -> 0 | H131: =Output!H131/H$9 -> 0 | I131: =Output!I131/I$9 -> 0 | J131: 0 | L131: =#REF!/(RegDur-1) ->  | M131: =#REF!/(RegDur-1) ->  | N131: =#REF!/(RegDur-1) ->  | O131: =#REF!/(RegDur-1) ->  | P131: =#REF!/(RegDur-1) ->  | R131: Spare | T131: =Output!L131*T$9 -> 0 | U131: =Output!M131*U$9 -> 0 | V131: =Output!N131*V$9 -> 0 | W131: =Output!O131*W$9 -> 0 | X131: =Output!P131*X$9 -> 0 | Y131: 0 | AA131: =#REF! ->  | AB131: =#REF!/(RegDur-1) ->  | AC131: =#REF!/(RegDur-1) ->  | AD131: =#REF!/(RegDur-1) ->  | AE131: =#REF!/(RegDur-1) -> 
B132: TRUE | C132: =RAB!C134 -> Spare | E132: =Output!E132/E$9 -> 0 | F132: =Output!F132/F$9 -> 0 | G132: =Output!G132/G$9 -> 0 | H132: =Output!H132/H$9 -> 0 | I132: =Output!I132/I$9 -> 0 | J132: 0 | L132: =#REF!/(RegDur-1) ->  | M132: =#REF!/(RegDur-1) ->  | N132: =#REF!/(RegDur-1) ->  | O132: =#REF!/(RegDur-1) ->  | P132: =#REF!/(RegDur-1) ->  | R132: Spare | T132: =Output!L132*T$9 -> 0 | U132: =Output!M132*U$9 -> 0 | V132: =Output!N132*V$9 -> 0 | W132: =Output!O132*W$9 -> 0 | X132: =Output!P132*X$9 -> 0 | Y132: 0 | AA132: =#REF! ->  | AB132: =#REF!/(RegDur-1) ->  | AC132: =#REF!/(RegDur-1) ->  | AD132: =#REF!/(RegDur-1) ->  | AE132: =#REF!/(RegDur-1) -> 
B133: TRUE | C133: =RAB!C135 -> Spare | E133: =Output!E133/E$9 -> 0 | F133: =Output!F133/F$9 -> 0 | G133: =Output!G133/G$9 -> 0 | H133: =Output!H133/H$9 -> 0 | I133: =Output!I133/I$9 -> 0 | J133: 0 | L133: =#REF!/(RegDur-1) ->  | M133: =#REF!/(RegDur-1) ->  | N133: =#REF!/(RegDur-1) ->  | O133: =#REF!/(RegDur-1) ->  | P133: =#REF!/(RegDur-1) ->  | R133: Spare | T133: =Output!L133*T$9 -> 0 | U133: =Output!M133*U$9 -> 0 | V133: =Output!N133*V$9 -> 0 | W133: =Output!O133*W$9 -> 0 | X133: =Output!P133*X$9 -> 0 | Y133: 0 | AA133: =#REF! ->  | AB133: =#REF!/(RegDur-1) ->  | AC133: =#REF!/(RegDur-1) ->  | AD133: =#REF!/(RegDur-1) ->  | AE133: =#REF!/(RegDur-1) -> 
B134: TRUE | C134: =RAB!C136 -> Spare | E134: =Output!E134/E$9 -> 0 | F134: =Output!F134/F$9 -> 0 | G134: =Output!G134/G$9 -> 0 | H134: =Output!H134/H$9 -> 0 | I134: =Output!I134/I$9 -> 0 | J134: 0 | L134: =#REF!/(RegDur-1) ->  | M134: =#REF!/(RegDur-1) ->  | N134: =#REF!/(RegDur-1) ->  | O134: =#REF!/(RegDur-1) ->  | P134: =#REF!/(RegDur-1) ->  | R134: Spare | T134: =Output!L134*T$9 -> 0 | U134: =Output!M134*U$9 -> 0 | V134: =Output!N134*V$9 -> 0 | W134: =Output!O134*W$9 -> 0 | X134: =Output!P134*X$9 -> 0 | Y134: 0 | AA134: =#REF! ->  | AB134: =#REF!/(RegDur-1) ->  | AC134: =#REF!/(RegDur-1) ->  | AD134: =#REF!/(RegDur-1) ->  | AE134: =#REF!/(RegDur-1) -> 
B135: TRUE | C135: =RAB!C137 -> Spare | E135: =Output!E135/E$9 -> 0 | F135: =Output!F135/F$9 -> 0 | G135: =Output!G135/G$9 -> 0 | H135: =Output!H135/H$9 -> 0 | I135: =Output!I135/I$9 -> 0 | J135: 0 | L135: =#REF!/(RegDur-1) ->  | M135: =#REF!/(RegDur-1) ->  | N135: =#REF!/(RegDur-1) ->  | O135: =#REF!/(RegDur-1) ->  | P135: =#REF!/(RegDur-1) ->  | R135: Spare | T135: =Output!L135*T$9 -> 0 | U135: =Output!M135*U$9 -> 0 | V135: =Output!N135*V$9 -> 0 | W135: =Output!O135*W$9 -> 0 | X135: =Output!P135*X$9 -> 0 | Y135: 0 | AA135: =#REF! ->  | AB135: =#REF!/(RegDur-1) ->  | AC135: =#REF!/(RegDur-1) ->  | AD135: =#REF!/(RegDur-1) ->  | AE135: =#REF!/(RegDur-1) -> 
B136: TRUE | C136: =RAB!C138 -> Spare | E136: =Output!E136/E$9 -> 0 | F136: =Output!F136/F$9 -> 0 | G136: =Output!G136/G$9 -> 0 | H136: =Output!H136/H$9 -> 0 | I136: =Output!I136/I$9 -> 0 | J136: 0 | L136: =#REF!/(RegDur-1) ->  | M136: =#REF!/(RegDur-1) ->  | N136: =#REF!/(RegDur-1) ->  | O136: =#REF!/(RegDur-1) ->  | P136: =#REF!/(RegDur-1) ->  | R136: Spare | T136: =Output!L136*T$9 -> 0 | U136: =Output!M136*U$9 -> 0 | V136: =Output!N136*V$9 -> 0 | W136: =Output!O136*W$9 -> 0 | X136: =Output!P136*X$9 -> 0 | Y136: 0 | AA136: =#REF! ->  | AB136: =#REF!/(RegDur-1) ->  | AC136: =#REF!/(RegDur-1) ->  | AD136: =#REF!/(RegDur-1) ->  | AE136: =#REF!/(RegDur-1) -> 
B137: TRUE | C137: =RAB!C139 -> Spare | E137: =Output!E137/E$9 -> 0 | F137: =Output!F137/F$9 -> 0 | G137: =Output!G137/G$9 -> 0 | H137: =Output!H137/H$9 -> 0 | I137: =Output!I137/I$9 -> 0 | J137: 0 | L137: =#REF!/(RegDur-1) ->  | M137: =#REF!/(RegDur-1) ->  | N137: =#REF!/(RegDur-1) ->  | O137: =#REF!/(RegDur-1) ->  | P137: =#REF!/(RegDur-1) ->  | R137: Spare | T137: =Output!L137*T$9 -> 0 | U137: =Output!M137*U$9 -> 0 | V137: =Output!N137*V$9 -> 0 | W137: =Output!O137*W$9 -> 0 | X137: =Output!P137*X$9 -> 0 | Y137: 0 | AA137: =#REF! ->  | AB137: =#REF!/(RegDur-1) ->  | AC137: =#REF!/(RegDur-1) ->  | AD137: =#REF!/(RegDur-1) ->  | AE137: =#REF!/(RegDur-1) -> 
B138: TRUE | C138: =RAB!C140 -> Spare | E138: =Output!E138/E$9 -> 0 | F138: =Output!F138/F$9 -> 0 | G138: =Output!G138/G$9 -> 0 | H138: =Output!H138/H$9 -> 0 | I138: =Output!I138/I$9 -> 0 | J138: 0 | L138: =#REF!/(RegDur-1) ->  | M138: =#REF!/(RegDur-1) ->  | N138: =#REF!/(RegDur-1) ->  | O138: =#REF!/(RegDur-1) ->  | P138: =#REF!/(RegDur-1) ->  | R138: Spare | T138: =Output!L138*T$9 -> 0 | U138: =Output!M138*U$9 -> 0 | V138: =Output!N138*V$9 -> 0 | W138: =Output!O138*W$9 -> 0 | X138: =Output!P138*X$9 -> 0 | Y138: 0 | AA138: =#REF! ->  | AB138: =#REF!/(RegDur-1) ->  | AC138: =#REF!/(RegDur-1) ->  | AD138: =#REF!/(RegDur-1) ->  | AE138: =#REF!/(RegDur-1) -> 
B139: =IF(C139="Spare",TRUE,0) -> TRUE | C139: =RAB!C141 -> Spare | E139: =Output!E139/E$9 -> 0 | F139: =Output!F139/F$9 -> 0 | G139: =Output!G139/G$9 -> 0 | H139: =Output!H139/H$9 -> 0 | I139: =Output!I139/I$9 -> 0 | J139: 0 | L139: =#REF!/(RegDur-1) ->  | M139: =#REF!/(RegDur-1) ->  | N139: =#REF!/(RegDur-1) ->  | O139: =#REF!/(RegDur-1) ->  | P139: =#REF!/(RegDur-1) ->  | R139: =C139 -> Spare | T139: =Output!L139*T$9 -> 0 | U139: =Output!M139*U$9 -> 0 | V139: =Output!N139*V$9 -> 0 | W139: =Output!O139*W$9 -> 0 | X139: =Output!P139*X$9 -> 0 | Y139: 0 | AA139: =#REF! ->  | AB139: =#REF!/(RegDur-1) ->  | AC139: =#REF!/(RegDur-1) ->  | AD139: =#REF!/(RegDur-1) ->  | AE139: =#REF!/(RegDur-1) -> 
B140: TRUE | C140: =RAB!C142 -> Spare | E140: =Output!E140/E$9 -> 0 | F140: =Output!F140/F$9 -> 0 | G140: =Output!G140/G$9 -> 0 | H140: =Output!H140/H$9 -> 0 | I140: =Output!I140/I$9 -> 0 | J140: =SUM(E140:I140) -> 0 | L140: =#REF!/(RegDur-1) ->  | M140: =#REF!/(RegDur-1) ->  | N140: =#REF!/(RegDur-1) ->  | O140: =#REF!/(RegDur-1) ->  | P140: =#REF!/(RegDur-1) ->  | R140: Spare | T140: =Output!L140*T$9 -> 0 | U140: =Output!M140*U$9 -> 0 | V140: =Output!N140*V$9 -> 0 | W140: =Output!O140*W$9 -> 0 | X140: =Output!P140*X$9 -> 0 | Y140: =SUM(T140:X140) -> 0 | AA140: =#REF! ->  | AB140: =#REF!/(RegDur-1) ->  | AC140: =#REF!/(RegDur-1) ->  | AD140: =#REF!/(RegDur-1) ->  | AE140: =#REF!/(RegDur-1) -> 
B141: TRUE | C141: =RAB!C143 -> Spare | E141: =Output!E141/E$9 -> 0 | F141: =Output!F141/F$9 -> 0 | G141: =Output!G141/G$9 -> 0 | H141: =Output!H141/H$9 -> 0 | I141: =Output!I141/I$9 -> 0 | J141: 0 | L141: =#REF!/(RegDur-1) ->  | M141: =#REF!/(RegDur-1) ->  | N141: =#REF!/(RegDur-1) ->  | O141: =#REF!/(RegDur-1) ->  | P141: =#REF!/(RegDur-1) ->  | R141: Spare | T141: =Output!L141*T$9 -> 0 | U141: =Output!M141*U$9 -> 0 | V141: =Output!N141*V$9 -> 0 | W141: =Output!O141*W$9 -> 0 | X141: =Output!P141*X$9 -> 0 | Y141: 0 | AA141: =#REF! ->  | AB141: =#REF!/(RegDur-1) ->  | AC141: =#REF!/(RegDur-1) ->  | AD141: =#REF!/(RegDur-1) ->  | AE141: =#REF!/(RegDur-1) -> 
B142: TRUE | C142: =RAB!C144 -> Spare | E142: =Output!E142/E$9 -> 0 | F142: =Output!F142/F$9 -> 0 | G142: =Output!G142/G$9 -> 0 | H142: =Output!H142/H$9 -> 0 | I142: =Output!I142/I$9 -> 0 | J142: 0 | L142: =#REF!/(RegDur-1) ->  | M142: =#REF!/(RegDur-1) ->  | N142: =#REF!/(RegDur-1) ->  | O142: =#REF!/(RegDur-1) ->  | P142: =#REF!/(RegDur-1) ->  | R142: Spare | T142: =Output!L142*T$9 -> 0 | U142: =Output!M142*U$9 -> 0 | V142: =Output!N142*V$9 -> 0 | W142: =Output!O142*W$9 -> 0 | X142: =Output!P142*X$9 -> 0 | Y142: 0 | AA142: =#REF! ->  | AB142: =#REF!/(RegDur-1) ->  | AC142: =#REF!/(RegDur-1) ->  | AD142: =#REF!/(RegDur-1) ->  | AE142: =#REF!/(RegDur-1) -> 
B143: TRUE | C143: =RAB!C145 -> Spare | E143: =Output!E143/E$9 -> 0 | F143: =Output!F143/F$9 -> 0 | G143: =Output!G143/G$9 -> 0 | H143: =Output!H143/H$9 -> 0 | I143: =Output!I143/I$9 -> 0 | J143: 0 | L143: =#REF!/(RegDur-1) ->  | M143: =#REF!/(RegDur-1) ->  | N143: =#REF!/(RegDur-1) ->  | O143: =#REF!/(RegDur-1) ->  | P143: =#REF!/(RegDur-1) ->  | R143: Spare | T143: =Output!L143*T$9 -> 0 | U143: =Output!M143*U$9 -> 0 | V143: =Output!N143*V$9 -> 0 | W143: =Output!O143*W$9 -> 0 | X143: =Output!P143*X$9 -> 0 | Y143: 0 | AA143: =#REF! ->  | AB143: =#REF!/(RegDur-1) ->  | AC143: =#REF!/(RegDur-1) ->  | AD143: =#REF!/(RegDur-1) ->  | AE143: =#REF!/(RegDur-1) -> 
B144: TRUE | C144: =RAB!C146 -> Spare | E144: =Output!E144/E$9 -> 0 | F144: =Output!F144/F$9 -> 0 | G144: =Output!G144/G$9 -> 0 | H144: =Output!H144/H$9 -> 0 | I144: =Output!I144/I$9 -> 0 | J144: 0 | L144: =#REF!/(RegDur-1) ->  | M144: =#REF!/(RegDur-1) ->  | N144: =#REF!/(RegDur-1) ->  | O144: =#REF!/(RegDur-1) ->  | P144: =#REF!/(RegDur-1) ->  | R144: Spare | T144: =Output!L144*T$9 -> 0 | U144: =Output!M144*U$9 -> 0 | V144: =Output!N144*V$9 -> 0 | W144: =Output!O144*W$9 -> 0 | X144: =Output!P144*X$9 -> 0 | Y144: 0 | AA144: =#REF! ->  | AB144: =#REF!/(RegDur-1) ->  | AC144: =#REF!/(RegDur-1) ->  | AD144: =#REF!/(RegDur-1) ->  | AE144: =#REF!/(RegDur-1) -> 
B145: TRUE | C145: =RAB!C147 -> Spare | E145: =Output!E145/E$9 -> 0 | F145: =Output!F145/F$9 -> 0 | G145: =Output!G145/G$9 -> 0 | H145: =Output!H145/H$9 -> 0 | I145: =Output!I145/I$9 -> 0 | J145: 0 | L145: =#REF!/(RegDur-1) ->  | M145: =#REF!/(RegDur-1) ->  | N145: =#REF!/(RegDur-1) ->  | O145: =#REF!/(RegDur-1) ->  | P145: =#REF!/(RegDur-1) ->  | R145: Spare | T145: =Output!L145*T$9 -> 0 | U145: =Output!M145*U$9 -> 0 | V145: =Output!N145*V$9 -> 0 | W145: =Output!O145*W$9 -> 0 | X145: =Output!P145*X$9 -> 0 | Y145: 0 | AA145: =#REF! ->  | AB145: =#REF!/(RegDur-1) ->  | AC145: =#REF!/(RegDur-1) ->  | AD145: =#REF!/(RegDur-1) ->  | AE145: =#REF!/(RegDur-1) -> 
B146: TRUE | C146: =RAB!C148 -> Spare | E146: =Output!E146/E$9 -> 0 | F146: =Output!F146/F$9 -> 0 | G146: =Output!G146/G$9 -> 0 | H146: =Output!H146/H$9 -> 0 | I146: =Output!I146/I$9 -> 0 | J146: 0 | L146: =#REF!/(RegDur-1) ->  | M146: =#REF!/(RegDur-1) ->  | N146: =#REF!/(RegDur-1) ->  | O146: =#REF!/(RegDur-1) ->  | P146: =#REF!/(RegDur-1) ->  | R146: Spare | T146: =Output!L146*T$9 -> 0 | U146: =Output!M146*U$9 -> 0 | V146: =Output!N146*V$9 -> 0 | W146: =Output!O146*W$9 -> 0 | X146: =Output!P146*X$9 -> 0 | Y146: 0 | AA146: =#REF! ->  | AB146: =#REF!/(RegDur-1) ->  | AC146: =#REF!/(RegDur-1) ->  | AD146: =#REF!/(RegDur-1) ->  | AE146: =#REF!/(RegDur-1) -> 
B147: TRUE | C147: =RAB!C149 -> Spare | E147: =Output!E147/E$9 -> 0 | F147: =Output!F147/F$9 -> 0 | G147: =Output!G147/G$9 -> 0 | H147: =Output!H147/H$9 -> 0 | I147: =Output!I147/I$9 -> 0 | J147: 0 | L147: =#REF!/(RegDur-1) ->  | M147: =#REF!/(RegDur-1) ->  | N147: =#REF!/(RegDur-1) ->  | O147: =#REF!/(RegDur-1) ->  | P147: =#REF!/(RegDur-1) ->  | R147: Spare | T147: =Output!L147*T$9 -> 0 | U147: =Output!M147*U$9 -> 0 | V147: =Output!N147*V$9 -> 0 | W147: =Output!O147*W$9 -> 0 | X147: =Output!P147*X$9 -> 0 | Y147: 0 | AA147: =#REF! ->  | AB147: =#REF!/(RegDur-1) ->  | AC147: =#REF!/(RegDur-1) ->  | AD147: =#REF!/(RegDur-1) ->  | AE147: =#REF!/(RegDur-1) -> 
B148: TRUE | C148: =RAB!C150 -> Spare | E148: =Output!E148/E$9 -> 0 | F148: =Output!F148/F$9 -> 0 | G148: =Output!G148/G$9 -> 0 | H148: =Output!H148/H$9 -> 0 | I148: =Output!I148/I$9 -> 0 | J148: 0 | L148: =#REF!/(RegDur-1) ->  | M148: =#REF!/(RegDur-1) ->  | N148: =#REF!/(RegDur-1) ->  | O148: =#REF!/(RegDur-1) ->  | P148: =#REF!/(RegDur-1) ->  | R148: Spare | T148: =Output!L148*T$9 -> 0 | U148: =Output!M148*U$9 -> 0 | V148: =Output!N148*V$9 -> 0 | W148: =Output!O148*W$9 -> 0 | X148: =Output!P148*X$9 -> 0 | Y148: 0 | AA148: =#REF! ->  | AB148: =#REF!/(RegDur-1) ->  | AC148: =#REF!/(RegDur-1) ->  | AD148: =#REF!/(RegDur-1) ->  | AE148: =#REF!/(RegDur-1) -> 
B149: TRUE | C149: =RAB!C151 -> Spare | E149: =Output!E149/E$9 -> 0 | F149: =Output!F149/F$9 -> 0 | G149: =Output!G149/G$9 -> 0 | H149: =Output!H149/H$9 -> 0 | I149: =Output!I149/I$9 -> 0 | J149: 0 | L149: =#REF!/(RegDur-1) ->  | M149: =#REF!/(RegDur-1) ->  | N149: =#REF!/(RegDur-1) ->  | O149: =#REF!/(RegDur-1) ->  | P149: =#REF!/(RegDur-1) ->  | R149: Spare | T149: =Output!L149*T$9 -> 0 | U149: =Output!M149*U$9 -> 0 | V149: =Output!N149*V$9 -> 0 | W149: =Output!O149*W$9 -> 0 | X149: =Output!P149*X$9 -> 0 | Y149: 0 | AA149: =#REF! ->  | AB149: =#REF!/(RegDur-1) ->  | AC149: =#REF!/(RegDur-1) ->  | AD149: =#REF!/(RegDur-1) ->  | AE149: =#REF!/(RegDur-1) -> 
B150: TRUE | C150: =RAB!C152 -> Spare | E150: =Output!E150/E$9 -> 0 | F150: =Output!F150/F$9 -> 0 | G150: =Output!G150/G$9 -> 0 | H150: =Output!H150/H$9 -> 0 | I150: =Output!I150/I$9 -> 0 | J150: 0 | L150: =#REF!/(RegDur-1) ->  | M150: =#REF!/(RegDur-1) ->  | N150: =#REF!/(RegDur-1) ->  | O150: =#REF!/(RegDur-1) ->  | P150: =#REF!/(RegDur-1) ->  | R150: Spare | T150: =Output!L150*T$9 -> 0 | U150: =Output!M150*U$9 -> 0 | V150: =Output!N150*V$9 -> 0 | W150: =Output!O150*W$9 -> 0 | X150: =Output!P150*X$9 -> 0 | Y150: 0 | AA150: =#REF! ->  | AB150: =#REF!/(RegDur-1) ->  | AC150: =#REF!/(RegDur-1) ->  | AD150: =#REF!/(RegDur-1) ->  | AE150: =#REF!/(RegDur-1) -> 
B151: TRUE | C151: =RAB!C153 -> Spare | E151: =Output!E151/E$9 -> 0 | F151: =Output!F151/F$9 -> 0 | G151: =Output!G151/G$9 -> 0 | H151: =Output!H151/H$9 -> 0 | I151: =Output!I151/I$9 -> 0 | J151: 0 | L151: =#REF!/(RegDur-1) ->  | M151: =#REF!/(RegDur-1) ->  | N151: =#REF!/(RegDur-1) ->  | O151: =#REF!/(RegDur-1) ->  | P151: =#REF!/(RegDur-1) ->  | R151: Spare | T151: =Output!L151*T$9 -> 0 | U151: =Output!M151*U$9 -> 0 | V151: =Output!N151*V$9 -> 0 | W151: =Output!O151*W$9 -> 0 | X151: =Output!P151*X$9 -> 0 | Y151: 0 | AA151: =#REF! ->  | AB151: =#REF!/(RegDur-1) ->  | AC151: =#REF!/(RegDur-1) ->  | AD151: =#REF!/(RegDur-1) ->  | AE151: =#REF!/(RegDur-1) -> 
B152: TRUE | C152: =RAB!C154 -> Spare | E152: =Output!E152/E$9 -> 0 | F152: =Output!F152/F$9 -> 0 | G152: =Output!G152/G$9 -> 0 | H152: =Output!H152/H$9 -> 0 | I152: =Output!I152/I$9 -> 0 | J152: 0 | L152: =#REF!/(RegDur-1) ->  | M152: =#REF!/(RegDur-1) ->  | N152: =#REF!/(RegDur-1) ->  | O152: =#REF!/(RegDur-1) ->  | P152: =#REF!/(RegDur-1) ->  | R152: Spare | T152: =Output!L152*T$9 -> 0 | U152: =Output!M152*U$9 -> 0 | V152: =Output!N152*V$9 -> 0 | W152: =Output!O152*W$9 -> 0 | X152: =Output!P152*X$9 -> 0 | Y152: 0 | AA152: =#REF! ->  | AB152: =#REF!/(RegDur-1) ->  | AC152: =#REF!/(RegDur-1) ->  | AD152: =#REF!/(RegDur-1) ->  | AE152: =#REF!/(RegDur-1) -> 
B153: TRUE | C153: =RAB!C155 -> Spare | E153: =Output!E153/E$9 -> 0 | F153: =Output!F153/F$9 -> 0 | G153: =Output!G153/G$9 -> 0 | H153: =Output!H153/H$9 -> 0 | I153: =Output!I153/I$9 -> 0 | J153: 0 | L153: =#REF!/(RegDur-1) ->  | M153: =#REF!/(RegDur-1) ->  | N153: =#REF!/(RegDur-1) ->  | O153: =#REF!/(RegDur-1) ->  | P153: =#REF!/(RegDur-1) ->  | R153: Spare | T153: =Output!L153*T$9 -> 0 | U153: =Output!M153*U$9 -> 0 | V153: =Output!N153*V$9 -> 0 | W153: =Output!O153*W$9 -> 0 | X153: =Output!P153*X$9 -> 0 | Y153: 0 | AA153: =#REF! ->  | AB153: =#REF!/(RegDur-1) ->  | AC153: =#REF!/(RegDur-1) ->  | AD153: =#REF!/(RegDur-1) ->  | AE153: =#REF!/(RegDur-1) -> 
B154: TRUE | C154: =RAB!C156 -> Spare | E154: =Output!E154/E$9 -> 0 | F154: =Output!F154/F$9 -> 0 | G154: =Output!G154/G$9 -> 0 | H154: =Output!H154/H$9 -> 0 | I154: =Output!I154/I$9 -> 0 | J154: 0 | L154: =#REF!/(RegDur-1) ->  | M154: =#REF!/(RegDur-1) ->  | N154: =#REF!/(RegDur-1) ->  | O154: =#REF!/(RegDur-1) ->  | P154: =#REF!/(RegDur-1) ->  | R154: Spare | T154: =Output!L154*T$9 -> 0 | U154: =Output!M154*U$9 -> 0 | V154: =Output!N154*V$9 -> 0 | W154: =Output!O154*W$9 -> 0 | X154: =Output!P154*X$9 -> 0 | Y154: 0 | AA154: =#REF! ->  | AB154: =#REF!/(RegDur-1) ->  | AC154: =#REF!/(RegDur-1) ->  | AD154: =#REF!/(RegDur-1) ->  | AE154: =#REF!/(RegDur-1) -> 
B155: TRUE | C155: =RAB!C157 -> Spare | E155: =Output!E155/E$9 -> 0 | F155: =Output!F155/F$9 -> 0 | G155: =Output!G155/G$9 -> 0 | H155: =Output!H155/H$9 -> 0 | I155: =Output!I155/I$9 -> 0 | J155: 0 | L155: =#REF!/(RegDur-1) ->  | M155: =#REF!/(RegDur-1) ->  | N155: =#REF!/(RegDur-1) ->  | O155: =#REF!/(RegDur-1) ->  | P155: =#REF!/(RegDur-1) ->  | R155: Spare | T155: =Output!L155*T$9 -> 0 | U155: =Output!M155*U$9 -> 0 | V155: =Output!N155*V$9 -> 0 | W155: =Output!O155*W$9 -> 0 | X155: =Output!P155*X$9 -> 0 | Y155: 0 | AA155: =#REF! ->  | AB155: =#REF!/(RegDur-1) ->  | AC155: =#REF!/(RegDur-1) ->  | AD155: =#REF!/(RegDur-1) ->  | AE155: =#REF!/(RegDur-1) -> 
B156: TRUE | C156: =RAB!C158 -> Spare | E156: =Output!E156/E$9 -> 0 | F156: =Output!F156/F$9 -> 0 | G156: =Output!G156/G$9 -> 0 | H156: =Output!H156/H$9 -> 0 | I156: =Output!I156/I$9 -> 0 | J156: 0 | L156: =#REF!/(RegDur-1) ->  | M156: =#REF!/(RegDur-1) ->  | N156: =#REF!/(RegDur-1) ->  | O156: =#REF!/(RegDur-1) ->  | P156: =#REF!/(RegDur-1) ->  | R156: Spare | T156: =Output!L156*T$9 -> 0 | U156: =Output!M156*U$9 -> 0 | V156: =Output!N156*V$9 -> 0 | W156: =Output!O156*W$9 -> 0 | X156: =Output!P156*X$9 -> 0 | Y156: 0 | AA156: =#REF! ->  | AB156: =#REF!/(RegDur-1) ->  | AC156: =#REF!/(RegDur-1) ->  | AD156: =#REF!/(RegDur-1) ->  | AE156: =#REF!/(RegDur-1) -> 
B157: TRUE | C157: =RAB!C159 -> Spare | E157: =Output!E157/E$9 -> 0 | F157: =Output!F157/F$9 -> 0 | G157: =Output!G157/G$9 -> 0 | H157: =Output!H157/H$9 -> 0 | I157: =Output!I157/I$9 -> 0 | J157: 0 | L157: =#REF!/(RegDur-1) ->  | M157: =#REF!/(RegDur-1) ->  | N157: =#REF!/(RegDur-1) ->  | O157: =#REF!/(RegDur-1) ->  | P157: =#REF!/(RegDur-1) ->  | R157: Spare | T157: =Output!L157*T$9 -> 0 | U157: =Output!M157*U$9 -> 0 | V157: =Output!N157*V$9 -> 0 | W157: =Output!O157*W$9 -> 0 | X157: =Output!P157*X$9 -> 0 | Y157: 0 | AA157: =#REF! ->  | AB157: =#REF!/(RegDur-1) ->  | AC157: =#REF!/(RegDur-1) ->  | AD157: =#REF!/(RegDur-1) ->  | AE157: =#REF!/(RegDur-1) -> 
B158: TRUE | C158: =RAB!C160 -> Spare | E158: =Output!E158/E$9 -> 0 | F158: =Output!F158/F$9 -> 0 | G158: =Output!G158/G$9 -> 0 | H158: =Output!H158/H$9 -> 0 | I158: =Output!I158/I$9 -> 0 | J158: 0 | L158: =#REF!/(RegDur-1) ->  | M158: =#REF!/(RegDur-1) ->  | N158: =#REF!/(RegDur-1) ->  | O158: =#REF!/(RegDur-1) ->  | P158: =#REF!/(RegDur-1) ->  | R158: Spare | T158: =Output!L158*T$9 -> 0 | U158: =Output!M158*U$9 -> 0 | V158: =Output!N158*V$9 -> 0 | W158: =Output!O158*W$9 -> 0 | X158: =Output!P158*X$9 -> 0 | Y158: 0 | AA158: =#REF! ->  | AB158: =#REF!/(RegDur-1) ->  | AC158: =#REF!/(RegDur-1) ->  | AD158: =#REF!/(RegDur-1) ->  | AE158: =#REF!/(RegDur-1) -> 
B159: TRUE | C159: =RAB!C161 -> Spare | E159: =Output!E159/E$9 -> 0 | F159: =Output!F159/F$9 -> 0 | G159: =Output!G159/G$9 -> 0 | H159: =Output!H159/H$9 -> 0 | I159: =Output!I159/I$9 -> 0 | J159: 0 | L159: =#REF!/(RegDur-1) ->  | M159: =#REF!/(RegDur-1) ->  | N159: =#REF!/(RegDur-1) ->  | O159: =#REF!/(RegDur-1) ->  | P159: =#REF!/(RegDur-1) ->  | R159: Spare | T159: =Output!L159*T$9 -> 0 | U159: =Output!M159*U$9 -> 0 | V159: =Output!N159*V$9 -> 0 | W159: =Output!O159*W$9 -> 0 | X159: =Output!P159*X$9 -> 0 | Y159: 0 | AA159: =#REF! ->  | AB159: =#REF!/(RegDur-1) ->  | AC159: =#REF!/(RegDur-1) ->  | AD159: =#REF!/(RegDur-1) ->  | AE159: =#REF!/(RegDur-1) -> 
B160: TRUE | C160: =RAB!C162 -> Spare | E160: =Output!E160/E$9 -> 0 | F160: =Output!F160/F$9 -> 0 | G160: =Output!G160/G$9 -> 0 | H160: =Output!H160/H$9 -> 0 | I160: =Output!I160/I$9 -> 0 | J160: 0 | L160: =#REF!/(RegDur-1) ->  | M160: =#REF!/(RegDur-1) ->  | N160: =#REF!/(RegDur-1) ->  | O160: =#REF!/(RegDur-1) ->  | P160: =#REF!/(RegDur-1) ->  | R160: Spare | T160: =Output!L160*T$9 -> 0 | U160: =Output!M160*U$9 -> 0 | V160: =Output!N160*V$9 -> 0 | W160: =Output!O160*W$9 -> 0 | X160: =Output!P160*X$9 -> 0 | Y160: 0 | AA160: =#REF! ->  | AB160: =#REF!/(RegDur-1) ->  | AC160: =#REF!/(RegDur-1) ->  | AD160: =#REF!/(RegDur-1) ->  | AE160: =#REF!/(RegDur-1) -> 

Sheet Roll Forward
B1: Roll Forward Inputs
C2: Inputs required for calculating the opening RAB and TAB values
C8: Other
C10: Actual escalation
E12: =TRANSPOSE(Global!G13:G17) -> 2015 | F12: 2016 | G12: 2017 | H12: 2018 | I12: 2019
C13: =Global!C85 -> CPI | D13: % p.a. | E13: 0.02475 | F13: 0.0182011224 | G13: 0.0285 | H13: 0.0339 | I13: 0.0176
C14: =Global!C86 -> LPI | D14: % p.a. | E14: 0.0335 | F14: 0.036 | G14: 0.024 | H14: 0.017 | I14: 0.006
C15: =Global!C87 -> Real capex | D15: % p.a. | E15: 0 | F15: 0 | G15: 0 | H15: 0 | I15: 0
C16: =Global!C88 -> Real labour (capex) | D16: % p.a. | E16: 0 | F16: 0 | G16: 0 | H16: 0 | I16: 0
C17: =Global!C89 -> Real opex | D17: % p.a. | E17: 0 | F17: 0 | G17: 0 | H17: 0 | I17: 0
C19: WACC
E21: =E12 -> 2015 | F21: =F12 -> 2016 | G21: =G12 -> 2017 | H21: =H12 -> 2018 | I21: =I12 -> 2019
C22: Real vanilla WACC | D22: %
C23: Nominal pre-tax WACC | D23: %
C25: ="Opening Regulated Asset Base " & "- nominal " & Global!$G$13 -> Opening Regulated Asset Base - nominal 2015
C28: RAB escalation index | D28: selection | E28: CPI
E31: Opening RAB | F31: Remaining Life | G31: Standard Life | H31: Asset Count | I31: Opening TAB | J31: Remaining Life | K31: Standard Life
E32: $ | F32: Yrs | G32: Yrs | H32: # | I32: $ | J32: Yrs | K32: Yrs
C33: Asset Class Name
B34: =IF(C34="Spare",TRUE,0) -> 0 | C34: 1 x 20 W Fluorescent | E34: 1310.050397 | F34: 15 | G34: 20 | H34: 417 | I34: 1892.406533 | J34: 10 | K34: 15
B35: 0 | C35: 2 x 20 W Fluorescent | E35: 0 | F35: 15 | G35: 20 | H35: 608 | I35: 0 | J35: 10 | K35: 15
B36: 0 | C36: 4 x 20 W Fluorescent | E36: 43646.61529 | F36: 15 | G36: 20 | H36: 0 | I36: 79210.47575 | J36: 10 | K36: 15
B37: 0 | C37: 2 x 14 W Fluorescent | E37: 228706.8985 | F37: 13 | G37: 20 | H37: 2305.333333 | I37: 385242.3499 | J37: 8 | K37: 15
B38: 0 | C38: 2 x 24 W Fluorescent | E38: 66030.21683 | F38: 15 | G38: 20 | H38: 261 | I38: 61523.57419 | J38: 10 | K38: 15
B39: 0 | C39: 1 x 40 W Fluorescent | E39: 24767.5131 | F39: 15 | G39: 20 | H39: 16929 | I39: 22753.24569 | J39: 10 | K39: 15
B40: 0 | C40: 2 x 40 W Fluorescent | E40: 0 | F40: 15 | G40: 20 | H40: 62 | I40: 0 | J40: 10 | K40: 15
B41: 0 | C41: 1 x 42 W Fluorescent | E41: 0 | F41: 15 | G41: 20 | H41: 0 | I41: 0 | J41: 10 | K41: 15
B42: 0 | C42: 50W Mercury | E42: 7620.655256 | F42: 15 | G42: 20 | H42: 46 | I42: 4397.914142 | J42: 10 | K42: 15
B43: 0 | C43: 80W Mercury | E43: 2624874.311 | F43: 4 | G43: 20 | H43: 90113 | I43: 19066.18115 | J43: 0 | K43: 15
B44: 0 | C44: 125W Mercury | E44: 5113.078251 | F44: 15 | G44: 20 | H44: 34 | I44: 1505.460645 | J44: 10 | K44: 15
B45: 0 | C45: 250W Mercury | E45: 193394.1721 | F45: 4 | G45: 20 | H45: 4430.333333 | I45: 0 | J45: 0 | K45: 15
B46: 0 | C46: 2 x 250W Mercury | E46: 737.7005 | F46: 15 | G46: 20 | H46: 2 | I46: 669.5957547 | J46: 10 | K46: 15
B47: 0 | C47: 400 W Mercury | E47: 94072.79723 | F47: 4 | G47: 20 | H47: 1740.666667 | I47: 0 | J47: 0 | K47: 15
B48: 0 | C48: 700 W Mercury | E48: 0 | F48: 15 | G48: 20 | H48: 0 | I48: 0 | J48: 10 | K48: 15
B49: 0 | C49: 50W Sodium | E49: 260.618236 | F49: 15 | G49: 20 | H49: 1 | I49: 236.5578773 | J49: 10 | K49: 15
B50: 0 | C50: 70W Sodium | E50: 9669.103412 | F50: 15 | G50: 20 | H50: 39 | I50: 8895.753587 | J50: 10 | K50: 15
B51: 0 | C51: 90W Sodium | E51: 0 | F51: 15 | G51: 20 | H51: 0 | I51: 0 | J51: 10 | K51: 15
B52: 0 | C52: 100W Sodium | E52: 21106.49615 | F52: 15 | G52: 20 | H52: 51 | I52: 35802.36592 | J52: 10 | K52: 15
B53: 0 | C53: 120W Sodium | E53: 285.781865 | F53: 15 | G53: 20 | H53: 5 | I53: 275.5482514 | J53: 10 | K53: 15
B54: 0 | C54: 150W Sodium | E54: 840168.478 | F54: 6 | G54: 20 | H54: 14910.33333 | I54: 0 | J54: 0 | K54: 15
B55: 0 | C55: 250W Sodium | E55: 312450.7243 | F55: 6 | G55: 20 | H55: 19547.33333 | I55: 0 | J55: 0 | K55: 15
B56: 0 | C56: 2 x 250W Sodium | E56: 1233.892084 | F56: 15 | G56: 20 | H56: 10 | I56: 1119.978773 | J56: 10 | K56: 15
B57: 0 | C57: 310W Sodium | E57: 0 | F57: 15 | G57: 20 | H57: 0 | I57: 0 | J57: 10 | K57: 15
B58: 0 | C58: 400 W Sodium | E58: 0 | F58: 6 | G58: 20 | H58: 2083.666667 | I58: 23987.33154 | J58: 0 | K58: 15
B59: 0 | C59: 2 x 400 W Sodium | E59: 2104.850006 | F59: 15 | G59: 20 | H59: 0 | I59: 3490.401914 | J59: 10 | K59: 15
B60: 0 | C60: 4 x 600W Sodium | E60: 0 | F60: 15 | G60: 20 | H60: 0 | I60: 0 | J60: 10 | K60: 15
B61: 0 | C61: 60 W Incandescent | E61: 0 | F61: 15 | G61: 20 | H61: 41 | I61: 0 | J61: 10 | K61: 15
B62: 0 | C62: 100 W Incandescent | E62: 0 | F62: 15 | G62: 20 | H62: 60 | I62: 0 | J62: 10 | K62: 15
B63: 0 | C63: 500 W Incandescent | E63: 0.7017803805 | F63: 5 | G63: 20 | H63: 3 | I63: 0 | J63: 0 | K63: 15
B64: 0 | C64: 1000 W Incandescent | E64: 0 | F64: 15 | G64: 20 | H64: 0 | I64: 0 | J64: 0 | K64: 15
B65: 0 | C65: 1500 W Incandescent | E65: 0 | F65: 15 | G65: 20 | H65: 0 | I65: 0 | J65: 0 | K65: 15
B66: =IF(C66="Spare",TRUE,0) -> 0 | C66: 100 W Metal Halide | E66: 6778.483069 | F66: 0 | G66: 20 | H66: 143 | I66: 182.1769279 | J66: 0 | K66: 15
B67: 0 | C67: 150 W Metal Halide | E67: 97519.47292 | F67: 0 | G67: 20 | H67: 376 | I67: 176254.735 | J67: 0 | K67: 15
B68: 0 | C68: 250 W Metal Halide | E68: 14061.42869 | F68: 0 | G68: 20 | H68: 245 | I68: 34347.16664 | J68: 0 | K68: 15
B69: 0 | C69: 2 x 250 W Metal Halide | E69: 14224.10411 | F69: 15 | G69: 20 | H69: 22 | I69: 23608.64591 | J69: 10 | K69: 15
B70: 0 | C70: 400 W Metal Halide | E70: 3662.711967 | F70: 0 | G70: 20 | H70: 285 | I70: 26417.67569 | J70: 0 | K70: 15
B71: 0 | C71: 2 x 400 W Metal Halide | E71: 5294.858154 | F71: 15 | G71: 20 | H71: 0 | I71: 8822.870763 | J71: 10 | K71: 15
B72: 0 | C72: 1000 W Metal Halide | E72: 0 | F72: 0 | G72: 20 | H72: 20 | I72: 17.80757904 | J72: 0 | K72: 15
B73: 0 | C73: 600 W Sodium | E73: 3417.203835 | F73: 12 | G73: 20 | H73: 16 | I73: 2140.870033 | J73: 7 | K73: 15
B74: 0 | C74: Pole mounting bracket minor (<=3m) | E74: 1074476.477 | F74: 5 | G74: 35 | H74: 101889 | I74: 85352.2605 | J74: 0 | K74: 15
B75: 0 | C75: Pole mounting bracket major (>3m) | E75: 1378428.84 | F75: 5 | G75: 35 | H75: 28234.33333 | I75: 0 | J75: 0 | K75: 15
B76: 0 | C76: Outreach Minor (<=2m) | E76: 104388.2362 | F76: 5 | G76: 35 | H76: 7869.333333 | I76: 397858.1211 | J76: 0 | K76: 15
B77: 0 | C77: Outreach Major (>2m) | E77: 19721.54172 | F77: 5 | G77: 35 | H77: 12489 | I77: 476106.7672 | J77: 0 | K77: 15
B78: 0 | C78: Minor Column (<=9) | E78: 3025132.31 | F78: 15 | G78: 35 | H78: 8170.666667 | I78: 161384.7862 | J78: 0 | K78: 15
B79: 0 | C79: Major Column (>=9) | E79: 14289621.95 | F79: 15 | G79: 35 | H79: 12525.66667 | I79: 254199.591 | J79: 0 | K79: 15
B80: TRUE | C80: Spare
B81: TRUE | C81: Spare
B82: TRUE | C82: Spare
B83: TRUE | C83: Spare
B84: TRUE | C84: Spare
B85: TRUE | C85: Spare
B86: TRUE | C86: Spare
B87: TRUE | C87: Spare
B88: TRUE | C88: Spare
B89: TRUE | C89: Spare
B90: TRUE | C90: Spare
B91: TRUE | C91: Spare
B92: TRUE | C92: Spare
B93: TRUE | C93: Spare
B94: TRUE | C94: Spare
B95: TRUE | C95: Spare
B96: TRUE | C96: Spare
B97: TRUE | C97: Spare
B98: =IF(C98="Spare",TRUE,0) -> TRUE | C98: Spare
B99: TRUE | C99: Spare
B100: TRUE | C100: Spare
B101: TRUE | C101: Spare
B102: TRUE | C102: Spare
B103: TRUE | C103: Spare
B104: TRUE | C104: Spare
B105: TRUE | C105: Spare
B106: TRUE | C106: Spare
B107: TRUE | C107: Spare
B108: TRUE | C108: Spare
B109: TRUE | C109: Spare
B110: TRUE | C110: Spare
B111: TRUE | C111: Spare
B112: TRUE | C112: Spare
B113: TRUE | C113: Spare
B114: TRUE | C114: Spare
B115: TRUE | C115: Spare
B116: TRUE | C116: Spare
B117: TRUE | C117: Spare
B118: TRUE | C118: Spare
B119: TRUE | C119: Spare
B120: TRUE | C120: Spare
B121: TRUE | C121: Spare
B122: TRUE | C122: Spare
B123: TRUE | C123: Spare
B124: TRUE | C124: Spare
B125: TRUE | C125: Spare
B126: TRUE | C126: Spare
B127: TRUE | C127: Spare
B128: TRUE | C128: Spare
B129: TRUE | C129: Spare
B130: =IF(C130="Spare",TRUE,0) -> TRUE | C130: Spare
B131: TRUE | C131: Spare
B132: TRUE | C132: Spare
B133: TRUE | C133: Spare
B134: TRUE | C134: Spare
B135: TRUE | C135: Spare
B136: TRUE | C136: Spare
B137: TRUE | C137: Spare
B138: TRUE | C138: Spare
B139: TRUE | C139: Spare
B140: TRUE | C140: Spare
B141: TRUE | C141: Spare
B142: TRUE | C142: Spare
B143: TRUE | C143: Spare
B144: TRUE | C144: Spare
B145: TRUE | C145: Spare
B146: TRUE | C146: Spare
B147: TRUE | C147: Spare
B148: TRUE | C148: Spare
B149: TRUE | C149: Spare
B150: TRUE | C150: Spare
B151: TRUE | C151: Spare
B152: TRUE | C152: Spare
B153: TRUE | C153: Spare
B154: TRUE | C154: Spare
B155: TRUE | C155: Spare
B156: TRUE | C156: Spare
B157: TRUE | C157: Spare
B158: TRUE | C158: Spare
B159: TRUE | C159: Spare
B160: TRUE | C160: Spare
B161: TRUE | C161: Spare
B162: =IF(C162="Spare",TRUE,0) -> TRUE | C162: Spare
B163: TRUE | C163: Spare
B164: TRUE | C164: Spare
B165: TRUE | C165: Spare
B166: TRUE | C166: Spare
B167: TRUE | C167: Spare
B168: TRUE | C168: Spare
B169: TRUE | C169: Spare
B170: TRUE | C170: Spare
B171: TRUE | C171: Spare
B172: TRUE | C172: Spare
B173: TRUE | C173: Spare
B174: TRUE | C174: Spare
B175: TRUE | C175: Spare
B176: TRUE | C176: Spare
B177: TRUE | C177: Spare
B178: TRUE | C178: Spare
B179: TRUE | C179: Spare
B180: TRUE | C180: Spare
B181: TRUE | C181: Spare
B182: TRUE | C182: Spare
B183: TRUE | C183: Spare
C184: Total | E184: =SUM(E34:E183) -> 24514282.28 | F184: =SUMPRODUCT(E34:E183,F34:F183)/E184 -> 12.12504405 | H184: =SUM(H34:H183) -> 325984.6667 | I184: =SUM(I34:I183) -> 2296762.616 | J184: =SUMPRODUCT(I34:I183,J34:J183)/I184 -> 2.455183138
C186: Net asset movements - nominal
C188: Actual Capital Expenditure - nominal
E190: New capex | F190: =RegYear -> 2020 | G190: =RegYear -> 2020 | H190: =RegYear -> 2020 | I190: =RegYear -> 2020
E191: =E$12 -> 2015 | F191: =F$12 -> 2016 | G191: =G$12 -> 2017 | H191: =H$12 -> 2018 | I191: =I$12 -> 2019 | O191: =E191 -> 2015 | P191: =F191 -> 2016 | Q191: =G191 -> 2017 | R191: =H191 -> 2018 | S191: =I191 -> 2019
E192: $ | O192: #
C193: Asset Class Name | M193: Asset Class Name
B194: =IF(C194="Spare",TRUE,0) -> 0 | C194: =C34 -> 1 x 20 W Fluorescent | E194: 0 | F194: 0 | G194: 0 | H194: 0 | I194: 0 | M194: =C194 -> 1 x 20 W Fluorescent | O194: 0 | P194: 0 | Q194: 0 | R194: 0 | S194: 0
B195: =IF(C195="Spare",TRUE,0) -> 0 | C195: =C35 -> 2 x 20 W Fluorescent | E195: 0 | F195: 0 | G195: 0 | H195: 0 | I195: 0 | M195: =C195 -> 2 x 20 W Fluorescent | O195: 0 | P195: 0 | Q195: 0 | R195: 0 | S195: 0
B196: 0 | C196: 4 x 20 W Fluorescent | E196: 0 | F196: 0 | M196: 4 x 20 W Fluorescent | O196: 0 | P196: 0
B197: 0 | C197: 2 x 14 W Fluorescent | E197: 0 | F197: 0 | G197: 0 | H197: 0 | I197: 0 | M197: 2 x 14 W Fluorescent | O197: 0 | P197: 0 | Q197: 0 | R197: 0 | S197: 0
B198: 0 | C198: 2 x 24 W Fluorescent | E198: 0 | F198: 0 | G198: 0 | H198: 0 | I198: 0 | M198: 2 x 24 W Fluorescent | O198: 0 | P198: 0 | Q198: 0 | R198: 0 | S198: 0
B199: 0 | C199: 1 x 40 W Fluorescent | E199: 0 | F199: 0 | G199: 0 | H199: 0 | I199: 0 | M199: 1 x 40 W Fluorescent | O199: 0 | P199: 0 | Q199: 0 | R199: 0 | S199: 0
B200: 0 | C200: 2 x 40 W Fluorescent | E200: 0 | F200: 0 | G200: 0 | H200: 0 | I200: 0 | M200: 2 x 40 W Fluorescent | O200: 0 | P200: 0 | Q200: 0 | R200: 0 | S200: 0
B201: 0 | C201: 1 x 42 W Fluorescent | E201: 0 | F201: 0 | G201: 0 | H201: 0 | I201: 0 | M201: 1 x 42 W Fluorescent | O201: 0 | P201: 0 | Q201: 0 | R201: 0 | S201: 0
B202: 0 | C202: 50W Mercury | E202: 0 | F202: 0 | G202: 0 | H202: 0 | I202: 0 | M202: 50W Mercury | O202: 0 | P202: 0 | Q202: 0 | R202: 0 | S202: 0
B203: 0 | C203: 80W Mercury | E203: 0 | F203: 0 | G203: 0 | H203: 0 | I203: 0 | M203: 80W Mercury | O203: 0 | P203: 0 | Q203: 0 | R203: 0 | S203: 0
B204: 0 | C204: 125W Mercury | E204: 0 | F204: 0 | G204: 0 | H204: 0 | I204: 0 | M204: 125W Mercury | O204: 0 | P204: 0 | Q204: 0 | R204: 0 | S204: 0
B205: 0 | C205: 250W Mercury | E205: 0 | F205: 0 | G205: 0 | H205: 0 | I205: 0 | M205: 250W Mercury | O205: 0 | P205: 0 | Q205: 0 | R205: 0 | S205: 0
B206: 0 | C206: 2 x 250W Mercury | E206: 0 | F206: 0 | G206: 0 | H206: 0 | I206: 0 | M206: 2 x 250W Mercury | O206: 0 | P206: 0 | Q206: 0 | R206: 0 | S206: 0
B207: 0 | C207: 400 W Mercury | E207: 0 | F207: 0 | G207: 0 | H207: 0 | I207: 0 | M207: 400 W Mercury | O207: 0 | P207: 0 | Q207: 0 | R207: 0 | S207: 0
B208: 0 | C208: 700 W Mercury | E208: 0 | F208: 0 | M208: 700 W Mercury | O208: 0 | P208: 0
B209: 0 | C209: 50W Sodium | E209: 0 | F209: 0 | G209: 0 | H209: 0 | I209: 0 | M209: 50W Sodium | O209: 0 | P209: 0 | Q209: 0 | R209: 0 | S209: 0
B210: 0 | C210: 70W Sodium | E210: 0 | F210: 0 | G210: 0 | H210: 0 | I210: 0 | M210: 70W Sodium | O210: 0 | P210: 0 | Q210: 0 | R210: 0 | S210: 0
B211: 0 | C211: 90W Sodium | E211: 0 | F211: 0 | M211: 90W Sodium | O211: 0 | P211: 0
B212: 0 | C212: 100W Sodium | E212: 0 | F212: 0 | G212: 0 | H212: 0 | I212: 0 | M212: 100W Sodium | O212: 0 | P212: 0 | Q212: 0 | R212: 0 | S212: 0
B213: 0 | C213: 120W Sodium | E213: 0 | F213: 0 | G213: 0 | H213: 0 | I213: 0 | M213: 120W Sodium | O213: 0 | P213: 0 | Q213: 0 | R213: 0 | S213: 0
B214: 0 | C214: 150W Sodium | E214: 0 | F214: 0 | G214: 0 | H214: 0 | I214: 0 | M214: 150W Sodium | O214: 0 | P214: 0 | Q214: 0 | R214: 0 | S214: 0
B215: 0 | C215: 250W Sodium | E215: 0 | F215: 0 | G215: 0 | H215: 0 | I215: 0 | M215: 250W Sodium | O215: 0 | P215: 0 | Q215: 0 | R215: 0 | S215: 0
B216: 0 | C216: 2 x 250W Sodium | E216: 0 | F216: 0 | G216: 0 | H216: 0 | I216: 0 | M216: 2 x 250W Sodium | O216: 0 | P216: 0 | Q216: 0 | R216: 0 | S216: 0
B217: 0 | C217: 310W Sodium | E217: 0 | F217: 0 | M217: 310W Sodium | O217: 0 | P217: 0
... 750 more rows

Sheet Global
B1: Global Assumptions
C6: Timing
C8: Model start date | D8: Date | F8: =EOMONTH(DATE(F13-1,6,1),0) -> 2019-06-30
C9: Reglatory period length | D9: Years | F9: 5
C10: Current Year | D10: Years | F10: 2020
C12: Regulatory Period | F12: Current | G12: Previous
C13: Year 1 | D13: FY | F13: 2020 | G13: =G14-1 -> 2015
C14: Year 2 | D14: FY | F14: =F13+1 -> 2021 | G14: =G15-1 -> 2016
C15: Year 3 | D15: FY | F15: =F14+1 -> 2022 | G15: =G16-1 -> 2017
C16: Year 4 | D16: FY | F16: =F15+1 -> 2023 | G16: =G17-1 -> 2018
C17: Year 5 | D17: FY | F17: =F16+1 -> 2024 | G17: =RegYear-1 -> 2019
C19: WACC
F21: =TRANSPOSE(List_RegYear) -> 2020 | G21: 2021 | H21: 2022 | I21: 2023 | J21: 2024
C22: Cost of debt
C23: Nominal pre-tax cost of debt | D23: % p.a. | F23: 0.0539 | G23: 0.0539 | H23: 0.0539 | I23: 0.0539 | J23: 0.0539
C24: Real pre-tax cost of debt | D24: % p.a. | F24: =(1+F23)/(1+F85)-1 -> 0.02819512195 | G24: =(1+G23)/(1+G85)-1 -> 0.02819512195 | H24: =(1+H23)/(1+H85)-1 -> 0.02819512195 | I24: =(1+I23)/(1+I85)-1 -> 0.02819512195 | J24: =(1+J23)/(1+J85)-1 -> 0.02819512195
C26: Nominal post-tax cost of debt | D26: % p.a. | F26: =F23*(1-F$35*(1-F36)) -> 0.044198 | G26: =G23*(1-G$35*(1-G36)) -> 0.044198 | H26: =H23*(1-H$35*(1-H36)) -> 0.044198 | I26: =I23*(1-I$35*(1-I36)) -> 0.044198 | J26: =J23*(1-J$35*(1-J36)) -> 0.044198
C27: Real post-tax cost of debt | D27: % p.a. | F27: =(1+F26)/(1+F85)-1 -> 0.0187297561 | G27: =(1+G26)/(1+G85)-1 -> 0.0187297561 | H27: =(1+H26)/(1+H85)-1 -> 0.0187297561 | I27: =(1+I26)/(1+I85)-1 -> 0.0187297561 | J27: =(1+J26)/(1+J85)-1 -> 0.0187297561
C29: Cost of equity
C30: Nominal post-tax cost of equity | D30: % p.a. | F30: 0.0719 | G30: 0.0719 | H30: 0.0719 | I30: 0.0719 | J30: 0.0719
C31: Real post-tax cost of equity | D31: % p.a. | F31: =(1+F30)/(1+F85)-1 -> 0.04575609756 | G31: =(1+G30)/(1+G85)-1 -> 0.04575609756 | H31: =(1+H30)/(1+H85)-1 -> 0.04575609756 | I31: =(1+I30)/(1+I85)-1 -> 0.04575609756 | J31: =(1+J30)/(1+J85)-1 -> 0.04575609756
C33: Tax & Dividend Imputation
C34: Effective tax rate for equity | D34: % | F34: 0.3 | G34: 0.3 | H34: 0.3 | I34: 0.3 | J34: 0.3
C35: Effective tax rate for debt | D35: % | F35: =$F$101 -> 0.3 | G35: =$F$101 -> 0.3 | H35: =$F$101 -> 0.3 | I35: =$F$101 -> 0.3 | J35: =$F$101 -> 0.3
C36: Utilisation of imputation credits | D36: % | F36: 0.4 | G36: 0.4 | H36: 0.4 | I36: 0.4 | J36: 0.4
C38: Leverage
C39: Debt | D39: % | F39: 0.6 | G39: 0.6 | H39: 0.6 | I39: 0.6 | J39: 0.6
C40: Equity | D40: % | F40: =1-F39 -> 0.4 | G40: =1-G39 -> 0.4 | H40: =1-H39 -> 0.4 | I40: =1-I39 -> 0.4 | J40: =1-J39 -> 0.4
C42: WACC
C43: Nominal vanilla WACC
C44: =C23 -> Nominal pre-tax cost of debt | D44: % | F44: =F23 -> 0.0539 | G44: =G23 -> 0.0539 | H44: =H23 -> 0.0539 | I44: =I23 -> 0.0539 | J44: =J23 -> 0.0539
C45: =C30 -> Nominal post-tax cost of equity | D45: % | F45: =F30 -> 0.0719 | G45: =G30 -> 0.0719 | H45: =H30 -> 0.0719 | I45: =I30 -> 0.0719 | J45: =J30 -> 0.0719
C46: Nominal vanilla WACC | D46: % | F46: =F44*F$39+F45*F$40 -> 0.0611 | G46: =G44*G$39+G45*G$40 -> 0.0611 | H46: 0.0611 | I46: 0.0611 | J46: 0.0611
C48: Real vanilla WACC
C49: =C24 -> Real pre-tax cost of debt | D49: % | F49: =F24 -> 0.02819512195 | G49: =G24 -> 0.02819512195 | H49: =H24 -> 0.02819512195 | I49: =I24 -> 0.02819512195 | J49: =J24 -> 0.02819512195
C50: =C31 -> Real post-tax cost of equity | D50: % | F50: =F31 -> 0.04575609756 | G50: =G31 -> 0.04575609756 | H50: =H31 -> 0.04575609756 | I50: =I31 -> 0.04575609756 | J50: =J31 -> 0.04575609756
C51: Real vanilla WACC | D51: % | F51: =F49*F$39+F50*F$40 -> 0.0352195122 | G51: =G49*G$39+G50*G$40 -> 0.0352195122 | H51: 0.0352195122 | I51: 0.0352195122 | J51: 0.0352195122
C53: Post-tax nominal WACC
C54: =C26 -> Nominal post-tax cost of debt | D54: % | F54: =F26 -> 0.044198 | G54: =G26 -> 0.044198 | H54: =H26 -> 0.044198 | I54: =I26 -> 0.044198 | J54: =J26 -> 0.044198
C55: Nominal post-tax, post imputation, cost of equity | D55: % | F55: =F30 -> 0.0719 | G55: =G30 -> 0.0719 | H55: 0.0719 | I55: 0.0719 | J55: 0.0719
C56: Post-tax nominal WACC | D56: % | F56: =F54*F$39+F55*F$40 -> 0.0552788 | G56: =G54*G$39+G55*G$40 -> 0.0552788 | H56: 0.0552788 | I56: 0.0552788 | J56: 0.0552788
C58: Post-tax real WACC
C59: =C27 -> Real post-tax cost of debt | D59: % | F59: =(1+F54)/(1+F85)-1 -> 0.0187297561 | G59: =(1+G54)/(1+G85)-1 -> 0.0187297561 | H59: 0.0187297561 | I59: 0.0187297561 | J59: 0.0187297561
C60: Real post-tax, post imputation, cost of equity | D60: % | F60: =(1+F55)/(1+F85)-1 -> 0.04575609756 | G60: =(1+G55)/(1+G85)-1 -> 0.04575609756 | H60: 0.04575609756 | I60: 0.04575609756 | J60: 0.04575609756
C61: Post-tax real WACC | D61: % | F61: =F59*F$39+F60*F$40 -> 0.02954029268 | G61: =G59*G$39+G60*G$40 -> 0.02954029268 | H61: 0.02954029268 | I61: 0.02954029268 | J61: 0.02954029268
C63: Pre-tax nominal WACC
C64: =C23 -> Nominal pre-tax cost of debt | D64: % | F64: =F23 -> 0.0539 | G64: =G23 -> 0.0539 | H64: =H23 -> 0.0539 | I64: =I23 -> 0.0539 | J64: =J23 -> 0.0539
C65: Nominal pre-tax, post imputation, cost of equity | D65: % | F65: =F30*(1/(1-F34*(1-F36))) -> 0.08768292683 | G65: =G30*(1/(1-G34*(1-G36))) -> 0.08768292683 | H65: =H30*(1/(1-H34*(1-H36))) -> 0.08768292683 | I65: =I30*(1/(1-I34*(1-I36))) -> 0.08768292683 | J65: =J30*(1/(1-J34*(1-J36))) -> 0.08768292683
C66: Pre-tax nominal WACC | D66: % | F66: =F64*F$39+F65*F$40 -> 0.06741317073 | G66: =G64*G$39+G65*G$40 -> 0.06741317073 | H66: 0.06741317073 | I66: 0.06741317073 | J66: 0.06741317073
C68: Pre-tax real WACC
C69: =C24 -> Real pre-tax cost of debt | D69: % | F69: =F24 -> 0.02819512195 | G69: =G24 -> 0.02819512195 | H69: =H24 -> 0.02819512195 | I69: =I24 -> 0.02819512195 | J69: =J24 -> 0.02819512195
C70: Real pre-tax, post imputation, cost of equity | D70: % | F70: =(1+F65)/(1+F85)-1 -> 0.06115407496 | G70: =(1+G65)/(1+G85)-1 -> 0.06115407496 | H70: 0.06115407496 | I70: 0.06115407496 | J70: 0.06115407496
C71: Pre-tax real WACC | D71: % | F71: =F69*F$39+F70*F$40 -> 0.04137870315 | G71: =G69*G$39+G70*G$40 -> 0.04137870315 | H71: 0.04137870315 | I71: 0.04137870315 | J71: 0.04137870315
C73: Summary
C74: Nominal vanilla WACC | D74: % | F74: =F$46 -> 0.0611 | G74: =G$46 -> 0.0611 | H74: =H$46 -> 0.0611 | I74: =I$46 -> 0.0611 | J74: =J$46 -> 0.0611
C75: Real vanilla WACC | D75: % | F75: =F$51 -> 0.0352195122 | G75: =G$51 -> 0.0352195122 | H75: =H$51 -> 0.0352195122 | I75: =I$51 -> 0.0352195122 | J75: =J$51 -> 0.0352195122
C76: Post-tax nominal WACC | D76: % | F76: =F$56 -> 0.0552788 | G76: =G$56 -> 0.0552788 | H76: =H$56 -> 0.0552788 | I76: =I$56 -> 0.0552788 | J76: =J$56 -> 0.0552788
C77: Post-tax real WACC | D77: % | F77: =F$61 -> 0.02954029268 | G77: =G$61 -> 0.02954029268 | H77: =H$61 -> 0.02954029268 | I77: =I$61 -> 0.02954029268 | J77: =J$61 -> 0.02954029268
C78: Pre-tax nominal WACC | D78: % | F78: =F$66 -> 0.06741317073 | G78: =G$66 -> 0.06741317073 | H78: =H$66 -> 0.06741317073 | I78: =I$66 -> 0.06741317073 | J78: =J$66 -> 0.06741317073
C79: Pre-tax real WACC | D79: % | F79: =F$71 -> 0.04137870315 | G79: =G$71 -> 0.04137870315 | H79: 0.04137870315 | I79: 0.04137870315 | J79: 0.04137870315
C81: Escalation
C83: Escalation rate
F84: =F$21 -> 2020 | G84: =G$21 -> 2021 | H84: =H$21 -> 2022 | I84: =I$21 -> 2023 | J84: =J$21 -> 2024
C85: CPI | D85: % p.a. | F85: 0.025 | G85: 0.025 | H85: 0.025 | I85: 0.025 | J85: 0.025
C86: LPI | D86: % p.a. | F86: 0.015 | G86: 0.02 | H86: 0.024 | I86: 0.024 | J86: 0.02
C87: Real capex | D87: % p.a. | F87: 0 | G87: 0 | H87: 0 | I87: 0 | J87: 0
C88: Real labour (capex) | D88: % p.a. | F88: 0.003 | G88: 0.004 | H88: 0.0048 | I88: 0.0048 | J88: 0.004
C89: Real opex | D89: % p.a. | F89: 0.004407980724 | G89: 0.005877307632 | H89: 0.007052769158 | I89: 0.007052769158 | J89: 0.005877307632
C91: Starting index
C92: =C85 -> CPI | D92: index | F92: 1
C93: =C86 -> LPI | D93: index | F93: 1
C94: =C87 -> Real capex | D94: index | F94: 1
C95: =C88 -> Real labour (capex) | D95: index | F95: 1
C96: =C89 -> Real opex | D96: index | F96: 1
C99: Other
C101: Corporate Tax Rate | D101: % | F101: 0.3
C102: Utilisation of Imputation (Franking) Credits | D102: % | F102: 0.4
C104: Constants
C106: Months in a Year | D106: # | F106: 12
C107: Half | D107: # | F107: 0.5
C108: Million | D108: # | F108: 1000000
C109: Rounding | D109: # | F109: 4

Sheet CALCS

Sheet TC1&2
C1: Tariff Charge 1 & 2
K4: =REG_Timing!K4 -> 2020 | L4: =REG_Timing!L4 -> 2021 | M4: =REG_Timing!M4 -> 2022 | N4: =REG_Timing!N4 -> 2023 | O4: =REG_Timing!O4 -> 2024
C6: Timing
C8: Year | D8: # | K8: =REG_Timing!K8 -> 1 | L8: =REG_Timing!L8 -> 2 | M8: =REG_Timing!M8 -> 3 | N8: =REG_Timing!N8 -> 4 | O8: =REG_Timing!O8 -> 5
C10: =RAB!C8 -> RAB escalation index | D10: index | E10: =RAB!E8 -> CPI | J10: =REG_Timing!J10 -> 1 | K10: =REG_Timing!K10 -> 1.025 | L10: =REG_Timing!L10 -> 1.050625 | M10: =REG_Timing!M10 -> 1.076890625 | N10: =REG_Timing!N10 -> 1.103812891 | O10: =REG_Timing!O10 -> 1.131408213
C11: RAB escalation rate | D11: index | K11: =REG_Timing!K11 -> 0.025 | L11: =REG_Timing!L11 -> 0.025 | M11: =REG_Timing!M11 -> 0.025 | N11: =REG_Timing!N11 -> 0.025 | O11: =REG_Timing!O11 -> 0.025
C13: =Global!C74 -> Nominal vanilla WACC | K13: =Global!F74 -> 0.0611 | L13: =Global!G74 -> 0.0611 | M13: =Global!H74 -> 0.0611 | N13: =Global!I74 -> 0.0611 | O13: =Global!J74 -> 0.0611
C15: RAB - Real
C17: Opening RAB
B19: =IF(C19="Spare",TRUE,0) -> 0 | C19: =RAB!C13 -> 1 x 20 W Fluorescent | D19: $ | K19: =J638 -> 997.8862984 | L19: =K638 -> 898.0976686 | M19: =L638 -> 798.3090387 | N19: =M638 -> 698.5204089 | O19: =N638 -> 598.7317791
B20: =IF(C20="Spare",TRUE,0) -> 0 | C20: =RAB!C14 -> 2 x 20 W Fluorescent | D20: $ | K20: =J639 -> 0 | L20: =K639 -> 0 | M20: =L639 -> 0 | N20: =M639 -> 0 | O20: =N639 -> 0
B21: 0 | C21: =RAB!C15 -> 4 x 20 W Fluorescent | D21: $ | K21: 33246.32356 | L21: 29921.6912 | M21: 26597.05885 | N21: 23272.42649 | O21: 19947.79413
B22: 0 | C22: =RAB!C16 -> 2 x 14 W Fluorescent | D22: $ | K22: 161284.9583 | L22: 136725.824 | M22: 112493.8962 | N22: 88581.1944 | O22: 64979.93247
B23: 0 | C23: =RAB!C17 -> 2 x 24 W Fluorescent | D23: $ | K23: 50296.27014 | L23: 45266.64313 | M23: 40237.01611 | N23: 35207.3891 | O23: 30177.76208
B24: 0 | C24: =RAB!C18 -> 1 x 40 W Fluorescent | D24: $ | K24: 18865.81007 | L24: 16979.22906 | M24: 15092.64806 | N24: 13206.06705 | O24: 11319.48604
B25: 0 | C25: =RAB!C19 -> 2 x 40 W Fluorescent | D25: $ | K25: 0 | L25: 0 | M25: 0 | N25: 0 | O25: 0
B26: 0 | C26: =RAB!C20 -> 1 x 42 W Fluorescent | D26: $ | K26: 0 | L26: 0 | M26: 0 | N26: 0 | O26: 0
B27: 0 | C27: =RAB!C21 -> 50W Mercury | D27: $ | K27: 5804.77475 | L27: 5224.297275 | M27: 4643.8198 | N27: 4063.342325 | O27: 3482.86485
B28: 0 | C28: =RAB!C22 -> 80W Mercury | D28: $ | K28: 75962.11196 | L28: 50765.662 | M28: 26878.49811 | N28: 4268.686455 | O28: 0
B29: 0 | C29: =RAB!C23 -> 125W Mercury | D29: $ | K29: 3894.713319 | L29: 3115.770655 | M29: 2336.827992 | N29: 1557.885328 | O29: 778.9426639
B30: 0 | C30: =RAB!C24 -> 250W Mercury | D30: $ | K30: 5596.698361 | L30: 4048.838303 | M30: 2532.85598 | N30: 1047.973888 | O30: 0
B31: 0 | C31: =RAB!C25 -> 2 x 250W Mercury | D31: $ | K31: 561.9182461 | L31: 505.7264215 | M31: 449.5345969 | N31: 393.3427723 | O31: 337.1509476
B32: 0 | C32: =RAB!C26 -> 400 W Mercury | D32: $ | K32: 2722.404012 | L32: 335.0795287 | M32: 0 | N32: 0 | O32: 0
B33: 0 | C33: =RAB!C27 -> 700 W Mercury | D33: $ | K33: 0 | L33: 0 | M33: 0 | N33: 0 | O33: 0
B34: 0 | C34: =RAB!C28 -> 50W Sodium | D34: $ | K34: 198.5170703 | L34: 178.6653633 | M34: 158.8136563 | N34: 138.9619492 | O34: 119.1102422
B35: 0 | C35: =RAB!C29 -> 70W Sodium | D35: $ | K35: 7365.110408 | L35: 6628.599367 | M35: 5892.088326 | N35: 5155.577286 | O35: 4419.066245
B36: 0 | C36: =RAB!C30 -> 90W Sodium | D36: $ | K36: 0 | L36: 0 | M36: 0 | N36: 0 | O36: 0
B37: 0 | C37: =RAB!C31 -> 100W Sodium | D37: $ | K37: 16077.15502 | L37: 14469.43952 | M37: 12861.72401 | N37: 11254.00851 | O37: 9646.29301
B38: 0 | C38: =RAB!C32 -> 120W Sodium | D38: $ | K38: 217.6846082 | L38: 195.9161474 | M38: 174.1476866 | N38: 152.3792258 | O38: 130.6107649
B39: 0 | C39: =RAB!C33 -> 150W Sodium | D39: $ | K39: 177041.7449 | L39: 141024.5738 | M39: 105491.6992 | N39: 70431.30876 | O39: 35831.87862
B40: 0 | C40: =RAB!C34 -> 250W Sodium | D40: $ | K40: 65840.15333 | L40: 45548.53623 | M40: 25950.10663 | N40: 7027.957523 | O40: 0
B41: 0 | C41: =RAB!C35 -> 2 x 250W Sodium | D41: $ | K41: 939.8752958 | L41: 845.8877662 | M41: 751.9002367 | N41: 657.9127071 | O41: 563.9251775
B42: 0 | C42: =RAB!C36 -> 310W Sodium | D42: $ | K42: 0 | L42: 0 | M42: 0 | N42: 0 | O42: 0
B43: 0 | C43: =RAB!C37 -> 400 W Sodium | D43: $ | K43: 0 | L43: 0 | M43: 0 | N43: 0 | O43: 0
B44: 0 | C44: =RAB!C38 -> 2 x 400 W Sodium | D44: $ | K44: 1603.297848 | L44: 1442.968063 | M44: 1282.638278 | N44: 1122.308493 | O44: 961.9787085
B45: 0 | C45: =RAB!C39 -> 4 x 600W Sodium | D45: $ | K45: 0 | L45: 0 | M45: 0 | N45: 0 | O45: 0
B46: 0 | C46: =RAB!C40 -> 60 W Incandescent | D46: $ | K46: 0 | L46: 0 | M46: 0 | N46: 0 | O46: 0
B47: 0 | C47: =RAB!C41 -> 100 W Incandescent | D47: $ | K47: 0 | L47: 0 | M47: 0 | N47: 0 | O47: 0
B48: 0 | C48: =RAB!C42 -> 500 W Incandescent | D48: $ | K48: 0.01898805043 | L48: 0.01708924539 | M48: 0.01519044035 | N48: 0.0132916353 | O48: 0.01139283026
B49: 0 | C49: =RAB!C43 -> 1000 W Incandescent | D49: $ | K49: 0 | L49: 0 | M49: 0 | N49: 0 | O49: 0
B50: 0 | C50: =RAB!C44 -> 1500 W Incandescent | D50: $ | K50: 0 | L50: 0 | M50: 0 | N50: 0 | O50: 0
B51: 0 | C51: =RAB!C45 -> 100 W Metal Halide | D51: $ | K51: 7653.215523 | L51: 6794.155136 | M51: 5942.068004 | N51: 5096.784047 | O51: 4258.137335
B52: 0 | C52: =RAB!C46 -> 150 W Metal Halide | D52: $ | K52: 110103.918 | L52: 99093.5262 | M52: 88083.1344 | N52: 77072.7426 | O52: 66062.3508
B53: 0 | C53: =RAB!C47 -> 250 W Metal Halide | D53: $ | K53: 15875.9922 | L53: 14218.34638 | M53: 12565.91134 | N53: 10918.55999 | O53: 9276.168346
B54: 0 | C54: =RAB!C48 -> 2 x 250 W Metal Halide | D54: $ | K54: 10834.72715 | L54: 9751.254433 | M54: 8667.781718 | N54: 7584.309003 | O54: 6500.836289
B55: 0 | C55: =RAB!C49 -> 400 W Metal Halide | D55: $ | K55: 4135.368311 | L55: 3634.273228 | M55: 3139.691625 | N55: 2651.464636 | O55: 2169.43727
B56: 0 | C56: =RAB!C50 -> 2 x 400 W Metal Halide | D56: $ | K56: 4033.177972 | L56: 3629.860175 | M56: 3226.542378 | N56: 2823.224581 | O56: 2419.906783
B57: 0 | C57: =RAB!C51 -> 1000 W Metal Halide | D57: $ | K57: 0 | L57: 0 | M57: 0 | N57: 0 | O57: 0
B58: 0 | C58: =RAB!C52 -> 600 W Sodium | D58: $ | K58: 2289.128766 | L58: 1962.110371 | M58: 1635.091976 | N58: 1308.073581 | O58: 981.0551854
B59: 0 | C59: =RAB!C53 -> Pole mounting bracket minor (<=3m) | D59: $ | K59: 29072.07739 | L59: 0 | M59: 0 | N59: 0 | O59: 0
B60: 0 | C60: =RAB!C54 -> Pole mounting bracket major (>3m) | D60: $ | K60: 37296.10725 | L60: 13508.44612 | M60: 0 | N60: 0 | O60: 0
B61: 0 | C61: =RAB!C55 -> Outreach Minor (<=2m) | D61: $ | K61: 2824.429335 | L61: 0 | M61: 0 | N61: 0 | O61: 0
B62: 0 | C62: =RAB!C56 -> Outreach Major (>2m) | D62: $ | K62: 533.6051552 | L62: 0 | M62: 0 | N62: 0 | O62: 0
B63: 0 | C63: =RAB!C57 -> Minor Column (<=9) | D63: $ | K63: 2304291.568 | L63: 2105601.262 | M63: 1909297.985 | N63: 1715323.516 | O63: 1523621.056
B64: 0 | C64: =RAB!C58 -> Major Column (>=9) | D64: $ | K64: =J683 -> 10884633.13 | L64: 10147149.96 | M64: 9410293.902 | N64: 8674049.666 | O64: 7938402.33
B65: TRUE | C65: =RAB!C59 -> Spare | D65: $ | K65: 0 | L65: 0 | M65: 0 | N65: 0 | O65: 0
B66: TRUE | C66: =RAB!C60 -> Spare | D66: $ | K66: 0 | L66: 0 | M66: 0 | N66: 0 | O66: 0
B67: TRUE | C67: =RAB!C61 -> Spare | D67: $ | K67: 0 | L67: 0 | M67: 0 | N67: 0 | O67: 0
B68: TRUE | C68: =RAB!C62 -> Spare | D68: $ | K68: 0 | L68: 0 | M68: 0 | N68: 0 | O68: 0
B69: TRUE | C69: =RAB!C63 -> Spare | D69: $ | K69: 0 | L69: 0 | M69: 0 | N69: 0 | O69: 0
B70: TRUE | C70: =RAB!C64 -> Spare | D70: $ | K70: 0 | L70: 0 | M70: 0 | N70: 0 | O70: 0
B71: TRUE | C71: =RAB!C65 -> Spare | D71: $ | K71: 0 | L71: 0 | M71: 0 | N71: 0 | O71: 0
B72: TRUE | C72: =RAB!C66 -> Spare | D72: $ | K72: 0 | L72: 0 | M72: 0 | N72: 0 | O72: 0
B73: TRUE | C73: =RAB!C67 -> Spare | D73: $ | K73: 0 | L73: 0 | M73: 0 | N73: 0 | O73: 0
B74: TRUE | C74: =RAB!C68 -> Spare | D74: $ | K74: 0 | L74: 0 | M74: 0 | N74: 0 | O74: 0
B75: TRUE | C75: =RAB!C69 -> Spare | D75: $ | K75: 0 | L75: 0 | M75: 0 | N75: 0 | O75: 0
B76: TRUE | C76: =RAB!C70 -> Spare | D76: $ | K76: 0 | L76: 0 | M76: 0 | N76: 0 | O76: 0
B77: TRUE | C77: =RAB!C71 -> Spare | D77: $ | K77: 0 | L77: 0 | M77: 0 | N77: 0 | O77: 0
B78: TRUE | C78: =RAB!C72 -> Spare | D78: $ | K78: 0 | L78: 0 | M78: 0 | N78: 0 | O78: 0
B79: TRUE | C79: =RAB!C73 -> Spare | D79: $ | K79: 0 | L79: 0 | M79: 0 | N79: 0 | O79: 0
B80: TRUE | C80: =RAB!C74 -> Spare | D80: $ | K80: 0 | L80: 0 | M80: 0 | N80: 0 | O80: 0
B81: TRUE | C81: =RAB!C75 -> Spare | D81: $ | K81: 0 | L81: 0 | M81: 0 | N81: 0 | O81: 0
B82: TRUE | C82: =RAB!C76 -> Spare | D82: $ | K82: 0 | L82: 0 | M82: 0 | N82: 0 | O82: 0
B83: TRUE | C83: =RAB!C77 -> Spare | D83: $ | K83: 0 | L83: 0 | M83: 0 | N83: 0 | O83: 0
B84: =IF(C84="Spare",TRUE,0) -> TRUE | C84: =RAB!C78 -> Spare | D84: $ | K84: =J703 -> 0 | L84: =K703 -> 0 | M84: =L703 -> 0 | N84: =M703 -> 0 | O84: =N703 -> 0
B85: TRUE | C85: =RAB!C79 -> Spare | D85: $ | K85: 0 | L85: 0 | M85: 0 | N85: 0 | O85: 0
B86: TRUE | C86: =RAB!C80 -> Spare | D86: $ | K86: 0 | L86: 0 | M86: 0 | N86: 0 | O86: 0
B87: TRUE | C87: =RAB!C81 -> Spare | D87: $ | K87: 0 | L87: 0 | M87: 0 | N87: 0 | O87: 0
B88: TRUE | C88: =RAB!C82 -> Spare | D88: $ | K88: 0 | L88: 0 | M88: 0 | N88: 0 | O88: 0
B89: TRUE | C89: =RAB!C83 -> Spare | D89: $ | K89: 0 | L89: 0 | M89: 0 | N89: 0 | O89: 0
B90: TRUE | C90: =RAB!C84 -> Spare | D90: $ | K90: 0 | L90: 0 | M90: 0 | N90: 0 | O90: 0
B91: TRUE | C91: =RAB!C85 -> Spare | D91: $ | K91: 0 | L91: 0 | M91: 0 | N91: 0 | O91: 0
B92: TRUE | C92: =RAB!C86 -> Spare | D92: $ | K92: 0 | L92: 0 | M92: 0 | N92: 0 | O92: 0
B93: TRUE | C93: =RAB!C87 -> Spare | D93: $ | K93: 0 | L93: 0 | M93: 0 | N93: 0 | O93: 0
B94: TRUE | C94: =RAB!C88 -> Spare | D94: $ | K94: 0 | L94: 0 | M94: 0 | N94: 0 | O94: 0
B95: TRUE | C95: =RAB!C89 -> Spare | D95: $ | K95: 0 | L95: 0 | M95: 0 | N95: 0 | O95: 0
B96: TRUE | C96: =RAB!C90 -> Spare | D96: $ | K96: 0 | L96: 0 | M96: 0 | N96: 0 | O96: 0
B97: TRUE | C97: =RAB!C91 -> Spare | D97: $ | K97: 0 | L97: 0 | M97: 0 | N97: 0 | O97: 0
B98: TRUE | C98: =RAB!C92 -> Spare | D98: $ | K98: 0 | L98: 0 | M98: 0 | N98: 0 | O98: 0
B99: TRUE | C99: =RAB!C93 -> Spare | D99: $ | K99: 0 | L99: 0 | M99: 0 | N99: 0 | O99: 0
B100: TRUE | C100: =RAB!C94 -> Spare | D100: $ | K100: 0 | L100: 0 | M100: 0 | N100: 0 | O100: 0
B101: TRUE | C101: =RAB!C95 -> Spare | D101: $ | K101: 0 | L101: 0 | M101: 0 | N101: 0 | O101: 0
B102: TRUE | C102: =RAB!C96 -> Spare | D102: $ | K102: 0 | L102: 0 | M102: 0 | N102: 0 | O102: 0
B103: TRUE | C103: =RAB!C97 -> Spare | D103: $ | K103: 0 | L103: 0 | M103: 0 | N103: 0 | O103: 0
B104: TRUE | C104: =RAB!C98 -> Spare | D104: $ | K104: 0 | L104: 0 | M104: 0 | N104: 0 | O104: 0
B105: TRUE | C105: =RAB!C99 -> Spare | D105: $ | K105: 0 | L105: 0 | M105: 0 | N105: 0 | O105: 0
B106: TRUE | C106: =RAB!C100 -> Spare | D106: $ | K106: 0 | L106: 0 | M106: 0 | N106: 0 | O106: 0
B107: TRUE | C107: =RAB!C101 -> Spare | D107: $ | K107: 0 | L107: 0 | M107: 0 | N107: 0 | O107: 0
B108: TRUE | C108: =RAB!C102 -> Spare | D108: $ | K108: 0 | L108: 0 | M108: 0 | N108: 0 | O108: 0
B109: TRUE | C109: =RAB!C103 -> Spare | D109: $ | K109: 0 | L109: 0 | M109: 0 | N109: 0 | O109: 0
B110: TRUE | C110: =RAB!C104 -> Spare | D110: $ | K110: 0 | L110: 0 | M110: 0 | N110: 0 | O110: 0
B111: TRUE | C111: =RAB!C105 -> Spare | D111: $ | K111: 0 | L111: 0 | M111: 0 | N111: 0 | O111: 0
B112: TRUE | C112: =RAB!C106 -> Spare | D112: $ | K112: 0 | L112: 0 | M112: 0 | N112: 0 | O112: 0
B113: TRUE | C113: =RAB!C107 -> Spare | D113: $ | K113: 0 | L113: 0 | M113: 0 | N113: 0 | O113: 0
B114: TRUE | C114: =RAB!C108 -> Spare | D114: $ | K114: 0 | L114: 0 | M114: 0 | N114: 0 | O114: 0
B115: TRUE | C115: =RAB!C109 -> Spare | D115: $ | K115: 0 | L115: 0 | M115: 0 | N115: 0 | O115: 0
B116: TRUE | C116: =RAB!C110 -> Spare | D116: $ | K116: 0 | L116: 0 | M116: 0 | N116: 0 | O116: 0
B117: TRUE | C117: =RAB!C111 -> Spare | D117: $ | K117: 0 | L117: 0 | M117: 0 | N117: 0 | O117: 0
B118: TRUE | C118: =RAB!C112 -> Spare | D118: $ | K118: 0 | L118: 0 | M118: 0 | N118: 0 | O118: 0
B119: TRUE | C119: =RAB!C113 -> Spare | D119: $ | K119: 0 | L119: 0 | M119: 0 | N119: 0 | O119: 0
B120: TRUE | C120: =RAB!C114 -> Spare | D120: $ | K120: 0 | L120: 0 | M120: 0 | N120: 0 | O120: 0
B121: TRUE | C121: =RAB!C115 -> Spare | D121: $ | K121: 0 | L121: 0 | M121: 0 | N121: 0 | O121: 0
B122: TRUE | C122: =RAB!C116 -> Spare | D122: $ | K122: 0 | L122: 0 | M122: 0 | N122: 0 | O122: 0
B123: TRUE | C123: =RAB!C117 -> Spare | D123: $ | K123: 0 | L123: 0 | M123: 0 | N123: 0 | O123: 0
B124: TRUE | C124: =RAB!C118 -> Spare | D124: $ | K124: 0 | L124: 0 | M124: 0 | N124: 0 | O124: 0
B125: TRUE | C125: =RAB!C119 -> Spare | D125: $ | K125: 0 | L125: 0 | M125: 0 | N125: 0 | O125: 0
B126: TRUE | C126: =RAB!C120 -> Spare | D126: $ | K126: 0 | L126: 0 | M126: 0 | N126: 0 | O126: 0
B127: TRUE | C127: =RAB!C121 -> Spare | D127: $ | K127: 0 | L127: 0 | M127: 0 | N127: 0 | O127: 0
B128: TRUE | C128: =RAB!C122 -> Spare | D128: $ | K128: 0 | L128: 0 | M128: 0 | N128: 0 | O128: 0
B129: TRUE | C129: =RAB!C123 -> Spare | D129: $ | K129: 0 | L129: 0 | M129: 0 | N129: 0 | O129: 0
B130: TRUE | C130: =RAB!C124 -> Spare | D130: $ | K130: 0 | L130: 0 | M130: 0 | N130: 0 | O130: 0
B131: TRUE | C131: =RAB!C125 -> Spare | D131: $ | K131: 0 | L131: 0 | M131: 0 | N131: 0 | O131: 0
B132: TRUE | C132: =RAB!C126 -> Spare | D132: $ | K132: 0 | L132: 0 | M132: 0 | N132: 0 | O132: 0
B133: TRUE | C133: =RAB!C127 -> Spare | D133: $ | K133: 0 | L133: 0 | M133: 0 | N133: 0 | O133: 0
B134: TRUE | C134: =RAB!C128 -> Spare | D134: $ | K134: 0 | L134: 0 | M134: 0 | N134: 0 | O134: 0
B135: TRUE | C135: =RAB!C129 -> Spare | D135: $ | K135: 0 | L135: 0 | M135: 0 | N135: 0 | O135: 0
B136: TRUE | C136: =RAB!C130 -> Spare | D136: $ | K136: 0 | L136: 0 | M136: 0 | N136: 0 | O136: 0
B137: TRUE | C137: =RAB!C131 -> Spare | D137: $ | K137: 0 | L137: 0 | M137: 0 | N137: 0 | O137: 0
B138: TRUE | C138: =RAB!C132 -> Spare | D138: $ | K138: 0 | L138: 0 | M138: 0 | N138: 0 | O138: 0
B139: TRUE | C139: =RAB!C133 -> Spare | D139: $ | K139: 0 | L139: 0 | M139: 0 | N139: 0 | O139: 0
B140: TRUE | C140: =RAB!C134 -> Spare | D140: $ | K140: 0 | L140: 0 | M140: 0 | N140: 0 | O140: 0
B141: TRUE | C141: =RAB!C135 -> Spare | D141: $ | K141: 0 | L141: 0 | M141: 0 | N141: 0 | O141: 0
B142: TRUE | C142: =RAB!C136 -> Spare | D142: $ | K142: 0 | L142: 0 | M142: 0 | N142: 0 | O142: 0
B143: TRUE | C143: =RAB!C137 -> Spare | D143: $ | K143: 0 | L143: 0 | M143: 0 | N143: 0 | O143: 0
B144: TRUE | C144: =RAB!C138 -> Spare | D144: $ | K144: 0 | L144: 0 | M144: 0 | N144: 0 | O144: 0
B145: TRUE | C145: =RAB!C139 -> Spare | D145: $ | K145: 0 | L145: 0 | M145: 0 | N145: 0 | O145: 0
B146: TRUE | C146: =RAB!C140 -> Spare | D146: $ | K146: 0 | L146: 0 | M146: 0 | N146: 0 | O146: 0
B147: TRUE | C147: =RAB!C141 -> Spare | D147: $ | K147: 0 | L147: 0 | M147: 0 | N147: 0 | O147: 0
B148: =IF(C148="Spare",TRUE,0) -> TRUE | C148: =RAB!C142 -> Spare | D148: $ | K148: =J767 -> 0 | L148: =K767 -> 0 | M148: =L767 -> 0 | N148: =M767 -> 0 | O148: =N767 -> 0
B149: TRUE | C149: =RAB!C143 -> Spare | D149: $ | K149: 0 | L149: 0 | M149: 0 | N149: 0 | O149: 0
B150: TRUE | C150: =RAB!C144 -> Spare | D150: $ | K150: 0 | L150: 0 | M150: 0 | N150: 0 | O150: 0
B151: TRUE | C151: =RAB!C145 -> Spare | D151: $ | K151: 0 | L151: 0 | M151: 0 | N151: 0 | O151: 0
B152: TRUE | C152: =RAB!C146 -> Spare | D152: $ | K152: 0 | L152: 0 | M152: 0 | N152: 0 | O152: 0
B153: TRUE | C153: =RAB!C147 -> Spare | D153: $ | K153: 0 | L153: 0 | M153: 0 | N153: 0 | O153: 0
B154: TRUE | C154: =RAB!C148 -> Spare | D154: $ | K154: 0 | L154: 0 | M154: 0 | N154: 0 | O154: 0
B155: TRUE | C155: =RAB!C149 -> Spare | D155: $ | K155: 0 | L155: 0 | M155: 0 | N155: 0 | O155: 0
B156: TRUE | C156: =RAB!C150 -> Spare | D156: $ | K156: 0 | L156: 0 | M156: 0 | N156: 0 | O156: 0
B157: TRUE | C157: =RAB!C151 -> Spare | D157: $ | K157: 0 | L157: 0 | M157: 0 | N157: 0 | O157: 0
B158: TRUE | C158: =RAB!C152 -> Spare | D158: $ | K158: 0 | L158: 0 | M158: 0 | N158: 0 | O158: 0
B159: TRUE | C159: =RAB!C153 -> Spare | D159: $ | K159: 0 | L159: 0 | M159: 0 | N159: 0 | O159: 0
B160: TRUE | C160: =RAB!C154 -> Spare | D160: $ | K160: 0 | L160: 0 | M160: 0 | N160: 0 | O160: 0
B161: TRUE | C161: =RAB!C155 -> Spare | D161: $ | K161: 0 | L161: 0 | M161: 0 | N161: 0 | O161: 0
B162: TRUE | C162: =RAB!C156 -> Spare | D162: $ | K162: 0 | L162: 0 | M162: 0 | N162: 0 | O162: 0
B163: TRUE | C163: =RAB!C157 -> Spare | D163: $ | K163: 0 | L163: 0 | M163: 0 | N163: 0 | O163: 0
B164: TRUE | C164: =RAB!C158 -> Spare | D164: $ | K164: 0 | L164: 0 | M164: 0 | N164: 0 | O164: 0
B165: TRUE | C165: =RAB!C159 -> Spare | D165: $ | K165: 0 | L165: 0 | M165: 0 | N165: 0 | O165: 0
B166: TRUE | C166: =RAB!C160 -> Spare | D166: $ | K166: 0 | L166: 0 | M166: 0 | N166: 0 | O166: 0
B167: TRUE | C167: =RAB!C161 -> Spare | D167: $ | K167: 0 | L167: 0 | M167: 0 | N167: 0 | O167: 0
B168: TRUE | C168: =RAB!C162 -> Spare | D168: $ | K168: 0 | L168: 0 | M168: 0 | N168: 0 | O168: 0
C169: Total | D169: $ | K169: =SUM(K19:K168) -> 14042093.88 | L169: =SUM(L19:L168) -> 12909464.66 | M169: =SUM(M19:M168) -> 11827475.71 | N169: =SUM(N19:N168) -> 10765065.6 | O169: =SUM(O19:O168) -> 9736986.816
C171: Forecast Net Capital Expenditure
B173: =IF(C173="Spare",TRUE,0) -> 0 | C173: =C19 -> 1 x 20 W Fluorescent | D173: $ | I173: =SUM(K173:O173) -> 0 | K173: =RAB!E644/J$10*(1+K$13)^Half -> 0 | L173: =RAB!F644/K$10*(1+L$13)^Half -> 0 | M173: =RAB!G644/L$10*(1+M$13)^Half -> 0 | N173: =RAB!H644/M$10*(1+N$13)^Half -> 0 | O173: =RAB!I644/N$10*(1+O$13)^Half -> 0
B174: =IF(C174="Spare",TRUE,0) -> 0 | C174: =C20 -> 2 x 20 W Fluorescent | D174: $ | I174: =SUM(K174:O174) -> 0 | K174: =RAB!E645/J$10*(1+K$13)^Half -> 0 | L174: =RAB!F645/K$10*(1+L$13)^Half -> 0 | M174: =RAB!G645/L$10*(1+M$13)^Half -> 0 | N174: =RAB!H645/M$10*(1+N$13)^Half -> 0 | O174: =RAB!I645/N$10*(1+O$13)^Half -> 0
B175: 0 | C175: 4 x 20 W Fluorescent | D175: $ | I175: 0 | K175: =RAB!E646/J$10*(1+K$13)^Half -> 0 | L175: =RAB!F646/K$10*(1+L$13)^Half -> 0 | M175: =RAB!G646/L$10*(1+M$13)^Half -> 0 | N175: =RAB!H646/M$10*(1+N$13)^Half -> 0 | O175: =RAB!I646/N$10*(1+O$13)^Half -> 0
B176: 0 | C176: 2 x 14 W Fluorescent | D176: $ | I176: -20945.61281 | K176: =RAB!E647/J$10*(1+K$13)^Half -> -4398.514544 | L176: =RAB!F647/K$10*(1+L$13)^Half -> -4291.233701 | M176: =RAB!G647/L$10*(1+M$13)^Half -> -4186.569464 | N176: =RAB!H647/M$10*(1+N$13)^Half -> -4084.458014 | O176: =RAB!I647/N$10*(1+O$13)^Half -> -3984.837087
B177: 0 | C177: 2 x 24 W Fluorescent | D177: $ | I177: 0 | K177: =RAB!E648/J$10*(1+K$13)^Half -> 0 | L177: =RAB!F648/K$10*(1+L$13)^Half -> 0 | M177: =RAB!G648/L$10*(1+M$13)^Half -> 0 | N177: =RAB!H648/M$10*(1+N$13)^Half -> 0 | O177: =RAB!I648/N$10*(1+O$13)^Half -> 0
B178: 0 | C178: 1 x 40 W Fluorescent | D178: $ | I178: 0 | K178: =RAB!E649/J$10*(1+K$13)^Half -> 0 | L178: =RAB!F649/K$10*(1+L$13)^Half -> 0 | M178: =RAB!G649/L$10*(1+M$13)^Half -> 0 | N178: =RAB!H649/M$10*(1+N$13)^Half -> 0 | O178: =RAB!I649/N$10*(1+O$13)^Half -> 0
B179: 0 | C179: 2 x 40 W Fluorescent | D179: $ | I179: 0 | K179: =RAB!E650/J$10*(1+K$13)^Half -> 0 | L179: =RAB!F650/K$10*(1+L$13)^Half -> 0 | M179: =RAB!G650/L$10*(1+M$13)^Half -> 0 | N179: =RAB!H650/M$10*(1+N$13)^Half -> 0 | O179: =RAB!I650/N$10*(1+O$13)^Half -> 0
B180: 0 | C180: 1 x 42 W Fluorescent | D180: $ | I180: 0 | K180: =RAB!E651/J$10*(1+K$13)^Half -> 0 | L180: =RAB!F651/K$10*(1+L$13)^Half -> 0 | M180: =RAB!G651/L$10*(1+M$13)^Half -> 0 | N180: =RAB!H651/M$10*(1+N$13)^Half -> 0 | O180: =RAB!I651/N$10*(1+O$13)^Half -> 0
B181: 0 | C181: 50W Mercury | D181: $ | I181: 0 | K181: =RAB!E652/J$10*(1+K$13)^Half -> 0 | L181: =RAB!F652/K$10*(1+L$13)^Half -> 0 | M181: =RAB!G652/L$10*(1+M$13)^Half -> 0 | N181: =RAB!H652/M$10*(1+N$13)^Half -> 0 | O181: =RAB!I652/N$10*(1+O$13)^Half -> 0
B182: 0 | C182: 80W Mercury | D182: $ | I182: -83811.88301 | K182: =RAB!E653/J$10*(1+K$13)^Half -> -17600.23876 | L182: =RAB!F653/K$10*(1+L$13)^Half -> -17170.96464 | M182: =RAB!G653/L$10*(1+M$13)^Half -> -16752.16063 | N182: =RAB!H653/M$10*(1+N$13)^Half -> -16343.57134 | O182: =RAB!I653/N$10*(1+O$13)^Half -> -15944.94765
B183: 0 | C183: 125W Mercury | D183: $ | I183: 0 | K183: =RAB!E654/J$10*(1+K$13)^Half -> 0 | L183: =RAB!F654/K$10*(1+L$13)^Half -> 0 | M183: =RAB!G654/L$10*(1+M$13)^Half -> 0 | N183: =RAB!H654/M$10*(1+N$13)^Half -> 0 | O183: =RAB!I654/N$10*(1+O$13)^Half -> 0
B184: 0 | C184: 250W Mercury | D184: $ | I184: -2040.603028 | K184: =RAB!E655/J$10*(1+K$13)^Half -> -428.5203864 | L184: =RAB!F655/K$10*(1+L$13)^Half -> -418.0686697 | M184: =RAB!G655/L$10*(1+M$13)^Half -> -407.8718729 | N184: =RAB!H655/M$10*(1+N$13)^Half -> -397.9237784 | O184: =RAB!I655/N$10*(1+O$13)^Half -> -388.2183204
B185: 0 | C185: 2 x 250W Mercury | D185: $ | I185: 0 | K185: =RAB!E656/J$10*(1+K$13)^Half -> 0 | L185: =RAB!F656/K$10*(1+L$13)^Half -> 0 | M185: =RAB!G656/L$10*(1+M$13)^Half -> 0 | N185: =RAB!H656/M$10*(1+N$13)^Half -> 0 | O185: =RAB!I656/N$10*(1+O$13)^Half -> 0
B186: 0 | C186: 400 W Mercury | D186: $ | I186: -8775.574079 | K186: =RAB!E657/J$10*(1+K$13)^Half -> -1842.843681 | L186: =RAB!F657/K$10*(1+L$13)^Half -> -1797.896274 | M186: =RAB!G657/L$10*(1+M$13)^Half -> -1754.045146 | N186: =RAB!H657/M$10*(1+N$13)^Half -> -1711.263557 | O186: =RAB!I657/N$10*(1+O$13)^Half -> -1669.525421
B187: 0 | C187: 700 W Mercury | D187: $ | I187: 0 | K187: =RAB!E658/J$10*(1+K$13)^Half -> 0 | L187: =RAB!F658/K$10*(1+L$13)^Half -> 0 | M187: =RAB!G658/L$10*(1+M$13)^Half -> 0 | N187: =RAB!H658/M$10*(1+N$13)^Half -> 0 | O187: =RAB!I658/N$10*(1+O$13)^Half -> 0
B188: 0 | C188: 50W Sodium | D188: $ | I188: 0 | K188: =RAB!E659/J$10*(1+K$13)^Half -> 0 | L188: =RAB!F659/K$10*(1+L$13)^Half -> 0 | M188: =RAB!G659/L$10*(1+M$13)^Half -> 0 | N188: =RAB!H659/M$10*(1+N$13)^Half -> 0 | O188: =RAB!I659/N$10*(1+O$13)^Half -> 0
B189: 0 | C189: 70W Sodium | D189: $ | I189: 0 | K189: =RAB!E660/J$10*(1+K$13)^Half -> 0 | L189: =RAB!F660/K$10*(1+L$13)^Half -> 0 | M189: =RAB!G660/L$10*(1+M$13)^Half -> 0 | N189: =RAB!H660/M$10*(1+N$13)^Half -> 0 | O189: =RAB!I660/N$10*(1+O$13)^Half -> 0
B190: 0 | C190: 90W Sodium | D190: $ | I190: 0 | K190: =RAB!E661/J$10*(1+K$13)^Half -> 0 | L190: =RAB!F661/K$10*(1+L$13)^Half -> 0 | M190: =RAB!G661/L$10*(1+M$13)^Half -> 0 | N190: =RAB!H661/M$10*(1+N$13)^Half -> 0 | O190: =RAB!I661/N$10*(1+O$13)^Half -> 0
B191: 0 | C191: 100W Sodium | D191: $ | I191: 0 | K191: =RAB!E662/J$10*(1+K$13)^Half -> 0 | L191: =RAB!F662/K$10*(1+L$13)^Half -> 0 | M191: =RAB!G662/L$10*(1+M$13)^Half -> 0 | N191: =RAB!H662/M$10*(1+N$13)^Half -> 0 | O191: =RAB!I662/N$10*(1+O$13)^Half -> 0
B192: 0 | C192: 120W Sodium | D192: $ | I192: 0 | K192: =RAB!E663/J$10*(1+K$13)^Half -> 0 | L192: =RAB!F663/K$10*(1+L$13)^Half -> 0 | M192: =RAB!G663/L$10*(1+M$13)^Half -> 0 | N192: =RAB!H663/M$10*(1+N$13)^Half -> 0 | O192: =RAB!I663/N$10*(1+O$13)^Half -> 0
B193: 0 | C193: 150W Sodium | D193: $ | I193: -31001.46908 | K193: =RAB!E664/J$10*(1+K$13)^Half -> -6510.213563 | L193: =RAB!F664/K$10*(1+L$13)^Half -> -6351.427867 | M193: =RAB!G664/L$10*(1+M$13)^Half -> -6196.514992 | N193: =RAB!H664/M$10*(1+N$13)^Half -> -6045.38048 | O193: =RAB!I664/N$10*(1+O$13)^Half -> -5897.932175
B194: 0 | C194: 250W Sodium | D194: $ | I194: -44373.30526 | K194: =RAB!E665/J$10*(1+K$13)^Half -> -9318.258211 | L194: =RAB!F665/K$10*(1+L$13)^Half -> -9090.983621 | M194: =RAB!G665/L$10*(1+M$13)^Half -> -8869.252313 | N194: =RAB!H665/M$10*(1+N$13)^Half -> -8652.929086 | O194: =RAB!I665/N$10*(1+O$13)^Half -> -8441.882035
B195: 0 | C195: 2 x 250W Sodium | D195: $ | I195: 0 | K195: =RAB!E666/J$10*(1+K$13)^Half -> 0 | L195: =RAB!F666/K$10*(1+L$13)^Half -> 0 | M195: =RAB!G666/L$10*(1+M$13)^Half -> 0 | N195: =RAB!H666/M$10*(1+N$13)^Half -> 0 | O195: =RAB!I666/N$10*(1+O$13)^Half -> 0
B196: 0 | C196: 310W Sodium | D196: $ | I196: 0 | K196: =RAB!E667/J$10*(1+K$13)^Half -> 0 | L196: =RAB!F667/K$10*(1+L$13)^Half -> 0 | M196: =RAB!G667/L$10*(1+M$13)^Half -> 0 | N196: =RAB!H667/M$10*(1+N$13)^Half -> 0 | O196: =RAB!I667/N$10*(1+O$13)^Half -> 0
B197: 0 | C197: 400 W Sodium | D197: $ | I197: -5312.435286 | K197: =RAB!E668/J$10*(1+K$13)^Half -> -1115.595141 | L197: =RAB!F668/K$10*(1+L$13)^Half -> -1088.385503 | M197: =RAB!G668/L$10*(1+M$13)^Half -> -1061.839515 | N197: =RAB!H668/M$10*(1+N$13)^Half -> -1035.94099 | O197: =RAB!I668/N$10*(1+O$13)^Half -> -1010.674137
B198: 0 | C198: 2 x 400 W Sodium | D198: $ | I198: 0 | K198: =RAB!E669/J$10*(1+K$13)^Half -> 0 | L198: =RAB!F669/K$10*(1+L$13)^Half -> 0 | M198: =RAB!G669/L$10*(1+M$13)^Half -> 0 | N198: =RAB!H669/M$10*(1+N$13)^Half -> 0 | O198: =RAB!I669/N$10*(1+O$13)^Half -> 0
B199: 0 | C199: 4 x 600W Sodium | D199: $ | I199: 0 | K199: =RAB!E670/J$10*(1+K$13)^Half -> 0 | L199: =RAB!F670/K$10*(1+L$13)^Half -> 0 | M199: =RAB!G670/L$10*(1+M$13)^Half -> 0 | N199: =RAB!H670/M$10*(1+N$13)^Half -> 0 | O199: =RAB!I670/N$10*(1+O$13)^Half -> 0
B200: 0 | C200: 60 W Incandescent | D200: $ | I200: 0 | K200: =RAB!E671/J$10*(1+K$13)^Half -> 0 | L200: =RAB!F671/K$10*(1+L$13)^Half -> 0 | M200: =RAB!G671/L$10*(1+M$13)^Half -> 0 | N200: =RAB!H671/M$10*(1+N$13)^Half -> 0 | O200: =RAB!I671/N$10*(1+O$13)^Half -> 0
B201: 0 | C201: 100 W Incandescent | D201: $ | I201: 0 | K201: =RAB!E672/J$10*(1+K$13)^Half -> 0 | L201: =RAB!F672/K$10*(1+L$13)^Half -> 0 | M201: =RAB!G672/L$10*(1+M$13)^Half -> 0 | N201: =RAB!H672/M$10*(1+N$13)^Half -> 0 | O201: =RAB!I672/N$10*(1+O$13)^Half -> 0
B202: 0 | C202: 500 W Incandescent | D202: $ | I202: 0 | K202: =RAB!E673/J$10*(1+K$13)^Half -> 0 | L202: =RAB!F673/K$10*(1+L$13)^Half -> 0 | M202: =RAB!G673/L$10*(1+M$13)^Half -> 0 | N202: =RAB!H673/M$10*(1+N$13)^Half -> 0 | O202: =RAB!I673/N$10*(1+O$13)^Half -> 0
B203: 0 | C203: 1000 W Incandescent | D203: $ | I203: 0 | K203: =RAB!E674/J$10*(1+K$13)^Half -> 0 | L203: =RAB!F674/K$10*(1+L$13)^Half -> 0 | M203: =RAB!G674/L$10*(1+M$13)^Half -> 0 | N203: =RAB!H674/M$10*(1+N$13)^Half -> 0 | O203: =RAB!I674/N$10*(1+O$13)^Half -> 0
B204: 0 | C204: 1500 W Incandescent | D204: $ | I204: 0 | K204: =RAB!E675/J$10*(1+K$13)^Half -> 0 | L204: =RAB!F675/K$10*(1+L$13)^Half -> 0 | M204: =RAB!G675/L$10*(1+M$13)^Half -> 0 | N204: =RAB!H675/M$10*(1+N$13)^Half -> 0 | O204: =RAB!I675/N$10*(1+O$13)^Half -> 0
B205: 0 | C205: 100 W Metal Halide | D205: $ | I205: -446.3819123 | K205: =RAB!E676/J$10*(1+K$13)^Half -> -93.73883454 | L205: =RAB!F676/K$10*(1+L$13)^Half -> -91.4525215 | M205: =RAB!G676/L$10*(1+M$13)^Half -> -89.22197219 | N205: =RAB!H676/M$10*(1+N$13)^Half -> -87.04582653 | O205: =RAB!I676/N$10*(1+O$13)^Half -> -84.92275759
B206: 0 | C206: 150 W Metal Halide | D206: $ | I206: 0 | K206: =RAB!E677/J$10*(1+K$13)^Half -> 0 | L206: =RAB!F677/K$10*(1+L$13)^Half -> 0 | M206: =RAB!G677/L$10*(1+M$13)^Half -> 0 | N206: =RAB!H677/M$10*(1+N$13)^Half -> 0 | O206: =RAB!I677/N$10*(1+O$13)^Half -> 0
B207: 0 | C207: 250 W Metal Halide | D207: $ | I207: -333.5601103 | K207: =RAB!E678/J$10*(1+K$13)^Half -> -70.04660163 | L207: =RAB!F678/K$10*(1+L$13)^Half -> -68.33814793 | M207: =RAB!G678/L$10*(1+M$13)^Half -> -66.67136384 | N207: =RAB!H678/M$10*(1+N$13)^Half -> -65.04523301 | O207: =RAB!I678/N$10*(1+O$13)^Half -> -63.45876391
B208: 0 | C208: 2 x 250 W Metal Halide | D208: $ | I208: 0 | K208: =RAB!E679/J$10*(1+K$13)^Half -> 0 | L208: =RAB!F679/K$10*(1+L$13)^Half -> 0 | M208: =RAB!G679/L$10*(1+M$13)^Half -> 0 | N208: =RAB!H679/M$10*(1+N$13)^Half -> 0 | O208: =RAB!I679/N$10*(1+O$13)^Half -> 0
B209: 0 | C209: 400 W Metal Halide | D209: $ | I209: -416.9501379 | K209: =RAB!E680/J$10*(1+K$13)^Half -> -87.55825204 | L209: =RAB!F680/K$10*(1+L$13)^Half -> -85.42268492 | M209: =RAB!G680/L$10*(1+M$13)^Half -> -83.3392048 | N209: =RAB!H680/M$10*(1+N$13)^Half -> -81.30654126 | O209: =RAB!I680/N$10*(1+O$13)^Half -> -79.32345489
B210: 0 | C210: 2 x 400 W Metal Halide | D210: $ | I210: 0 | K210: =RAB!E681/J$10*(1+K$13)^Half -> 0 | L210: =RAB!F681/K$10*(1+L$13)^Half -> 0 | M210: =RAB!G681/L$10*(1+M$13)^Half -> 0 | N210: =RAB!H681/M$10*(1+N$13)^Half -> 0 | O210: =RAB!I681/N$10*(1+O$13)^Half -> 0
B211: 0 | C211: 1000 W Metal Halide | D211: $ | I211: -250.1700827 | K211: =RAB!E682/J$10*(1+K$13)^Half -> -52.53495122 | L211: =RAB!F682/K$10*(1+L$13)^Half -> -51.25361095 | M211: =RAB!G682/L$10*(1+M$13)^Half -> -50.00352288 | N211: =RAB!H682/M$10*(1+N$13)^Half -> -48.78392476 | O211: =RAB!I682/N$10*(1+O$13)^Half -> -47.59407293
... 1547 more rows

Sheet TC3
C1: Tariff Charge 3
K4: =REG_Timing!K4 -> 2020 | L4: =REG_Timing!L4 -> 2021 | M4: =REG_Timing!M4 -> 2022 | N4: =REG_Timing!N4 -> 2023 | O4: =REG_Timing!O4 -> 2024
C6: Timing
C8: Year | D8: # | K8: =REG_Timing!K8 -> 1 | L8: =REG_Timing!L8 -> 2 | M8: =REG_Timing!M8 -> 3 | N8: =REG_Timing!N8 -> 4 | O8: =REG_Timing!O8 -> 5
C10: =Global!C79 -> Pre-tax real WACC | D10: % | K10: =Global!F79 -> 0.04137870315 | L10: =Global!G79 -> 0.04137870315 | M10: =Global!H79 -> 0.04137870315 | N10: =Global!I79 -> 0.04137870315 | O10: =Global!J79 -> 0.04137870315
C12: Capex
C14: Capital
C16: Adjustment for volume growth | D16: % | E16: =Annuity!$E$13 -> 0
C17: Real escalation index | D17: % | E17: =Annuity!$E$18 -> Real capex | K17: =INDEX(REG_Timing!K23:K27,MATCH($E17,List_Escalation,0)) -> 1 | L17: =INDEX(REG_Timing!L23:L27,MATCH($E17,List_Escalation,0)) -> 1 | M17: =INDEX(REG_Timing!M23:M27,MATCH($E17,List_Escalation,0)) -> 1 | N17: =INDEX(REG_Timing!N23:N27,MATCH($E17,List_Escalation,0)) -> 1 | O17: =INDEX(REG_Timing!O23:O27,MATCH($E17,List_Escalation,0)) -> 1
E19: Asset Value | F19: Useful life
B20: =IF(C20="Spare",TRUE,0) -> 0 | C20: =Annuity!C24 -> 2x14W Energy Efficient Fluro - STD | D20: $ / Component | F20: =Annuity!E24 -> 20
B21: =IF(C21="Spare",TRUE,0) -> 0 | C21: =Annuity!C25 -> 2x24W Energy Efficient Fluro - STD | D21: $ / Component | F21: =Annuity!E25 -> 20
B22: 0 | C22: =Annuity!C26 -> 1x42W Compact Fluorescent - STD | D22: $ / Component | F22: =Annuity!E26 -> 20
B23: 0 | C23: =Annuity!C27 -> 50W Mercury - STANDARD | D23: $ / Component | F23: =Annuity!E27 -> 20
B24: 0 | C24: =Annuity!C28 -> 80W Mercury - STANDARD | D24: $ / Component | F24: =Annuity!E28 -> 20
B25: 0 | C25: =Annuity!C29 -> 70W Sodium - STANDARD | D25: $ / Component | F25: =Annuity!E29 -> 20
B26: 0 | C26: =Annuity!C30 -> 100W Sodium - STANDARD | D26: $ / Component | F26: =Annuity!E30 -> 20
B27: 0 | C27: =Annuity!C31 -> 100W Metal Halide - STANDARD | D27: $ / Component | F27: =Annuity!E31 -> 20
B28: 0 | C28: =Annuity!C32 -> 25W LED | D28: $ / Component | F28: =Annuity!E32 -> 12
B29: 0 | C29: =Annuity!C33 -> Suburban 70W HPS c/w D2 PECB - STD | D29: $ / Component | F29: =Annuity!E33 -> 20
B30: 0 | C30: =Annuity!C34 -> 150W Sodium - STANDARD | D30: $ / Component | F30: =Annuity!E34 -> 20
B31: 0 | C31: =Annuity!C35 -> 150W Metal Halide - STANDARD | D31: $ / Component | F31: =Annuity!E35 -> 20
B32: 0 | C32: =Annuity!C36 -> 250W Sodium - STANDARD | D32: $ / Component | F32: =Annuity!E36 -> 20
B33: 0 | C33: =Annuity!C37 -> 250W Metal Halide - STANDARD | D33: $ / Component | F33: =Annuity!E37 -> 20
B34: 0 | C34: =Annuity!C38 -> 400W Sodium - STANDARD | D34: $ / Component | F34: =Annuity!E38 -> 20
B35: 0 | C35: =Annuity!C39 -> 80W Mercury - AEROSCREEN | D35: $ / Component | F35: =Annuity!E39 -> 20
B36: 0 | C36: =Annuity!C40 -> Urban A/Screen 42W CFL c/w D2 PECB | D36: $ / Component | F36: =Annuity!E40 -> 20
B37: 0 | C37: =Annuity!C41 -> 150W Sodium - AEROSCREEN | D37: $ / Component | F37: =Annuity!E41 -> 20
B38: 0 | C38: =Annuity!C42 -> 150W Metal Halide - AEROSCREEN | D38: $ / Component | F38: =Annuity!E42 -> 20
B39: 0 | C39: =Annuity!C43 -> 250W Sodium (w/o PECB) - AEROSCREEN | D39: $ / Component | F39: =Annuity!E43 -> 20
B40: 0 | C40: =Annuity!C44 -> 250W Metal Halide - AEROSCREEN | D40: $ / Component | F40: =Annuity!E44 -> 20
B41: 0 | C41: =Annuity!C45 -> 400W Sodium - AEROSCREEN | D41: $ / Component | F41: =Annuity!E45 -> 20
B42: 0 | C42: =Annuity!C46 -> 400W Metal Halide - AEROSCREEN | D42: $ / Component | F42: =Annuity!E46 -> 20
B43: 0 | C43: =Annuity!C47 -> Roadster A/Screen 100W HPS c/w PECB | D43: $ / Component | F43: =Annuity!E47 -> 20
B44: 0 | C44: =Annuity!C48 -> 80W Mercury - POST TOP | D44: $ / Component | F44: =Annuity!E48 -> 20
B45: 0 | C45: =Annuity!C49 -> B2001 42WCFL c/w D2 PECB green - PT | D45: $ / Component | F45: =Annuity!E49 -> 20
B46: 0 | C46: =Annuity!C50 -> 250W Sodium - FLOODLIGHT | D46: $ / Component | F46: =Annuity!E50 -> 20
B47: 0 | C47: =Annuity!C51 -> 250W Metal Halide - FLOODLIGHT | D47: $ / Component | F47: =Annuity!E51 -> 20
B48: 0 | C48: =Annuity!C52 -> 400W Sodium - FLOODLIGHT | D48: $ / Component | F48: =Annuity!E52 -> 20
B49: 0 | C49: =Annuity!C53 -> 400W Metal Halide - FLOODLIGHT | D49: $ / Component | F49: =Annuity!E53 -> 20
B50: 0 | C50: =Annuity!C54 -> 150W Sodium - FLOODLIGHT | D50: $ / Component | F50: =Annuity!E54 -> 20
B51: 0 | C51: =Annuity!C55 -> 150W Metal Halide - FLOODLIGHT | D51: $ / Component | F51: =Annuity!E55 -> 20
B52: 0 | C52: =Annuity!C56 -> Bracket - Minor <=3m | D52: $ / Component | F52: =Annuity!E56 -> 35
B53: 0 | C53: =Annuity!C57 -> Bracket - Major >3m | D53: $ / Component | F53: =Annuity!E57 -> 35
B54: 0 | C54: =Annuity!C58 -> Outreach - Minor <=2m | D54: $ / Component | F54: =Annuity!E58 -> 35
B55: 0 | C55: =Annuity!C59 -> Outreach - Major >2m | D55: $ / Component | F55: =Annuity!E59 -> 35
B56: 0 | C56: =Annuity!C60 -> Pole (Wood) - Minor - DEDICATED SL <=11m | D56: $ / Component | F56: =Annuity!E60 -> 35
B57: 0 | C57: =Annuity!C61 -> Pole (Wood) - Major - DEDICATED SL >11m | D57: $ / Component | F57: =Annuity!E61 -> 35
B58: 0 | C58: =Annuity!C62 -> Column (Steel) - Minor <=9m | D58: $ / Component | F58: =Annuity!E62 -> 35
B59: 0 | C59: =Annuity!C63 -> Column (Steel) - Major >9m | D59: $ / Component | F59: =Annuity!E63 -> 35
B60: 0 | C60: =Annuity!C64 -> Pole (Wood) - Minor <=11m | D60: $ / Component | F60: =Annuity!E64 -> 35
B61: 0 | C61: =Annuity!C65 -> Pole (Wood) - Major >11m | D61: $ / Component | F61: =Annuity!E65 -> 35
B62: 0 | C62: =Annuity!C66 -> 18W LED P4 Gerard | D62: $ / Component | F62: =Annuity!E66 -> 12
B63: 0 | C63: =Annuity!C67 -> 25W LED P4 Gerard | D63: $ / Component | F63: =Annuity!E67 -> 12
B64: 0 | C64: =Annuity!C68 -> 33W LED | D64: $ / Component | F64: =Annuity!E68 -> 12
B65: 0 | C65: =Annuity!C69 -> 42W LED | D65: $ / Component | F65: =Annuity!E69 -> 12
B66: 0 | C66: =Annuity!C70 -> 82W LED Gerard V5 Cat Luminaire | D66: $ / Component | F66: =Annuity!E70 -> 12
B67: 0 | C67: =Annuity!C71 -> 100W LED Gerard V4 Cat Luminaire | D67: $ / Component | F67: =Annuity!E71 -> 12
B68: 0 | C68: =Annuity!C72 -> 198W LED Gerard V2/V3 Cat Luminaire | D68: $ / Component | F68: =Annuity!E72 -> 12
B69: 0 | C69: =Annuity!C73 -> 17W LED Cat P Luminaire | D69: $ / Component | F69: =Annuity!E73 -> 12
B70: TRUE | C70: =Annuity!C74 -> Spare | D70: $ / Component | F70: =Annuity!E74 -> 0
B71: TRUE | C71: =Annuity!C75 -> Spare | D71: $ / Component | E71: =Annuity!O75*(1+$E$16) -> 0 | F71: =Annuity!E75 -> 0 | K71: =-IF($F71=0,0,PMT(K$10,$F71,$E71*K$17,0)) -> 0 | L71: 0 | M71: 0 | N71: 0 | O71: 0
B72: TRUE | C72: =Annuity!C76 -> Spare | D72: $ / Component | E72: =Annuity!O76*(1+$E$16) -> 0 | F72: =Annuity!E76 -> 0 | K72: 0 | L72: 0 | M72: 0 | N72: 0 | O72: 0
B73: TRUE | C73: =Annuity!C77 -> Spare | D73: $ / Component | E73: =Annuity!O77*(1+$E$16) -> 0 | F73: =Annuity!E77 -> 0 | K73: 0 | L73: 0 | M73: 0 | N73: 0 | O73: 0
B74: TRUE | C74: =Annuity!C78 -> Spare | D74: $ / Component | E74: =Annuity!O78*(1+$E$16) -> 0 | F74: =Annuity!E78 -> 0 | K74: 0 | L74: 0 | M74: 0 | N74: 0 | O74: 0
B75: TRUE | C75: =Annuity!C79 -> Spare | D75: $ / Component | E75: =Annuity!O79*(1+$E$16) -> 0 | F75: =Annuity!E79 -> 0 | K75: 0 | L75: 0 | M75: 0 | N75: 0 | O75: 0
B76: TRUE | C76: =Annuity!C80 -> Spare | D76: $ / Component | E76: =Annuity!O80*(1+$E$16) -> 0 | F76: =Annuity!E80 -> 0 | K76: 0 | L76: 0 | M76: 0 | N76: 0 | O76: 0
B77: TRUE | C77: =Annuity!C81 -> Spare | D77: $ / Component | E77: =Annuity!O81*(1+$E$16) -> 0 | F77: =Annuity!E81 -> 0 | K77: 0 | L77: 0 | M77: 0 | N77: 0 | O77: 0
B78: TRUE | C78: =Annuity!C82 -> Spare | D78: $ / Component | E78: =Annuity!O82*(1+$E$16) -> 0 | F78: =Annuity!E82 -> 0 | K78: 0 | L78: 0 | M78: 0 | N78: 0 | O78: 0
B79: TRUE | C79: =Annuity!C83 -> Spare | D79: $ / Component | E79: =Annuity!O83*(1+$E$16) -> 0 | F79: =Annuity!E83 -> 0 | K79: 0 | L79: 0 | M79: 0 | N79: 0 | O79: 0
B80: TRUE | C80: =Annuity!C84 -> Spare | D80: $ / Component | E80: =Annuity!O84*(1+$E$16) -> 0 | F80: =Annuity!E84 -> 0 | K80: 0 | L80: 0 | M80: 0 | N80: 0 | O80: 0
B81: TRUE | C81: =Annuity!C85 -> Spare | D81: $ / Component | E81: =Annuity!O85*(1+$E$16) -> 0 | F81: =Annuity!E85 -> 0 | K81: 0 | L81: 0 | M81: 0 | N81: 0 | O81: 0
B82: TRUE | C82: =Annuity!C86 -> Spare | D82: $ / Component | E82: =Annuity!O86*(1+$E$16) -> 0 | F82: =Annuity!E86 -> 0 | K82: 0 | L82: 0 | M82: 0 | N82: 0 | O82: 0
B83: TRUE | C83: =Annuity!C87 -> Spare | D83: $ / Component | E83: =Annuity!O87*(1+$E$16) -> 0 | F83: =Annuity!E87 -> 0 | K83: 0 | L83: 0 | M83: 0 | N83: 0 | O83: 0
B84: TRUE | C84: =Annuity!C88 -> Spare | D84: $ / Component | E84: =Annuity!O88*(1+$E$16) -> 0 | F84: =Annuity!E88 -> 0 | K84: 0 | L84: 0 | M84: 0 | N84: 0 | O84: 0
B85: =IF(C85="Spare",TRUE,0) -> TRUE | C85: =Annuity!C89 -> Spare | D85: $ / Component | E85: =Annuity!O89*(1+$E$16) -> 0 | F85: =Annuity!E89 -> 0 | K85: =-IF($F85=0,0,PMT(K$10,$F85,$E85*K$17,0)) -> 0 | L85: 0 | M85: 0 | N85: 0 | O85: 0
B86: TRUE | C86: =Annuity!C90 -> Spare | D86: $ / Component | E86: =Annuity!O90*(1+$E$16) -> 0 | F86: =Annuity!E90 -> 0 | K86: 0 | L86: 0 | M86: 0 | N86: 0 | O86: 0
B87: TRUE | C87: =Annuity!C91 -> Spare | D87: $ / Component | E87: =Annuity!O91*(1+$E$16) -> 0 | F87: =Annuity!E91 -> 0 | K87: 0 | L87: 0 | M87: 0 | N87: 0 | O87: 0
B88: TRUE | C88: =Annuity!C92 -> Spare | D88: $ / Component | E88: =Annuity!O92*(1+$E$16) -> 0 | F88: =Annuity!E92 -> 0 | K88: 0 | L88: 0 | M88: 0 | N88: 0 | O88: 0
B89: TRUE | C89: =Annuity!C93 -> Spare | D89: $ / Component | E89: =Annuity!O93*(1+$E$16) -> 0 | F89: =Annuity!E93 -> 0 | K89: 0 | L89: 0 | M89: 0 | N89: 0 | O89: 0
B90: TRUE | C90: =Annuity!C94 -> Spare | D90: $ / Component | E90: =Annuity!O94*(1+$E$16) -> 0 | F90: =Annuity!E94 -> 0 | K90: 0 | L90: 0 | M90: 0 | N90: 0 | O90: 0
B91: TRUE | C91: =Annuity!C95 -> Spare | D91: $ / Component | E91: =Annuity!O95*(1+$E$16) -> 0 | F91: =Annuity!E95 -> 0 | K91: 0 | L91: 0 | M91: 0 | N91: 0 | O91: 0
B92: TRUE | C92: =Annuity!C96 -> Spare | D92: $ / Component | E92: =Annuity!O96*(1+$E$16) -> 0 | F92: =Annuity!E96 -> 0 | K92: 0 | L92: 0 | M92: 0 | N92: 0 | O92: 0
B93: TRUE | C93: =Annuity!C97 -> Spare | D93: $ / Component | E93: =Annuity!O97*(1+$E$16) -> 0 | F93: =Annuity!E97 -> 0 | K93: 0 | L93: 0 | M93: 0 | N93: 0 | O93: 0
B94: TRUE | C94: =Annuity!C98 -> Spare | D94: $ / Component | E94: =Annuity!O98*(1+$E$16) -> 0 | F94: =Annuity!E98 -> 0 | K94: 0 | L94: 0 | M94: 0 | N94: 0 | O94: 0
B95: TRUE | C95: =Annuity!C99 -> Spare | D95: $ / Component | E95: =Annuity!O99*(1+$E$16) -> 0 | F95: =Annuity!E99 -> 0 | K95: 0 | L95: 0 | M95: 0 | N95: 0 | O95: 0
B96: TRUE | C96: =Annuity!C100 -> Spare | D96: $ / Component | E96: =Annuity!O100*(1+$E$16) -> 0 | F96: =Annuity!E100 -> 0 | K96: 0 | L96: 0 | M96: 0 | N96: 0 | O96: 0
B97: TRUE | C97: =Annuity!C101 -> Spare | D97: $ / Component | E97: =Annuity!O101*(1+$E$16) -> 0 | F97: =Annuity!E101 -> 0 | K97: 0 | L97: 0 | M97: 0 | N97: 0 | O97: 0
B98: TRUE | C98: =Annuity!C102 -> Spare | D98: $ / Component | E98: =Annuity!O102*(1+$E$16) -> 0 | F98: =Annuity!E102 -> 0 | K98: 0 | L98: 0 | M98: 0 | N98: 0 | O98: 0
B99: TRUE | C99: =Annuity!C103 -> Spare | D99: $ / Component | E99: =Annuity!O103*(1+$E$16) -> 0 | F99: =Annuity!E103 -> 0 | K99: 0 | L99: 0 | M99: 0 | N99: 0 | O99: 0
B100: TRUE | C100: =Annuity!C104 -> Spare | D100: $ / Component | E100: =Annuity!O104*(1+$E$16) -> 0 | F100: =Annuity!E104 -> 0 | K100: 0 | L100: 0 | M100: 0 | N100: 0 | O100: 0
B101: TRUE | C101: =Annuity!C105 -> Spare | D101: $ / Component | E101: =Annuity!O105*(1+$E$16) -> 0 | F101: =Annuity!E105 -> 0 | K101: 0 | L101: 0 | M101: 0 | N101: 0 | O101: 0
B102: TRUE | C102: =Annuity!C106 -> Spare | D102: $ / Component | E102: =Annuity!O106*(1+$E$16) -> 0 | F102: =Annuity!E106 -> 0 | K102: 0 | L102: 0 | M102: 0 | N102: 0 | O102: 0
B103: TRUE | C103: =Annuity!C107 -> Spare | D103: $ / Component | E103: =Annuity!O107*(1+$E$16) -> 0 | F103: =Annuity!E107 -> 0 | K103: 0 | L103: 0 | M103: 0 | N103: 0 | O103: 0
B104: TRUE | C104: =Annuity!C108 -> Spare | D104: $ / Component | E104: =Annuity!O108*(1+$E$16) -> 0 | F104: =Annuity!E108 -> 0 | K104: 0 | L104: 0 | M104: 0 | N104: 0 | O104: 0
B105: TRUE | C105: =Annuity!C109 -> Spare | D105: $ / Component | E105: =Annuity!O109*(1+$E$16) -> 0 | F105: =Annuity!E109 -> 0 | K105: 0 | L105: 0 | M105: 0 | N105: 0 | O105: 0
B106: TRUE | C106: =Annuity!C110 -> Spare | D106: $ / Component | E106: =Annuity!O110*(1+$E$16) -> 0 | F106: =Annuity!E110 -> 0 | K106: 0 | L106: 0 | M106: 0 | N106: 0 | O106: 0
B107: TRUE | C107: =Annuity!C111 -> Spare | D107: $ / Component | E107: =Annuity!O111*(1+$E$16) -> 0 | F107: =Annuity!E111 -> 0 | K107: 0 | L107: 0 | M107: 0 | N107: 0 | O107: 0
B108: TRUE | C108: =Annuity!C112 -> Spare | D108: $ / Component | E108: =Annuity!O112*(1+$E$16) -> 0 | F108: =Annuity!E112 -> 0 | K108: 0 | L108: 0 | M108: 0 | N108: 0 | O108: 0
B109: TRUE | C109: =Annuity!C113 -> Spare | D109: $ / Component | E109: =Annuity!O113*(1+$E$16) -> 0 | F109: =Annuity!E113 -> 0 | K109: 0 | L109: 0 | M109: 0 | N109: 0 | O109: 0
B110: TRUE | C110: =Annuity!C114 -> Spare | D110: $ / Component | E110: =Annuity!O114*(1+$E$16) -> 0 | F110: =Annuity!E114 -> 0 | K110: 0 | L110: 0 | M110: 0 | N110: 0 | O110: 0
B111: TRUE | C111: =Annuity!C115 -> Spare | D111: $ / Component | E111: =Annuity!O115*(1+$E$16) -> 0 | F111: =Annuity!E115 -> 0 | K111: 0 | L111: 0 | M111: 0 | N111: 0 | O111: 0
B112: TRUE | C112: =Annuity!C116 -> Spare | D112: $ / Component | E112: =Annuity!O116*(1+$E$16) -> 0 | F112: =Annuity!E116 -> 0 | K112: 0 | L112: 0 | M112: 0 | N112: 0 | O112: 0
B113: TRUE | C113: =Annuity!C117 -> Spare | D113: $ / Component | E113: =Annuity!O117*(1+$E$16) -> 0 | F113: =Annuity!E117 -> 0 | K113: 0 | L113: 0 | M113: 0 | N113: 0 | O113: 0
B114: TRUE | C114: =Annuity!C118 -> Spare | D114: $ / Component | E114: =Annuity!O118*(1+$E$16) -> 0 | F114: =Annuity!E118 -> 0 | K114: 0 | L114: 0 | M114: 0 | N114: 0 | O114: 0
B115: TRUE | C115: =Annuity!C119 -> Spare | D115: $ / Component | E115: =Annuity!O119*(1+$E$16) -> 0 | F115: =Annuity!E119 -> 0 | K115: 0 | L115: 0 | M115: 0 | N115: 0 | O115: 0
B116: TRUE | C116: =Annuity!C120 -> Spare | D116: $ / Component | E116: =Annuity!O120*(1+$E$16) -> 0 | F116: =Annuity!E120 -> 0 | K116: 0 | L116: 0 | M116: 0 | N116: 0 | O116: 0
B117: TRUE | C117: =Annuity!C121 -> Spare | D117: $ / Component | E117: =Annuity!O121*(1+$E$16) -> 0 | F117: =Annuity!E121 -> 0 | K117: =-IF($F117=0,0,PMT(K$10,$F117,$E117*K$17,0)) -> 0 | L117: 0 | M117: 0 | N117: 0 | O117: 0
B118: TRUE | C118: =Annuity!C122 -> Spare | D118: $ / Component | E118: =Annuity!O122*(1+$E$16) -> 0 | F118: =Annuity!E122 -> 0 | K118: 0 | L118: 0 | M118: 0 | N118: 0 | O118: 0
B119: TRUE | C119: =Annuity!C123 -> Spare | D119: $ / Component | E119: =Annuity!O123*(1+$E$16) -> 0 | F119: =Annuity!E123 -> 0 | K119: 0 | L119: 0 | M119: 0 | N119: 0 | O119: 0
B120: TRUE | C120: =Annuity!C124 -> Spare | D120: $ / Component | E120: =Annuity!O124*(1+$E$16) -> 0 | F120: =Annuity!E124 -> 0 | K120: 0 | L120: 0 | M120: 0 | N120: 0 | O120: 0
B121: TRUE | C121: =Annuity!C125 -> Spare | D121: $ / Component | E121: =Annuity!O125*(1+$E$16) -> 0 | F121: =Annuity!E125 -> 0 | K121: 0 | L121: 0 | M121: 0 | N121: 0 | O121: 0
B122: TRUE | C122: =Annuity!C126 -> Spare | D122: $ / Component | E122: =Annuity!O126*(1+$E$16) -> 0 | F122: =Annuity!E126 -> 0 | K122: 0 | L122: 0 | M122: 0 | N122: 0 | O122: 0
B123: TRUE | C123: =Annuity!C127 -> Spare | D123: $ / Component | E123: =Annuity!O127*(1+$E$16) -> 0 | F123: =Annuity!E127 -> 0 | K123: 0 | L123: 0 | M123: 0 | N123: 0 | O123: 0
B124: TRUE | C124: =Annuity!C128 -> Spare | D124: $ / Component | E124: =Annuity!O128*(1+$E$16) -> 0 | F124: =Annuity!E128 -> 0 | K124: 0 | L124: 0 | M124: 0 | N124: 0 | O124: 0
B125: TRUE | C125: =Annuity!C129 -> Spare | D125: $ / Component | E125: =Annuity!O129*(1+$E$16) -> 0 | F125: =Annuity!E129 -> 0 | K125: 0 | L125: 0 | M125: 0 | N125: 0 | O125: 0
B126: TRUE | C126: =Annuity!C130 -> Spare | D126: $ / Component | E126: =Annuity!O130*(1+$E$16) -> 0 | F126: =Annuity!E130 -> 0 | K126: 0 | L126: 0 | M126: 0 | N126: 0 | O126: 0
B127: TRUE | C127: =Annuity!C131 -> Spare | D127: $ / Component | E127: =Annuity!O131*(1+$E$16) -> 0 | F127: =Annuity!E131 -> 0 | K127: 0 | L127: 0 | M127: 0 | N127: 0 | O127: 0
B128: TRUE | C128: =Annuity!C132 -> Spare | D128: $ / Component | E128: =Annuity!O132*(1+$E$16) -> 0 | F128: =Annuity!E132 -> 0 | K128: 0 | L128: 0 | M128: 0 | N128: 0 | O128: 0
B129: TRUE | C129: =Annuity!C133 -> Spare | D129: $ / Component | E129: =Annuity!O133*(1+$E$16) -> 0 | F129: =Annuity!E133 -> 0 | K129: 0 | L129: 0 | M129: 0 | N129: 0 | O129: 0
B130: TRUE | C130: =Annuity!C134 -> Spare | D130: $ / Component | E130: =Annuity!O134*(1+$E$16) -> 0 | F130: =Annuity!E134 -> 0 | K130: 0 | L130: 0 | M130: 0 | N130: 0 | O130: 0
B131: TRUE | C131: =Annuity!C135 -> Spare | D131: $ / Component | E131: =Annuity!O135*(1+$E$16) -> 0 | F131: =Annuity!E135 -> 0 | K131: 0 | L131: 0 | M131: 0 | N131: 0 | O131: 0
B132: TRUE | C132: =Annuity!C136 -> Spare | D132: $ / Component | E132: =Annuity!O136*(1+$E$16) -> 0 | F132: =Annuity!E136 -> 0 | K132: 0 | L132: 0 | M132: 0 | N132: 0 | O132: 0
B133: TRUE | C133: =Annuity!C137 -> Spare | D133: $ / Component | E133: =Annuity!O137*(1+$E$16) -> 0 | F133: =Annuity!E137 -> 0 | K133: 0 | L133: 0 | M133: 0 | N133: 0 | O133: 0
B134: TRUE | C134: =Annuity!C138 -> Spare | D134: $ / Component | E134: =Annuity!O138*(1+$E$16) -> 0 | F134: =Annuity!E138 -> 0 | K134: 0 | L134: 0 | M134: 0 | N134: 0 | O134: 0
B135: TRUE | C135: =Annuity!C139 -> Spare | D135: $ / Component | E135: =Annuity!O139*(1+$E$16) -> 0 | F135: =Annuity!E139 -> 0 | K135: 0 | L135: 0 | M135: 0 | N135: 0 | O135: 0
B136: TRUE | C136: =Annuity!C140 -> Spare | D136: $ / Component | E136: =Annuity!O140*(1+$E$16) -> 0 | F136: =Annuity!E140 -> 0 | K136: 0 | L136: 0 | M136: 0 | N136: 0 | O136: 0
B137: TRUE | C137: =Annuity!C141 -> Spare | D137: $ / Component | E137: =Annuity!O141*(1+$E$16) -> 0 | F137: =Annuity!E141 -> 0 | K137: 0 | L137: 0 | M137: 0 | N137: 0 | O137: 0
B138: TRUE | C138: =Annuity!C142 -> Spare | D138: $ / Component | E138: =Annuity!O142*(1+$E$16) -> 0 | F138: =Annuity!E142 -> 0 | K138: 0 | L138: 0 | M138: 0 | N138: 0 | O138: 0
B139: TRUE | C139: =Annuity!C143 -> Spare | D139: $ / Component | E139: =Annuity!O143*(1+$E$16) -> 0 | F139: =Annuity!E143 -> 0 | K139: 0 | L139: 0 | M139: 0 | N139: 0 | O139: 0
B140: TRUE | C140: =Annuity!C144 -> Spare | D140: $ / Component | E140: =Annuity!O144*(1+$E$16) -> 0 | F140: =Annuity!E144 -> 0 | K140: 0 | L140: 0 | M140: 0 | N140: 0 | O140: 0
B141: TRUE | C141: =Annuity!C145 -> Spare | D141: $ / Component | E141: =Annuity!O145*(1+$E$16) -> 0 | F141: =Annuity!E145 -> 0 | K141: 0 | L141: 0 | M141: 0 | N141: 0 | O141: 0
B142: TRUE | C142: =Annuity!C146 -> Spare | D142: $ / Component | E142: =Annuity!O146*(1+$E$16) -> 0 | F142: =Annuity!E146 -> 0 | K142: 0 | L142: 0 | M142: 0 | N142: 0 | O142: 0
B143: TRUE | C143: =Annuity!C147 -> Spare | D143: $ / Component | E143: =Annuity!O147*(1+$E$16) -> 0 | F143: =Annuity!E147 -> 0 | K143: 0 | L143: 0 | M143: 0 | N143: 0 | O143: 0
B144: TRUE | C144: =Annuity!C148 -> Spare | D144: $ / Component | E144: =Annuity!O148*(1+$E$16) -> 0 | F144: =Annuity!E148 -> 0 | K144: 0 | L144: 0 | M144: 0 | N144: 0 | O144: 0
B145: TRUE | C145: =Annuity!C149 -> Spare | D145: $ / Component | E145: =Annuity!O149*(1+$E$16) -> 0 | F145: =Annuity!E149 -> 0 | K145: 0 | L145: 0 | M145: 0 | N145: 0 | O145: 0
B146: TRUE | C146: =Annuity!C150 -> Spare | D146: $ / Component | E146: =Annuity!O150*(1+$E$16) -> 0 | F146: =Annuity!E150 -> 0 | K146: 0 | L146: 0 | M146: 0 | N146: 0 | O146: 0
B147: TRUE | C147: =Annuity!C151 -> Spare | D147: $ / Component | E147: =Annuity!O151*(1+$E$16) -> 0 | F147: =Annuity!E151 -> 0 | K147: 0 | L147: 0 | M147: 0 | N147: 0 | O147: 0
B148: TRUE | C148: =Annuity!C152 -> Spare | D148: $ / Component | E148: =Annuity!O152*(1+$E$16) -> 0 | F148: =Annuity!E152 -> 0 | K148: 0 | L148: 0 | M148: 0 | N148: 0 | O148: 0
B149: =IF(C149="Spare",TRUE,0) -> TRUE | C149: =Annuity!C153 -> Spare | D149: $ / Component | E149: =Annuity!O153*(1+$E$16) -> 0 | F149: =Annuity!E153 -> 0 | K149: =-IF($F149=0,0,PMT(K$10,$F149,$E149*K$17,0)) -> 0 | L149: 0 | M149: 0 | N149: 0 | O149: 0
B150: TRUE | C150: =Annuity!C154 -> Spare | D150: $ / Component | E150: =Annuity!O154*(1+$E$16) -> 0 | F150: =Annuity!E154 -> 0 | K150: 0 | L150: 0 | M150: 0 | N150: 0 | O150: 0
B151: TRUE | C151: =Annuity!C155 -> Spare | D151: $ / Component | E151: =Annuity!O155*(1+$E$16) -> 0 | F151: =Annuity!E155 -> 0 | K151: 0 | L151: 0 | M151: 0 | N151: 0 | O151: 0
B152: TRUE | C152: =Annuity!C156 -> Spare | D152: $ / Component | E152: =Annuity!O156*(1+$E$16) -> 0 | F152: =Annuity!E156 -> 0 | K152: 0 | L152: 0 | M152: 0 | N152: 0 | O152: 0
B153: TRUE | C153: =Annuity!C157 -> Spare | D153: $ / Component | E153: =Annuity!O157*(1+$E$16) -> 0 | F153: =Annuity!E157 -> 0 | K153: 0 | L153: 0 | M153: 0 | N153: 0 | O153: 0
